Workbook

Sheet Instructions
A1: Instructions for MSUAASF Salary Placement
A3: Step placement for new MSUAASF members is determined by the number of years of creditable experience the individual has, as well as the number of years the individual has spent previously in a MSUAASF or Minnesota State Academic Professional, Academic Supervisor or Administrator position assigned to the same or a higher salary range.
A8: Steps for Manual Process:
A10: Step 1: Calculate the TOTAL number of years of creditable work experience, Type 1 through Type 3.6. Files to use:
B12: 1) MSUAASF Creditable Work Experience: Worksheet
B13: 2) MSUAASF Creditable Work Experience: Guidelines.
A14: The Guidelines provide detailed, specific information for analyzing work experience. This step is the most time-consuming; it requires detailed analysis of the candidate's resume. The TOTAL number of years will be used to move down the vertical axis of the MSUAASF Salary Corridor Grid for the appropriate range (see Step 3).
B19: IMPORTANT! What Experience is Creditable?
B21: 1. Not all work experience is creditable for the ASF position being analyzed.
B22: For example, some experience is only creditable if it is "directly related to the ASF position upon hire." This means that the experience could be useful to the candidate hired on his/her first day of work. Also, in order for prior ASF and Minnesota State Administrator (i.e., Minnesota State Academic Professional, Academic Supervisor, and/or Administrator) work to be creditable in Type 1, it must have been in the same or a higher salary range than the current ASF position. Note: Prior Minnesota State work that does NOT fall under Type 1 (because it falls into a lower salary range), the work may nonetheless be creditable under the Discretionary sub-categories of work, specifically Type 3.3 Clerical/Technical/Paraprofessional/Lower-Level Professional Experience, but ONLY if the experience is "directly related to the ASF position upon hire".
B35: 2. Not all prior work experience is valued at 100%; creditable Professional-level K-12 Teaching and Administrative experience, Clerical/Technical/Paraprofessional/Lower-Level Professional experience and Graduate/Teaching Assistantships experience is valued at 50%.
B40: 3. No more than 1.00 FTE is credited in any twelve-month period.
A42: For more details on the creditability and value of specific work experience, see the:
A43: MSUAASF Creditable Work Experience: Guidelines
A46: Step 2: Identify the number of years previously spent in an equal or higher range MSUAASF or Minnesota State Academic Professional, Academic Supervisor or Administrator position, if any. (Found in Type 1 experience). Note that this applies only when the new MSUAASF employee was previously assigned to an equal or higher range, followed by a break in service, than that for which the employee is currently being hired. This number will be used to move across the horizontal axis of the MSUAASF Salary Corridor Grid for the appropriate range (see Step 3).
A53: Step 3: Determine the appropriate salary corridor (that is, the Target Step and two steps lower) in which to set the new MSUAASF employee’s initial salary:
B55: A. For the appropriate salary period (i.e. AY16 or AY17), go to the:
B56: MSUAASF Salary Corridor Grid
B57: B. Find the appropriate previously-determined Range, A-E
B58: C. Find the TOTAL number of years of creditable work experience (see Step 1 above), rounded down to the nearest whole number, on the vertical axis of the grid.
B60: D. Find the number of years of previous equal or higher MnSCU work experience, if any, (see Step 2, above/Type 1) on the horizontal axis of the grid.
B62: E. The new MSUAASF employee’s salary corridor/parameter is located at the intersection of the employee’s placement on the vertical and horizontal axes. The corridor identifies both the Target Step and associated salary and the salary found two steps lower than the target step.
A67: Automated Process: Calculation of Years of Experience AND Target Step Determination
A68: After reviewing for relevance and accuracy, enter the information from Step 1 and Step 2 into the automated Worksheet, as indicated. The Worksheet is designed to automatically calculate the years of experience and identify the appropriate salary corridor, aka the Target Step and two steps lower. However, the manual method, described in Steps 1-3, above, can be performed any time. It is a good idea to know the manual process behind the automation, in case an explanation is requested.
A75: Other Considerations and Definitions:
A76: Events Requiring Creditable Experience Analysis, aka Salary Setting Events. In addition to Initial Hire, under ASF Article 12, Section F, two additional ASF situations are also "salary setting events" requiring a creditable experience analysis: 1) Promotion and 2) Re-Hire, after an unpaid break in service. However, the ONLY situations where a desired salary above the midpoint must be submitted to the System Office for approval is Initial Hire and Re-Hire.
B82: 1. Promotion to a MUSAASF position in a higher range requires a creditable experience analysis. See Article 12, Section G, Subd. 1. Exception: Classified employees whose positions have been re-compared to a MSUAASF position and whose initial salary placement in the appropriate MSUAASF range is determined by the compensation provisions of MMB’s Administrative Procedure 15.6, Transfers and Demotions; such promotions are treated for salary purposes as a Re-assignment under the MSUAASF contract and do NOT require creditable experience analysis.
B90: 2. Re-hire into a MSUAASF position, after a break in service, also requires a creditable experience analysis. For this purpose, a break in service is an unpaid break with a distinct end date of the previous MSUAASF job and a distinct start date of the new MSUAASF job. In essence, the re-hired individual is treated the same as an initial hire.
A95: Recording Work History. The individual’s work history must be recorded in SCUPPS on the Employee Information tab, including actual and creditable years.
A97: An Explanation of this screen is available here.
A99: Salary Corridor Grid; Identifying the Target Step. The salary corridor is a range of salaries encompassing the Target Step as the maximum salary, and the minimum salary found two steps lower than the Target Step. Determining the desired initial salary of a new MSUAASF employee requires use of the:
A103: MSUAASF Salary Corridor Grid for Ranges A-E
A104: The TOTAL number of years of creditable work experience, rounded down to the nearest whole number, is placed on the vertical axis of the salary grid for the appropriate range. If any, the number of years previously spent in an equal or higher MSUAASF or a MnSCU Academic Professional, Academic Supervisor or Administrator position, also rounded down to the nearest whole number, is placed on the horizontal axis of the salary grid for the appropriate range. The new employee’s salary corridor is located within the salary grid at the intersection of the employee’s placement on the vertical and horizontal axes.
A112: Final Salary Determination. The overlying principle of compensation for ASF employees is consistency in equity and experience. However, some administrative discretion is built into the process. The campus may desire to place an ASF salary 1) within the salary corridor, 2) above the Target Step, or 3) above the midpoint of the salary range; each of which has different levels of discretion.
B118: 1. Within the Salary Corridor. Actual salary determination within the corridor for each new MSUAASF employee is at the university’s discretion. Initial salary step placement may be at the Target Step or down to two steps lower than the target.
B122: 2. Above the Target Step. If a salary higher than the Target Step is needed to secure the new ASF employee, or an ASF employee re-hired after a break in service, the university may at its discretion offer a higher salary up to the midpoint of the range. These offers of a salary above the Target Step, but at or below the midpoint of the range, must take into consideration internal equity, market factors, and any other recruitment or unique circumstances related to the search and job offer. It is expected that the university will document these issues and retain this information in the employee’s personnel file. Market factors will ordinarily be documented through comparison to CUPA-HR salary survey data.
B132: 3. Above the Midpoint. Upon initial hire and rehire after a break in service, if the university wishes to offer the new MSUAASF employee a salary above the midpoint of the salary range, including circumstances where the Target Step is above the midpoint, supporting documentation of the market and other factors must be submitted to the System Office for approval. Required, supporting documentation includes:
B137: · ASF Position Description (NOT simply the job posting)
B138: · Completed Creditable Work Experience Worksheet including indication of Target Step
B140: · Candidate's Resume
B141: · Applicable Campus Organization Chart, showing the position at issue
B142: · Comparable CUPA-HR Salary Survey Data from the table entitled, "Unweighted Salary Percentiles-Master's Institutions"
B144: · Short narrative as to the underlying reasons and support for the request
A147: Form: | D147: MSUAASF Creditable Work Experience: Worksheet
A149: Other References: | D149: MSUAASF Creditable Work Experience: Guidelines
D150: MSUAASF Salary Corridor Grids
D151: MSUAASF Sample "Above-the-Midpoint" Request
A153: Contracts and Plans: | D153: MSUAASF Article 12
A155: System Office Contact: | D155: Mary Nadeau
D156: Labor Relations Analyst
D157: 651-201-1880
D158: mary.nadeau@so.mnscu.edu0.

Sheet (HIDE) MASTER-Chart (hidden)
A1: 7/1/2023 (FY24) | I1: Ranges for Dropdown | J1: FY | L1: 7/1/2024 (FY25)
A2: Step | B2: Sort | C2: Range A | D2: Range B | E2: Range C | F2: Range D | G2: Range E | I2: A | J2: 7/1/2023 (FY24) | L2: Step | M2: Sort | N2: Range A | O2: Range B | P2: Range C | Q2: Range D | R2: Range E
A3: Step 1 | B3: 1 | D3: 37943 | E3: 45352 | F3: 53148 | G3: 62010 | I3: B | J3: 7/1/2024 (FY25) | L3: Step 1 | M3: 1 | O3: 38797 | P3: 46372 | Q3: 54344 | R3: 63405
A4: Step 2 | B4: 2 | D4: 38952 | E4: 46559 | F4: 54563 | G4: 63657 | I4: C | L4: Step 2 | M4: 2 | O4: 39828 | P4: 47607 | Q4: 55791 | R4: 65089
A5: Step 3 | B5: 3 | D5: 40109 | E5: 47972 | F5: 56182 | G5: 65547 | I5: D | L5: Step 3 | M5: 3 | O5: 41011 | P5: 49051 | Q5: 57446 | R5: 67022
A6: Step 4 | B6: 4 | D6: 41311 | E6: 49382 | F6: 57869 | G6: 67516 | I6: E | L6: Step 4 | M6: 4 | O6: 42240 | P6: 50493 | Q6: 59171 | R6: 69035
A7: Step 5 | B7: 5 | C7: 35383 | D7: 42668 | E7: 50884 | F7: 60158 | G7: 69666 | L7: Step 5 | M7: 5 | N7: 36179 | O7: 43628 | P7: 52029 | Q7: 61512 | R7: 71233
A8: Step 6 | B8: 6 | C8: 36325 | D8: 44022 | E8: 52542 | F8: 62440 | G8: 71821 | L8: Step 6 | M8: 6 | N8: 37142 | O8: 45012 | P8: 53724 | Q8: 63845 | R8: 73437
A9: Step 7 | B9: 7 | C9: 37402 | D9: 45378 | E9: 53953 | F9: 64722 | G9: 73974 | L9: Step 7 | M9: 7 | N9: 38244 | O9: 46399 | P9: 55167 | Q9: 66178 | R9: 75638
A10: Step 8 | B10: 8 | C10: 38526 | D10: 46736 | E10: 55526 | F10: 67010 | G10: 76148 | L10: Step 8 | M10: 8 | N10: 39393 | O10: 47788 | P10: 56775 | Q10: 68518 | R10: 77861
A11: Step 9 | B11: 9 | C11: 39797 | D11: 48088 | E11: 57145 | F11: 69256 | G11: 78388 | L11: Step 9 | M11: 9 | N11: 40692 | O11: 49170 | P11: 58431 | Q11: 70814 | R11: 80152
A12: Step 10 | B12: 10 | C12: 41072 | D12: 49487 | E12: 58813 | F12: 71585 | G12: 80696 | L12: Step 10 | M12: 10 | N12: 41996 | O12: 50600 | P12: 60136 | Q12: 73196 | R12: 82512
A13: Step 11 | B13: 11 | C13: 42349 | D13: 50925 | E13: 60532 | F13: 73993 | G13: 83073 | L13: Step 11 | M13: 11 | N13: 43302 | O13: 52071 | P13: 61894 | Q13: 75658 | R13: 84942
A14: Step 12 | B14: 12 | C14: 43627 | D14: 52409 | E14: 62303 | F14: 76481 | G14: 85517 | L14: Step 12 | M14: 12 | N14: 44609 | O14: 53588 | P14: 63705 | Q14: 78202 | R14: 87441
A15: Step 13 | B15: 13 | C15: 44896 | D15: 53934 | E15: 64126 | F15: 79057 | G15: 88035 | L15: Step 13 | M15: 13 | N15: 45906 | O15: 55148 | P15: 65569 | Q15: 80836 | R15: 90016
A16: Step 14 | B16: 14 | C16: 46197 | D16: 55504 | E16: 66006 | F16: 81721 | G16: 90634 | L16: Step 14 | M16: 14 | N16: 47236 | O16: 56753 | P16: 67491 | Q16: 83560 | R16: 92673
A17: Step 15 | B17: 15 | C17: 47535 | D17: 57128 | E17: 67939 | F17: 84472 | G17: 93306 | L17: Step 15 | M17: 15 | N17: 48605 | O17: 58413 | P17: 69468 | Q17: 86373 | R17: 95405
A18: Step 16 | B18: 16 | C18: 48915 | D18: 58797 | E18: 69930 | F18: 87327 | G18: 96062 | L18: Step 16 | M18: 16 | N18: 50016 | O18: 60120 | P18: 71503 | Q18: 89292 | R18: 98223
A19: Step 17 | B19: 17 | C19: 50336 | D19: 60514 | E19: 71985 | F19: 89899 | G19: 98897 | L19: Step 17 | M19: 17 | N19: 51469 | O19: 61876 | P19: 73605 | Q19: 91922 | R19: 101122
A20: Step 18 | B20: 18 | C20: 51804 | D20: 62286 | E20: 74094 | F20: 92550 | G20: 101822 | L20: Step 18 | M20: 18 | N20: 52970 | O20: 63687 | P20: 75761 | Q20: 94632 | R20: 104113
A21: Step 19 | B21: 19 | C21: 53313 | D21: 64106 | E21: 76267 | F21: 95277 | G21: 104829 | L21: Step 19 | M21: 19 | N21: 54513 | O21: 65548 | P21: 77983 | Q21: 97421 | R21: 107188
A22: Step 20 | B22: 20 | C22: 54911 | D22: 66029 | E22: 78555 | F22: 98135 | G22: 107975 | L22: Step 20 | M22: 20 | N22: 56146 | O22: 67515 | P22: 80322 | Q22: 100343 | R22: 110404
A23: Step 21 | B23: 21 | C23: 56586 | D23: 68043 | E23: 80950 | F23: 101129 | G23: 111268 | L23: Step 21 | M23: 21 | N23: 57859 | O23: 69574 | P23: 82771 | Q23: 103404 | R23: 113772
A24: Step 22 | B24: 22 | C24: 58312 | D24: 70118 | E24: 83419 | F24: 104213 | G24: 114662 | L24: Step 22 | M24: 22 | N24: 59624 | O24: 71696 | P24: 85296 | Q24: 106558 | R24: 117242
A25: Step 23 | B25: 23 | C25: 60091 | D25: 72257 | E25: 85964 | F25: 107392 | G25: 118159 | L25: Step 23 | M25: 23 | N25: 61443 | O25: 73883 | P25: 87898 | Q25: 109808 | R25: 120818
A26: Step 24 | B26: 24 | C26: 61923 | D26: 74461 | E26: 88586 | F26: 110667 | G26: 121763 | L26: Step 24 | M26: 24 | N26: 63316 | O26: 76136 | P26: 90579 | Q26: 113157 | R26: 124503
A27: Step 25 | B27: 25 | C27: 63812 | D27: 76732 | E27: 91288 | F27: 114042 | G27: 125477 | L27: Step 25 | M27: 25 | N27: 65248 | O27: 78458 | P27: 93342 | Q27: 116608 | R27: 128300

Sheet (HIDE) Sheet1 (hidden)
B1: Low | Q1: High
A2: Lookup | B2: Range | C2: YRS EXP | D2: 0 | E2: 1 | F2: 2 | G2: 3 | H2: 4 | I2: 5 | J2: 6 | K2: 7 | L2: 8 | M2: 9 | N2: 10 | P2: Lookup | Q2: Range | R2: YRS EXP | S2: 0 | T2: 1 | U2: 2 | V2: 3 | W2: 4 | X2: 5 | Y2: 6 | Z2: 7 | AA2: 8 | AB2: 9 | AC2: 10
A3: A0 | B3: A | C3: 0 | D3: 5 | E3: 5 | F3: =E3 -> 5 | G3: =F3 -> 5 | H3: 5 | I3: 5 | J3: 5 | K3: 5 | L3: 5 | M3: 5 | N3: 5 | P3: A0 | Q3: A | R3: 0 | S3: 6 | T3: 6 | U3: =T3 -> 6 | V3: 6 | W3: 6 | X3: 6 | Y3: 6 | Z3: 6 | AA3: 6 | AB3: 6 | AC3: 6
A4: A1 | B4: A | C4: 1 | D4: 5 | E4: 5 | F4: =E4 -> 5 | G4: 5 | H4: 5 | I4: 5 | J4: 5 | K4: 5 | L4: 5 | M4: 5 | N4: 5 | P4: A1 | Q4: A | R4: 1 | S4: 6 | T4: 6 | U4: 6 | V4: 6 | W4: 6 | X4: 6 | Y4: 6 | Z4: 6 | AA4: 6 | AB4: 6 | AC4: 6
A5: A2 | B5: A | C5: 2 | D5: 5 | E5: 5 | F5: 5 | G5: 5 | H5: 5 | I5: 5 | J5: 5 | K5: 5 | L5: 5 | M5: 5 | N5: 5 | P5: A2 | Q5: A | R5: 2 | S5: 7 | T5: 7 | U5: 7 | V5: 7 | W5: 7 | X5: 7 | Y5: 7 | Z5: 7 | AA5: 7 | AB5: 7 | AC5: 7
A6: A3 | B6: A | C6: 3 | D6: 5 | E6: 5 | F6: 5 | G6: 5 | H6: 5 | I6: 5 | J6: 5 | K6: 5 | L6: 5 | M6: 5 | N6: 5 | P6: A3 | Q6: A | R6: 3 | S6: 7 | T6: 7 | U6: 7 | V6: 7 | W6: 7 | X6: 7 | Y6: 7 | Z6: 7 | AA6: 7 | AB6: 7 | AC6: 7
A7: A4 | B7: A | C7: 4 | D7: 6 | E7: 6 | F7: 6 | G7: 6 | H7: 7 | I7: 7 | J7: 7 | K7: 7 | L7: 7 | M7: 7 | N7: 7 | P7: A4 | Q7: A | R7: 4 | S7: 8 | T7: 8 | U7: 8 | V7: 8 | W7: 9 | X7: 9 | Y7: 9 | Z7: 9 | AA7: 9 | AB7: 9 | AC7: 9
A8: A5 | B8: A | C8: 5 | D8: 6 | E8: 6 | F8: 6 | G8: 6 | H8: 7 | I8: 7 | J8: 7 | K8: 7 | L8: 7 | M8: 7 | N8: 7 | P8: A5 | Q8: A | R8: 5 | S8: 8 | T8: 8 | U8: 8 | V8: 8 | W8: 9 | X8: 9 | Y8: 9 | Z8: 9 | AA8: 9 | AB8: 9 | AC8: 9
A9: A6 | B9: A | C9: 6 | D9: 7 | E9: 7 | F9: 7 | G9: 7 | H9: 8 | I9: 8 | J9: 8 | K9: 8 | L9: 8 | M9: 8 | N9: 8 | P9: A6 | Q9: A | R9: 6 | S9: 9 | T9: 9 | U9: 9 | V9: 9 | W9: 10 | X9: 10 | Y9: 10 | Z9: 10 | AA9: 10 | AB9: 10 | AC9: 10
A10: A7 | B10: A | C10: 7 | D10: 7 | E10: 7 | F10: 7 | G10: 7 | H10: 8 | I10: 8 | J10: 8 | K10: 8 | L10: 8 | M10: 8 | N10: 8 | P10: A7 | Q10: A | R10: 7 | S10: 9 | T10: 9 | U10: 9 | V10: 9 | W10: 10 | X10: 10 | Y10: 10 | Z10: 10 | AA10: 10 | AB10: 10 | AC10: 10
A11: A8 | B11: A | C11: 8 | D11: 8 | E11: 8 | F11: 8 | G11: 8 | H11: 9 | I11: 9 | J11: 9 | K11: 9 | L11: 10 | M11: 10 | N11: 10 | P11: A8 | Q11: A | R11: 8 | S11: 10 | T11: 10 | U11: 10 | V11: 10 | W11: 11 | X11: 11 | Y11: 11 | Z11: 11 | AA11: 12 | AB11: 12 | AC11: 12
A12: A9 | B12: A | C12: 9 | D12: 8 | E12: 8 | F12: 8 | G12: 8 | H12: 9 | I12: 9 | J12: 9 | K12: 9 | L12: 10 | M12: 10 | N12: 10 | P12: A9 | Q12: A | R12: 9 | S12: 10 | T12: 10 | U12: 10 | V12: 10 | W12: 11 | X12: 11 | Y12: 11 | Z12: 11 | AA12: 12 | AB12: 12 | AC12: 12
A13: A10 | B13: A | C13: 10 | D13: 9 | E13: 9 | F13: 9 | G13: 9 | H13: 10 | I13: 10 | J13: 10 | K13: 10 | L13: 11 | M13: 11 | N13: 11 | P13: A10 | Q13: A | R13: 10 | S13: 11 | T13: 11 | U13: 11 | V13: 11 | W13: 12 | X13: 12 | Y13: 12 | Z13: 12 | AA13: 13 | AB13: 13 | AC13: 13
A14: A11 | B14: A | C14: 11 | D14: 9 | E14: 9 | F14: 9 | G14: 9 | H14: 10 | I14: 10 | J14: 10 | K14: 10 | L14: 11 | M14: 11 | N14: 11 | P14: A11 | Q14: A | R14: 11 | S14: 11 | T14: 11 | U14: 11 | V14: 11 | W14: 12 | X14: 12 | Y14: 12 | Z14: 12 | AA14: 13 | AB14: 13 | AC14: 13
A15: A12 | B15: A | C15: 12 | D15: 9 | E15: 9 | F15: 10 | G15: 10 | H15: 11 | I15: 11 | J15: 11 | K15: 11 | L15: 12 | M15: 12 | N15: 12 | P15: A12 | Q15: A | R15: 12 | S15: 11 | T15: 11 | U15: 12 | V15: 12 | W15: 13 | X15: 13 | Y15: 13 | Z15: 13 | AA15: 14 | AB15: 14 | AC15: 14
A16: A13 | B16: A | C16: 13 | D16: 9 | E16: 9 | F16: 10 | G16: 10 | H16: 11 | I16: 11 | J16: 11 | K16: 11 | L16: 12 | M16: 12 | N16: 12 | P16: A13 | Q16: A | R16: 13 | S16: 11 | T16: 11 | U16: 12 | V16: 12 | W16: 13 | X16: 13 | Y16: 13 | Z16: 13 | AA16: 14 | AB16: 14 | AC16: 14
A17: A14 | B17: A | C17: 14 | D17: 10 | E17: 10 | F17: 11 | G17: 11 | H17: 11 | I17: 11 | J17: 12 | K17: 12 | L17: 12 | M17: 12 | N17: 13 | P17: A14 | Q17: A | R17: 14 | S17: 12 | T17: 12 | U17: 13 | V17: 13 | W17: 13 | X17: 13 | Y17: 14 | Z17: 14 | AA17: 14 | AB17: 14 | AC17: 15
A18: A15 | B18: A | C18: 15 | D18: 10 | E18: 10 | F18: 11 | G18: 11 | H18: 11 | I18: 11 | J18: 12 | K18: 12 | L18: 12 | M18: 12 | N18: 13 | P18: A15 | Q18: A | R18: 15 | S18: 12 | T18: 12 | U18: 13 | V18: 13 | W18: 13 | X18: 13 | Y18: 14 | Z18: 14 | AA18: 14 | AB18: 14 | AC18: 15
A19: A16 | B19: A | C19: 16 | D19: 11 | E19: 11 | F19: 12 | G19: 12 | H19: 12 | I19: 12 | J19: 13 | K19: 13 | L19: 13 | M19: 13 | N19: 14 | P19: A16 | Q19: A | R19: 16 | S19: 13 | T19: 13 | U19: 14 | V19: 14 | W19: 14 | X19: 14 | Y19: 15 | Z19: 15 | AA19: 15 | AB19: 15 | AC19: 16
A20: A17 | B20: A | C20: 17 | D20: 11 | E20: 11 | F20: 12 | G20: 12 | H20: 12 | I20: 12 | J20: 13 | K20: 13 | L20: 13 | M20: 13 | N20: 14 | P20: A17 | Q20: A | R20: 17 | S20: 13 | T20: 13 | U20: 14 | V20: 14 | W20: 14 | X20: 14 | Y20: 15 | Z20: 15 | AA20: 15 | AB20: 15 | AC20: 16
A21: A18 | B21: A | C21: 18 | D21: 12 | E21: 12 | F21: 12 | G21: 12 | H21: 13 | I21: 13 | J21: 13 | K21: 13 | L21: 14 | M21: 14 | N21: 14 | P21: A18 | Q21: A | R21: 18 | S21: 14 | T21: 14 | U21: 14 | V21: 14 | W21: 15 | X21: 15 | Y21: 15 | Z21: 15 | AA21: 16 | AB21: 16 | AC21: 16
A22: A19 | B22: A | C22: 19 | D22: 12 | E22: 12 | F22: 12 | G22: 12 | H22: 13 | I22: 13 | J22: 13 | K22: 13 | L22: 14 | M22: 14 | N22: 14 | P22: A19 | Q22: A | R22: 19 | S22: 14 | T22: 14 | U22: 14 | V22: 14 | W22: 15 | X22: 15 | Y22: 15 | Z22: 15 | AA22: 16 | AB22: 16 | AC22: 16
A23: A20 | B23: A | C23: 20 | D23: 13 | E23: 13 | F23: 13 | G23: 13 | H23: 14 | I23: 14 | J23: 14 | K23: 14 | L23: 14 | M23: 14 | N23: 14 | P23: A20 | Q23: A | R23: 20 | S23: 15 | T23: 15 | U23: 15 | V23: 15 | W23: 16 | X23: 16 | Y23: 16 | Z23: 16 | AA23: 16 | AB23: 16 | AC23: 16
A24: A21 | B24: A | C24: 21 | D24: 13 | E24: 13 | F24: 13 | G24: 13 | H24: 14 | I24: 14 | J24: 14 | K24: 14 | L24: 14 | M24: 14 | N24: 14 | P24: A21 | Q24: A | R24: 21 | S24: 15 | T24: 15 | U24: 15 | V24: 15 | W24: 16 | X24: 16 | Y24: 16 | Z24: 16 | AA24: 16 | AB24: 16 | AC24: 16
A25: A22 | B25: A | C25: 22 | D25: 14 | E25: 14 | F25: 14 | G25: 14 | H25: 14 | I25: 14 | J25: 14 | K25: 14 | L25: 14 | M25: 14 | N25: 14 | P25: A22 | Q25: A | R25: 22 | S25: 16 | T25: 16 | U25: 16 | V25: 16 | W25: 16 | X25: 16 | Y25: 16 | Z25: 16 | AA25: 16 | AB25: 16 | AC25: 16
A26: B0 | B26: B | C26: 0 | D26: 2 | E26: 2 | F26: =E26 -> 2 | G26: 2 | H26: 2 | I26: 2 | J26: 2 | K26: 2 | L26: 2 | M26: 2 | N26: 2 | P26: B0 | Q26: B | R26: 0 | S26: 4 | T26: 4 | U26: =T26 -> 4 | V26: 4 | W26: 4 | X26: 4 | Y26: 4 | Z26: 4 | AA26: 4 | AB26: 4 | AC26: 4
A27: B1 | B27: B | C27: 1 | D27: 2 | E27: 2 | F27: 2 | G27: 2 | H27: 2 | I27: 2 | J27: 2 | K27: 2 | L27: 2 | M27: 2 | N27: 2 | P27: B1 | Q27: B | R27: 1 | S27: 4 | T27: 4 | U27: 4 | V27: 4 | W27: 4 | X27: 4 | Y27: 4 | Z27: 4 | AA27: 4 | AB27: 4 | AC27: 4
A28: B2 | B28: B | C28: 2 | D28: 3 | E28: 3 | F28: 3 | G28: 3 | H28: 3 | I28: 3 | J28: 3 | K28: 3 | L28: 3 | M28: 3 | N28: 3 | P28: B2 | Q28: B | R28: 2 | S28: 5 | T28: 5 | U28: 5 | V28: 5 | W28: 5 | X28: 5 | Y28: 5 | Z28: 5 | AA28: 5 | AB28: 5 | AC28: 5
A29: B3 | B29: B | C29: 3 | D29: 3 | E29: 3 | F29: 3 | G29: 3 | H29: 3 | I29: 3 | J29: 3 | K29: 3 | L29: 3 | M29: 3 | N29: 3 | P29: B3 | Q29: B | R29: 3 | S29: 5 | T29: 5 | U29: 5 | V29: 5 | W29: 5 | X29: 5 | Y29: 5 | Z29: 5 | AA29: 5 | AB29: 5 | AC29: 5
A30: B4 | B30: B | C30: 4 | D30: 4 | E30: 4 | F30: 4 | G30: 4 | H30: 5 | I30: 5 | J30: 5 | K30: 5 | L30: 5 | M30: 5 | N30: 5 | P30: B4 | Q30: B | R30: 4 | S30: 6 | T30: 6 | U30: 6 | V30: 6 | W30: 7 | X30: 7 | Y30: 7 | Z30: 7 | AA30: 7 | AB30: 7 | AC30: 7
A31: B5 | B31: B | C31: 5 | D31: 4 | E31: 4 | F31: 4 | G31: 4 | H31: 5 | I31: 5 | J31: 5 | K31: 5 | L31: 5 | M31: 5 | N31: 5 | P31: B5 | Q31: B | R31: 5 | S31: 6 | T31: 6 | U31: 6 | V31: 6 | W31: 7 | X31: 7 | Y31: 7 | Z31: 7 | AA31: 7 | AB31: 7 | AC31: 7
A32: B6 | B32: B | C32: 6 | D32: 5 | E32: 5 | F32: 5 | G32: 5 | H32: 6 | I32: 6 | J32: 6 | K32: 6 | L32: 6 | M32: 6 | N32: 6 | P32: B6 | Q32: B | R32: 6 | S32: 7 | T32: 7 | U32: 7 | V32: 7 | W32: 8 | X32: 8 | Y32: 8 | Z32: 8 | AA32: 8 | AB32: 8 | AC32: 8
A33: B7 | B33: B | C33: 7 | D33: 5 | E33: 5 | F33: 5 | G33: 5 | H33: 6 | I33: 6 | J33: 6 | K33: 6 | L33: 6 | M33: 6 | N33: 6 | P33: B7 | Q33: B | R33: 7 | S33: 7 | T33: 7 | U33: 7 | V33: 7 | W33: 8 | X33: 8 | Y33: 8 | Z33: 8 | AA33: 8 | AB33: 8 | AC33: 8
A34: B8 | B34: B | C34: 8 | D34: 5 | E34: 5 | F34: 6 | G34: 6 | H34: 6 | I34: 6 | J34: 7 | K34: 7 | L34: 7 | M34: 7 | N34: 7 | P34: B8 | Q34: B | R34: 8 | S34: 7 | T34: 7 | U34: 8 | V34: 8 | W34: 8 | X34: 8 | Y34: 9 | Z34: 9 | AA34: 9 | AB34: 9 | AC34: 9
A35: B9 | B35: B | C35: 9 | D35: 5 | E35: 5 | F35: 6 | G35: 6 | H35: 6 | I35: 6 | J35: 7 | K35: 7 | L35: 7 | M35: 7 | N35: 7 | P35: B9 | Q35: B | R35: 9 | S35: 7 | T35: 7 | U35: 8 | V35: 8 | W35: 8 | X35: 8 | Y35: 9 | Z35: 9 | AA35: 9 | AB35: 9 | AC35: 9
A36: B10 | B36: B | C36: 10 | D36: 6 | E36: 6 | F36: 7 | G36: 7 | H36: 7 | I36: 7 | J36: 8 | K36: 8 | L36: 8 | M36: 8 | N36: 9 | P36: B10 | Q36: B | R36: 10 | S36: 8 | T36: 8 | U36: 9 | V36: 9 | W36: 9 | X36: 9 | Y36: 10 | Z36: 10 | AA36: 10 | AB36: 10 | AC36: 11
A37: B11 | B37: B | C37: 11 | D37: 6 | E37: 6 | F37: 7 | G37: 7 | H37: 7 | I37: 7 | J37: 8 | K37: 8 | L37: 8 | M37: 8 | N37: 9 | P37: B11 | Q37: B | R37: 11 | S37: 8 | T37: 8 | U37: 9 | V37: 9 | W37: 9 | X37: 9 | Y37: 10 | Z37: 10 | AA37: 10 | AB37: 10 | AC37: 11
A38: B12 | B38: B | C38: 12 | D38: 7 | E38: 7 | F38: 8 | G38: 8 | H38: 8 | I38: 8 | J38: 8 | K38: 8 | L38: 9 | M38: 9 | N38: 9 | P38: B12 | Q38: B | R38: 12 | S38: 9 | T38: 9 | U38: 10 | V38: 10 | W38: 10 | X38: 10 | Y38: 10 | Z38: 10 | AA38: 11 | AB38: 11 | AC38: 11
A39: B13 | B39: B | C39: 13 | D39: 7 | E39: 7 | F39: 8 | G39: 8 | H39: 8 | I39: 8 | J39: 8 | K39: 8 | L39: 9 | M39: 9 | N39: 9 | P39: B13 | Q39: B | R39: 13 | S39: 9 | T39: 9 | U39: 10 | V39: 10 | W39: 10 | X39: 10 | Y39: 10 | Z39: 10 | AA39: 11 | AB39: 11 | AC39: 11
A40: B14 | B40: B | C40: 14 | D40: 8 | E40: 8 | F40: 8 | G40: 8 | H40: 9 | I40: 9 | J40: 9 | K40: 9 | L40: 10 | M40: 10 | N40: 10 | P40: B14 | Q40: B | R40: 14 | S40: 10 | T40: 10 | U40: 10 | V40: 10 | W40: 11 | X40: 11 | Y40: 11 | Z40: 11 | AA40: 12 | AB40: 12 | AC40: 12
A41: B15 | B41: B | C41: 15 | D41: 8 | E41: 8 | F41: 8 | G41: 8 | H41: 9 | I41: 9 | J41: 9 | K41: 9 | L41: 10 | M41: 10 | N41: 10 | P41: B15 | Q41: B | R41: 15 | S41: 10 | T41: 10 | U41: 10 | V41: 10 | W41: 11 | X41: 11 | Y41: 11 | Z41: 11 | AA41: 12 | AB41: 12 | AC41: 12
A42: B16 | B42: B | C42: 16 | D42: 9 | E42: 9 | F42: 9 | G42: 9 | H42: 9 | I42: 9 | J42: 10 | K42: 10 | L42: 10 | M42: 10 | N42: 11 | P42: B16 | Q42: B | R42: 16 | S42: 11 | T42: 11 | U42: 11 | V42: 11 | W42: 11 | X42: 11 | Y42: 12 | Z42: 12 | AA42: 12 | AB42: 12 | AC42: 13
A43: B17 | B43: B | C43: 17 | D43: 9 | E43: 9 | F43: 9 | G43: 9 | H43: 9 | I43: 9 | J43: 10 | K43: 10 | L43: 10 | M43: 10 | N43: 11 | P43: B17 | Q43: B | R43: 17 | S43: 11 | T43: 11 | U43: 11 | V43: 11 | W43: 11 | X43: 11 | Y43: 12 | Z43: 12 | AA43: 12 | AB43: 12 | AC43: 13
A44: B18 | B44: B | C44: 18 | D44: 9 | E44: 9 | F44: 10 | G44: 10 | H44: 10 | I44: 10 | J44: 11 | K44: 11 | L44: 11 | M44: 11 | N44: 11 | P44: B18 | Q44: B | R44: 18 | S44: 11 | T44: 11 | U44: 12 | V44: 12 | W44: 12 | X44: 12 | Y44: 13 | Z44: 13 | AA44: 13 | AB44: 13 | AC44: 13
A45: B19 | B45: B | C45: 19 | D45: 9 | E45: 9 | F45: 10 | G45: 10 | H45: 10 | I45: 10 | J45: 11 | K45: 11 | L45: 11 | M45: 11 | N45: 11 | P45: B19 | Q45: B | R45: 19 | S45: 11 | T45: 11 | U45: 12 | V45: 12 | W45: 12 | X45: 12 | Y45: 13 | Z45: 13 | AA45: 13 | AB45: 13 | AC45: 13
A46: B20 | B46: B | C46: 20 | D46: 10 | E46: 10 | F46: 10 | G46: 10 | H46: 11 | I46: 11 | J46: 11 | K46: 11 | L46: 12 | M46: 12 | N46: 12 | P46: B20 | Q46: B | R46: 20 | S46: 12 | T46: 12 | U46: 12 | V46: 12 | W46: 13 | X46: 13 | Y46: 13 | Z46: 13 | AA46: 14 | AB46: 14 | AC46: 14
A47: B21 | B47: B | C47: 21 | D47: 10 | E47: 10 | F47: 10 | G47: 10 | H47: 11 | I47: 11 | J47: 11 | K47: 11 | L47: 12 | M47: 12 | N47: 12 | P47: B21 | Q47: B | R47: 21 | S47: 12 | T47: 12 | U47: 12 | V47: 12 | W47: 13 | X47: 13 | Y47: 13 | Z47: 13 | AA47: 14 | AB47: 14 | AC47: 14
A48: B22 | B48: B | C48: 22 | D48: 11 | E48: 11 | F48: 11 | G48: 11 | H48: 12 | I48: 12 | J48: 12 | K48: 12 | L48: 12 | M48: 12 | N48: 13 | P48: B22 | Q48: B | R48: 22 | S48: 13 | T48: 13 | U48: 13 | V48: 13 | W48: 14 | X48: 14 | Y48: 14 | Z48: 14 | AA48: 14 | AB48: 14 | AC48: 15
A49: B23 | B49: B | C49: 23 | D49: 11 | E49: 11 | F49: 11 | G49: 11 | H49: 12 | I49: 12 | J49: 12 | K49: 12 | L49: 12 | M49: 12 | N49: 13 | P49: B23 | Q49: B | R49: 23 | S49: 13 | T49: 13 | U49: 13 | V49: 13 | W49: 14 | X49: 14 | Y49: 14 | Z49: 14 | AA49: 14 | AB49: 14 | AC49: 15
A50: B24 | B50: B | C50: 24 | D50: 11 | E50: 11 | F50: 12 | G50: 12 | H50: 12 | I50: 12 | J50: 13 | K50: 13 | L50: 13 | M50: 13 | N50: 13 | P50: B24 | Q50: B | R50: 24 | S50: 13 | T50: 13 | U50: 14 | V50: 14 | W50: 14 | X50: 14 | Y50: 15 | Z50: 15 | AA50: 15 | AB50: 15 | AC50: 15
A51: B25 | B51: B | C51: 25 | D51: 11 | E51: 11 | F51: 12 | G51: 12 | H51: 12 | I51: 12 | J51: 13 | K51: 13 | L51: 13 | M51: 13 | N51: 13 | P51: B25 | Q51: B | R51: 25 | S51: 13 | T51: 13 | U51: 14 | V51: 14 | W51: 14 | X51: 14 | Y51: 15 | Z51: 15 | AA51: 15 | AB51: 15 | AC51: 15
A52: B26 | B52: B | C52: 26 | D52: 12 | E52: 12 | F52: 13 | G52: 13 | H52: 13 | I52: 13 | J52: 13 | K52: 13 | L52: 14 | M52: 14 | N52: 14 | P52: B26 | Q52: B | R52: 26 | S52: 14 | T52: 14 | U52: 15 | V52: 15 | W52: 15 | X52: 15 | Y52: 15 | Z52: 15 | AA52: 16 | AB52: 16 | AC52: 16
A53: B27 | B53: B | C53: 27 | D53: 12 | E53: 12 | F53: 13 | G53: 13 | H53: 13 | I53: 13 | J53: 13 | K53: 13 | L53: 14 | M53: 14 | N53: 14 | P53: B27 | Q53: B | R53: 27 | S53: 14 | T53: 14 | U53: 15 | V53: 15 | W53: 15 | X53: 15 | Y53: 15 | Z53: 15 | AA53: 16 | AB53: 16 | AC53: 16
A54: B28 | B54: B | C54: 28 | D54: 13 | E54: 13 | F54: 13 | G54: 13 | H54: 14 | I54: 14 | J54: 14 | K54: 14 | L54: 14 | M54: 14 | N54: 14 | P54: B28 | Q54: B | R54: 28 | S54: 15 | T54: 15 | U54: 15 | V54: 15 | W54: 16 | X54: 16 | Y54: 16 | Z54: 16 | AA54: 16 | AB54: 16 | AC54: 16
A55: B29 | B55: B | C55: 29 | D55: 13 | E55: 13 | F55: 13 | G55: 13 | H55: 14 | I55: 14 | J55: 14 | K55: 14 | L55: 14 | M55: 14 | N55: 14 | P55: B29 | Q55: B | R55: 29 | S55: 15 | T55: 15 | U55: 15 | V55: 15 | W55: 16 | X55: 16 | Y55: 16 | Z55: 16 | AA55: 16 | AB55: 16 | AC55: 16
A56: B30 | B56: B | C56: 30 | D56: 13 | E56: 13 | F56: 14 | G56: 14 | H56: 14 | I56: 14 | J56: 14 | K56: 14 | L56: 14 | M56: 14 | N56: 14 | P56: B30 | Q56: B | R56: 30 | S56: 15 | T56: 15 | U56: 16 | V56: 16 | W56: 16 | X56: 16 | Y56: 16 | Z56: 16 | AA56: 16 | AB56: 16 | AC56: 16
A57: B31 | B57: B | C57: 31 | D57: 13 | E57: 13 | F57: 14 | G57: 14 | H57: 14 | I57: 14 | J57: 14 | K57: 14 | L57: 14 | M57: 14 | N57: 14 | P57: B31 | Q57: B | R57: 31 | S57: 15 | T57: 15 | U57: 16 | V57: 16 | W57: 16 | X57: 16 | Y57: 16 | Z57: 16 | AA57: 16 | AB57: 16 | AC57: 16
A58: B32 | B58: B | C58: 32 | D58: 14 | E58: 14 | F58: 14 | G58: 14 | H58: 14 | I58: 14 | J58: 14 | K58: 14 | L58: 14 | M58: 14 | N58: 14 | P58: B32 | Q58: B | R58: 32 | S58: 16 | T58: 16 | U58: 16 | V58: 16 | W58: 16 | X58: 16 | Y58: 16 | Z58: 16 | AA58: 16 | AB58: 16 | AC58: 16
A59: C0 | B59: C | C59: 0 | D59: 1 | E59: 1 | F59: =E59 -> 1 | G59: 1 | H59: 1 | I59: 1 | J59: 1 | K59: 1 | L59: 1 | M59: 1 | N59: 1 | P59: C0 | Q59: C | R59: 0 | S59: 3 | T59: 3 | U59: =T59 -> 3 | V59: 3 | W59: 3 | X59: 3 | Y59: 3 | Z59: 3 | AA59: 3 | AB59: 3 | AC59: 3
A60: C1 | B60: C | C60: 1 | D60: 1 | E60: 1 | F60: 1 | G60: 1 | H60: 1 | I60: 1 | J60: 1 | K60: 1 | L60: 1 | M60: 1 | N60: 1 | P60: C1 | Q60: C | R60: 1 | S60: 3 | T60: 3 | U60: 3 | V60: 3 | W60: 3 | X60: 3 | Y60: 3 | Z60: 3 | AA60: 3 | AB60: 3 | AC60: 3
A61: C2 | B61: C | C61: 2 | D61: 2 | E61: 2 | F61: 2 | G61: 2 | H61: 2 | I61: 2 | J61: 2 | K61: 2 | L61: 2 | M61: 2 | N61: 2 | P61: C2 | Q61: C | R61: 2 | S61: 4 | T61: 4 | U61: 4 | V61: 4 | W61: 4 | X61: 4 | Y61: 4 | Z61: 4 | AA61: 4 | AB61: 4 | AC61: 4
A62: C3 | B62: C | C62: 3 | D62: 2 | E62: 2 | F62: 2 | G62: 2 | H62: 2 | I62: 2 | J62: 2 | K62: 2 | L62: 2 | M62: 2 | N62: 2 | P62: C3 | Q62: C | R62: 3 | S62: 4 | T62: 4 | U62: 4 | V62: 4 | W62: 4 | X62: 4 | Y62: 4 | Z62: 4 | AA62: 4 | AB62: 4 | AC62: 4
A63: C4 | B63: C | C63: 4 | D63: 3 | E63: 3 | F63: 3 | G63: 3 | H63: 4 | I63: 4 | J63: 4 | K63: 4 | L63: 4 | M63: 4 | N63: 4 | P63: C4 | Q63: C | R63: 4 | S63: 5 | T63: 5 | U63: 5 | V63: 5 | W63: 6 | X63: 6 | Y63: 6 | Z63: 6 | AA63: 6 | AB63: 6 | AC63: 6
A64: C5 | B64: C | C64: 5 | D64: 3 | E64: 3 | F64: 3 | G64: 3 | H64: 4 | I64: 4 | J64: 4 | K64: 4 | L64: 4 | M64: 4 | N64: 4 | P64: C5 | Q64: C | R64: 5 | S64: 5 | T64: 5 | U64: 5 | V64: 5 | W64: 6 | X64: 6 | Y64: 6 | Z64: 6 | AA64: 6 | AB64: 6 | AC64: 6
A65: C6 | B65: C | C65: 6 | D65: 3 | E65: 3 | F65: 4 | G65: 4 | H65: 4 | I65: 4 | J65: 5 | K65: 5 | L65: 5 | M65: 5 | N65: 5 | P65: C6 | Q65: C | R65: 6 | S65: 5 | T65: 5 | U65: 6 | V65: 6 | W65: 6 | X65: 6 | Y65: 7 | Z65: 7 | AA65: 7 | AB65: 7 | AC65: 7
A66: C7 | B66: C | C66: 7 | D66: 3 | E66: 3 | F66: 4 | G66: 4 | H66: 4 | I66: 4 | J66: 5 | K66: 5 | L66: 5 | M66: 5 | N66: 5 | P66: C7 | Q66: C | R66: 7 | S66: 5 | T66: 5 | U66: 6 | V66: 6 | W66: 6 | X66: 6 | Y66: 7 | Z66: 7 | AA66: 7 | AB66: 7 | AC66: 7
A67: C8 | B67: C | C67: 8 | D67: 4 | E67: 4 | F67: 5 | G67: 5 | H67: 5 | I67: 5 | J67: 5 | K67: 5 | L67: 6 | M67: 6 | N67: 6 | P67: C8 | Q67: C | R67: 8 | S67: 6 | T67: 6 | U67: 7 | V67: 7 | W67: 7 | X67: 7 | Y67: 7 | Z67: 7 | AA67: 8 | AB67: 8 | AC67: 8
A68: C9 | B68: C | C68: 9 | D68: 4 | E68: 4 | F68: 5 | G68: 5 | H68: 5 | I68: 5 | J68: 5 | K68: 5 | L68: 6 | M68: 6 | N68: 6 | P68: C9 | Q68: C | R68: 9 | S68: 6 | T68: 6 | U68: 7 | V68: 7 | W68: 7 | X68: 7 | Y68: 7 | Z68: 7 | AA68: 8 | AB68: 8 | AC68: 8
A69: C10 | B69: C | C69: 10 | D69: 5 | E69: 5 | F69: 5 | G69: 5 | H69: 6 | I69: 6 | J69: 6 | K69: 6 | L69: 7 | M69: 7 | N69: 7 | P69: C10 | Q69: C | R69: 10 | S69: 7 | T69: 7 | U69: 7 | V69: 7 | W69: 8 | X69: 8 | Y69: 8 | Z69: 8 | AA69: 9 | AB69: 9 | AC69: 9
A70: C11 | B70: C | C70: 11 | D70: 5 | E70: 5 | F70: 5 | G70: 5 | H70: 6 | I70: 6 | J70: 6 | K70: 6 | L70: 7 | M70: 7 | N70: 7 | P70: C11 | Q70: C | R70: 11 | S70: 7 | T70: 7 | U70: 7 | V70: 7 | W70: 8 | X70: 8 | Y70: 8 | Z70: 8 | AA70: 9 | AB70: 9 | AC70: 9
A71: C12 | B71: C | C71: 12 | D71: 6 | E71: 6 | F71: 6 | G71: 6 | H71: 6 | I71: 6 | J71: 7 | K71: 7 | L71: 7 | M71: 7 | N71: 8 | P71: C12 | Q71: C | R71: 12 | S71: 8 | T71: 8 | U71: 8 | V71: 8 | W71: 8 | X71: 8 | Y71: 9 | Z71: 9 | AA71: 9 | AB71: 9 | AC71: 10
A72: C13 | B72: C | C72: 13 | D72: 6 | E72: 6 | F72: 6 | G72: 6 | H72: 6 | I72: 6 | J72: 7 | K72: 7 | L72: 7 | M72: 7 | N72: 8 | P72: C13 | Q72: C | R72: 13 | S72: 8 | T72: 8 | U72: 8 | V72: 8 | W72: 8 | X72: 8 | Y72: 9 | Z72: 9 | AA72: 9 | AB72: 9 | AC72: 10
A73: C14 | B73: C | C73: 14 | D73: 6 | E73: 6 | F73: 7 | G73: 7 | H73: 7 | I73: 7 | J73: 7 | K73: 7 | L73: 8 | M73: 8 | N73: 8 | P73: C14 | Q73: C | R73: 14 | S73: 8 | T73: 8 | U73: 9 | V73: 9 | W73: 9 | X73: 9 | Y73: 9 | Z73: 9 | AA73: 10 | AB73: 10 | AC73: 10
A74: C15 | B74: C | C74: 15 | D74: 6 | E74: 6 | F74: 7 | G74: 7 | H74: 7 | I74: 7 | J74: 7 | K74: 7 | L74: 8 | M74: 8 | N74: 8 | P74: C15 | Q74: C | R74: 15 | S74: 8 | T74: 8 | U74: 9 | V74: 9 | W74: 9 | X74: 9 | Y74: 9 | Z74: 9 | AA74: 10 | AB74: 10 | AC74: 10
A75: C16 | B75: C | C75: 16 | D75: 7 | E75: 7 | F75: 7 | G75: 7 | H75: 8 | I75: 8 | J75: 8 | K75: 8 | L75: 8 | M75: 8 | N75: 9 | P75: C16 | Q75: C | R75: 16 | S75: 9 | T75: 9 | U75: 9 | V75: 9 | W75: 10 | X75: 10 | Y75: 10 | Z75: 10 | AA75: 10 | AB75: 10 | AC75: 11
A76: C17 | B76: C | C76: 17 | D76: 7 | E76: 7 | F76: 7 | G76: 7 | H76: 8 | I76: 8 | J76: 8 | K76: 8 | L76: 8 | M76: 8 | N76: 9 | P76: C17 | Q76: C | R76: 17 | S76: 9 | T76: 9 | U76: 9 | V76: 9 | W76: 10 | X76: 10 | Y76: 10 | Z76: 10 | AA76: 10 | AB76: 10 | AC76: 11
A77: C18 | B77: C | C77: 18 | D77: 8 | E77: 8 | F77: 8 | G77: 8 | H77: 8 | I77: 8 | J77: 9 | K77: 9 | L77: 9 | M77: 9 | N77: 9 | P77: C18 | Q77: C | R77: 18 | S77: 10 | T77: 10 | U77: 10 | V77: 10 | W77: 10 | X77: 10 | Y77: 11 | Z77: 11 | AA77: 11 | AB77: 11 | AC77: 11
A78: C19 | B78: C | C78: 19 | D78: 8 | E78: 8 | F78: 8 | G78: 8 | H78: 8 | I78: 8 | J78: 9 | K78: 9 | L78: 9 | M78: 9 | N78: 9 | P78: C19 | Q78: C | R78: 19 | S78: 10 | T78: 10 | U78: 10 | V78: 10 | W78: 10 | X78: 10 | Y78: 11 | Z78: 11 | AA78: 11 | AB78: 11 | AC78: 11
A79: C20 | B79: C | C79: 20 | D79: 8 | E79: 8 | F79: 9 | G79: 9 | H79: 9 | I79: 9 | J79: 9 | K79: 9 | L79: 10 | M79: 10 | N79: 10 | P79: C20 | Q79: C | R79: 20 | S79: 10 | T79: 10 | U79: 11 | V79: 11 | W79: 11 | X79: 11 | Y79: 11 | Z79: 11 | AA79: 12 | AB79: 12 | AC79: 12
A80: C21 | B80: C | C80: 21 | D80: 8 | E80: 8 | F80: 9 | G80: 9 | H80: 9 | I80: 9 | J80: 9 | K80: 9 | L80: 10 | M80: 10 | N80: 10 | P80: C21 | Q80: C | R80: 21 | S80: 10 | T80: 10 | U80: 11 | V80: 11 | W80: 11 | X80: 11 | Y80: 11 | Z80: 11 | AA80: 12 | AB80: 12 | AC80: 12
A81: C22 | B81: C | C81: 22 | D81: 9 | E81: 9 | F81: 9 | G81: 9 | H81: 10 | I81: 10 | J81: 10 | K81: 10 | L81: 10 | M81: 10 | N81: 11 | P81: C22 | Q81: C | R81: 22 | S81: 11 | T81: 11 | U81: 11 | V81: 11 | W81: 12 | X81: 12 | Y81: 12 | Z81: 12 | AA81: 12 | AB81: 12 | AC81: 13
A82: C23 | B82: C | C82: 23 | D82: 9 | E82: 9 | F82: 9 | G82: 9 | H82: 10 | I82: 10 | J82: 10 | K82: 10 | L82: 10 | M82: 10 | N82: 11 | P82: C23 | Q82: C | R82: 23 | S82: 11 | T82: 11 | U82: 11 | V82: 11 | W82: 12 | X82: 12 | Y82: 12 | Z82: 12 | AA82: 12 | AB82: 12 | AC82: 13
A83: C24 | B83: C | C83: 24 | D83: 9 | E83: 9 | F83: 10 | G83: 10 | H83: 10 | I83: 10 | J83: 11 | K83: 11 | L83: 11 | M83: 11 | N83: 11 | P83: C24 | Q83: C | R83: 24 | S83: 11 | T83: 11 | U83: 12 | V83: 12 | W83: 12 | X83: 12 | Y83: 13 | Z83: 13 | AA83: 13 | AB83: 13 | AC83: 13
A84: C25 | B84: C | C84: 25 | D84: 9 | E84: 9 | F84: 10 | G84: 10 | H84: 10 | I84: 10 | J84: 11 | K84: 11 | L84: 11 | M84: 11 | N84: 11 | P84: C25 | Q84: C | R84: 25 | S84: 11 | T84: 11 | U84: 12 | V84: 12 | W84: 12 | X84: 12 | Y84: 13 | Z84: 13 | AA84: 13 | AB84: 13 | AC84: 13
A85: C26 | B85: C | C85: 26 | D85: 10 | E85: 10 | F85: 10 | G85: 10 | H85: 11 | I85: 11 | J85: 11 | K85: 11 | L85: 11 | M85: 11 | N85: 12 | P85: C26 | Q85: C | R85: 26 | S85: 12 | T85: 12 | U85: 12 | V85: 12 | W85: 13 | X85: 13 | Y85: 13 | Z85: 13 | AA85: 13 | AB85: 13 | AC85: 14
A86: C27 | B86: C | C86: 27 | D86: 10 | E86: 10 | F86: 10 | G86: 10 | H86: 11 | I86: 11 | J86: 11 | K86: 11 | L86: 11 | M86: 11 | N86: 12 | P86: C27 | Q86: C | R86: 27 | S86: 12 | T86: 12 | U86: 12 | V86: 12 | W86: 13 | X86: 13 | Y86: 13 | Z86: 13 | AA86: 13 | AB86: 13 | AC86: 14
A87: C28 | B87: C | C87: 28 | D87: 11 | E87: 11 | F87: 11 | G87: 11 | H87: 11 | I87: 11 | J87: 12 | K87: 12 | L87: 12 | M87: 12 | N87: 12 | P87: C28 | Q87: C | R87: 28 | S87: 13 | T87: 13 | U87: 13 | V87: 13 | W87: 13 | X87: 13 | Y87: 14 | Z87: 14 | AA87: 14 | AB87: 14 | AC87: 14
A88: C29 | B88: C | C88: 29 | D88: 11 | E88: 11 | F88: 11 | G88: 11 | H88: 11 | I88: 11 | J88: 12 | K88: 12 | L88: 12 | M88: 12 | N88: 12 | P88: C29 | Q88: C | R88: 29 | S88: 13 | T88: 13 | U88: 13 | V88: 13 | W88: 13 | X88: 13 | Y88: 14 | Z88: 14 | AA88: 14 | AB88: 14 | AC88: 14
A89: C30 | B89: C | C89: 30 | D89: 11 | E89: 11 | F89: 12 | G89: 12 | H89: 12 | I89: 12 | J89: 12 | K89: 12 | L89: 13 | M89: 13 | N89: 13 | P89: C30 | Q89: C | R89: 30 | S89: 13 | T89: 13 | U89: 14 | V89: 14 | W89: 14 | X89: 14 | Y89: 14 | Z89: 14 | AA89: 15 | AB89: 15 | AC89: 15
A90: C31 | B90: C | C90: 31 | D90: 11 | E90: 11 | F90: 12 | G90: 12 | H90: 12 | I90: 12 | J90: 12 | K90: 12 | L90: 13 | M90: 13 | N90: 13 | P90: C31 | Q90: C | R90: 31 | S90: 13 | T90: 13 | U90: 14 | V90: 14 | W90: 14 | X90: 14 | Y90: 14 | Z90: 14 | AA90: 15 | AB90: 15 | AC90: 15
A91: C32 | B91: C | C91: 32 | D91: 12 | E91: 12 | F91: 12 | G91: 12 | H91: 12 | I91: 12 | J91: 13 | K91: 13 | L91: 13 | M91: 13 | N91: 13 | P91: C32 | Q91: C | R91: 32 | S91: 14 | T91: 14 | U91: 14 | V91: 14 | W91: 14 | X91: 14 | Y91: 15 | Z91: 15 | AA91: 15 | AB91: 15 | AC91: 15
A92: C33 | B92: C | C92: 33 | D92: 12 | E92: 12 | F92: 12 | G92: 12 | H92: 12 | I92: 12 | J92: 13 | K92: 13 | L92: 13 | M92: 13 | N92: 13 | P92: C33 | Q92: C | R92: 33 | S92: 14 | T92: 14 | U92: 14 | V92: 14 | W92: 14 | X92: 14 | Y92: 15 | Z92: 15 | AA92: 15 | AB92: 15 | AC92: 15
A93: C34 | B93: C | C93: 34 | D93: 12 | E93: 12 | F93: 13 | G93: 13 | H93: 13 | I93: 13 | J93: 13 | K93: 13 | L93: 14 | M93: 14 | N93: 14 | P93: C34 | Q93: C | R93: 34 | S93: 14 | T93: 14 | U93: 15 | V93: 15 | W93: 15 | X93: 15 | Y93: 15 | Z93: 15 | AA93: 16 | AB93: 16 | AC93: 16
A94: C35 | B94: C | C94: 35 | D94: 12 | E94: 12 | F94: 13 | G94: 13 | H94: 13 | I94: 13 | J94: 13 | K94: 13 | L94: 14 | M94: 14 | N94: 14 | P94: C35 | Q94: C | R94: 35 | S94: 14 | T94: 14 | U94: 15 | V94: 15 | W94: 15 | X94: 15 | Y94: 15 | Z94: 15 | AA94: 16 | AB94: 16 | AC94: 16
A95: C36 | B95: C | C95: 36 | D95: 13 | E95: 13 | F95: 13 | G95: 13 | H95: 14 | I95: 14 | J95: 14 | K95: 14 | L95: 14 | M95: 14 | N95: 14 | P95: C36 | Q95: C | R95: 36 | S95: 15 | T95: 15 | U95: 15 | V95: 15 | W95: 16 | X95: 16 | Y95: 16 | Z95: 16 | AA95: 16 | AB95: 16 | AC95: 16
A96: D0 | B96: D | C96: 0 | D96: 3 | E96: 3 | F96: =E96 -> 3 | G96: 3 | H96: 3 | I96: 3 | J96: 3 | K96: 3 | L96: 3 | M96: 3 | N96: 3 | P96: D0 | Q96: D | R96: 0 | S96: 5 | T96: 5 | U96: =T96 -> 5 | V96: 5 | W96: 5 | X96: 5 | Y96: 5 | Z96: 5 | AA96: 5 | AB96: 5 | AC96: 5
A97: D1 | B97: D | C97: 1 | D97: 3 | E97: 3 | F97: 3 | G97: 3 | H97: 3 | I97: 3 | J97: 3 | K97: 3 | L97: 3 | M97: 3 | N97: 3 | P97: D1 | Q97: D | R97: 1 | S97: 5 | T97: 5 | U97: 5 | V97: 5 | W97: 5 | X97: 5 | Y97: 5 | Z97: 5 | AA97: 5 | AB97: 5 | AC97: 5
A98: D2 | B98: D | C98: 2 | D98: 4 | E98: 4 | F98: 4 | G98: 4 | H98: 4 | I98: 4 | J98: 4 | K98: 4 | L98: 4 | M98: 4 | N98: 4 | P98: D2 | Q98: D | R98: 2 | S98: 6 | T98: 6 | U98: 6 | V98: 6 | W98: 6 | X98: 6 | Y98: 6 | Z98: 6 | AA98: 6 | AB98: 6 | AC98: 6
A99: D3 | B99: D | C99: 3 | D99: 4 | E99: 4 | F99: 4 | G99: 4 | H99: 4 | I99: 4 | J99: 4 | K99: 4 | L99: 4 | M99: 4 | N99: 4 | P99: D3 | Q99: D | R99: 3 | S99: 6 | T99: 6 | U99: 6 | V99: 6 | W99: 6 | X99: 6 | Y99: 6 | Z99: 6 | AA99: 6 | AB99: 6 | AC99: 6
A100: D4 | B100: D | C100: 4 | D100: 4 | E100: 4 | F100: 5 | G100: 5 | H100: 5 | I100: 5 | J100: 5 | K100: 5 | L100: 5 | M100: 5 | N100: 5 | P100: D4 | Q100: D | R100: 4 | S100: 6 | T100: 6 | U100: 7 | V100: 7 | W100: 7 | X100: 7 | Y100: 7 | Z100: 7 | AA100: 7 | AB100: 7 | AC100: 7
A101: D5 | B101: D | C101: 5 | D101: 4 | E101: 4 | F101: 5 | G101: 5 | H101: 5 | I101: 5 | J101: 5 | K101: 5 | L101: 5 | M101: 5 | N101: 5 | P101: D5 | Q101: D | R101: 5 | S101: 6 | T101: 6 | U101: 7 | V101: 7 | W101: 7 | X101: 7 | Y101: 7 | Z101: 7 | AA101: 7 | AB101: 7 | AC101: 7
A102: D6 | B102: D | C102: 6 | D102: 5 | E102: 5 | F102: 5 | G102: 5 | H102: 5 | I102: 5 | J102: 6 | K102: 6 | L102: 6 | M102: 6 | N102: 6 | P102: D6 | Q102: D | R102: 6 | S102: 7 | T102: 7 | U102: 7 | V102: 7 | W102: 7 | X102: 7 | Y102: 8 | Z102: 8 | AA102: 8 | AB102: 8 | AC102: 8
A103: D7 | B103: D | C103: 7 | D103: 5 | E103: 5 | F103: 5 | G103: 5 | H103: 5 | I103: 5 | J103: 6 | K103: 6 | L103: 6 | M103: 6 | N103: 6 | P103: D7 | Q103: D | R103: 7 | S103: 7 | T103: 7 | U103: 7 | V103: 7 | W103: 7 | X103: 7 | Y103: 8 | Z103: 8 | AA103: 8 | AB103: 8 | AC103: 8
A104: D8 | B104: D | C104: 8 | D104: 5 | E104: 5 | F104: 6 | G104: 6 | H104: 6 | I104: 6 | J104: 6 | K104: 6 | L104: 7 | M104: 7 | N104: 7 | P104: D8 | Q104: D | R104: 8 | S104: 7 | T104: 7 | U104: 8 | V104: 8 | W104: 8 | X104: 8 | Y104: 8 | Z104: 8 | AA104: 9 | AB104: 9 | AC104: 9
A105: D9 | B105: D | C105: 9 | D105: 5 | E105: 5 | F105: 6 | G105: 6 | H105: 6 | I105: 6 | J105: 6 | K105: 6 | L105: 7 | M105: 7 | N105: 7 | P105: D9 | Q105: D | R105: 9 | S105: 7 | T105: 7 | U105: 8 | V105: 8 | W105: 8 | X105: 8 | Y105: 8 | Z105: 8 | AA105: 9 | AB105: 9 | AC105: 9
A106: D10 | B106: D | C106: 10 | D106: 6 | E106: 6 | F106: 6 | G106: 6 | H106: 6 | I106: 6 | J106: 7 | K106: 7 | L106: 7 | M106: 7 | N106: 7 | P106: D10 | Q106: D | R106: 10 | S106: 8 | T106: 8 | U106: 8 | V106: 8 | W106: 8 | X106: 8 | Y106: 9 | Z106: 9 | AA106: 9 | AB106: 9 | AC106: 9
A107: D11 | B107: D | C107: 11 | D107: 6 | E107: 6 | F107: 6 | G107: 6 | H107: 6 | I107: 6 | J107: 7 | K107: 7 | L107: 7 | M107: 7 | N107: 7 | P107: D11 | Q107: D | R107: 11 | S107: 8 | T107: 8 | U107: 8 | V107: 8 | W107: 8 | X107: 8 | Y107: 9 | Z107: 9 | AA107: 9 | AB107: 9 | AC107: 9
A108: D12 | B108: D | C108: 12 | D108: 6 | E108: 6 | F108: 7 | G108: 7 | H108: 7 | I108: 7 | J108: 7 | K108: 7 | L108: 7 | M108: 7 | N108: 8 | P108: D12 | Q108: D | R108: 12 | S108: 8 | T108: 8 | U108: 9 | V108: 9 | W108: 9 | X108: 9 | Y108: 9 | Z108: 9 | AA108: 9 | AB108: 9 | AC108: 10
A109: D13 | B109: D | C109: 13 | D109: 6 | E109: 6 | F109: 7 | G109: 7 | H109: 7 | I109: 7 | J109: 7 | K109: 7 | L109: 7 | M109: 7 | N109: 8 | P109: D13 | Q109: D | R109: 13 | S109: 8 | T109: 8 | U109: 9 | V109: 9 | W109: 9 | X109: 9 | Y109: 9 | Z109: 9 | AA109: 9 | AB109: 9 | AC109: 10
A110: D14 | B110: D | C110: 14 | D110: 7 | E110: 7 | F110: 7 | G110: 7 | H110: 7 | I110: 7 | J110: 8 | K110: 8 | L110: 8 | M110: 8 | N110: 8 | P110: D14 | Q110: D | R110: 14 | S110: 9 | T110: 9 | U110: 9 | V110: 9 | W110: 9 | X110: 9 | Y110: 10 | Z110: 10 | AA110: 10 | AB110: 10 | AC110: 10
A111: D15 | B111: D | C111: 15 | D111: 7 | E111: 7 | F111: 7 | G111: 7 | H111: 7 | I111: 7 | J111: 8 | K111: 8 | L111: 8 | M111: 8 | N111: 8 | P111: D15 | Q111: D | R111: 15 | S111: 9 | T111: 9 | U111: 9 | V111: 9 | W111: 9 | X111: 9 | Y111: 10 | Z111: 10 | AA111: 10 | AB111: 10 | AC111: 10
A112: D16 | B112: D | C112: 16 | D112: 7 | E112: 7 | F112: 8 | G112: 8 | H112: 8 | I112: 8 | J112: 8 | K112: 8 | L112: 8 | M112: 8 | N112: 9 | P112: D16 | Q112: D | R112: 16 | S112: 9 | T112: 9 | U112: 10 | V112: 10 | W112: 10 | X112: 10 | Y112: 10 | Z112: 10 | AA112: 10 | AB112: 10 | AC112: 11
A113: D17 | B113: D | C113: 17 | D113: 7 | E113: 7 | F113: 8 | G113: 8 | H113: 8 | I113: 8 | J113: 8 | K113: 8 | L113: 8 | M113: 8 | N113: 9 | P113: D17 | Q113: D | R113: 17 | S113: 9 | T113: 9 | U113: 10 | V113: 10 | W113: 10 | X113: 10 | Y113: 10 | Z113: 10 | AA113: 10 | AB113: 10 | AC113: 11
A114: D18 | B114: D | C114: 18 | D114: 8 | E114: 8 | F114: 8 | G114: 8 | H114: 8 | I114: 8 | J114: 9 | K114: 9 | L114: 9 | M114: 9 | N114: 9 | P114: D18 | Q114: D | R114: 18 | S114: 10 | T114: 10 | U114: 10 | V114: 10 | W114: 10 | X114: 10 | Y114: 11 | Z114: 11 | AA114: 11 | AB114: 11 | AC114: 11
A115: D19 | B115: D | C115: 19 | D115: 8 | E115: 8 | F115: 8 | G115: 8 | H115: 8 | I115: 8 | J115: 9 | K115: 9 | L115: 9 | M115: 9 | N115: 9 | P115: D19 | Q115: D | R115: 19 | S115: 10 | T115: 10 | U115: 10 | V115: 10 | W115: 10 | X115: 10 | Y115: 11 | Z115: 11 | AA115: 11 | AB115: 11 | AC115: 11
A116: D20 | B116: D | C116: 20 | D116: 8 | E116: 8 | F116: 8 | G116: 8 | H116: 9 | I116: 9 | J116: 9 | K116: 9 | L116: 9 | M116: 9 | N116: 10 | P116: D20 | Q116: D | R116: 20 | S116: 10 | T116: 10 | U116: 10 | V116: 10 | W116: 11 | X116: 11 | Y116: 11 | Z116: 11 | AA116: 11 | AB116: 11 | AC116: 12
A117: D21 | B117: D | C117: 21 | D117: 8 | E117: 8 | F117: 8 | G117: 8 | H117: 9 | I117: 9 | J117: 9 | K117: 9 | L117: 9 | M117: 9 | N117: 10 | P117: D21 | Q117: D | R117: 21 | S117: 10 | T117: 10 | U117: 10 | V117: 10 | W117: 11 | X117: 11 | Y117: 11 | Z117: 11 | AA117: 11 | AB117: 11 | AC117: 12
A118: D22 | B118: D | C118: 22 | D118: 9 | E118: 9 | F118: 9 | G118: 9 | H118: 9 | I118: 9 | J118: 9 | K118: 9 | L118: 10 | M118: 10 | N118: 10 | P118: D22 | Q118: D | R118: 22 | S118: 11 | T118: 11 | U118: 11 | V118: 11 | W118: 11 | X118: 11 | Y118: 11 | Z118: 11 | AA118: 12 | AB118: 12 | AC118: 12
A119: D23 | B119: D | C119: 23 | D119: 9 | E119: 9 | F119: 9 | G119: 9 | H119: 9 | I119: 9 | J119: 9 | K119: 9 | L119: 10 | M119: 10 | N119: 10 | P119: D23 | Q119: D | R119: 23 | S119: 11 | T119: 11 | U119: 11 | V119: 11 | W119: 11 | X119: 11 | Y119: 11 | Z119: 11 | AA119: 12 | AB119: 12 | AC119: 12
A120: D24 | B120: D | C120: 24 | D120: 9 | E120: 9 | F120: 9 | G120: 9 | H120: 10 | I120: 10 | J120: 10 | K120: 10 | L120: 10 | M120: 10 | N120: 10 | P120: D24 | Q120: D | R120: 24 | S120: 11 | T120: 11 | U120: 11 | V120: 11 | W120: 12 | X120: 12 | Y120: 12 | Z120: 12 | AA120: 12 | AB120: 12 | AC120: 12
A121: D25 | B121: D | C121: 25 | D121: 9 | E121: 9 | F121: 9 | G121: 9 | H121: 10 | I121: 10 | J121: 10 | K121: 10 | L121: 10 | M121: 10 | N121: 10 | P121: D25 | Q121: D | R121: 25 | S121: 11 | T121: 11 | U121: 11 | V121: 11 | W121: 12 | X121: 12 | Y121: 12 | Z121: 12 | AA121: 12 | AB121: 12 | AC121: 12
A122: D26 | B122: D | C122: 26 | D122: 9 | E122: 9 | F122: 10 | G122: 10 | H122: 10 | I122: 10 | J122: 10 | K122: 10 | L122: 10 | M122: 10 | N122: 11 | P122: D26 | Q122: D | R122: 26 | S122: 11 | T122: 11 | U122: 12 | V122: 12 | W122: 12 | X122: 12 | Y122: 12 | Z122: 12 | AA122: 12 | AB122: 12 | AC122: 13
A123: D27 | B123: D | C123: 27 | D123: 9 | E123: 9 | F123: 10 | G123: 10 | H123: 10 | I123: 10 | J123: 10 | K123: 10 | L123: 10 | M123: 10 | N123: 11 | P123: D27 | Q123: D | R123: 27 | S123: 11 | T123: 11 | U123: 12 | V123: 12 | W123: 12 | X123: 12 | Y123: 12 | Z123: 12 | AA123: 12 | AB123: 12 | AC123: 13
A124: D28 | B124: D | C124: 28 | D124: 10 | E124: 10 | F124: 10 | G124: 10 | H124: 10 | I124: 10 | J124: 11 | K124: 11 | L124: 11 | M124: 11 | N124: 11 | P124: D28 | Q124: D | R124: 28 | S124: 12 | T124: 12 | U124: 12 | V124: 12 | W124: 12 | X124: 12 | Y124: 13 | Z124: 13 | AA124: 13 | AB124: 13 | AC124: 13
A125: D29 | B125: D | C125: 29 | D125: 10 | E125: 10 | F125: 10 | G125: 10 | H125: 10 | I125: 10 | J125: 11 | K125: 11 | L125: 11 | M125: 11 | N125: 11 | P125: D29 | Q125: D | R125: 29 | S125: 12 | T125: 12 | U125: 12 | V125: 12 | W125: 12 | X125: 12 | Y125: 13 | Z125: 13 | AA125: 13 | AB125: 13 | AC125: 13
A126: D30 | B126: D | C126: 30 | D126: 10 | E126: 10 | F126: 11 | G126: 11 | H126: 11 | I126: 11 | J126: 11 | K126: 11 | L126: 11 | M126: 11 | N126: 12 | P126: D30 | Q126: D | R126: 30 | S126: 12 | T126: 12 | U126: 13 | V126: 13 | W126: 13 | X126: 13 | Y126: 13 | Z126: 13 | AA126: 13 | AB126: 13 | AC126: 14
A127: D31 | B127: D | C127: 31 | D127: 10 | E127: 10 | F127: 11 | G127: 11 | H127: 11 | I127: 11 | J127: 11 | K127: 11 | L127: 11 | M127: 11 | N127: 12 | P127: D31 | Q127: D | R127: 31 | S127: 12 | T127: 12 | U127: 13 | V127: 13 | W127: 13 | X127: 13 | Y127: 13 | Z127: 13 | AA127: 13 | AB127: 13 | AC127: 14
A128: D32 | B128: D | C128: 32 | D128: 11 | E128: 11 | F128: 11 | G128: 11 | H128: 11 | I128: 11 | J128: 11 | K128: 11 | L128: 12 | M128: 12 | N128: 12 | P128: D32 | Q128: D | R128: 32 | S128: 13 | T128: 13 | U128: 13 | V128: 13 | W128: 13 | X128: 13 | Y128: 13 | Z128: 13 | AA128: 14 | AB128: 14 | AC128: 14
A129: D33 | B129: D | C129: 33 | D129: 11 | E129: 11 | F129: 11 | G129: 11 | H129: 11 | I129: 11 | J129: 11 | K129: 11 | L129: 12 | M129: 12 | N129: 12 | P129: D33 | Q129: D | R129: 33 | S129: 13 | T129: 13 | U129: 13 | V129: 13 | W129: 13 | X129: 13 | Y129: 13 | Z129: 13 | AA129: 14 | AB129: 14 | AC129: 14
A130: D34 | B130: D | C130: 34 | D130: 11 | E130: 11 | F130: 11 | G130: 11 | H130: 12 | I130: 12 | J130: 12 | K130: 12 | L130: 12 | M130: 12 | N130: 12 | P130: D34 | Q130: D | R130: 34 | S130: 13 | T130: 13 | U130: 13 | V130: 13 | W130: 14 | X130: 14 | Y130: 14 | Z130: 14 | AA130: 14 | AB130: 14 | AC130: 14
A131: D35 | B131: D | C131: 35 | D131: 11 | E131: 11 | F131: 11 | G131: 11 | H131: 12 | I131: 12 | J131: 12 | K131: 12 | L131: 12 | M131: 12 | N131: 12 | P131: D35 | Q131: D | R131: 35 | S131: 13 | T131: 13 | U131: 13 | V131: 13 | W131: 14 | X131: 14 | Y131: 14 | Z131: 14 | AA131: 14 | AB131: 14 | AC131: 14
A132: D36 | B132: D | C132: 36 | D132: 12 | E132: 12 | F132: 12 | G132: 12 | H132: 12 | I132: 12 | J132: 12 | K132: 12 | L132: 13 | M132: 13 | N132: 13 | P132: D36 | Q132: D | R132: 36 | S132: 14 | T132: 14 | U132: 14 | V132: 14 | W132: 14 | X132: 14 | Y132: 14 | Z132: 14 | AA132: 15 | AB132: 15 | AC132: 15
A133: D37 | B133: D | C133: 37 | D133: 12 | E133: 12 | F133: 12 | G133: 12 | H133: 12 | I133: 12 | J133: 12 | K133: 12 | L133: 13 | M133: 13 | N133: 13 | P133: D37 | Q133: D | R133: 37 | S133: 14 | T133: 14 | U133: 14 | V133: 14 | W133: 14 | X133: 14 | Y133: 14 | Z133: 14 | AA133: 15 | AB133: 15 | AC133: 15
A134: D38 | B134: D | C134: 38 | D134: 12 | E134: 12 | F134: 12 | G134: 12 | H134: 13 | I134: 13 | J134: 13 | K134: 13 | L134: 13 | M134: 13 | N134: 13 | P134: D38 | Q134: D | R134: 38 | S134: 14 | T134: 14 | U134: 14 | V134: 14 | W134: 15 | X134: 15 | Y134: 15 | Z134: 15 | AA134: 15 | AB134: 15 | AC134: 15
A135: D39 | B135: D | C135: 39 | D135: 12 | E135: 12 | F135: 12 | G135: 12 | H135: 13 | I135: 13 | J135: 13 | K135: 13 | L135: 13 | M135: 13 | N135: 13 | P135: D39 | Q135: D | R135: 39 | S135: 14 | T135: 14 | U135: 14 | V135: 14 | W135: 15 | X135: 15 | Y135: 15 | Z135: 15 | AA135: 15 | AB135: 15 | AC135: 15
A136: D40 | B136: D | C136: 40 | D136: 12 | E136: 12 | F136: 13 | G136: 13 | H136: 13 | I136: 13 | J136: 13 | K136: 13 | L136: 13 | M136: 13 | N136: 14 | P136: D40 | Q136: D | R136: 40 | S136: 14 | T136: 14 | U136: 15 | V136: 15 | W136: 15 | X136: 15 | Y136: 15 | Z136: 15 | AA136: 15 | AB136: 15 | AC136: 16
A137: D41 | B137: D | C137: 41 | D137: 12 | E137: 12 | F137: 13 | G137: 13 | H137: 13 | I137: 13 | J137: 13 | K137: 13 | L137: 13 | M137: 13 | N137: 14 | P137: D41 | Q137: D | R137: 41 | S137: 14 | T137: 14 | U137: 15 | V137: 15 | W137: 15 | X137: 15 | Y137: 15 | Z137: 15 | AA137: 15 | AB137: 15 | AC137: 16
A138: D42 | B138: D | C138: 42 | D138: 13 | E138: 13 | F138: 13 | G138: 13 | H138: 13 | I138: 13 | J138: 14 | K138: 14 | L138: 14 | M138: 14 | N138: 14 | P138: D42 | Q138: D | R138: 42 | S138: 15 | T138: 15 | U138: 15 | V138: 15 | W138: 15 | X138: 15 | Y138: 16 | Z138: 16 | AA138: 16 | AB138: 16 | AC138: 16
A139: E0 | B139: E | C139: 0 | D139: 6 | E139: 6 | F139: =E139 -> 6 | G139: 6 | H139: 6 | I139: 6 | J139: 6 | K139: 6 | L139: 6 | M139: 6 | N139: 6 | P139: E0 | Q139: E | R139: 0 | S139: 8 | T139: 8 | U139: =T139 -> 8 | V139: 8 | W139: 8 | X139: 8 | Y139: 8 | Z139: 8 | AA139: 8 | AB139: 8 | AC139: 8
A140: E1 | B140: E | C140: 1 | D140: 6 | E140: 6 | F140: 6 | G140: 6 | H140: 6 | I140: 6 | J140: 6 | K140: 6 | L140: 6 | M140: 6 | N140: 6 | P140: E1 | Q140: E | R140: 1 | S140: 8 | T140: 8 | U140: 8 | V140: 8 | W140: 8 | X140: 8 | Y140: 8 | Z140: 8 | AA140: 8 | AB140: 8 | AC140: 8
A141: E2 | B141: E | C141: 2 | D141: 6 | E141: 6 | F141: 6 | G141: 6 | H141: 6 | I141: 6 | J141: 6 | K141: 6 | L141: 6 | M141: 6 | N141: 6 | P141: E2 | Q141: E | R141: 2 | S141: 8 | T141: 8 | U141: 8 | V141: 8 | W141: 8 | X141: 8 | Y141: 8 | Z141: 8 | AA141: 8 | AB141: 8 | AC141: 8
A142: E3 | B142: E | C142: 3 | D142: 6 | E142: 6 | F142: 6 | G142: 6 | H142: 6 | I142: 6 | J142: 6 | K142: 6 | L142: 6 | M142: 6 | N142: 6 | P142: E3 | Q142: E | R142: 3 | S142: 8 | T142: 8 | U142: 8 | V142: 8 | W142: 8 | X142: 8 | Y142: 8 | Z142: 8 | AA142: 8 | AB142: 8 | AC142: 8
A143: E4 | B143: E | C143: 4 | D143: 7 | E143: 7 | F143: 7 | G143: 7 | H143: 7 | I143: 7 | J143: 7 | K143: 7 | L143: 7 | M143: 7 | N143: 7 | P143: E4 | Q143: E | R143: 4 | S143: 9 | T143: 9 | U143: 9 | V143: 9 | W143: 9 | X143: 9 | Y143: 9 | Z143: 9 | AA143: 9 | AB143: 9 | AC143: 9
A144: E5 | B144: E | C144: 5 | D144: 7 | E144: 7 | F144: 7 | G144: 7 | H144: 7 | I144: 7 | J144: 7 | K144: 7 | L144: 7 | M144: 7 | N144: 7 | P144: E5 | Q144: E | R144: 5 | S144: 9 | T144: 9 | U144: 9 | V144: 9 | W144: 9 | X144: 9 | Y144: 9 | Z144: 9 | AA144: 9 | AB144: 9 | AC144: 9
A145: E6 | B145: E | C145: 6 | D145: 7 | E145: 7 | F145: 7 | G145: 7 | H145: 8 | I145: 8 | J145: 8 | K145: 8 | L145: 8 | M145: 8 | N145: 8 | P145: E6 | Q145: E | R145: 6 | S145: 9 | T145: 9 | U145: 9 | V145: 9 | W145: 10 | X145: 10 | Y145: 10 | Z145: 10 | AA145: 10 | AB145: 10 | AC145: 10
A146: E7 | B146: E | C146: 7 | D146: 7 | E146: 7 | F146: 7 | G146: 7 | H146: 8 | I146: 8 | J146: 8 | K146: 8 | L146: 8 | M146: 8 | N146: 8 | P146: E7 | Q146: E | R146: 7 | S146: 9 | T146: 9 | U146: 9 | V146: 9 | W146: 10 | X146: 10 | Y146: 10 | Z146: 10 | AA146: 10 | AB146: 10 | AC146: 10
A147: E8 | B147: E | C147: 8 | D147: 8 | E147: 8 | F147: 8 | G147: 8 | H147: 8 | I147: 8 | J147: 8 | K147: 8 | L147: 9 | M147: 9 | N147: 9 | P147: E8 | Q147: E | R147: 8 | S147: 10 | T147: 10 | U147: 10 | V147: 10 | W147: 10 | X147: 10 | Y147: 10 | Z147: 10 | AA147: 11 | AB147: 11 | AC147: 11
A148: E9 | B148: E | C148: 9 | D148: 8 | E148: 8 | F148: 8 | G148: 8 | H148: 8 | I148: 8 | J148: 8 | K148: 8 | L148: 9 | M148: 9 | N148: 9 | P148: E9 | Q148: E | R148: 9 | S148: 10 | T148: 10 | U148: 10 | V148: 10 | W148: 10 | X148: 10 | Y148: 10 | Z148: 10 | AA148: 11 | AB148: 11 | AC148: 11
A149: E10 | B149: E | C149: 10 | D149: 8 | E149: 8 | F149: 8 | G149: 8 | H149: 9 | I149: 9 | J149: 9 | K149: 9 | L149: 9 | M149: 9 | N149: 9 | P149: E10 | Q149: E | R149: 10 | S149: 10 | T149: 10 | U149: 10 | V149: 10 | W149: 11 | X149: 11 | Y149: 11 | Z149: 11 | AA149: 11 | AB149: 11 | AC149: 11
A150: E11 | B150: E | C150: 11 | D150: 8 | E150: 8 | F150: 8 | G150: 8 | H150: 9 | I150: 9 | J150: 9 | K150: 9 | L150: 9 | M150: 9 | N150: 9 | P150: E11 | Q150: E | R150: 11 | S150: 10 | T150: 10 | U150: 10 | V150: 10 | W150: 11 | X150: 11 | Y150: 11 | Z150: 11 | AA150: 11 | AB150: 11 | AC150: 11
A151: E12 | B151: E | C151: 12 | D151: 9 | E151: 9 | F151: 9 | G151: 9 | H151: 9 | I151: 9 | J151: 9 | K151: 9 | L151: 10 | M151: 10 | N151: 10 | P151: E12 | Q151: E | R151: 12 | S151: 11 | T151: 11 | U151: 11 | V151: 11 | W151: 11 | X151: 11 | Y151: 11 | Z151: 11 | AA151: 12 | AB151: 12 | AC151: 12
A152: E13 | B152: E | C152: 13 | D152: 9 | E152: 9 | F152: 9 | G152: 9 | H152: 9 | I152: 9 | J152: 9 | K152: 9 | L152: 10 | M152: 10 | N152: 10 | P152: E13 | Q152: E | R152: 13 | S152: 11 | T152: 11 | U152: 11 | V152: 11 | W152: 11 | X152: 11 | Y152: 11 | Z152: 11 | AA152: 12 | AB152: 12 | AC152: 12
A153: E14 | B153: E | C153: 14 | D153: 9 | E153: 9 | F153: 9 | G153: 9 | H153: 10 | I153: 10 | J153: 10 | K153: 10 | L153: 10 | M153: 10 | N153: 10 | P153: E14 | Q153: E | R153: 14 | S153: 11 | T153: 11 | U153: 11 | V153: 11 | W153: 12 | X153: 12 | Y153: 12 | Z153: 12 | AA153: 12 | AB153: 12 | AC153: 12
A154: E15 | B154: E | C154: 15 | D154: 9 | E154: 9 | F154: 9 | G154: 9 | H154: 10 | I154: 10 | J154: 10 | K154: 10 | L154: 10 | M154: 10 | N154: 10 | P154: E15 | Q154: E | R154: 15 | S154: 11 | T154: 11 | U154: 11 | V154: 11 | W154: 12 | X154: 12 | Y154: 12 | Z154: 12 | AA154: 12 | AB154: 12 | AC154: 12
A155: E16 | B155: E | C155: 16 | D155: 9 | E155: 9 | F155: 10 | G155: 10 | H155: 10 | I155: 10 | J155: 10 | K155: 10 | L155: 10 | M155: 10 | N155: 11 | P155: E16 | Q155: E | R155: 16 | S155: 11 | T155: 11 | U155: 12 | V155: 12 | W155: 12 | X155: 12 | Y155: 12 | Z155: 12 | AA155: 12 | AB155: 12 | AC155: 13
A156: E17 | B156: E | C156: 17 | D156: 9 | E156: 9 | F156: 10 | G156: 10 | H156: 10 | I156: 10 | J156: 10 | K156: 10 | L156: 10 | M156: 10 | N156: 11 | P156: E17 | Q156: E | R156: 17 | S156: 11 | T156: 11 | U156: 12 | V156: 12 | W156: 12 | X156: 12 | Y156: 12 | Z156: 12 | AA156: 12 | AB156: 12 | AC156: 13
A157: E18 | B157: E | C157: 18 | D157: 10 | E157: 10 | F157: 10 | G157: 10 | H157: 10 | I157: 10 | J157: 11 | K157: 11 | L157: 11 | M157: 11 | N157: 11 | P157: E18 | Q157: E | R157: 18 | S157: 12 | T157: 12 | U157: 12 | V157: 12 | W157: 12 | X157: 12 | Y157: 13 | Z157: 13 | AA157: 13 | AB157: 13 | AC157: 13
A158: E19 | B158: E | C158: 19 | D158: 10 | E158: 10 | F158: 10 | G158: 10 | H158: 10 | I158: 10 | J158: 11 | K158: 11 | L158: 11 | M158: 11 | N158: 11 | P158: E19 | Q158: E | R158: 19 | S158: 12 | T158: 12 | U158: 12 | V158: 12 | W158: 12 | X158: 12 | Y158: 13 | Z158: 13 | AA158: 13 | AB158: 13 | AC158: 13
A159: E20 | B159: E | C159: 20 | D159: 10 | E159: 10 | F159: 11 | G159: 11 | H159: 11 | I159: 11 | J159: 11 | K159: 11 | L159: 11 | M159: 11 | N159: 12 | P159: E20 | Q159: E | R159: 20 | S159: 12 | T159: 12 | U159: 13 | V159: 13 | W159: 13 | X159: 13 | Y159: 13 | Z159: 13 | AA159: 13 | AB159: 13 | AC159: 14
A160: E21 | B160: E | C160: 21 | D160: 10 | E160: 10 | F160: 11 | G160: 11 | H160: 11 | I160: 11 | J160: 11 | K160: 11 | L160: 11 | M160: 11 | N160: 12 | P160: E21 | Q160: E | R160: 21 | S160: 12 | T160: 12 | U160: 13 | V160: 13 | W160: 13 | X160: 13 | Y160: 13 | Z160: 13 | AA160: 13 | AB160: 13 | AC160: 14
A161: E22 | B161: E | C161: 22 | D161: 11 | E161: 11 | F161: 11 | G161: 11 | H161: 11 | I161: 11 | J161: 11 | K161: 11 | L161: 12 | M161: 12 | N161: 12 | P161: E22 | Q161: E | R161: 22 | S161: 13 | T161: 13 | U161: 13 | V161: 13 | W161: 13 | X161: 13 | Y161: 13 | Z161: 13 | AA161: 14 | AB161: 14 | AC161: 14
A162: E23 | B162: E | C162: 23 | D162: 11 | E162: 11 | F162: 11 | G162: 11 | H162: 11 | I162: 11 | J162: 11 | K162: 11 | L162: 12 | M162: 12 | N162: 12 | P162: E23 | Q162: E | R162: 23 | S162: 13 | T162: 13 | U162: 13 | V162: 13 | W162: 13 | X162: 13 | Y162: 13 | Z162: 13 | AA162: 14 | AB162: 14 | AC162: 14
A163: E24 | B163: E | C163: 24 | D163: 11 | E163: 11 | F163: 11 | G163: 11 | H163: 12 | I163: 12 | J163: 12 | K163: 12 | L163: 12 | M163: 12 | N163: 12 | P163: E24 | Q163: E | R163: 24 | S163: 13 | T163: 13 | U163: 13 | V163: 13 | W163: 14 | X163: 14 | Y163: 14 | Z163: 14 | AA163: 14 | AB163: 14 | AC163: 14
A164: E25 | B164: E | C164: 25 | D164: 11 | E164: 11 | F164: 11 | G164: 11 | H164: 12 | I164: 12 | J164: 12 | K164: 12 | L164: 12 | M164: 12 | N164: 12 | P164: E25 | Q164: E | R164: 25 | S164: 13 | T164: 13 | U164: 13 | V164: 13 | W164: 14 | X164: 14 | Y164: 14 | Z164: 14 | AA164: 14 | AB164: 14 | AC164: 14
A165: E26 | B165: E | C165: 26 | D165: 12 | E165: 12 | F165: 12 | G165: 12 | H165: 12 | I165: 12 | J165: 12 | K165: 12 | L165: 13 | M165: 13 | N165: 13 | P165: E26 | Q165: E | R165: 26 | S165: 14 | T165: 14 | U165: 14 | V165: 14 | W165: 14 | X165: 14 | Y165: 14 | Z165: 14 | AA165: 15 | AB165: 15 | AC165: 15
A166: E27 | B166: E | C166: 27 | D166: 12 | E166: 12 | F166: 12 | G166: 12 | H166: 12 | I166: 12 | J166: 12 | K166: 12 | L166: 13 | M166: 13 | N166: 13 | P166: E27 | Q166: E | R166: 27 | S166: 14 | T166: 14 | U166: 14 | V166: 14 | W166: 14 | X166: 14 | Y166: 14 | Z166: 14 | AA166: 15 | AB166: 15 | AC166: 15
A167: E28 | B167: E | C167: 28 | D167: 12 | E167: 12 | F167: 12 | G167: 12 | H167: 12 | I167: 12 | J167: 13 | K167: 13 | L167: 13 | M167: 13 | N167: 13 | P167: E28 | Q167: E | R167: 28 | S167: 14 | T167: 14 | U167: 14 | V167: 14 | W167: 14 | X167: 14 | Y167: 15 | Z167: 15 | AA167: 15 | AB167: 15 | AC167: 15
A168: E29 | B168: E | C168: 29 | D168: 12 | E168: 12 | F168: 12 | G168: 12 | H168: 12 | I168: 12 | J168: 13 | K168: 13 | L168: 13 | M168: 13 | N168: 13 | P168: E29 | Q168: E | R168: 29 | S168: 14 | T168: 14 | U168: 14 | V168: 14 | W168: 14 | X168: 14 | Y168: 15 | Z168: 15 | AA168: 15 | AB168: 15 | AC168: 15
A169: E30 | B169: E | C169: 30 | D169: 12 | E169: 12 | F169: 13 | G169: 13 | H169: 13 | I169: 13 | J169: 13 | K169: 13 | L169: 13 | M169: 13 | N169: 14 | P169: E30 | Q169: E | R169: 30 | S169: 14 | T169: 14 | U169: 15 | V169: 15 | W169: 15 | X169: 15 | Y169: 15 | Z169: 15 | AA169: 15 | AB169: 15 | AC169: 16
A170: E31 | B170: E | C170: 31 | D170: 12 | E170: 12 | F170: 13 | G170: 13 | H170: 13 | I170: 13 | J170: 13 | K170: 13 | L170: 13 | M170: 13 | N170: 14 | P170: E31 | Q170: E | R170: 31 | S170: 14 | T170: 14 | U170: 15 | V170: 15 | W170: 15 | X170: 15 | Y170: 15 | Z170: 15 | AA170: 15 | AB170: 15 | AC170: 16
A171: E32 | B171: E | C171: 32 | D171: 13 | E171: 13 | F171: 13 | G171: 13 | H171: 13 | I171: 13 | J171: 14 | K171: 14 | L171: 14 | M171: 14 | N171: 14 | P171: E32 | Q171: E | R171: 32 | S171: 15 | T171: 15 | U171: 15 | V171: 15 | W171: 15 | X171: 15 | Y171: 16 | Z171: 16 | AA171: 16 | AB171: 16 | AC171: 16
A172: E33 | B172: E | C172: 33 | D172: 13 | E172: 13 | F172: 13 | G172: 13 | H172: 13 | I172: 13 | J172: 14 | K172: 14 | L172: 14 | M172: 14 | N172: 14 | P172: E33 | Q172: E | R172: 33 | S172: 15 | T172: 15 | U172: 15 | V172: 15 | W172: 15 | X172: 15 | Y172: 16 | Z172: 16 | AA172: 16 | AB172: 16 | AC172: 16
A173: E34 | B173: E | C173: 34 | D173: 13 | E173: 13 | F173: 13 | G173: 13 | H173: 14 | I173: 14 | J173: 14 | K173: 14 | L173: 14 | M173: 14 | N173: 14 | P173: E34 | Q173: E | R173: 34 | S173: 15 | T173: 15 | U173: 15 | V173: 15 | W173: 16 | X173: 16 | Y173: 16 | Z173: 16 | AA173: 16 | AB173: 16 | AC173: 16

Sheet Worksheet
A1: 1 | C1: MSUAASF Creditable Work Experience: Worksheet | M1: Range
A2: 1 | M2: A | O2: TEST
A3: 1 | D3: Name of Candidate: | I3: Range: | M3: B | O3: H3 | P3: =OR(LEN(J3)=0) -> TRUE
A4: 1 | D4: Department/Position: | I4: Date: | M4: C | O4: D4 | P4: =OR(LEN(F4)=0) -> TRUE
A5: 1 | E5: FY: | F5: 7/1/2023 (FY24) | M5: D
A6: 1 | M6: E
A7: 1 | C7: A. Degree/Professional Certification/Equivalency Requirement:
A8: 1
A9: 1 | D9: Degree:
A10: 1 | D10: Date:
A11: 1 | D11: Educational Institution:
A12: 1 | D12: Field of Study:
A13: 1 | D13: OR
A14: 1 | D14: Professional Certification:
A15: 1 | D15: Granting Authority:
A16: 1 | D16: OR
A17: 1 | D17: Equivalent Combination of Education and Experience
A18: 1 | D18: Education Information:
A19: 1 | D19: Experience Information:
A20: 1
A21: 1
A22: 1 | C22: B. Creditable Experience Determination
A23: 1
A24: 1 | D24: Type 1: Professional-level teaching & administrative experience within ALL Minnesota State colleges and universities. Includes: Years in Equal or Higher MSUAASF, MnSCU Academic Professional, MnSCU Academic Supervisor and/or MnSCU Administrator Ranges | J24: Creditable Years | L24: heruherherheirfheujfuh
A25: 1 | D25: Start Date | E25: End Date | F25: Position/ Rank | G25: Institution | H25: FTE | I25: Applicable Years | L25: heruherherheir
A26: 1 | D26: ` | I26: =IF(ISBLANK(H26),"",(E26-D26)/365*H26) -> 
A27: 1 | I27: =IF(ISBLANK(H27),"",(E27-D27)/365*H27) -> 
A28: 1 | I28: =IF(ISBLANK(H28),"",(E28-D28)/365*H28) -> 
A29: 1 | I29: =IF(ISBLANK(H29),"",(E29-D29)/365*H29) -> 
A30: 1 | I30: =IF(ISBLANK(H30),"",(E30-D30)/365*H30) -> 
A31: 1 | G31: Subtotal Applicable Years: | I31: =SUM(I26:I30) -> 0
A32: 1 | G32: Weighted Value: | I32: 1
A33: 1 | G33: Creditable Years: | I33: =ROUNDDOWN(I31*I32,0) -> 0 | J33: =I33 -> 0
A34: 1
A35: 2 | D35: Type 2: Professional-level teaching & administrative experience within higher education, outside of Minnesota State | J35: Creditable Years | L35: reorjhioehrio
A36: 2 | D36: Start Date | E36: End Date | F36: Position/ Rank | G36: Institution | H36: FTE | I36: Applicable Years | L36: heruherherheir
A37: 2 | I37: =IF(ISBLANK(H37),"",(E37-D37)/365*H37) -> 
A38: 2 | I38: =IF(ISBLANK(H38),"",(E38-D38)/365*H38) -> 
A39: 2 | I39: =IF(ISBLANK(H39),"",(E39-D39)/365*H39) -> 
A40: 2 | I40: =IF(ISBLANK(H40),"",(E40-D40)/365*H40) -> 
A41: 2 | I41: =IF(ISBLANK(H41),"",(E41-D41)/365*H41) -> 
A42: 2 | G42: Subtotal Applicable Years: | I42: =SUM(I37:I41) -> 0
A43: 2 | G43: Weighted Value: | I43: 1
A44: 2 | G44: Creditable Years: | I44: =ROUNDDOWN(I42*I43,0) -> 0 | J44: =I44 -> 0
A45: 2
A46: 1 | C46: B. Creditable Experience Determination (Continued)
A47: 1
A48: 2 | D48: Type 3: Discretionary
A49: 2 | D49: Type 3.1: Professional-level teaching & administrative experience in K-12 (e.g., teacher, librarian, principal, superintendent, etc.) | J49: Creditable Years | L49: reorjhioehrio
A50: 2 | D50: Start Date | E50: End Date | F50: Position/ Rank | G50: Institution | H50: FTE | I50: Applicable Years | L50: heruherherheir
A51: 2 | I51: =IF(ISBLANK(H51),"",(E51-D51)/365*H51) -> 
A52: 2 | I52: =IF(ISBLANK(H52),"",(E52-D52)/365*H52) -> 
A53: 2 | I53: =IF(ISBLANK(H53),"",(E53-D53)/365*H53) -> 
A54: 2 | I54: =IF(ISBLANK(H54),"",(E54-D54)/365*H54) -> 
A55: 2 | I55: =IF(ISBLANK(H55),"",(E55-D55)/365*H55) -> 
A56: 2 | G56: Subtotal Applicable Years: | I56: =SUM(I51:I55) -> 0
A57: 2 | G57: Weighted Value: | I57: 0.5
A58: 2 | G58: Creditable Years: | I58: =ROUNDDOWN(I56*I57,0) -> 0 | J58: =I58 -> 0
A59: 2
A60: 3 | D60: Type 3.2: Professional level experience outside education ONLY if work experience is directly related to the MSUAASF position upon hire | J60: Creditable Years | L60: reorjhioehrio
A61: 3 | D61: Start Date | E61: End Date | F61: Position/ Rank | G61: Institution | H61: FTE | I61: Applicable Years | L61: heruherherheir
A62: 3 | I62: =IF(ISBLANK(H62),"",(E62-D62)/365*H62) -> 
A63: 3 | I63: =IF(ISBLANK(H63),"",(E63-D63)/365*H63) -> 
A64: 3 | I64: =IF(ISBLANK(H64),"",(E64-D64)/365*H64) -> 
A65: 3 | I65: =IF(ISBLANK(H65),"",(E65-D65)/365*H65) -> 
A66: 3 | I66: =IF(ISBLANK(H66),"",(E66-D66)/365*H66) -> 
A67: 3 | G67: Subtotal Applicable Years: | I67: =SUM(I62:I66) -> 0
A68: 3 | G68: Weighted Value: | I68: 1
A69: 3 | G69: Creditable Years: | I69: =ROUNDDOWN(I67*I68,0) -> 0 | J69: =I69 -> 0
A70: 3
A71: 1 | C71: B. Creditable Experience Determination (Continued)
A72: 1
A73: 3 | D73: Type 3.3: Clerical/Technical/Paraprofessional/Lower-Level Professional experience within/or outside Minnesota State institutions ONLY if the work experience is directly related to the MSUAASF position upon hire | J73: Creditable Years | L73: uehrehruehrueihewu
A74: 3 | D74: Start Date | E74: End Date | F74: Position/ Rank | G74: Institution | H74: FTE | I74: Applicable Years | L74: heruherherheir
A75: 3 | I75: =IF(ISBLANK(H75),"",(E75-D75)/365*H75) -> 
A76: 3 | I76: =IF(ISBLANK(H76),"",(E76-D76)/365*H76) -> 
A77: 3 | I77: =IF(ISBLANK(H77),"",(E77-D77)/365*H77) -> 
A78: 3 | I78: =IF(ISBLANK(H78),"",(E78-D78)/365*H78) -> 
A79: 3 | I79: =IF(ISBLANK(H79),"",(E79-D79)/365*H79) -> 
A80: 3 | G80: Subtotal Applicable Years: | I80: =SUM(I75:I79) -> 0
A81: 3 | G81: Weighted Value: | I81: 0.5
A82: 3 | G82: Creditable Years: | I82: =ROUNDDOWN(I80*I81,0) -> 0 | J82: =I82 -> 0
A83: 3
A84: 3 | D84: Type 3.4: Graduate/teaching assistantships Experience within/or outside Minnesota State institutions ONLY if the work experience is directly related to the MSUAASF position upon hire | J84: Creditable Years | L84: reorjhioehrio
A85: 3 | D85: Start Date | E85: End Date | F85: Position/ Rank | G85: Institution | H85: FTE | I85: Applicable Years | L85: heruherherheir
A86: 3 | I86: =IF(ISBLANK(H86),"",(E86-D86)/365*H86) -> 
A87: 3 | I87: =IF(ISBLANK(H87),"",(E87-D87)/365*H87) -> 
A88: 3 | I88: =IF(ISBLANK(H88),"",(E88-D88)/365*H88) -> 
A89: 3 | I89: =IF(ISBLANK(H89),"",(E89-D89)/365*H89) -> 
A90: 3 | I90: =IF(ISBLANK(H90),"",(E90-D90)/365*H90) -> 
A91: 3 | G91: Subtotal Applicable Years: | I91: =SUM(I86:I90) -> 0
A92: 3 | G92: Weighted Value: | I92: 0.5
A93: 3 | G93: Creditable Years: | I93: =ROUNDDOWN(I91*I92,0) -> 0 | J93: =I93 -> 0
A94: 3
A95: 1 | C95: B. Creditable Experience Determination (Continued)
A96: 1
A97: 4 | D97: Type 3.5: Volunteer Experience: Professional-level experience ONLY if: a) the work experience is directly related to the MSUAASF position upon hire and b) if percent time is listed and c) volunteer work does not overlap with other experience credited | J97: Creditable Years | L97: reorjhioehriojekthekhehernejrhejr
A98: 4 | D98: Start Date | E98: End Date | F98: Position/ Rank | G98: Institution | H98: FTE | I98: Applicable Years | L98: heruherherheir
A99: 4 | I99: =IF(ISBLANK(H99),"",(E99-D99)/365*H99) -> 
A100: 4 | I100: =IF(ISBLANK(H100),"",(E100-D100)/365*H100) -> 
A101: 4 | I101: =IF(ISBLANK(H101),"",(E101-D101)/365*H101) -> 
A102: 4 | I102: =IF(ISBLANK(H102),"",(E102-D102)/365*H102) -> 
A103: 4 | I103: =IF(ISBLANK(H103),"",(E103-D103)/365*H103) -> 
A104: 4 | G104: Subtotal Applicable Years: | I104: =SUM(I99:I103) -> 0
A105: 4 | G105: Weighted Value: | I105: 1
A106: 4 | G106: Creditable Years: | I106: =ROUNDDOWN(I104*I105,0) -> 0 | J106: =I106 -> 0
A107: 4
A108: 4 | D108: Type 3.6: Minnesota Statute 192.261 requires recognition of years of military service which resulted from conscription (drafted) and which interrupted service to Minnesota State | J108: Creditable Years | L108: reorjhioehriojekt
A109: 4 | D109: Start Date | E109: End Date | F109: Position/ Rank | G109: Institution | H109: FTE | I109: Applicable Years | L109: heruherherheir
A110: 4 | I110: =IF(ISBLANK(H110),"",(E110-D110)/365*H110) -> 
A111: 4 | I111: =IF(ISBLANK(H111),"",(E111-D111)/365*H111) -> 
A112: 4 | I112: =IF(ISBLANK(H112),"",(E112-D112)/365*H112) -> 
A113: 4 | I113: =IF(ISBLANK(H113),"",(E113-D113)/365*H113) -> 
A114: 4 | I114: =IF(ISBLANK(H114),"",(E114-D114)/365*H114) -> 
A115: 4 | G115: Subtotal Applicable Years: | I115: =SUM(I110:I114) -> 0
A116: 4 | G116: Weighted Value: | I116: 1
A117: 4 | G117: Creditable Years: | I117: =ROUNDDOWN(I115*I116,0) -> 0 | J117: =I117 -> 0
A118: 4
A119: 4 | D119: Total Creditable Years Experience: (Sum of Type 1 through Type 3.6) | J119: =ROUNDDOWN(SUM($J$33:$J$117),0) -> 0
A120: 4
A121: 4 | D121: Total Creditable Years Minnesota State Experience: (Type 1 Total) | J121: =ROUNDDOWN(J33,0) -> 0
A122: 4
A123: 4
A124: 4
A125: 4 | C125: C. Step Placement Determination Based on Creditable Years Experience
A126: 4
A127: 4 | E127: Type | F127: Step | G127: Salary | H127: =IF($F$128="","",IF($F$128>10,"Contact System Office for approval above Step 10. Attach Approval.","")) -> 
A128: 4 | E128: Target | F128: =IF(ISBLANK($J$3),"", IF(ISERROR(VLOOKUP(CONCATENATE($J$3,$J$119),'(HIDE) Sheet1'!$P:$AC,IF($J$121>=10,14,SUM($J$121,4)),FALSE)), IF($J$3="A",VLOOKUP(CONCATENATE($J$3,22),'(HIDE) Sheet1'!$P:$AC,IF($J$121>=10,14,SUM($J$121,4)),FALSE), IF($J$3="B",VLOOKUP(CONCATENATE($J$3,32),'(HIDE) Sheet1'!$P:$AC,IF($J$121>=10,14,SUM($J$121,4)),FALSE), IF($J$3="C",VLOOKUP(CONCATENATE($J$3,36),'(HIDE) Sheet1'!$P:$AC,IF($J$121>=10,14,SUM($J$121,4)),FALSE), IF($J$3="D",VLOOKUP(CONCATENATE($J$3,42),'(HIDE) Sheet1'!$P:$AC,IF($J$121>=10,14,SUM($J$121,4)),FALSE), IF($J$3="E",VLOOKUP(CONCATENATE($J$3,34),'(HIDE) Sheet1'!$P:$AC,IF($J$121>=10,14,SUM($J$121,4)),FALSE),VLOOKUP(CONCATENATE($J$3,$J$119),'(HIDE) Sheet1'!$P:$AC,IF($J$121>=10,14,SUM($J$121,4)),FALSE)))))),VLOOKUP(CONCATENATE($J$3,$J$119),'(HIDE) Sheet1'!$P:$AC,IF($J$121>=10,14,SUM($J$121,4)),FALSE))) ->  | G128: =IF($F$128="","", IF($J$3="","", IF($F$5='(HIDE) MASTER-Chart'!$J$2, IF($J$3="A",VLOOKUP($F$128,'(HIDE) MASTER-Chart'!$B:$G,2,FALSE), IF($J$3="B",VLOOKUP($F$128,'(HIDE) MASTER-Chart'!$B:$G,3,FALSE), IF($J$3="C",VLOOKUP($F$128,'(HIDE) MASTER-Chart'!$B:$G,4,FALSE), IF($J$3="D",VLOOKUP($F$128,'(HIDE) MASTER-Chart'!$B:$G,5,FALSE), IF($J$3="E",VLOOKUP($F$128,'(HIDE) MASTER-Chart'!$B:$G,6,FALSE)))))), IF($F$5='(HIDE) MASTER-Chart'!$J$3, IF($J$3="A",VLOOKUP($F$128,'(HIDE) MASTER-Chart'!$M:$R,2,FALSE), IF($J$3="B",VLOOKUP($F$128,'(HIDE) MASTER-Chart'!$M:$R,3,FALSE), IF($J$3="C",VLOOKUP($F$128,'(HIDE) MASTER-Chart'!$M:$R,4,FALSE), IF($J$3="D",VLOOKUP($F$128,'(HIDE) MASTER-Chart'!$M:$R,5,FALSE), IF($J$3="E",VLOOKUP($F$128,'(HIDE) MASTER-Chart'!$M:$R,6,FALSE)))))))))) -> 
A129: 4 | E129: Minimum | F129: =IF(ISBLANK($J$3),"",IF(ISERROR(VLOOKUP(CONCATENATE($J$3,$J$119),'(HIDE) Sheet1'!$A:$N,IF($J$121>=10,14,SUM($J$121,4)),FALSE)),IF($J$3="A",VLOOKUP(CONCATENATE($J$3,22),'(HIDE) Sheet1'!$A:$N,IF($J$121>=10,14,SUM($J$121,4)),FALSE),IF($J$3="B",VLOOKUP(CONCATENATE($J$3,32),'(HIDE) Sheet1'!$A:$N,IF($J$121>=10,14,SUM($J$121,4)),FALSE),IF($J$3="C",VLOOKUP(CONCATENATE($J$3,36),'(HIDE) Sheet1'!$A:$N,IF($J$121>=10,14,SUM($J$121,4)),FALSE),IF($J$3="D",VLOOKUP(CONCATENATE($J$3,42),'(HIDE) Sheet1'!$A:$N,IF($J$121>=10,14,SUM($J$121,4)),FALSE),IF($J$3="E",VLOOKUP(CONCATENATE($J$3,34),'(HIDE) Sheet1'!$A:$N,IF($J$121>=10,14,SUM($J$121,4)),FALSE),VLOOKUP(CONCATENATE($J$3,$J$119),'(HIDE) Sheet1'!$A:$N,IF($J$121>=10,14,SUM($J$121,4)),FALSE)))))),VLOOKUP(CONCATENATE($J$3,$J$119),'(HIDE) Sheet1'!$A:$N,IF($J$121>=10,14,SUM($J$121,4)),FALSE))) ->  | G129: =IF($F$129="","", IF($J$3="","", IF($F$5='(HIDE) MASTER-Chart'!$J$2, IF($J$3="A",VLOOKUP($F$129,'(HIDE) MASTER-Chart'!$B:$G,2,FALSE), IF($J$3="B",VLOOKUP($F$129,'(HIDE) MASTER-Chart'!$B:$G,3,FALSE), IF($J$3="C",VLOOKUP($F$129,'(HIDE) MASTER-Chart'!$B:$G,4,FALSE), IF($J$3="D",VLOOKUP($F$129,'(HIDE) MASTER-Chart'!$B:$G,5,FALSE), IF($J$3="E",VLOOKUP($F$129,'(HIDE) MASTER-Chart'!$B:$G,6,FALSE)))))), IF($F$5='(HIDE) MASTER-Chart'!$J$3, IF($J$3="A",VLOOKUP($F$129,'(HIDE) MASTER-Chart'!$M:$R,2,FALSE), IF($J$3="B",VLOOKUP($F$129,'(HIDE) MASTER-Chart'!$M:$R,3,FALSE), IF($J$3="C",VLOOKUP($F$129,'(HIDE) MASTER-Chart'!$M:$R,4,FALSE), IF($J$3="D",VLOOKUP($F$129,'(HIDE) MASTER-Chart'!$M:$R,5,FALSE), IF($J$3="E",VLOOKUP($F$129,'(HIDE) MASTER-Chart'!$M:$R,6,FALSE)))))))))) -> 
A130: 4
A131: 4 | D131: NOTE:
A132: 4 | D132: 1. At or below target - may not be more than two steps lower than target,
A133: 4 | D133: 2. Above target up to and including step 10 - university must retain market justification, or
A134: 4 | D134: 3. Above target over step 10 - university must receive prior approval from Minnesota State system office
A135: 4
A136: 4
A137: 4
A138: 5 | C138: D. Approvals
A139: 5
A140: 5 | D140: I attest that all statements and representations set forth above are true and accurate. Inaccurate statements or misrepresentations concerning my work experience may lead the University to take one or more of the following actions: withdrawal of an offer of employment; modification of starting salary; and in the event that I become an employee, disciplinary action up to and including discharge.
A141: 5
A142: 5
A143: 5
A144: 5
A145: 5
A146: 5 | D146: Candidate Signature | I146: Date | V146: Date
A147: 5
A148: 5
A149: 5 | D149: Evaluator 1 Signature (Supervisor or VP) | I149: Date | L149: fnwrfhjewerhfie | V149: Date
A150: 5
A151: 5
A152: 5 | D152: Evaluator 2 Signature (CHRO/Designee) | I152: Date | L152: fnwrfhjewerhfie | V152: Date
A153: 5
A154: 5
A155: 5
A156: 5 | E156: Director / Vice President Use Only
A157: 5 | E157: PRF Number
A158: 5
A159: 5 | E159: Position Number
A160: 5 | E160: Position Number
A161: 5 | E161: Appt Status
A162: 5 | E162: Appt Status
A163: 5
A164: 5
A165: 5
A166: 5
A167: 5
A168: 5
A169: 5
A170: 5
A171: 5
D172: Retain this form and all attached documentation in Human Resources. Last Revision 11/2016.

Sheet Guidelines
A1: MSUAASF Creditable Work Experience: Guidelines
A3: Note: These guidelines are intended to be used in conjunction with the MSUAASF Creditable Work Experience: Worksheet.
A6: Criteria:
A7: · Generally, the process for analyzing creditable work experience applies to initial hires into MSUAASF, even if the candidate is coming from Minnesota State MAPE/MSCF/IFO positions, for example, or if a former Minnesota State employee is re-hired after an unpaid break in service.
A11: · Years of work experience are expressed in terms of full-time equivalent (FTE) service with full- time twelve-month workload equal to one (1) FTE year. No more than 1:00 FTE is credited in any twelve month period.
A15: · No experience credit is accrued for time spent on leaves of absence without pay.
A17: · Years of Service in teaching positions or administrative positions (i.e., Resident Hall Director, Coaching, etc.) that are seasonal in nature are equal to one (1) FTE year.
A20: · Aggregate total creditable work experience for all categories is rounded down to the number of full years completed. For example, a total of 7.67 FTE years is rounded down to seven (7) years of total creditable experience for salary grid placement.
A24: · Each period of work experience must be reviewed against the Categories of Creditable Work experience for inclusion of exclusion. (See below.) Although most categories are valued at 100%, some categories are valued at 50%.
A28: · All allowable full-time work experience is credited on a full-time equivalent (FTE) basis. Part- time work is counted on a pro-rated basis. Academic and Non-Academic Experience is valued according to the following formulas:
A32: Categories of Creditable Work:
A34: Category (Each category coincides with a Type listed on the Worksheet) | I34: Percentage Credited
A35: Type 1 – Professional-level teaching & administrative experience WITHIN all Minnesota State colleges & universities. Includes: Years in Equal or Higher MSUAASF, MnSCU Academic Professional, MnSCU Academic Supervisor and/or MnSCU Administrator ranges. | I35: FTE x 1.00 (fully-credited)
A39: Type 2 – Professional-level teaching & administrative experience within higher education, OUTSIDE Minnesota State. | I39: FTE x 1.00 (fully-credited)
A41: Type 3.1 - Professional-level teaching & administrative experience in K-12 (e.g., teacher, librarian, principal, superintendent, etc.) | I41: FTE x .50 (credited at 50%)
A43: Type 3.2 - Professional-level OUTSIDE of education ONLY if the work experience is directly related to MSUAASF position upon hire. | I43: FTE x 1.00 (fully-credited)
A45: Type 3.3 – Clerical/Technical/Paraprofessional/Lower-Level Professional experience WITHIN or OUTSIDE Minnesota State institutions ONLY if the work experience is directly related to MSUAASF position upon hire. | I45: FTE x .50 (credited at 50%)
A48: Type 3.4 – Graduate/teaching assistantships experience WITHIN or OUTSIDE Minnesota State institutions ONLY if the work experience is directly related to MSUAASF position upon hire. | I48: FTE x .50 (credited at 50%)
A51: Type 3.5 – Volunteer Experience: Professional-level volunteer experience ONLY if a) the work experience is directly related to MSUAASF position upon hire and b) if percent time is listed and c) volunteer work does not overlap with other experience credited. | I51: FTE x 1.00 (fully-credited)
A55: Type 3.6 – Minnesota Statute §192.261 requires recognition of years of military service which resulted from conscription and which interrupted service in the Minnesota State Colleges and Universities system. | I55: FTE x 1.00 (fully-credited)
A59: Academic Experience | I59: Applicable FTE Credit
A60: Full-time Academic Year | E60: Equals | I60: 1.00 FTE
A61: Part-time Academic Year | E61: Percent time employed equals | I61: Portion of 1.00 FTE
A62: Full-time Academic Quarter | E62: Equals | I62: .33 FTE
A63: Part-time Academic Quarter | E63: Percent time employed X .33 equals | I63: Portion of .33 FTE
A64: Full-time Academic Semester | E64: Equals | I64: .50 FTE
A65: Part-time Academic Semester | E65: Percent time employed X .50 equals | I65: Portion of .50 FTE
A67: Non-Academic Experience | I67: Applicable FTE Credit
A68: Full-time twelve months | E68: Equals | I68: 1.00 FTE
A69: Part-time twelve months | E69: Percent time employed equals | I69: Portion of 1.00 FTE
A70: Full-time Academic Quarter | E70: Equals | I70: .25 FTE
A71: Part-time Academic Quarter | E71: Percent time employed X .25 equals | I71: Portion of .25 FTE
A72: Full-time Academic Semester | E72: Equals | I72: .33 FTE
A73: Part-time Academic Semester | E73: Percent time employed X .33 equals | I73: Portion of .33 FTE
A77: 2016-11-10

Sheet Printable Grid-RangeA
O1: MSUAASF | S1: RANGE A | W1: 7/1/2023 (FY24)
Q2: ='(HIDE) MASTER-Chart'!$C$7 -> 35383 | S2: to | U2: ='(HIDE) MASTER-Chart'!$C$22 -> 54911
A4: TOTAL | O4: Years in Equal or Higher MSUAASF, MnSCU Academic Professional, MnSCU Academic Supervisor and/or MnSCU Administrator Ranges
A5: YRS EXP | B5: 0-1 | D5: 2 - 3 | F5: 4 - 5 | H5: 6 - 7 | J5: 8 - 9 | L5: 10 + | O5: 0-1 | Q5: 2 - 3 | S5: 4 - 5 | U5: 6 - 7 | W5: 8 - 9 | Y5: 10 +
B6: 6 | N6: TARGET | O6: =IFERROR( IF($W$1='(HIDE) MASTER-Chart'!$J$2, VLOOKUP(B6,'(HIDE) MASTER-Chart'!$B:$G,2,FALSE), VLOOKUP(B6,'(HIDE) MASTER-Chart'!$M:$R,2,FALSE)),"") -> 36325 | P6: =IF(ISBLANK(B6),"",CONCATENATE("(",B6,")")) -> (6) | Q6: =IFERROR( IF($W$1='(HIDE) MASTER-Chart'!$J$2, VLOOKUP(D6,'(HIDE) MASTER-Chart'!$B:$G,2,FALSE), VLOOKUP(D6,'(HIDE) MASTER-Chart'!$M:$R,2,FALSE)),"") ->  | R6: =IF(ISBLANK(D6),"",CONCATENATE("(",D6,")")) ->  | S6: =IFERROR( IF($W$1='(HIDE) MASTER-Chart'!$J$2, VLOOKUP(F6,'(HIDE) MASTER-Chart'!$B:$G,2,FALSE), VLOOKUP(F6,'(HIDE) MASTER-Chart'!$M:$R,2,FALSE)),"") ->  | T6: =IF(ISBLANK(F6),"",CONCATENATE("(",F6,")")) ->  | U6: =IFERROR( IF($W$1='(HIDE) MASTER-Chart'!$J$2, VLOOKUP(H6,'(HIDE) MASTER-Chart'!$B:$G,2,FALSE), VLOOKUP(H6,'(HIDE) MASTER-Chart'!$M:$R,2,FALSE)),"") ->  | V6: =IF(ISBLANK(H6),"",CONCATENATE("(",H6,")")) ->  | W6: =IFERROR( IF($W$1='(HIDE) MASTER-Chart'!$J$2, VLOOKUP(J6,'(HIDE) MASTER-Chart'!$B:$G,2,FALSE), VLOOKUP(J6,'(HIDE) MASTER-Chart'!$M:$R,2,FALSE)),"") ->  | X6: =IF(ISBLANK(J6),"",CONCATENATE("(",J6,")")) ->  | Y6: =IFERROR( IF($W$1='(HIDE) MASTER-Chart'!$J$2, VLOOKUP(L6,'(HIDE) MASTER-Chart'!$B:$G,2,FALSE), VLOOKUP(L6,'(HIDE) MASTER-Chart'!$M:$R,2,FALSE)),"") ->  | Z6: =IF(ISBLANK(L6),"",CONCATENATE("(",L6,")")) -> 
A7: 0 - 1 | B7: 5 | N7: 2 STEP | O7: =IFERROR( IF($W$1='(HIDE) MASTER-Chart'!$J$2, VLOOKUP(B7,'(HIDE) MASTER-Chart'!$B:$G,2,FALSE), VLOOKUP(B7,'(HIDE) MASTER-Chart'!$M:$R,2,FALSE)),"") -> 35383 | P7: =IF(ISBLANK(B7),"",CONCATENATE("(",B7,")")) -> (5) | Q7: =IFERROR( IF($W$1='(HIDE) MASTER-Chart'!$J$2, VLOOKUP(D7,'(HIDE) MASTER-Chart'!$B:$G,2,FALSE), VLOOKUP(D7,'(HIDE) MASTER-Chart'!$M:$R,2,FALSE)),"") ->  | S7: =IFERROR( IF($W$1='(HIDE) MASTER-Chart'!$J$2, VLOOKUP(F7,'(HIDE) MASTER-Chart'!$B:$G,2,FALSE), VLOOKUP(F7,'(HIDE) MASTER-Chart'!$M:$R,2,FALSE)),"") ->  | U7: =IFERROR( IF($W$1='(HIDE) MASTER-Chart'!$J$2, VLOOKUP(H7,'(HIDE) MASTER-Chart'!$B:$G,2,FALSE), VLOOKUP(H7,'(HIDE) MASTER-Chart'!$M:$R,2,FALSE)),"") ->  | W7: =IFERROR( IF($W$1='(HIDE) MASTER-Chart'!$J$2, VLOOKUP(J7,'(HIDE) MASTER-Chart'!$B:$G,2,FALSE), VLOOKUP(J7,'(HIDE) MASTER-Chart'!$M:$R,2,FALSE)),"") ->  | Y7: =IFERROR( IF($W$1='(HIDE) MASTER-Chart'!$J$2, VLOOKUP(L7,'(HIDE) MASTER-Chart'!$B:$G,2,FALSE), VLOOKUP(L7,'(HIDE) MASTER-Chart'!$M:$R,2,FALSE)),"") -> 
B9: 7 | D9: 7 | N9: TARGET | O9: =IFERROR( IF($W$1='(HIDE) MASTER-Chart'!$J$2, VLOOKUP(B9,'(HIDE) MASTER-Chart'!$B:$G,2,FALSE), VLOOKUP(B9,'(HIDE) MASTER-Chart'!$M:$R,2,FALSE)),"") -> 37402 | P9: =IF(ISBLANK(B9),"",CONCATENATE("(",B9,")")) -> (7) | Q9: =IFERROR( IF($W$1='(HIDE) MASTER-Chart'!$J$2, VLOOKUP(D9,'(HIDE) MASTER-Chart'!$B:$G,2,FALSE), VLOOKUP(D9,'(HIDE) MASTER-Chart'!$M:$R,2,FALSE)),"") -> 37402 | R9: =IF(ISBLANK(D9),"",CONCATENATE("(",D9,")")) -> (7) | S9: =IFERROR( IF($W$1='(HIDE) MASTER-Chart'!$J$2, VLOOKUP(F9,'(HIDE) MASTER-Chart'!$B:$G,2,FALSE), VLOOKUP(F9,'(HIDE) MASTER-Chart'!$M:$R,2,FALSE)),"") ->  | T9: =IF(ISBLANK(F9),"",CONCATENATE("(",F9,")")) ->  | U9: =IFERROR( IF($W$1='(HIDE) MASTER-Chart'!$J$2, VLOOKUP(H9,'(HIDE) MASTER-Chart'!$B:$G,2,FALSE), VLOOKUP(H9,'(HIDE) MASTER-Chart'!$M:$R,2,FALSE)),"") ->  | V9: =IF(ISBLANK(H9),"",CONCATENATE("(",H9,")")) ->  | W9: =IFERROR( IF($W$1='(HIDE) MASTER-Chart'!$J$2, VLOOKUP(J9,'(HIDE) MASTER-Chart'!$B:$G,2,FALSE), VLOOKUP(J9,'(HIDE) MASTER-Chart'!$M:$R,2,FALSE)),"") ->  | X9: =IF(ISBLANK(J9),"",CONCATENATE("(",J9,")")) ->  | Y9: =IFERROR( IF($W$1='(HIDE) MASTER-Chart'!$J$2, VLOOKUP(L9,'(HIDE) MASTER-Chart'!$B:$G,2,FALSE), VLOOKUP(L9,'(HIDE) MASTER-Chart'!$M:$R,2,FALSE)),"") ->  | Z9: =IF(ISBLANK(L9),"",CONCATENATE("(",L9,")")) -> 
A10: 2 - 3 | B10: 5 | D10: 5 | N10: 2 STEP | O10: =IFERROR( IF($W$1='(HIDE) MASTER-Chart'!$J$2, VLOOKUP(B10,'(HIDE) MASTER-Chart'!$B:$G,2,FALSE), VLOOKUP(B10,'(HIDE) MASTER-Chart'!$M:$R,2,FALSE)),"") -> 35383 | P10: =IF(ISBLANK(B10),"",CONCATENATE("(",B10,")")) -> (5) | Q10: =IFERROR( IF($W$1='(HIDE) MASTER-Chart'!$J$2, VLOOKUP(D10,'(HIDE) MASTER-Chart'!$B:$G,2,FALSE), VLOOKUP(D10,'(HIDE) MASTER-Chart'!$M:$R,2,FALSE)),"") -> 35383 | R10: (5) | S10: =IFERROR( IF($W$1='(HIDE) MASTER-Chart'!$J$2, VLOOKUP(F10,'(HIDE) MASTER-Chart'!$B:$G,2,FALSE), VLOOKUP(F10,'(HIDE) MASTER-Chart'!$M:$R,2,FALSE)),"") ->  | U10: =IFERROR( IF($W$1='(HIDE) MASTER-Chart'!$J$2, VLOOKUP(H10,'(HIDE) MASTER-Chart'!$B:$G,2,FALSE), VLOOKUP(H10,'(HIDE) MASTER-Chart'!$M:$R,2,FALSE)),"") ->  | W10: =IFERROR( IF($W$1='(HIDE) MASTER-Chart'!$J$2, VLOOKUP(J10,'(HIDE) MASTER-Chart'!$B:$G,2,FALSE), VLOOKUP(J10,'(HIDE) MASTER-Chart'!$M:$R,2,FALSE)),"") ->  | Y10: =IFERROR( IF($W$1='(HIDE) MASTER-Chart'!$J$2, VLOOKUP(L10,'(HIDE) MASTER-Chart'!$B:$G,2,FALSE), VLOOKUP(L10,'(HIDE) MASTER-Chart'!$M:$R,2,FALSE)),"") -> 
B12: 8 | D12: 8 | F12: 9 | N12: TARGET | O12: =IFERROR( IF($W$1='(HIDE) MASTER-Chart'!$J$2, VLOOKUP(B12,'(HIDE) MASTER-Chart'!$B:$G,2,FALSE), VLOOKUP(B12,'(HIDE) MASTER-Chart'!$M:$R,2,FALSE)),"") -> 38526 | P12: =IF(ISBLANK(B12),"",CONCATENATE("(",B12,")")) -> (8) | Q12: =IFERROR( IF($W$1='(HIDE) MASTER-Chart'!$J$2, VLOOKUP(D12,'(HIDE) MASTER-Chart'!$B:$G,2,FALSE), VLOOKUP(D12,'(HIDE) MASTER-Chart'!$M:$R,2,FALSE)),"") -> 38526 | R12: =IF(ISBLANK(D12),"",CONCATENATE("(",D12,")")) -> (8) | S12: =IFERROR( IF($W$1='(HIDE) MASTER-Chart'!$J$2, VLOOKUP(F12,'(HIDE) MASTER-Chart'!$B:$G,2,FALSE), VLOOKUP(F12,'(HIDE) MASTER-Chart'!$M:$R,2,FALSE)),"") -> 39797 | T12: =IF(ISBLANK(F12),"",CONCATENATE("(",F12,")")) -> (9) | U12: =IFERROR( IF($W$1='(HIDE) MASTER-Chart'!$J$2, VLOOKUP(H12,'(HIDE) MASTER-Chart'!$B:$G,2,FALSE), VLOOKUP(H12,'(HIDE) MASTER-Chart'!$M:$R,2,FALSE)),"") ->  | V12: =IF(ISBLANK(H12),"",CONCATENATE("(",H12,")")) ->  | W12: =IFERROR( IF($W$1='(HIDE) MASTER-Chart'!$J$2, VLOOKUP(J12,'(HIDE) MASTER-Chart'!$B:$G,2,FALSE), VLOOKUP(J12,'(HIDE) MASTER-Chart'!$M:$R,2,FALSE)),"") ->  | X12: =IF(ISBLANK(J12),"",CONCATENATE("(",J12,")")) ->  | Y12: =IFERROR( IF($W$1='(HIDE) MASTER-Chart'!$J$2, VLOOKUP(L12,'(HIDE) MASTER-Chart'!$B:$G,2,FALSE), VLOOKUP(L12,'(HIDE) MASTER-Chart'!$M:$R,2,FALSE)),"") ->  | Z12: =IF(ISBLANK(L12),"",CONCATENATE("(",L12,")")) -> 
A13: 4 - 5 | B13: 6 | D13: 6 | F13: 7 | N13: 2 STEP | O13: =IFERROR( IF($W$1='(HIDE) MASTER-Chart'!$J$2, VLOOKUP(B13,'(HIDE) MASTER-Chart'!$B:$G,2,FALSE), VLOOKUP(B13,'(HIDE) MASTER-Chart'!$M:$R,2,FALSE)),"") -> 36325 | P13: =IF(ISBLANK(B13),"",CONCATENATE("(",B13,")")) -> (6) | Q13: =IFERROR( IF($W$1='(HIDE) MASTER-Chart'!$J$2, VLOOKUP(D13,'(HIDE) MASTER-Chart'!$B:$G,2,FALSE), VLOOKUP(D13,'(HIDE) MASTER-Chart'!$M:$R,2,FALSE)),"") -> 36325 | R13: (6) | S13: =IFERROR( IF($W$1='(HIDE) MASTER-Chart'!$J$2, VLOOKUP(F13,'(HIDE) MASTER-Chart'!$B:$G,2,FALSE), VLOOKUP(F13,'(HIDE) MASTER-Chart'!$M:$R,2,FALSE)),"") -> 37402 | T13: (7) | U13: =IFERROR( IF($W$1='(HIDE) MASTER-Chart'!$J$2, VLOOKUP(H13,'(HIDE) MASTER-Chart'!$B:$G,2,FALSE), VLOOKUP(H13,'(HIDE) MASTER-Chart'!$M:$R,2,FALSE)),"") ->  | W13: =IFERROR( IF($W$1='(HIDE) MASTER-Chart'!$J$2, VLOOKUP(J13,'(HIDE) MASTER-Chart'!$B:$G,2,FALSE), VLOOKUP(J13,'(HIDE) MASTER-Chart'!$M:$R,2,FALSE)),"") ->  | Y13: =IFERROR( IF($W$1='(HIDE) MASTER-Chart'!$J$2, VLOOKUP(L13,'(HIDE) MASTER-Chart'!$B:$G,2,FALSE), VLOOKUP(L13,'(HIDE) MASTER-Chart'!$M:$R,2,FALSE)),"") -> 
B15: 9 | D15: 9 | F15: 10 | H15: 10 | N15: TARGET | O15: =IFERROR( IF($W$1='(HIDE) MASTER-Chart'!$J$2, VLOOKUP(B15,'(HIDE) MASTER-Chart'!$B:$G,2,FALSE), VLOOKUP(B15,'(HIDE) MASTER-Chart'!$M:$R,2,FALSE)),"") -> 39797 | P15: =IF(ISBLANK(B15),"",CONCATENATE("(",B15,")")) -> (9) | Q15: =IFERROR( IF($W$1='(HIDE) MASTER-Chart'!$J$2, VLOOKUP(D15,'(HIDE) MASTER-Chart'!$B:$G,2,FALSE), VLOOKUP(D15,'(HIDE) MASTER-Chart'!$M:$R,2,FALSE)),"") -> 39797 | R15: =IF(ISBLANK(D15),"",CONCATENATE("(",D15,")")) -> (9) | S15: =IFERROR( IF($W$1='(HIDE) MASTER-Chart'!$J$2, VLOOKUP(F15,'(HIDE) MASTER-Chart'!$B:$G,2,FALSE), VLOOKUP(F15,'(HIDE) MASTER-Chart'!$M:$R,2,FALSE)),"") -> 41072 | T15: =IF(ISBLANK(F15),"",CONCATENATE("(",F15,")")) -> (10) | U15: =IFERROR( IF($W$1='(HIDE) MASTER-Chart'!$J$2, VLOOKUP(H15,'(HIDE) MASTER-Chart'!$B:$G,2,FALSE), VLOOKUP(H15,'(HIDE) MASTER-Chart'!$M:$R,2,FALSE)),"") -> 41072 | V15: =IF(ISBLANK(H15),"",CONCATENATE("(",H15,")")) -> (10) | W15: =IFERROR( IF($W$1='(HIDE) MASTER-Chart'!$J$2, VLOOKUP(J15,'(HIDE) MASTER-Chart'!$B:$G,2,FALSE), VLOOKUP(J15,'(HIDE) MASTER-Chart'!$M:$R,2,FALSE)),"") ->  | X15: =IF(ISBLANK(J15),"",CONCATENATE("(",J15,")")) ->  | Y15: =IFERROR( IF($W$1='(HIDE) MASTER-Chart'!$J$2, VLOOKUP(L15,'(HIDE) MASTER-Chart'!$B:$G,2,FALSE), VLOOKUP(L15,'(HIDE) MASTER-Chart'!$M:$R,2,FALSE)),"") ->  | Z15: =IF(ISBLANK(L15),"",CONCATENATE("(",L15,")")) -> 
A16: 6 - 7 | B16: 7 | D16: 7 | F16: 8 | H16: 8 | N16: 2 STEP | O16: =IFERROR( IF($W$1='(HIDE) MASTER-Chart'!$J$2, VLOOKUP(B16,'(HIDE) MASTER-Chart'!$B:$G,2,FALSE), VLOOKUP(B16,'(HIDE) MASTER-Chart'!$M:$R,2,FALSE)),"") -> 37402 | P16: =IF(ISBLANK(B16),"",CONCATENATE("(",B16,")")) -> (7) | Q16: =IFERROR( IF($W$1='(HIDE) MASTER-Chart'!$J$2, VLOOKUP(D16,'(HIDE) MASTER-Chart'!$B:$G,2,FALSE), VLOOKUP(D16,'(HIDE) MASTER-Chart'!$M:$R,2,FALSE)),"") -> 37402 | R16: (7) | S16: =IFERROR( IF($W$1='(HIDE) MASTER-Chart'!$J$2, VLOOKUP(F16,'(HIDE) MASTER-Chart'!$B:$G,2,FALSE), VLOOKUP(F16,'(HIDE) MASTER-Chart'!$M:$R,2,FALSE)),"") -> 38526 | T16: (8) | U16: =IFERROR( IF($W$1='(HIDE) MASTER-Chart'!$J$2, VLOOKUP(H16,'(HIDE) MASTER-Chart'!$B:$G,2,FALSE), VLOOKUP(H16,'(HIDE) MASTER-Chart'!$M:$R,2,FALSE)),"") -> 38526 | V16: (8) | W16: =IFERROR( IF($W$1='(HIDE) MASTER-Chart'!$J$2, VLOOKUP(J16,'(HIDE) MASTER-Chart'!$B:$G,2,FALSE), VLOOKUP(J16,'(HIDE) MASTER-Chart'!$M:$R,2,FALSE)),"") ->  | Y16: =IFERROR( IF($W$1='(HIDE) MASTER-Chart'!$J$2, VLOOKUP(L16,'(HIDE) MASTER-Chart'!$B:$G,2,FALSE), VLOOKUP(L16,'(HIDE) MASTER-Chart'!$M:$R,2,FALSE)),"") -> 
B18: 10 | D18: 10 | F18: 11 | H18: 11 | J18: 12 | N18: TARGET | O18: =IFERROR( IF($W$1='(HIDE) MASTER-Chart'!$J$2, VLOOKUP(B18,'(HIDE) MASTER-Chart'!$B:$G,2,FALSE), VLOOKUP(B18,'(HIDE) MASTER-Chart'!$M:$R,2,FALSE)),"") -> 41072 | P18: =IF(ISBLANK(B18),"",CONCATENATE("(",B18,")")) -> (10) | Q18: =IFERROR( IF($W$1='(HIDE) MASTER-Chart'!$J$2, VLOOKUP(D18,'(HIDE) MASTER-Chart'!$B:$G,2,FALSE), VLOOKUP(D18,'(HIDE) MASTER-Chart'!$M:$R,2,FALSE)),"") -> 41072 | R18: =IF(ISBLANK(D18),"",CONCATENATE("(",D18,")")) -> (10) | S18: =IFERROR( IF($W$1='(HIDE) MASTER-Chart'!$J$2, VLOOKUP(F18,'(HIDE) MASTER-Chart'!$B:$G,2,FALSE), VLOOKUP(F18,'(HIDE) MASTER-Chart'!$M:$R,2,FALSE)),"") -> 42349 | T18: =IF(ISBLANK(F18),"",CONCATENATE("(",F18,")")) -> (11) | U18: =IFERROR( IF($W$1='(HIDE) MASTER-Chart'!$J$2, VLOOKUP(H18,'(HIDE) MASTER-Chart'!$B:$G,2,FALSE), VLOOKUP(H18,'(HIDE) MASTER-Chart'!$M:$R,2,FALSE)),"") -> 42349 | V18: =IF(ISBLANK(H18),"",CONCATENATE("(",H18,")")) -> (11) | W18: =IFERROR( IF($W$1='(HIDE) MASTER-Chart'!$J$2, VLOOKUP(J18,'(HIDE) MASTER-Chart'!$B:$G,2,FALSE), VLOOKUP(J18,'(HIDE) MASTER-Chart'!$M:$R,2,FALSE)),"") -> 43627 | X18: =IF(ISBLANK(J18),"",CONCATENATE("(",J18,")")) -> (12) | Y18: =IFERROR( IF($W$1='(HIDE) MASTER-Chart'!$J$2, VLOOKUP(L18,'(HIDE) MASTER-Chart'!$B:$G,2,FALSE), VLOOKUP(L18,'(HIDE) MASTER-Chart'!$M:$R,2,FALSE)),"") ->  | Z18: =IF(ISBLANK(L18),"",CONCATENATE("(",L18,")")) -> 
A19: 8 - 9 | B19: 8 | D19: 8 | F19: 9 | H19: 9 | J19: 10 | N19: 2 STEP | O19: =IFERROR( IF($W$1='(HIDE) MASTER-Chart'!$J$2, VLOOKUP(B19,'(HIDE) MASTER-Chart'!$B:$G,2,FALSE), VLOOKUP(B19,'(HIDE) MASTER-Chart'!$M:$R,2,FALSE)),"") -> 38526 | P19: =IF(ISBLANK(B19),"",CONCATENATE("(",B19,")")) -> (8) | Q19: =IFERROR( IF($W$1='(HIDE) MASTER-Chart'!$J$2, VLOOKUP(D19,'(HIDE) MASTER-Chart'!$B:$G,2,FALSE), VLOOKUP(D19,'(HIDE) MASTER-Chart'!$M:$R,2,FALSE)),"") -> 38526 | R19: (8) | S19: =IFERROR( IF($W$1='(HIDE) MASTER-Chart'!$J$2, VLOOKUP(F19,'(HIDE) MASTER-Chart'!$B:$G,2,FALSE), VLOOKUP(F19,'(HIDE) MASTER-Chart'!$M:$R,2,FALSE)),"") -> 39797 | T19: (9) | U19: =IFERROR( IF($W$1='(HIDE) MASTER-Chart'!$J$2, VLOOKUP(H19,'(HIDE) MASTER-Chart'!$B:$G,2,FALSE), VLOOKUP(H19,'(HIDE) MASTER-Chart'!$M:$R,2,FALSE)),"") -> 39797 | V19: (9) | W19: =IFERROR( IF($W$1='(HIDE) MASTER-Chart'!$J$2, VLOOKUP(J19,'(HIDE) MASTER-Chart'!$B:$G,2,FALSE), VLOOKUP(J19,'(HIDE) MASTER-Chart'!$M:$R,2,FALSE)),"") -> 41072 | X19: (10) | Y19: =IFERROR( IF($W$1='(HIDE) MASTER-Chart'!$J$2, VLOOKUP(L19,'(HIDE) MASTER-Chart'!$B:$G,2,FALSE), VLOOKUP(L19,'(HIDE) MASTER-Chart'!$M:$R,2,FALSE)),"") -> 
B21: 11 | D21: 11 | F21: 12 | H21: 12 | J21: 13 | L21: 13 | N21: TARGET | O21: =IFERROR( IF($W$1='(HIDE) MASTER-Chart'!$J$2, VLOOKUP(B21,'(HIDE) MASTER-Chart'!$B:$G,2,FALSE), VLOOKUP(B21,'(HIDE) MASTER-Chart'!$M:$R,2,FALSE)),"") -> 42349 | P21: =IF(ISBLANK(B21),"",CONCATENATE("(",B21,")")) -> (11) | Q21: =IFERROR( IF($W$1='(HIDE) MASTER-Chart'!$J$2, VLOOKUP(D21,'(HIDE) MASTER-Chart'!$B:$G,2,FALSE), VLOOKUP(D21,'(HIDE) MASTER-Chart'!$M:$R,2,FALSE)),"") -> 42349 | R21: =IF(ISBLANK(D21),"",CONCATENATE("(",D21,")")) -> (11) | S21: =IFERROR( IF($W$1='(HIDE) MASTER-Chart'!$J$2, VLOOKUP(F21,'(HIDE) MASTER-Chart'!$B:$G,2,FALSE), VLOOKUP(F21,'(HIDE) MASTER-Chart'!$M:$R,2,FALSE)),"") -> 43627 | T21: =IF(ISBLANK(F21),"",CONCATENATE("(",F21,")")) -> (12) | U21: =IFERROR( IF($W$1='(HIDE) MASTER-Chart'!$J$2, VLOOKUP(H21,'(HIDE) MASTER-Chart'!$B:$G,2,FALSE), VLOOKUP(H21,'(HIDE) MASTER-Chart'!$M:$R,2,FALSE)),"") -> 43627 | V21: =IF(ISBLANK(H21),"",CONCATENATE("(",H21,")")) -> (12) | W21: =IFERROR( IF($W$1='(HIDE) MASTER-Chart'!$J$2, VLOOKUP(J21,'(HIDE) MASTER-Chart'!$B:$G,2,FALSE), VLOOKUP(J21,'(HIDE) MASTER-Chart'!$M:$R,2,FALSE)),"") -> 44896 | X21: =IF(ISBLANK(J21),"",CONCATENATE("(",J21,")")) -> (13) | Y21: =IFERROR( IF($W$1='(HIDE) MASTER-Chart'!$J$2, VLOOKUP(L21,'(HIDE) MASTER-Chart'!$B:$G,2,FALSE), VLOOKUP(L21,'(HIDE) MASTER-Chart'!$M:$R,2,FALSE)),"") -> 44896 | Z21: =IF(ISBLANK(L21),"",CONCATENATE("(",L21,")")) -> (13)
A22: 10 - 11 | B22: 9 | D22: 9 | F22: 10 | H22: 10 | J22: 11 | L22: 11 | N22: 2 STEP | O22: =IFERROR( IF($W$1='(HIDE) MASTER-Chart'!$J$2, VLOOKUP(B22,'(HIDE) MASTER-Chart'!$B:$G,2,FALSE), VLOOKUP(B22,'(HIDE) MASTER-Chart'!$M:$R,2,FALSE)),"") -> 39797 | P22: =IF(ISBLANK(B22),"",CONCATENATE("(",B22,")")) -> (9) | Q22: =IFERROR( IF($W$1='(HIDE) MASTER-Chart'!$J$2, VLOOKUP(D22,'(HIDE) MASTER-Chart'!$B:$G,2,FALSE), VLOOKUP(D22,'(HIDE) MASTER-Chart'!$M:$R,2,FALSE)),"") -> 39797 | R22: (9) | S22: =IFERROR( IF($W$1='(HIDE) MASTER-Chart'!$J$2, VLOOKUP(F22,'(HIDE) MASTER-Chart'!$B:$G,2,FALSE), VLOOKUP(F22,'(HIDE) MASTER-Chart'!$M:$R,2,FALSE)),"") -> 41072 | T22: (10) | U22: =IFERROR( IF($W$1='(HIDE) MASTER-Chart'!$J$2, VLOOKUP(H22,'(HIDE) MASTER-Chart'!$B:$G,2,FALSE), VLOOKUP(H22,'(HIDE) MASTER-Chart'!$M:$R,2,FALSE)),"") -> 41072 | V22: (10) | W22: =IFERROR( IF($W$1='(HIDE) MASTER-Chart'!$J$2, VLOOKUP(J22,'(HIDE) MASTER-Chart'!$B:$G,2,FALSE), VLOOKUP(J22,'(HIDE) MASTER-Chart'!$M:$R,2,FALSE)),"") -> 42349 | X22: (11) | Y22: =IFERROR( IF($W$1='(HIDE) MASTER-Chart'!$J$2, VLOOKUP(L22,'(HIDE) MASTER-Chart'!$B:$G,2,FALSE), VLOOKUP(L22,'(HIDE) MASTER-Chart'!$M:$R,2,FALSE)),"") -> 42349 | Z22: (11)
B24: 11 | D24: 12 | F24: 13 | H24: 13 | J24: 14 | L24: 14 | N24: TARGET | O24: =IFERROR( IF($W$1='(HIDE) MASTER-Chart'!$J$2, VLOOKUP(B24,'(HIDE) MASTER-Chart'!$B:$G,2,FALSE), VLOOKUP(B24,'(HIDE) MASTER-Chart'!$M:$R,2,FALSE)),"") -> 42349 | P24: =IF(ISBLANK(B24),"",CONCATENATE("(",B24,")")) -> (11) | Q24: =IFERROR( IF($W$1='(HIDE) MASTER-Chart'!$J$2, VLOOKUP(D24,'(HIDE) MASTER-Chart'!$B:$G,2,FALSE), VLOOKUP(D24,'(HIDE) MASTER-Chart'!$M:$R,2,FALSE)),"") -> 43627 | R24: =IF(ISBLANK(D24),"",CONCATENATE("(",D24,")")) -> (12) | S24: =IFERROR( IF($W$1='(HIDE) MASTER-Chart'!$J$2, VLOOKUP(F24,'(HIDE) MASTER-Chart'!$B:$G,2,FALSE), VLOOKUP(F24,'(HIDE) MASTER-Chart'!$M:$R,2,FALSE)),"") -> 44896 | T24: =IF(ISBLANK(F24),"",CONCATENATE("(",F24,")")) -> (13) | U24: =IFERROR( IF($W$1='(HIDE) MASTER-Chart'!$J$2, VLOOKUP(H24,'(HIDE) MASTER-Chart'!$B:$G,2,FALSE), VLOOKUP(H24,'(HIDE) MASTER-Chart'!$M:$R,2,FALSE)),"") -> 44896 | V24: =IF(ISBLANK(H24),"",CONCATENATE("(",H24,")")) -> (13) | W24: =IFERROR( IF($W$1='(HIDE) MASTER-Chart'!$J$2, VLOOKUP(J24,'(HIDE) MASTER-Chart'!$B:$G,2,FALSE), VLOOKUP(J24,'(HIDE) MASTER-Chart'!$M:$R,2,FALSE)),"") -> 46197 | X24: =IF(ISBLANK(J24),"",CONCATENATE("(",J24,")")) -> (14) | Y24: =IFERROR( IF($W$1='(HIDE) MASTER-Chart'!$J$2, VLOOKUP(L24,'(HIDE) MASTER-Chart'!$B:$G,2,FALSE), VLOOKUP(L24,'(HIDE) MASTER-Chart'!$M:$R,2,FALSE)),"") -> 46197 | Z24: =IF(ISBLANK(L24),"",CONCATENATE("(",L24,")")) -> (14)
A25: 12 - 13 | B25: 9 | D25: 10 | F25: 11 | H25: 11 | J25: 12 | L25: 12 | N25: 2 STEP | O25: =IFERROR( IF($W$1='(HIDE) MASTER-Chart'!$J$2, VLOOKUP(B25,'(HIDE) MASTER-Chart'!$B:$G,2,FALSE), VLOOKUP(B25,'(HIDE) MASTER-Chart'!$M:$R,2,FALSE)),"") -> 39797 | P25: =IF(ISBLANK(B25),"",CONCATENATE("(",B25,")")) -> (9) | Q25: =IFERROR( IF($W$1='(HIDE) MASTER-Chart'!$J$2, VLOOKUP(D25,'(HIDE) MASTER-Chart'!$B:$G,2,FALSE), VLOOKUP(D25,'(HIDE) MASTER-Chart'!$M:$R,2,FALSE)),"") -> 41072 | R25: (10) | S25: =IFERROR( IF($W$1='(HIDE) MASTER-Chart'!$J$2, VLOOKUP(F25,'(HIDE) MASTER-Chart'!$B:$G,2,FALSE), VLOOKUP(F25,'(HIDE) MASTER-Chart'!$M:$R,2,FALSE)),"") -> 42349 | T25: (11) | U25: =IFERROR( IF($W$1='(HIDE) MASTER-Chart'!$J$2, VLOOKUP(H25,'(HIDE) MASTER-Chart'!$B:$G,2,FALSE), VLOOKUP(H25,'(HIDE) MASTER-Chart'!$M:$R,2,FALSE)),"") -> 42349 | V25: (11) | W25: =IFERROR( IF($W$1='(HIDE) MASTER-Chart'!$J$2, VLOOKUP(J25,'(HIDE) MASTER-Chart'!$B:$G,2,FALSE), VLOOKUP(J25,'(HIDE) MASTER-Chart'!$M:$R,2,FALSE)),"") -> 43627 | X25: (12) | Y25: =IFERROR( IF($W$1='(HIDE) MASTER-Chart'!$J$2, VLOOKUP(L25,'(HIDE) MASTER-Chart'!$B:$G,2,FALSE), VLOOKUP(L25,'(HIDE) MASTER-Chart'!$M:$R,2,FALSE)),"") -> 43627 | Z25: (12)
B27: 12 | D27: 13 | F27: 13 | H27: 14 | J27: 14 | L27: 15 | N27: TARGET | O27: =IFERROR( IF($W$1='(HIDE) MASTER-Chart'!$J$2, VLOOKUP(B27,'(HIDE) MASTER-Chart'!$B:$G,2,FALSE), VLOOKUP(B27,'(HIDE) MASTER-Chart'!$M:$R,2,FALSE)),"") -> 43627 | P27: =IF(ISBLANK(B27),"",CONCATENATE("(",B27,")")) -> (12) | Q27: =IFERROR( IF($W$1='(HIDE) MASTER-Chart'!$J$2, VLOOKUP(D27,'(HIDE) MASTER-Chart'!$B:$G,2,FALSE), VLOOKUP(D27,'(HIDE) MASTER-Chart'!$M:$R,2,FALSE)),"") -> 44896 | R27: =IF(ISBLANK(D27),"",CONCATENATE("(",D27,")")) -> (13) | S27: =IFERROR( IF($W$1='(HIDE) MASTER-Chart'!$J$2, VLOOKUP(F27,'(HIDE) MASTER-Chart'!$B:$G,2,FALSE), VLOOKUP(F27,'(HIDE) MASTER-Chart'!$M:$R,2,FALSE)),"") -> 44896 | T27: =IF(ISBLANK(F27),"",CONCATENATE("(",F27,")")) -> (13) | U27: =IFERROR( IF($W$1='(HIDE) MASTER-Chart'!$J$2, VLOOKUP(H27,'(HIDE) MASTER-Chart'!$B:$G,2,FALSE), VLOOKUP(H27,'(HIDE) MASTER-Chart'!$M:$R,2,FALSE)),"") -> 46197 | V27: =IF(ISBLANK(H27),"",CONCATENATE("(",H27,")")) -> (14) | W27: =IFERROR( IF($W$1='(HIDE) MASTER-Chart'!$J$2, VLOOKUP(J27,'(HIDE) MASTER-Chart'!$B:$G,2,FALSE), VLOOKUP(J27,'(HIDE) MASTER-Chart'!$M:$R,2,FALSE)),"") -> 46197 | X27: =IF(ISBLANK(J27),"",CONCATENATE("(",J27,")")) -> (14) | Y27: =IFERROR( IF($W$1='(HIDE) MASTER-Chart'!$J$2, VLOOKUP(L27,'(HIDE) MASTER-Chart'!$B:$G,2,FALSE), VLOOKUP(L27,'(HIDE) MASTER-Chart'!$M:$R,2,FALSE)),"") -> 47535 | Z27: =IF(ISBLANK(L27),"",CONCATENATE("(",L27,")")) -> (15)
A28: 14 - 15 | B28: 10 | D28: 11 | F28: 11 | H28: 12 | J28: 12 | L28: 13 | N28: 2 STEP | O28: =IFERROR( IF($W$1='(HIDE) MASTER-Chart'!$J$2, VLOOKUP(B28,'(HIDE) MASTER-Chart'!$B:$G,2,FALSE), VLOOKUP(B28,'(HIDE) MASTER-Chart'!$M:$R,2,FALSE)),"") -> 41072 | P28: =IF(ISBLANK(B28),"",CONCATENATE("(",B28,")")) -> (10) | Q28: =IFERROR( IF($W$1='(HIDE) MASTER-Chart'!$J$2, VLOOKUP(D28,'(HIDE) MASTER-Chart'!$B:$G,2,FALSE), VLOOKUP(D28,'(HIDE) MASTER-Chart'!$M:$R,2,FALSE)),"") -> 42349 | R28: (11) | S28: =IFERROR( IF($W$1='(HIDE) MASTER-Chart'!$J$2, VLOOKUP(F28,'(HIDE) MASTER-Chart'!$B:$G,2,FALSE), VLOOKUP(F28,'(HIDE) MASTER-Chart'!$M:$R,2,FALSE)),"") -> 42349 | T28: (11) | U28: =IFERROR( IF($W$1='(HIDE) MASTER-Chart'!$J$2, VLOOKUP(H28,'(HIDE) MASTER-Chart'!$B:$G,2,FALSE), VLOOKUP(H28,'(HIDE) MASTER-Chart'!$M:$R,2,FALSE)),"") -> 43627 | V28: (12) | W28: =IFERROR( IF($W$1='(HIDE) MASTER-Chart'!$J$2, VLOOKUP(J28,'(HIDE) MASTER-Chart'!$B:$G,2,FALSE), VLOOKUP(J28,'(HIDE) MASTER-Chart'!$M:$R,2,FALSE)),"") -> 43627 | X28: (12) | Y28: =IFERROR( IF($W$1='(HIDE) MASTER-Chart'!$J$2, VLOOKUP(L28,'(HIDE) MASTER-Chart'!$B:$G,2,FALSE), VLOOKUP(L28,'(HIDE) MASTER-Chart'!$M:$R,2,FALSE)),"") -> 44896 | Z28: (13)
B30: 13 | D30: 14 | F30: 14 | H30: 15 | J30: 15 | L30: 16 | N30: TARGET | O30: =IFERROR( IF($W$1='(HIDE) MASTER-Chart'!$J$2, VLOOKUP(B30,'(HIDE) MASTER-Chart'!$B:$G,2,FALSE), VLOOKUP(B30,'(HIDE) MASTER-Chart'!$M:$R,2,FALSE)),"") -> 44896 | P30: =IF(ISBLANK(B30),"",CONCATENATE("(",B30,")")) -> (13) | Q30: =IFERROR( IF($W$1='(HIDE) MASTER-Chart'!$J$2, VLOOKUP(D30,'(HIDE) MASTER-Chart'!$B:$G,2,FALSE), VLOOKUP(D30,'(HIDE) MASTER-Chart'!$M:$R,2,FALSE)),"") -> 46197 | R30: =IF(ISBLANK(D30),"",CONCATENATE("(",D30,")")) -> (14) | S30: =IFERROR( IF($W$1='(HIDE) MASTER-Chart'!$J$2, VLOOKUP(F30,'(HIDE) MASTER-Chart'!$B:$G,2,FALSE), VLOOKUP(F30,'(HIDE) MASTER-Chart'!$M:$R,2,FALSE)),"") -> 46197 | T30: =IF(ISBLANK(F30),"",CONCATENATE("(",F30,")")) -> (14) | U30: =IFERROR( IF($W$1='(HIDE) MASTER-Chart'!$J$2, VLOOKUP(H30,'(HIDE) MASTER-Chart'!$B:$G,2,FALSE), VLOOKUP(H30,'(HIDE) MASTER-Chart'!$M:$R,2,FALSE)),"") -> 47535 | V30: =IF(ISBLANK(H30),"",CONCATENATE("(",H30,")")) -> (15) | W30: =IFERROR( IF($W$1='(HIDE) MASTER-Chart'!$J$2, VLOOKUP(J30,'(HIDE) MASTER-Chart'!$B:$G,2,FALSE), VLOOKUP(J30,'(HIDE) MASTER-Chart'!$M:$R,2,FALSE)),"") -> 47535 | X30: =IF(ISBLANK(J30),"",CONCATENATE("(",J30,")")) -> (15) | Y30: =IFERROR( IF($W$1='(HIDE) MASTER-Chart'!$J$2, VLOOKUP(L30,'(HIDE) MASTER-Chart'!$B:$G,2,FALSE), VLOOKUP(L30,'(HIDE) MASTER-Chart'!$M:$R,2,FALSE)),"") -> 48915 | Z30: =IF(ISBLANK(L30),"",CONCATENATE("(",L30,")")) -> (16)
A31: 16 - 17 | B31: 11 | D31: 12 | F31: 12 | H31: 13 | J31: 13 | L31: 14 | N31: 2 STEP | O31: =IFERROR( IF($W$1='(HIDE) MASTER-Chart'!$J$2, VLOOKUP(B31,'(HIDE) MASTER-Chart'!$B:$G,2,FALSE), VLOOKUP(B31,'(HIDE) MASTER-Chart'!$M:$R,2,FALSE)),"") -> 42349 | P31: =IF(ISBLANK(B31),"",CONCATENATE("(",B31,")")) -> (11) | Q31: =IFERROR( IF($W$1='(HIDE) MASTER-Chart'!$J$2, VLOOKUP(D31,'(HIDE) MASTER-Chart'!$B:$G,2,FALSE), VLOOKUP(D31,'(HIDE) MASTER-Chart'!$M:$R,2,FALSE)),"") -> 43627 | R31: (12) | S31: =IFERROR( IF($W$1='(HIDE) MASTER-Chart'!$J$2, VLOOKUP(F31,'(HIDE) MASTER-Chart'!$B:$G,2,FALSE), VLOOKUP(F31,'(HIDE) MASTER-Chart'!$M:$R,2,FALSE)),"") -> 43627 | T31: (12) | U31: =IFERROR( IF($W$1='(HIDE) MASTER-Chart'!$J$2, VLOOKUP(H31,'(HIDE) MASTER-Chart'!$B:$G,2,FALSE), VLOOKUP(H31,'(HIDE) MASTER-Chart'!$M:$R,2,FALSE)),"") -> 44896 | V31: (13) | W31: =IFERROR( IF($W$1='(HIDE) MASTER-Chart'!$J$2, VLOOKUP(J31,'(HIDE) MASTER-Chart'!$B:$G,2,FALSE), VLOOKUP(J31,'(HIDE) MASTER-Chart'!$M:$R,2,FALSE)),"") -> 44896 | X31: (13) | Y31: =IFERROR( IF($W$1='(HIDE) MASTER-Chart'!$J$2, VLOOKUP(L31,'(HIDE) MASTER-Chart'!$B:$G,2,FALSE), VLOOKUP(L31,'(HIDE) MASTER-Chart'!$M:$R,2,FALSE)),"") -> 46197 | Z31: (14)
B33: 14 | D33: 14 | F33: 15 | H33: 15 | J33: 16 | L33: 16 | N33: TARGET | O33: =IFERROR( IF($W$1='(HIDE) MASTER-Chart'!$J$2, VLOOKUP(B33,'(HIDE) MASTER-Chart'!$B:$G,2,FALSE), VLOOKUP(B33,'(HIDE) MASTER-Chart'!$M:$R,2,FALSE)),"") -> 46197 | P33: =IF(ISBLANK(B33),"",CONCATENATE("(",B33,")")) -> (14) | Q33: =IFERROR( IF($W$1='(HIDE) MASTER-Chart'!$J$2, VLOOKUP(D33,'(HIDE) MASTER-Chart'!$B:$G,2,FALSE), VLOOKUP(D33,'(HIDE) MASTER-Chart'!$M:$R,2,FALSE)),"") -> 46197 | R33: =IF(ISBLANK(D33),"",CONCATENATE("(",D33,")")) -> (14) | S33: =IFERROR( IF($W$1='(HIDE) MASTER-Chart'!$J$2, VLOOKUP(F33,'(HIDE) MASTER-Chart'!$B:$G,2,FALSE), VLOOKUP(F33,'(HIDE) MASTER-Chart'!$M:$R,2,FALSE)),"") -> 47535 | T33: =IF(ISBLANK(F33),"",CONCATENATE("(",F33,")")) -> (15) | U33: =IFERROR( IF($W$1='(HIDE) MASTER-Chart'!$J$2, VLOOKUP(H33,'(HIDE) MASTER-Chart'!$B:$G,2,FALSE), VLOOKUP(H33,'(HIDE) MASTER-Chart'!$M:$R,2,FALSE)),"") -> 47535 | V33: =IF(ISBLANK(H33),"",CONCATENATE("(",H33,")")) -> (15) | W33: =IFERROR( IF($W$1='(HIDE) MASTER-Chart'!$J$2, VLOOKUP(J33,'(HIDE) MASTER-Chart'!$B:$G,2,FALSE), VLOOKUP(J33,'(HIDE) MASTER-Chart'!$M:$R,2,FALSE)),"") -> 48915 | X33: =IF(ISBLANK(J33),"",CONCATENATE("(",J33,")")) -> (16) | Y33: =IFERROR( IF($W$1='(HIDE) MASTER-Chart'!$J$2, VLOOKUP(L33,'(HIDE) MASTER-Chart'!$B:$G,2,FALSE), VLOOKUP(L33,'(HIDE) MASTER-Chart'!$M:$R,2,FALSE)),"") -> 48915 | Z33: =IF(ISBLANK(L33),"",CONCATENATE("(",L33,")")) -> (16)
A34: 18 - 19 | B34: 12 | D34: 12 | F34: 13 | H34: 13 | J34: 14 | L34: 14 | N34: 2 STEP | O34: =IFERROR( IF($W$1='(HIDE) MASTER-Chart'!$J$2, VLOOKUP(B34,'(HIDE) MASTER-Chart'!$B:$G,2,FALSE), VLOOKUP(B34,'(HIDE) MASTER-Chart'!$M:$R,2,FALSE)),"") -> 43627 | P34: =IF(ISBLANK(B34),"",CONCATENATE("(",B34,")")) -> (12) | Q34: =IFERROR( IF($W$1='(HIDE) MASTER-Chart'!$J$2, VLOOKUP(D34,'(HIDE) MASTER-Chart'!$B:$G,2,FALSE), VLOOKUP(D34,'(HIDE) MASTER-Chart'!$M:$R,2,FALSE)),"") -> 43627 | R34: (12) | S34: =IFERROR( IF($W$1='(HIDE) MASTER-Chart'!$J$2, VLOOKUP(F34,'(HIDE) MASTER-Chart'!$B:$G,2,FALSE), VLOOKUP(F34,'(HIDE) MASTER-Chart'!$M:$R,2,FALSE)),"") -> 44896 | T34: (13) | U34: =IFERROR( IF($W$1='(HIDE) MASTER-Chart'!$J$2, VLOOKUP(H34,'(HIDE) MASTER-Chart'!$B:$G,2,FALSE), VLOOKUP(H34,'(HIDE) MASTER-Chart'!$M:$R,2,FALSE)),"") -> 44896 | V34: (13) | W34: =IFERROR( IF($W$1='(HIDE) MASTER-Chart'!$J$2, VLOOKUP(J34,'(HIDE) MASTER-Chart'!$B:$G,2,FALSE), VLOOKUP(J34,'(HIDE) MASTER-Chart'!$M:$R,2,FALSE)),"") -> 46197 | X34: (14) | Y34: =IFERROR( IF($W$1='(HIDE) MASTER-Chart'!$J$2, VLOOKUP(L34,'(HIDE) MASTER-Chart'!$B:$G,2,FALSE), VLOOKUP(L34,'(HIDE) MASTER-Chart'!$M:$R,2,FALSE)),"") -> 46197 | Z34: (14)
B36: 15 | D36: 15 | F36: 16 | H36: 16 | J36: 16 | L36: 16 | N36: TARGET | O36: =IFERROR( IF($W$1='(HIDE) MASTER-Chart'!$J$2, VLOOKUP(B36,'(HIDE) MASTER-Chart'!$B:$G,2,FALSE), VLOOKUP(B36,'(HIDE) MASTER-Chart'!$M:$R,2,FALSE)),"") -> 47535 | P36: =IF(ISBLANK(B36),"",CONCATENATE("(",B36,")")) -> (15) | Q36: =IFERROR( IF($W$1='(HIDE) MASTER-Chart'!$J$2, VLOOKUP(D36,'(HIDE) MASTER-Chart'!$B:$G,2,FALSE), VLOOKUP(D36,'(HIDE) MASTER-Chart'!$M:$R,2,FALSE)),"") -> 47535 | R36: =IF(ISBLANK(D36),"",CONCATENATE("(",D36,")")) -> (15) | S36: =IFERROR( IF($W$1='(HIDE) MASTER-Chart'!$J$2, VLOOKUP(F36,'(HIDE) MASTER-Chart'!$B:$G,2,FALSE), VLOOKUP(F36,'(HIDE) MASTER-Chart'!$M:$R,2,FALSE)),"") -> 48915 | T36: =IF(ISBLANK(F36),"",CONCATENATE("(",F36,")")) -> (16) | U36: =IFERROR( IF($W$1='(HIDE) MASTER-Chart'!$J$2, VLOOKUP(H36,'(HIDE) MASTER-Chart'!$B:$G,2,FALSE), VLOOKUP(H36,'(HIDE) MASTER-Chart'!$M:$R,2,FALSE)),"") -> 48915 | V36: =IF(ISBLANK(H36),"",CONCATENATE("(",H36,")")) -> (16) | W36: =IFERROR( IF($W$1='(HIDE) MASTER-Chart'!$J$2, VLOOKUP(J36,'(HIDE) MASTER-Chart'!$B:$G,2,FALSE), VLOOKUP(J36,'(HIDE) MASTER-Chart'!$M:$R,2,FALSE)),"") -> 48915 | X36: =IF(ISBLANK(J36),"",CONCATENATE("(",J36,")")) -> (16) | Y36: =IFERROR( IF($W$1='(HIDE) MASTER-Chart'!$J$2, VLOOKUP(L36,'(HIDE) MASTER-Chart'!$B:$G,2,FALSE), VLOOKUP(L36,'(HIDE) MASTER-Chart'!$M:$R,2,FALSE)),"") -> 48915 | Z36: =IF(ISBLANK(L36),"",CONCATENATE("(",L36,")")) -> (16)
A37: 20 - 21 | B37: 13 | D37: 13 | F37: 14 | H37: 14 | J37: 14 | L37: 14 | N37: 2 STEP | O37: =IFERROR( IF($W$1='(HIDE) MASTER-Chart'!$J$2, VLOOKUP(B37,'(HIDE) MASTER-Chart'!$B:$G,2,FALSE), VLOOKUP(B37,'(HIDE) MASTER-Chart'!$M:$R,2,FALSE)),"") -> 44896 | P37: =IF(ISBLANK(B37),"",CONCATENATE("(",B37,")")) -> (13) | Q37: =IFERROR( IF($W$1='(HIDE) MASTER-Chart'!$J$2, VLOOKUP(D37,'(HIDE) MASTER-Chart'!$B:$G,2,FALSE), VLOOKUP(D37,'(HIDE) MASTER-Chart'!$M:$R,2,FALSE)),"") -> 44896 | R37: (13) | S37: =IFERROR( IF($W$1='(HIDE) MASTER-Chart'!$J$2, VLOOKUP(F37,'(HIDE) MASTER-Chart'!$B:$G,2,FALSE), VLOOKUP(F37,'(HIDE) MASTER-Chart'!$M:$R,2,FALSE)),"") -> 46197 | T37: (14) | U37: =IFERROR( IF($W$1='(HIDE) MASTER-Chart'!$J$2, VLOOKUP(H37,'(HIDE) MASTER-Chart'!$B:$G,2,FALSE), VLOOKUP(H37,'(HIDE) MASTER-Chart'!$M:$R,2,FALSE)),"") -> 46197 | V37: (14) | W37: =IFERROR( IF($W$1='(HIDE) MASTER-Chart'!$J$2, VLOOKUP(J37,'(HIDE) MASTER-Chart'!$B:$G,2,FALSE), VLOOKUP(J37,'(HIDE) MASTER-Chart'!$M:$R,2,FALSE)),"") -> 46197 | X37: (14) | Y37: =IFERROR( IF($W$1='(HIDE) MASTER-Chart'!$J$2, VLOOKUP(L37,'(HIDE) MASTER-Chart'!$B:$G,2,FALSE), VLOOKUP(L37,'(HIDE) MASTER-Chart'!$M:$R,2,FALSE)),"") -> 46197 | Z37: (14)
B39: 16 | D39: 16 | F39: 16 | H39: 16 | J39: 16 | L39: 16 | N39: TARGET | O39: =IFERROR( IF($W$1='(HIDE) MASTER-Chart'!$J$2, VLOOKUP(B39,'(HIDE) MASTER-Chart'!$B:$G,2,FALSE), VLOOKUP(B39,'(HIDE) MASTER-Chart'!$M:$R,2,FALSE)),"") -> 48915 | P39: =IF(ISBLANK(B39),"",CONCATENATE("(",B39,")")) -> (16) | Q39: =IFERROR( IF($W$1='(HIDE) MASTER-Chart'!$J$2, VLOOKUP(D39,'(HIDE) MASTER-Chart'!$B:$G,2,FALSE), VLOOKUP(D39,'(HIDE) MASTER-Chart'!$M:$R,2,FALSE)),"") -> 48915 | R39: =IF(ISBLANK(D39),"",CONCATENATE("(",D39,")")) -> (16) | S39: =IFERROR( IF($W$1='(HIDE) MASTER-Chart'!$J$2, VLOOKUP(F39,'(HIDE) MASTER-Chart'!$B:$G,2,FALSE), VLOOKUP(F39,'(HIDE) MASTER-Chart'!$M:$R,2,FALSE)),"") -> 48915 | T39: =IF(ISBLANK(F39),"",CONCATENATE("(",F39,")")) -> (16) | U39: =IFERROR( IF($W$1='(HIDE) MASTER-Chart'!$J$2, VLOOKUP(H39,'(HIDE) MASTER-Chart'!$B:$G,2,FALSE), VLOOKUP(H39,'(HIDE) MASTER-Chart'!$M:$R,2,FALSE)),"") -> 48915 | V39: =IF(ISBLANK(H39),"",CONCATENATE("(",H39,")")) -> (16) | W39: =IFERROR( IF($W$1='(HIDE) MASTER-Chart'!$J$2, VLOOKUP(J39,'(HIDE) MASTER-Chart'!$B:$G,2,FALSE), VLOOKUP(J39,'(HIDE) MASTER-Chart'!$M:$R,2,FALSE)),"") -> 48915 | X39: =IF(ISBLANK(J39),"",CONCATENATE("(",J39,")")) -> (16) | Y39: =IFERROR( IF($W$1='(HIDE) MASTER-Chart'!$J$2, VLOOKUP(L39,'(HIDE) MASTER-Chart'!$B:$G,2,FALSE), VLOOKUP(L39,'(HIDE) MASTER-Chart'!$M:$R,2,FALSE)),"") -> 48915 | Z39: =IF(ISBLANK(L39),"",CONCATENATE("(",L39,")")) -> (16)
A40: 22 + | B40: 14 | D40: 14 | F40: 14 | H40: 14 | J40: 14 | L40: 14 | N40: 2 STEP | O40: =IFERROR( IF($W$1='(HIDE) MASTER-Chart'!$J$2, VLOOKUP(B40,'(HIDE) MASTER-Chart'!$B:$G,2,FALSE), VLOOKUP(B40,'(HIDE) MASTER-Chart'!$M:$R,2,FALSE)),"") -> 46197 | P40: =IF(ISBLANK(B40),"",CONCATENATE("(",B40,")")) -> (14) | Q40: =IFERROR( IF($W$1='(HIDE) MASTER-Chart'!$J$2, VLOOKUP(D40,'(HIDE) MASTER-Chart'!$B:$G,2,FALSE), VLOOKUP(D40,'(HIDE) MASTER-Chart'!$M:$R,2,FALSE)),"") -> 46197 | R40: (14) | S40: =IFERROR( IF($W$1='(HIDE) MASTER-Chart'!$J$2, VLOOKUP(F40,'(HIDE) MASTER-Chart'!$B:$G,2,FALSE), VLOOKUP(F40,'(HIDE) MASTER-Chart'!$M:$R,2,FALSE)),"") -> 46197 | T40: (14) | U40: =IFERROR( IF($W$1='(HIDE) MASTER-Chart'!$J$2, VLOOKUP(H40,'(HIDE) MASTER-Chart'!$B:$G,2,FALSE), VLOOKUP(H40,'(HIDE) MASTER-Chart'!$M:$R,2,FALSE)),"") -> 46197 | V40: (14) | W40: =IFERROR( IF($W$1='(HIDE) MASTER-Chart'!$J$2, VLOOKUP(J40,'(HIDE) MASTER-Chart'!$B:$G,2,FALSE), VLOOKUP(J40,'(HIDE) MASTER-Chart'!$M:$R,2,FALSE)),"") -> 46197 | X40: (14) | Y40: =IFERROR( IF($W$1='(HIDE) MASTER-Chart'!$J$2, VLOOKUP(L40,'(HIDE) MASTER-Chart'!$B:$G,2,FALSE), VLOOKUP(L40,'(HIDE) MASTER-Chart'!$M:$R,2,FALSE)),"") -> 46197 | Z40: (14)

Sheet Printable Grid-RangeB
O1: MSUAASF | S1: RANGE B | W1: 7/1/2023 (FY24)
Q2: ='(HIDE) MASTER-Chart'!$D$3 -> 37943 | S2: to | U2: ='(HIDE) MASTER-Chart'!$D$22 -> 66029
A4: TOTAL | O4: Years in Equal or Higher MSUAASF, MnSCU Academic Professional, MnSCU Academic Supervisor and/or MnSCU Administrator Ranges
A5: YRS EXP | B5: 0 - 1 | D5: 2 - 3 | F5: 4 - 5 | H5: 6 - 7 | J5: 8 - 9 | L5: 10 - 11 | O5: 0 - 1 | Q5: 2 - 3 | S5: 4 - 5 | U5: 6 - 7 | W5: 8 - 9 | Y5: 10 - 11
B6: 4 | N6: TARGET | O6: =IFERROR( IF($W$1='(HIDE) MASTER-Chart'!$J$2, VLOOKUP(B6,'(HIDE) MASTER-Chart'!$B:$G,3,FALSE), VLOOKUP(B6,'(HIDE) MASTER-Chart'!$M:$R,3,FALSE)),"") -> 41311 | P6: =IF(ISBLANK(B6),"",CONCATENATE("(",B6,")")) -> (4) | Q6: =IFERROR( IF($W$1='(HIDE) MASTER-Chart'!$J$2, VLOOKUP(D6,'(HIDE) MASTER-Chart'!$B:$G,3,FALSE), VLOOKUP(D6,'(HIDE) MASTER-Chart'!$M:$R,3,FALSE)),"") ->  | R6: =IF(ISBLANK(D6),"",CONCATENATE("(",D6,")")) ->  | S6: =IFERROR( IF($W$1='(HIDE) MASTER-Chart'!$J$2, VLOOKUP(F6,'(HIDE) MASTER-Chart'!$B:$G,3,FALSE), VLOOKUP(F6,'(HIDE) MASTER-Chart'!$M:$R,3,FALSE)),"") ->  | T6: =IF(ISBLANK(F6),"",CONCATENATE("(",F6,")")) ->  | U6: =IFERROR( IF($W$1='(HIDE) MASTER-Chart'!$J$2, VLOOKUP(H6,'(HIDE) MASTER-Chart'!$B:$G,3,FALSE), VLOOKUP(H6,'(HIDE) MASTER-Chart'!$M:$R,3,FALSE)),"") ->  | V6: =IF(ISBLANK(H6),"",CONCATENATE("(",H6,")")) ->  | W6: =IFERROR( IF($W$1='(HIDE) MASTER-Chart'!$J$2, VLOOKUP(J6,'(HIDE) MASTER-Chart'!$B:$G,3,FALSE), VLOOKUP(J6,'(HIDE) MASTER-Chart'!$M:$R,3,FALSE)),"") ->  | X6: =IF(ISBLANK(J6),"",CONCATENATE("(",J6,")")) ->  | Y6: =IFERROR( IF($W$1='(HIDE) MASTER-Chart'!$J$2, VLOOKUP(L6,'(HIDE) MASTER-Chart'!$B:$G,3,FALSE), VLOOKUP(L6,'(HIDE) MASTER-Chart'!$M:$R,3,FALSE)),"") ->  | Z6: =IF(ISBLANK(L6),"",CONCATENATE("(",L6,")")) -> 
A7: 0 - 1 | B7: 2 | N7: 2 STEP | O7: =IFERROR( IF($W$1='(HIDE) MASTER-Chart'!$J$2, VLOOKUP(B7,'(HIDE) MASTER-Chart'!$B:$G,3,FALSE), VLOOKUP(B7,'(HIDE) MASTER-Chart'!$M:$R,3,FALSE)),"") -> 38952 | P7: =IF(ISBLANK(B7),"",CONCATENATE("(",B7,")")) -> (2) | Q7: =IFERROR( IF($W$1='(HIDE) MASTER-Chart'!$J$2, VLOOKUP(D7,'(HIDE) MASTER-Chart'!$B:$G,3,FALSE), VLOOKUP(D7,'(HIDE) MASTER-Chart'!$M:$R,3,FALSE)),"") ->  | S7: =IFERROR( IF($W$1='(HIDE) MASTER-Chart'!$J$2, VLOOKUP(F7,'(HIDE) MASTER-Chart'!$B:$G,3,FALSE), VLOOKUP(F7,'(HIDE) MASTER-Chart'!$M:$R,3,FALSE)),"") ->  | U7: =IFERROR( IF($W$1='(HIDE) MASTER-Chart'!$J$2, VLOOKUP(H7,'(HIDE) MASTER-Chart'!$B:$G,3,FALSE), VLOOKUP(H7,'(HIDE) MASTER-Chart'!$M:$R,3,FALSE)),"") ->  | W7: =IFERROR( IF($W$1='(HIDE) MASTER-Chart'!$J$2, VLOOKUP(J7,'(HIDE) MASTER-Chart'!$B:$G,3,FALSE), VLOOKUP(J7,'(HIDE) MASTER-Chart'!$M:$R,3,FALSE)),"") ->  | Y7: =IFERROR( IF($W$1='(HIDE) MASTER-Chart'!$J$2, VLOOKUP(L7,'(HIDE) MASTER-Chart'!$B:$G,3,FALSE), VLOOKUP(L7,'(HIDE) MASTER-Chart'!$M:$R,3,FALSE)),"") -> 
B9: 5 | D9: 5 | N9: TARGET | O9: =IFERROR( IF($W$1='(HIDE) MASTER-Chart'!$J$2, VLOOKUP(B9,'(HIDE) MASTER-Chart'!$B:$G,3,FALSE), VLOOKUP(B9,'(HIDE) MASTER-Chart'!$M:$R,3,FALSE)),"") -> 42668 | P9: =IF(ISBLANK(B9),"",CONCATENATE("(",B9,")")) -> (5) | Q9: =IFERROR( IF($W$1='(HIDE) MASTER-Chart'!$J$2, VLOOKUP(D9,'(HIDE) MASTER-Chart'!$B:$G,3,FALSE), VLOOKUP(D9,'(HIDE) MASTER-Chart'!$M:$R,3,FALSE)),"") -> 42668 | R9: =IF(ISBLANK(D9),"",CONCATENATE("(",D9,")")) -> (5) | S9: =IFERROR( IF($W$1='(HIDE) MASTER-Chart'!$J$2, VLOOKUP(F9,'(HIDE) MASTER-Chart'!$B:$G,3,FALSE), VLOOKUP(F9,'(HIDE) MASTER-Chart'!$M:$R,3,FALSE)),"") ->  | T9: =IF(ISBLANK(F9),"",CONCATENATE("(",F9,")")) ->  | U9: =IFERROR( IF($W$1='(HIDE) MASTER-Chart'!$J$2, VLOOKUP(H9,'(HIDE) MASTER-Chart'!$B:$G,3,FALSE), VLOOKUP(H9,'(HIDE) MASTER-Chart'!$M:$R,3,FALSE)),"") ->  | V9: =IF(ISBLANK(H9),"",CONCATENATE("(",H9,")")) ->  | W9: =IFERROR( IF($W$1='(HIDE) MASTER-Chart'!$J$2, VLOOKUP(J9,'(HIDE) MASTER-Chart'!$B:$G,3,FALSE), VLOOKUP(J9,'(HIDE) MASTER-Chart'!$M:$R,3,FALSE)),"") ->  | X9: =IF(ISBLANK(J9),"",CONCATENATE("(",J9,")")) ->  | Y9: =IFERROR( IF($W$1='(HIDE) MASTER-Chart'!$J$2, VLOOKUP(L9,'(HIDE) MASTER-Chart'!$B:$G,3,FALSE), VLOOKUP(L9,'(HIDE) MASTER-Chart'!$M:$R,3,FALSE)),"") ->  | Z9: =IF(ISBLANK(L9),"",CONCATENATE("(",L9,")")) -> 
A10: 2 - 3 | B10: 3 | D10: 3 | N10: 2 STEP | O10: =IFERROR( IF($W$1='(HIDE) MASTER-Chart'!$J$2, VLOOKUP(B10,'(HIDE) MASTER-Chart'!$B:$G,3,FALSE), VLOOKUP(B10,'(HIDE) MASTER-Chart'!$M:$R,3,FALSE)),"") -> 40109 | P10: (3) | Q10: =IFERROR( IF($W$1='(HIDE) MASTER-Chart'!$J$2, VLOOKUP(D10,'(HIDE) MASTER-Chart'!$B:$G,3,FALSE), VLOOKUP(D10,'(HIDE) MASTER-Chart'!$M:$R,3,FALSE)),"") -> 40109 | R10: (3) | S10: =IFERROR( IF($W$1='(HIDE) MASTER-Chart'!$J$2, VLOOKUP(F10,'(HIDE) MASTER-Chart'!$B:$G,3,FALSE), VLOOKUP(F10,'(HIDE) MASTER-Chart'!$M:$R,3,FALSE)),"") ->  | U10: =IFERROR( IF($W$1='(HIDE) MASTER-Chart'!$J$2, VLOOKUP(H10,'(HIDE) MASTER-Chart'!$B:$G,3,FALSE), VLOOKUP(H10,'(HIDE) MASTER-Chart'!$M:$R,3,FALSE)),"") ->  | W10: =IFERROR( IF($W$1='(HIDE) MASTER-Chart'!$J$2, VLOOKUP(J10,'(HIDE) MASTER-Chart'!$B:$G,3,FALSE), VLOOKUP(J10,'(HIDE) MASTER-Chart'!$M:$R,3,FALSE)),"") ->  | Y10: =IFERROR( IF($W$1='(HIDE) MASTER-Chart'!$J$2, VLOOKUP(L10,'(HIDE) MASTER-Chart'!$B:$G,3,FALSE), VLOOKUP(L10,'(HIDE) MASTER-Chart'!$M:$R,3,FALSE)),"") -> 
B12: 6 | D12: 6 | F12: 7 | N12: TARGET | O12: =IFERROR( IF($W$1='(HIDE) MASTER-Chart'!$J$2, VLOOKUP(B12,'(HIDE) MASTER-Chart'!$B:$G,3,FALSE), VLOOKUP(B12,'(HIDE) MASTER-Chart'!$M:$R,3,FALSE)),"") -> 44022 | P12: =IF(ISBLANK(B12),"",CONCATENATE("(",B12,")")) -> (6) | Q12: =IFERROR( IF($W$1='(HIDE) MASTER-Chart'!$J$2, VLOOKUP(D12,'(HIDE) MASTER-Chart'!$B:$G,3,FALSE), VLOOKUP(D12,'(HIDE) MASTER-Chart'!$M:$R,3,FALSE)),"") -> 44022 | R12: =IF(ISBLANK(D12),"",CONCATENATE("(",D12,")")) -> (6) | S12: =IFERROR( IF($W$1='(HIDE) MASTER-Chart'!$J$2, VLOOKUP(F12,'(HIDE) MASTER-Chart'!$B:$G,3,FALSE), VLOOKUP(F12,'(HIDE) MASTER-Chart'!$M:$R,3,FALSE)),"") -> 45378 | T12: =IF(ISBLANK(F12),"",CONCATENATE("(",F12,")")) -> (7) | U12: =IFERROR( IF($W$1='(HIDE) MASTER-Chart'!$J$2, VLOOKUP(H12,'(HIDE) MASTER-Chart'!$B:$G,3,FALSE), VLOOKUP(H12,'(HIDE) MASTER-Chart'!$M:$R,3,FALSE)),"") ->  | V12: =IF(ISBLANK(H12),"",CONCATENATE("(",H12,")")) ->  | W12: =IFERROR( IF($W$1='(HIDE) MASTER-Chart'!$J$2, VLOOKUP(J12,'(HIDE) MASTER-Chart'!$B:$G,3,FALSE), VLOOKUP(J12,'(HIDE) MASTER-Chart'!$M:$R,3,FALSE)),"") ->  | X12: =IF(ISBLANK(J12),"",CONCATENATE("(",J12,")")) ->  | Y12: =IFERROR( IF($W$1='(HIDE) MASTER-Chart'!$J$2, VLOOKUP(L12,'(HIDE) MASTER-Chart'!$B:$G,3,FALSE), VLOOKUP(L12,'(HIDE) MASTER-Chart'!$M:$R,3,FALSE)),"") ->  | Z12: =IF(ISBLANK(L12),"",CONCATENATE("(",L12,")")) -> 
A13: 4 - 5 | B13: 4 | D13: 4 | F13: 5 | N13: 2 STEP | O13: =IFERROR( IF($W$1='(HIDE) MASTER-Chart'!$J$2, VLOOKUP(B13,'(HIDE) MASTER-Chart'!$B:$G,3,FALSE), VLOOKUP(B13,'(HIDE) MASTER-Chart'!$M:$R,3,FALSE)),"") -> 41311 | P13: (4) | Q13: =IFERROR( IF($W$1='(HIDE) MASTER-Chart'!$J$2, VLOOKUP(D13,'(HIDE) MASTER-Chart'!$B:$G,3,FALSE), VLOOKUP(D13,'(HIDE) MASTER-Chart'!$M:$R,3,FALSE)),"") -> 41311 | R13: (4) | S13: =IFERROR( IF($W$1='(HIDE) MASTER-Chart'!$J$2, VLOOKUP(F13,'(HIDE) MASTER-Chart'!$B:$G,3,FALSE), VLOOKUP(F13,'(HIDE) MASTER-Chart'!$M:$R,3,FALSE)),"") -> 42668 | T13: (5) | U13: =IFERROR( IF($W$1='(HIDE) MASTER-Chart'!$J$2, VLOOKUP(H13,'(HIDE) MASTER-Chart'!$B:$G,3,FALSE), VLOOKUP(H13,'(HIDE) MASTER-Chart'!$M:$R,3,FALSE)),"") ->  | W13: =IFERROR( IF($W$1='(HIDE) MASTER-Chart'!$J$2, VLOOKUP(J13,'(HIDE) MASTER-Chart'!$B:$G,3,FALSE), VLOOKUP(J13,'(HIDE) MASTER-Chart'!$M:$R,3,FALSE)),"") ->  | Y13: =IFERROR( IF($W$1='(HIDE) MASTER-Chart'!$J$2, VLOOKUP(L13,'(HIDE) MASTER-Chart'!$B:$G,3,FALSE), VLOOKUP(L13,'(HIDE) MASTER-Chart'!$M:$R,3,FALSE)),"") -> 
B15: 7 | D15: 7 | F15: 8 | H15: 8 | N15: TARGET | O15: =IFERROR( IF($W$1='(HIDE) MASTER-Chart'!$J$2, VLOOKUP(B15,'(HIDE) MASTER-Chart'!$B:$G,3,FALSE), VLOOKUP(B15,'(HIDE) MASTER-Chart'!$M:$R,3,FALSE)),"") -> 45378 | P15: =IF(ISBLANK(B15),"",CONCATENATE("(",B15,")")) -> (7) | Q15: =IFERROR( IF($W$1='(HIDE) MASTER-Chart'!$J$2, VLOOKUP(D15,'(HIDE) MASTER-Chart'!$B:$G,3,FALSE), VLOOKUP(D15,'(HIDE) MASTER-Chart'!$M:$R,3,FALSE)),"") -> 45378 | R15: =IF(ISBLANK(D15),"",CONCATENATE("(",D15,")")) -> (7) | S15: =IFERROR( IF($W$1='(HIDE) MASTER-Chart'!$J$2, VLOOKUP(F15,'(HIDE) MASTER-Chart'!$B:$G,3,FALSE), VLOOKUP(F15,'(HIDE) MASTER-Chart'!$M:$R,3,FALSE)),"") -> 46736 | T15: =IF(ISBLANK(F15),"",CONCATENATE("(",F15,")")) -> (8) | U15: =IFERROR( IF($W$1='(HIDE) MASTER-Chart'!$J$2, VLOOKUP(H15,'(HIDE) MASTER-Chart'!$B:$G,3,FALSE), VLOOKUP(H15,'(HIDE) MASTER-Chart'!$M:$R,3,FALSE)),"") -> 46736 | V15: =IF(ISBLANK(H15),"",CONCATENATE("(",H15,")")) -> (8) | W15: =IFERROR( IF($W$1='(HIDE) MASTER-Chart'!$J$2, VLOOKUP(J15,'(HIDE) MASTER-Chart'!$B:$G,3,FALSE), VLOOKUP(J15,'(HIDE) MASTER-Chart'!$M:$R,3,FALSE)),"") ->  | X15: =IF(ISBLANK(J15),"",CONCATENATE("(",J15,")")) ->  | Y15: =IFERROR( IF($W$1='(HIDE) MASTER-Chart'!$J$2, VLOOKUP(L15,'(HIDE) MASTER-Chart'!$B:$G,3,FALSE), VLOOKUP(L15,'(HIDE) MASTER-Chart'!$M:$R,3,FALSE)),"") ->  | Z15: =IF(ISBLANK(L15),"",CONCATENATE("(",L15,")")) -> 
A16: 6 - 7 | B16: 5 | D16: 5 | F16: 6 | H16: 6 | N16: 2 STEP | O16: =IFERROR( IF($W$1='(HIDE) MASTER-Chart'!$J$2, VLOOKUP(B16,'(HIDE) MASTER-Chart'!$B:$G,3,FALSE), VLOOKUP(B16,'(HIDE) MASTER-Chart'!$M:$R,3,FALSE)),"") -> 42668 | P16: (5) | Q16: =IFERROR( IF($W$1='(HIDE) MASTER-Chart'!$J$2, VLOOKUP(D16,'(HIDE) MASTER-Chart'!$B:$G,3,FALSE), VLOOKUP(D16,'(HIDE) MASTER-Chart'!$M:$R,3,FALSE)),"") -> 42668 | R16: (5) | S16: =IFERROR( IF($W$1='(HIDE) MASTER-Chart'!$J$2, VLOOKUP(F16,'(HIDE) MASTER-Chart'!$B:$G,3,FALSE), VLOOKUP(F16,'(HIDE) MASTER-Chart'!$M:$R,3,FALSE)),"") -> 44022 | T16: (6) | U16: =IFERROR( IF($W$1='(HIDE) MASTER-Chart'!$J$2, VLOOKUP(H16,'(HIDE) MASTER-Chart'!$B:$G,3,FALSE), VLOOKUP(H16,'(HIDE) MASTER-Chart'!$M:$R,3,FALSE)),"") -> 44022 | V16: (6) | W16: =IFERROR( IF($W$1='(HIDE) MASTER-Chart'!$J$2, VLOOKUP(J16,'(HIDE) MASTER-Chart'!$B:$G,3,FALSE), VLOOKUP(J16,'(HIDE) MASTER-Chart'!$M:$R,3,FALSE)),"") ->  | Y16: =IFERROR( IF($W$1='(HIDE) MASTER-Chart'!$J$2, VLOOKUP(L16,'(HIDE) MASTER-Chart'!$B:$G,3,FALSE), VLOOKUP(L16,'(HIDE) MASTER-Chart'!$M:$R,3,FALSE)),"") -> 
B18: 7 | D18: 8 | F18: 8 | H18: 9 | J18: 9 | N18: TARGET | O18: =IFERROR( IF($W$1='(HIDE) MASTER-Chart'!$J$2, VLOOKUP(B18,'(HIDE) MASTER-Chart'!$B:$G,3,FALSE), VLOOKUP(B18,'(HIDE) MASTER-Chart'!$M:$R,3,FALSE)),"") -> 45378 | P18: =IF(ISBLANK(B18),"",CONCATENATE("(",B18,")")) -> (7) | Q18: =IFERROR( IF($W$1='(HIDE) MASTER-Chart'!$J$2, VLOOKUP(D18,'(HIDE) MASTER-Chart'!$B:$G,3,FALSE), VLOOKUP(D18,'(HIDE) MASTER-Chart'!$M:$R,3,FALSE)),"") -> 46736 | R18: =IF(ISBLANK(D18),"",CONCATENATE("(",D18,")")) -> (8) | S18: =IFERROR( IF($W$1='(HIDE) MASTER-Chart'!$J$2, VLOOKUP(F18,'(HIDE) MASTER-Chart'!$B:$G,3,FALSE), VLOOKUP(F18,'(HIDE) MASTER-Chart'!$M:$R,3,FALSE)),"") -> 46736 | T18: =IF(ISBLANK(F18),"",CONCATENATE("(",F18,")")) -> (8) | U18: =IFERROR( IF($W$1='(HIDE) MASTER-Chart'!$J$2, VLOOKUP(H18,'(HIDE) MASTER-Chart'!$B:$G,3,FALSE), VLOOKUP(H18,'(HIDE) MASTER-Chart'!$M:$R,3,FALSE)),"") -> 48088 | V18: =IF(ISBLANK(H18),"",CONCATENATE("(",H18,")")) -> (9) | W18: =IFERROR( IF($W$1='(HIDE) MASTER-Chart'!$J$2, VLOOKUP(J18,'(HIDE) MASTER-Chart'!$B:$G,3,FALSE), VLOOKUP(J18,'(HIDE) MASTER-Chart'!$M:$R,3,FALSE)),"") -> 48088 | X18: =IF(ISBLANK(J18),"",CONCATENATE("(",J18,")")) -> (9) | Y18: =IFERROR( IF($W$1='(HIDE) MASTER-Chart'!$J$2, VLOOKUP(L18,'(HIDE) MASTER-Chart'!$B:$G,3,FALSE), VLOOKUP(L18,'(HIDE) MASTER-Chart'!$M:$R,3,FALSE)),"") ->  | Z18: =IF(ISBLANK(L18),"",CONCATENATE("(",L18,")")) -> 
A19: 8 - 9 | B19: 5 | D19: 6 | F19: 6 | H19: 7 | J19: 7 | N19: 2 STEP | O19: =IFERROR( IF($W$1='(HIDE) MASTER-Chart'!$J$2, VLOOKUP(B19,'(HIDE) MASTER-Chart'!$B:$G,3,FALSE), VLOOKUP(B19,'(HIDE) MASTER-Chart'!$M:$R,3,FALSE)),"") -> 42668 | P19: (5) | Q19: =IFERROR( IF($W$1='(HIDE) MASTER-Chart'!$J$2, VLOOKUP(D19,'(HIDE) MASTER-Chart'!$B:$G,3,FALSE), VLOOKUP(D19,'(HIDE) MASTER-Chart'!$M:$R,3,FALSE)),"") -> 44022 | R19: (6) | S19: =IFERROR( IF($W$1='(HIDE) MASTER-Chart'!$J$2, VLOOKUP(F19,'(HIDE) MASTER-Chart'!$B:$G,3,FALSE), VLOOKUP(F19,'(HIDE) MASTER-Chart'!$M:$R,3,FALSE)),"") -> 44022 | T19: (6) | U19: =IFERROR( IF($W$1='(HIDE) MASTER-Chart'!$J$2, VLOOKUP(H19,'(HIDE) MASTER-Chart'!$B:$G,3,FALSE), VLOOKUP(H19,'(HIDE) MASTER-Chart'!$M:$R,3,FALSE)),"") -> 45378 | V19: (7) | W19: =IFERROR( IF($W$1='(HIDE) MASTER-Chart'!$J$2, VLOOKUP(J19,'(HIDE) MASTER-Chart'!$B:$G,3,FALSE), VLOOKUP(J19,'(HIDE) MASTER-Chart'!$M:$R,3,FALSE)),"") -> 45378 | X19: (7) | Y19: =IFERROR( IF($W$1='(HIDE) MASTER-Chart'!$J$2, VLOOKUP(L19,'(HIDE) MASTER-Chart'!$B:$G,3,FALSE), VLOOKUP(L19,'(HIDE) MASTER-Chart'!$M:$R,3,FALSE)),"") -> 
B21: 8 | D21: 9 | F21: 9 | H21: 10 | J21: 10 | L21: 11 | N21: TARGET | O21: =IFERROR( IF($W$1='(HIDE) MASTER-Chart'!$J$2, VLOOKUP(B21,'(HIDE) MASTER-Chart'!$B:$G,3,FALSE), VLOOKUP(B21,'(HIDE) MASTER-Chart'!$M:$R,3,FALSE)),"") -> 46736 | P21: =IF(ISBLANK(B21),"",CONCATENATE("(",B21,")")) -> (8) | Q21: =IFERROR( IF($W$1='(HIDE) MASTER-Chart'!$J$2, VLOOKUP(D21,'(HIDE) MASTER-Chart'!$B:$G,3,FALSE), VLOOKUP(D21,'(HIDE) MASTER-Chart'!$M:$R,3,FALSE)),"") -> 48088 | R21: =IF(ISBLANK(D21),"",CONCATENATE("(",D21,")")) -> (9) | S21: =IFERROR( IF($W$1='(HIDE) MASTER-Chart'!$J$2, VLOOKUP(F21,'(HIDE) MASTER-Chart'!$B:$G,3,FALSE), VLOOKUP(F21,'(HIDE) MASTER-Chart'!$M:$R,3,FALSE)),"") -> 48088 | T21: =IF(ISBLANK(F21),"",CONCATENATE("(",F21,")")) -> (9) | U21: =IFERROR( IF($W$1='(HIDE) MASTER-Chart'!$J$2, VLOOKUP(H21,'(HIDE) MASTER-Chart'!$B:$G,3,FALSE), VLOOKUP(H21,'(HIDE) MASTER-Chart'!$M:$R,3,FALSE)),"") -> 49487 | V21: =IF(ISBLANK(H21),"",CONCATENATE("(",H21,")")) -> (10) | W21: =IFERROR( IF($W$1='(HIDE) MASTER-Chart'!$J$2, VLOOKUP(J21,'(HIDE) MASTER-Chart'!$B:$G,3,FALSE), VLOOKUP(J21,'(HIDE) MASTER-Chart'!$M:$R,3,FALSE)),"") -> 49487 | X21: =IF(ISBLANK(J21),"",CONCATENATE("(",J21,")")) -> (10) | Y21: =IFERROR( IF($W$1='(HIDE) MASTER-Chart'!$J$2, VLOOKUP(L21,'(HIDE) MASTER-Chart'!$B:$G,3,FALSE), VLOOKUP(L21,'(HIDE) MASTER-Chart'!$M:$R,3,FALSE)),"") -> 50925 | Z21: =IF(ISBLANK(L21),"",CONCATENATE("(",L21,")")) -> (11)
A22: 10 - 11 | B22: 6 | D22: 7 | F22: 7 | H22: 8 | J22: 8 | L22: 9 | N22: 2 STEP | O22: =IFERROR( IF($W$1='(HIDE) MASTER-Chart'!$J$2, VLOOKUP(B22,'(HIDE) MASTER-Chart'!$B:$G,3,FALSE), VLOOKUP(B22,'(HIDE) MASTER-Chart'!$M:$R,3,FALSE)),"") -> 44022 | P22: (6) | Q22: =IFERROR( IF($W$1='(HIDE) MASTER-Chart'!$J$2, VLOOKUP(D22,'(HIDE) MASTER-Chart'!$B:$G,3,FALSE), VLOOKUP(D22,'(HIDE) MASTER-Chart'!$M:$R,3,FALSE)),"") -> 45378 | R22: (7) | S22: =IFERROR( IF($W$1='(HIDE) MASTER-Chart'!$J$2, VLOOKUP(F22,'(HIDE) MASTER-Chart'!$B:$G,3,FALSE), VLOOKUP(F22,'(HIDE) MASTER-Chart'!$M:$R,3,FALSE)),"") -> 45378 | T22: (7) | U22: =IFERROR( IF($W$1='(HIDE) MASTER-Chart'!$J$2, VLOOKUP(H22,'(HIDE) MASTER-Chart'!$B:$G,3,FALSE), VLOOKUP(H22,'(HIDE) MASTER-Chart'!$M:$R,3,FALSE)),"") -> 46736 | V22: (8) | W22: =IFERROR( IF($W$1='(HIDE) MASTER-Chart'!$J$2, VLOOKUP(J22,'(HIDE) MASTER-Chart'!$B:$G,3,FALSE), VLOOKUP(J22,'(HIDE) MASTER-Chart'!$M:$R,3,FALSE)),"") -> 46736 | X22: (8) | Y22: =IFERROR( IF($W$1='(HIDE) MASTER-Chart'!$J$2, VLOOKUP(L22,'(HIDE) MASTER-Chart'!$B:$G,3,FALSE), VLOOKUP(L22,'(HIDE) MASTER-Chart'!$M:$R,3,FALSE)),"") -> 48088 | Z22: (9)
B24: 9 | D24: 10 | F24: 10 | H24: 10 | J24: 11 | L24: 11 | N24: TARGET | O24: =IFERROR( IF($W$1='(HIDE) MASTER-Chart'!$J$2, VLOOKUP(B24,'(HIDE) MASTER-Chart'!$B:$G,3,FALSE), VLOOKUP(B24,'(HIDE) MASTER-Chart'!$M:$R,3,FALSE)),"") -> 48088 | P24: =IF(ISBLANK(B24),"",CONCATENATE("(",B24,")")) -> (9) | Q24: =IFERROR( IF($W$1='(HIDE) MASTER-Chart'!$J$2, VLOOKUP(D24,'(HIDE) MASTER-Chart'!$B:$G,3,FALSE), VLOOKUP(D24,'(HIDE) MASTER-Chart'!$M:$R,3,FALSE)),"") -> 49487 | R24: =IF(ISBLANK(D24),"",CONCATENATE("(",D24,")")) -> (10) | S24: =IFERROR( IF($W$1='(HIDE) MASTER-Chart'!$J$2, VLOOKUP(F24,'(HIDE) MASTER-Chart'!$B:$G,3,FALSE), VLOOKUP(F24,'(HIDE) MASTER-Chart'!$M:$R,3,FALSE)),"") -> 49487 | T24: =IF(ISBLANK(F24),"",CONCATENATE("(",F24,")")) -> (10) | U24: =IFERROR( IF($W$1='(HIDE) MASTER-Chart'!$J$2, VLOOKUP(H24,'(HIDE) MASTER-Chart'!$B:$G,3,FALSE), VLOOKUP(H24,'(HIDE) MASTER-Chart'!$M:$R,3,FALSE)),"") -> 49487 | V24: =IF(ISBLANK(H24),"",CONCATENATE("(",H24,")")) -> (10) | W24: =IFERROR( IF($W$1='(HIDE) MASTER-Chart'!$J$2, VLOOKUP(J24,'(HIDE) MASTER-Chart'!$B:$G,3,FALSE), VLOOKUP(J24,'(HIDE) MASTER-Chart'!$M:$R,3,FALSE)),"") -> 50925 | X24: =IF(ISBLANK(J24),"",CONCATENATE("(",J24,")")) -> (11) | Y24: =IFERROR( IF($W$1='(HIDE) MASTER-Chart'!$J$2, VLOOKUP(L24,'(HIDE) MASTER-Chart'!$B:$G,3,FALSE), VLOOKUP(L24,'(HIDE) MASTER-Chart'!$M:$R,3,FALSE)),"") -> 50925 | Z24: =IF(ISBLANK(L24),"",CONCATENATE("(",L24,")")) -> (11)
A25: 12 - 13 | B25: 7 | D25: 8 | F25: 8 | H25: 8 | J25: 9 | L25: 9 | N25: 2 STEP | O25: =IFERROR( IF($W$1='(HIDE) MASTER-Chart'!$J$2, VLOOKUP(B25,'(HIDE) MASTER-Chart'!$B:$G,3,FALSE), VLOOKUP(B25,'(HIDE) MASTER-Chart'!$M:$R,3,FALSE)),"") -> 45378 | P25: (7) | Q25: =IFERROR( IF($W$1='(HIDE) MASTER-Chart'!$J$2, VLOOKUP(D25,'(HIDE) MASTER-Chart'!$B:$G,3,FALSE), VLOOKUP(D25,'(HIDE) MASTER-Chart'!$M:$R,3,FALSE)),"") -> 46736 | R25: (8) | S25: =IFERROR( IF($W$1='(HIDE) MASTER-Chart'!$J$2, VLOOKUP(F25,'(HIDE) MASTER-Chart'!$B:$G,3,FALSE), VLOOKUP(F25,'(HIDE) MASTER-Chart'!$M:$R,3,FALSE)),"") -> 46736 | T25: (8) | U25: =IFERROR( IF($W$1='(HIDE) MASTER-Chart'!$J$2, VLOOKUP(H25,'(HIDE) MASTER-Chart'!$B:$G,3,FALSE), VLOOKUP(H25,'(HIDE) MASTER-Chart'!$M:$R,3,FALSE)),"") -> 46736 | V25: (8) | W25: =IFERROR( IF($W$1='(HIDE) MASTER-Chart'!$J$2, VLOOKUP(J25,'(HIDE) MASTER-Chart'!$B:$G,3,FALSE), VLOOKUP(J25,'(HIDE) MASTER-Chart'!$M:$R,3,FALSE)),"") -> 48088 | X25: (9) | Y25: =IFERROR( IF($W$1='(HIDE) MASTER-Chart'!$J$2, VLOOKUP(L25,'(HIDE) MASTER-Chart'!$B:$G,3,FALSE), VLOOKUP(L25,'(HIDE) MASTER-Chart'!$M:$R,3,FALSE)),"") -> 48088 | Z25: (9)
B27: 10 | D27: 10 | F27: 11 | H27: 11 | J27: 12 | L27: 12 | N27: TARGET | O27: =IFERROR( IF($W$1='(HIDE) MASTER-Chart'!$J$2, VLOOKUP(B27,'(HIDE) MASTER-Chart'!$B:$G,3,FALSE), VLOOKUP(B27,'(HIDE) MASTER-Chart'!$M:$R,3,FALSE)),"") -> 49487 | P27: =IF(ISBLANK(B27),"",CONCATENATE("(",B27,")")) -> (10) | Q27: =IFERROR( IF($W$1='(HIDE) MASTER-Chart'!$J$2, VLOOKUP(D27,'(HIDE) MASTER-Chart'!$B:$G,3,FALSE), VLOOKUP(D27,'(HIDE) MASTER-Chart'!$M:$R,3,FALSE)),"") -> 49487 | R27: =IF(ISBLANK(D27),"",CONCATENATE("(",D27,")")) -> (10) | S27: =IFERROR( IF($W$1='(HIDE) MASTER-Chart'!$J$2, VLOOKUP(F27,'(HIDE) MASTER-Chart'!$B:$G,3,FALSE), VLOOKUP(F27,'(HIDE) MASTER-Chart'!$M:$R,3,FALSE)),"") -> 50925 | T27: =IF(ISBLANK(F27),"",CONCATENATE("(",F27,")")) -> (11) | U27: =IFERROR( IF($W$1='(HIDE) MASTER-Chart'!$J$2, VLOOKUP(H27,'(HIDE) MASTER-Chart'!$B:$G,3,FALSE), VLOOKUP(H27,'(HIDE) MASTER-Chart'!$M:$R,3,FALSE)),"") -> 50925 | V27: =IF(ISBLANK(H27),"",CONCATENATE("(",H27,")")) -> (11) | W27: =IFERROR( IF($W$1='(HIDE) MASTER-Chart'!$J$2, VLOOKUP(J27,'(HIDE) MASTER-Chart'!$B:$G,3,FALSE), VLOOKUP(J27,'(HIDE) MASTER-Chart'!$M:$R,3,FALSE)),"") -> 52409 | X27: =IF(ISBLANK(J27),"",CONCATENATE("(",J27,")")) -> (12) | Y27: =IFERROR( IF($W$1='(HIDE) MASTER-Chart'!$J$2, VLOOKUP(L27,'(HIDE) MASTER-Chart'!$B:$G,3,FALSE), VLOOKUP(L27,'(HIDE) MASTER-Chart'!$M:$R,3,FALSE)),"") -> 52409 | Z27: =IF(ISBLANK(L27),"",CONCATENATE("(",L27,")")) -> (12)
A28: 14 - 15 | B28: 8 | D28: 8 | F28: 9 | H28: 9 | J28: 10 | L28: 10 | N28: 2 STEP | O28: =IFERROR( IF($W$1='(HIDE) MASTER-Chart'!$J$2, VLOOKUP(B28,'(HIDE) MASTER-Chart'!$B:$G,3,FALSE), VLOOKUP(B28,'(HIDE) MASTER-Chart'!$M:$R,3,FALSE)),"") -> 46736 | P28: (8) | Q28: =IFERROR( IF($W$1='(HIDE) MASTER-Chart'!$J$2, VLOOKUP(D28,'(HIDE) MASTER-Chart'!$B:$G,3,FALSE), VLOOKUP(D28,'(HIDE) MASTER-Chart'!$M:$R,3,FALSE)),"") -> 46736 | R28: (8) | S28: =IFERROR( IF($W$1='(HIDE) MASTER-Chart'!$J$2, VLOOKUP(F28,'(HIDE) MASTER-Chart'!$B:$G,3,FALSE), VLOOKUP(F28,'(HIDE) MASTER-Chart'!$M:$R,3,FALSE)),"") -> 48088 | T28: (9) | U28: =IFERROR( IF($W$1='(HIDE) MASTER-Chart'!$J$2, VLOOKUP(H28,'(HIDE) MASTER-Chart'!$B:$G,3,FALSE), VLOOKUP(H28,'(HIDE) MASTER-Chart'!$M:$R,3,FALSE)),"") -> 48088 | V28: (9) | W28: =IFERROR( IF($W$1='(HIDE) MASTER-Chart'!$J$2, VLOOKUP(J28,'(HIDE) MASTER-Chart'!$B:$G,3,FALSE), VLOOKUP(J28,'(HIDE) MASTER-Chart'!$M:$R,3,FALSE)),"") -> 49487 | X28: (10) | Y28: =IFERROR( IF($W$1='(HIDE) MASTER-Chart'!$J$2, VLOOKUP(L28,'(HIDE) MASTER-Chart'!$B:$G,3,FALSE), VLOOKUP(L28,'(HIDE) MASTER-Chart'!$M:$R,3,FALSE)),"") -> 49487 | Z28: (10)
B30: 11 | D30: 11 | F30: 11 | H30: 12 | J30: 12 | L30: 13 | N30: TARGET | O30: =IFERROR( IF($W$1='(HIDE) MASTER-Chart'!$J$2, VLOOKUP(B30,'(HIDE) MASTER-Chart'!$B:$G,3,FALSE), VLOOKUP(B30,'(HIDE) MASTER-Chart'!$M:$R,3,FALSE)),"") -> 50925 | P30: =IF(ISBLANK(B30),"",CONCATENATE("(",B30,")")) -> (11) | Q30: =IFERROR( IF($W$1='(HIDE) MASTER-Chart'!$J$2, VLOOKUP(D30,'(HIDE) MASTER-Chart'!$B:$G,3,FALSE), VLOOKUP(D30,'(HIDE) MASTER-Chart'!$M:$R,3,FALSE)),"") -> 50925 | R30: =IF(ISBLANK(D30),"",CONCATENATE("(",D30,")")) -> (11) | S30: =IFERROR( IF($W$1='(HIDE) MASTER-Chart'!$J$2, VLOOKUP(F30,'(HIDE) MASTER-Chart'!$B:$G,3,FALSE), VLOOKUP(F30,'(HIDE) MASTER-Chart'!$M:$R,3,FALSE)),"") -> 50925 | T30: =IF(ISBLANK(F30),"",CONCATENATE("(",F30,")")) -> (11) | U30: =IFERROR( IF($W$1='(HIDE) MASTER-Chart'!$J$2, VLOOKUP(H30,'(HIDE) MASTER-Chart'!$B:$G,3,FALSE), VLOOKUP(H30,'(HIDE) MASTER-Chart'!$M:$R,3,FALSE)),"") -> 52409 | V30: =IF(ISBLANK(H30),"",CONCATENATE("(",H30,")")) -> (12) | W30: =IFERROR( IF($W$1='(HIDE) MASTER-Chart'!$J$2, VLOOKUP(J30,'(HIDE) MASTER-Chart'!$B:$G,3,FALSE), VLOOKUP(J30,'(HIDE) MASTER-Chart'!$M:$R,3,FALSE)),"") -> 52409 | X30: =IF(ISBLANK(J30),"",CONCATENATE("(",J30,")")) -> (12) | Y30: =IFERROR( IF($W$1='(HIDE) MASTER-Chart'!$J$2, VLOOKUP(L30,'(HIDE) MASTER-Chart'!$B:$G,3,FALSE), VLOOKUP(L30,'(HIDE) MASTER-Chart'!$M:$R,3,FALSE)),"") -> 53934 | Z30: =IF(ISBLANK(L30),"",CONCATENATE("(",L30,")")) -> (13)
A31: 16 - 17 | B31: 9 | D31: 9 | F31: 9 | H31: 10 | J31: 10 | L31: 11 | N31: 2 STEP | O31: =IFERROR( IF($W$1='(HIDE) MASTER-Chart'!$J$2, VLOOKUP(B31,'(HIDE) MASTER-Chart'!$B:$G,3,FALSE), VLOOKUP(B31,'(HIDE) MASTER-Chart'!$M:$R,3,FALSE)),"") -> 48088 | P31: (9) | Q31: =IFERROR( IF($W$1='(HIDE) MASTER-Chart'!$J$2, VLOOKUP(D31,'(HIDE) MASTER-Chart'!$B:$G,3,FALSE), VLOOKUP(D31,'(HIDE) MASTER-Chart'!$M:$R,3,FALSE)),"") -> 48088 | R31: (9) | S31: =IFERROR( IF($W$1='(HIDE) MASTER-Chart'!$J$2, VLOOKUP(F31,'(HIDE) MASTER-Chart'!$B:$G,3,FALSE), VLOOKUP(F31,'(HIDE) MASTER-Chart'!$M:$R,3,FALSE)),"") -> 48088 | T31: (9) | U31: =IFERROR( IF($W$1='(HIDE) MASTER-Chart'!$J$2, VLOOKUP(H31,'(HIDE) MASTER-Chart'!$B:$G,3,FALSE), VLOOKUP(H31,'(HIDE) MASTER-Chart'!$M:$R,3,FALSE)),"") -> 49487 | V31: (10) | W31: =IFERROR( IF($W$1='(HIDE) MASTER-Chart'!$J$2, VLOOKUP(J31,'(HIDE) MASTER-Chart'!$B:$G,3,FALSE), VLOOKUP(J31,'(HIDE) MASTER-Chart'!$M:$R,3,FALSE)),"") -> 49487 | X31: (10) | Y31: =IFERROR( IF($W$1='(HIDE) MASTER-Chart'!$J$2, VLOOKUP(L31,'(HIDE) MASTER-Chart'!$B:$G,3,FALSE), VLOOKUP(L31,'(HIDE) MASTER-Chart'!$M:$R,3,FALSE)),"") -> 50925 | Z31: (11)
B33: 11 | D33: 12 | F33: 12 | H33: 13 | J33: 13 | L33: 13 | N33: TARGET | O33: =IFERROR( IF($W$1='(HIDE) MASTER-Chart'!$J$2, VLOOKUP(B33,'(HIDE) MASTER-Chart'!$B:$G,3,FALSE), VLOOKUP(B33,'(HIDE) MASTER-Chart'!$M:$R,3,FALSE)),"") -> 50925 | P33: =IF(ISBLANK(B33),"",CONCATENATE("(",B33,")")) -> (11) | Q33: =IFERROR( IF($W$1='(HIDE) MASTER-Chart'!$J$2, VLOOKUP(D33,'(HIDE) MASTER-Chart'!$B:$G,3,FALSE), VLOOKUP(D33,'(HIDE) MASTER-Chart'!$M:$R,3,FALSE)),"") -> 52409 | R33: =IF(ISBLANK(D33),"",CONCATENATE("(",D33,")")) -> (12) | S33: =IFERROR( IF($W$1='(HIDE) MASTER-Chart'!$J$2, VLOOKUP(F33,'(HIDE) MASTER-Chart'!$B:$G,3,FALSE), VLOOKUP(F33,'(HIDE) MASTER-Chart'!$M:$R,3,FALSE)),"") -> 52409 | T33: =IF(ISBLANK(F33),"",CONCATENATE("(",F33,")")) -> (12) | U33: =IFERROR( IF($W$1='(HIDE) MASTER-Chart'!$J$2, VLOOKUP(H33,'(HIDE) MASTER-Chart'!$B:$G,3,FALSE), VLOOKUP(H33,'(HIDE) MASTER-Chart'!$M:$R,3,FALSE)),"") -> 53934 | V33: =IF(ISBLANK(H33),"",CONCATENATE("(",H33,")")) -> (13) | W33: =IFERROR( IF($W$1='(HIDE) MASTER-Chart'!$J$2, VLOOKUP(J33,'(HIDE) MASTER-Chart'!$B:$G,3,FALSE), VLOOKUP(J33,'(HIDE) MASTER-Chart'!$M:$R,3,FALSE)),"") -> 53934 | X33: =IF(ISBLANK(J33),"",CONCATENATE("(",J33,")")) -> (13) | Y33: =IFERROR( IF($W$1='(HIDE) MASTER-Chart'!$J$2, VLOOKUP(L33,'(HIDE) MASTER-Chart'!$B:$G,3,FALSE), VLOOKUP(L33,'(HIDE) MASTER-Chart'!$M:$R,3,FALSE)),"") -> 53934 | Z33: =IF(ISBLANK(L33),"",CONCATENATE("(",L33,")")) -> (13)
A34: 18 - 19 | B34: 9 | D34: 10 | F34: 10 | H34: 11 | J34: 11 | L34: 11 | N34: 2 STEP | O34: =IFERROR( IF($W$1='(HIDE) MASTER-Chart'!$J$2, VLOOKUP(B34,'(HIDE) MASTER-Chart'!$B:$G,3,FALSE), VLOOKUP(B34,'(HIDE) MASTER-Chart'!$M:$R,3,FALSE)),"") -> 48088 | P34: (9) | Q34: =IFERROR( IF($W$1='(HIDE) MASTER-Chart'!$J$2, VLOOKUP(D34,'(HIDE) MASTER-Chart'!$B:$G,3,FALSE), VLOOKUP(D34,'(HIDE) MASTER-Chart'!$M:$R,3,FALSE)),"") -> 49487 | R34: (10) | S34: =IFERROR( IF($W$1='(HIDE) MASTER-Chart'!$J$2, VLOOKUP(F34,'(HIDE) MASTER-Chart'!$B:$G,3,FALSE), VLOOKUP(F34,'(HIDE) MASTER-Chart'!$M:$R,3,FALSE)),"") -> 49487 | T34: (10) | U34: =IFERROR( IF($W$1='(HIDE) MASTER-Chart'!$J$2, VLOOKUP(H34,'(HIDE) MASTER-Chart'!$B:$G,3,FALSE), VLOOKUP(H34,'(HIDE) MASTER-Chart'!$M:$R,3,FALSE)),"") -> 50925 | V34: (11) | W34: =IFERROR( IF($W$1='(HIDE) MASTER-Chart'!$J$2, VLOOKUP(J34,'(HIDE) MASTER-Chart'!$B:$G,3,FALSE), VLOOKUP(J34,'(HIDE) MASTER-Chart'!$M:$R,3,FALSE)),"") -> 50925 | X34: (11) | Y34: =IFERROR( IF($W$1='(HIDE) MASTER-Chart'!$J$2, VLOOKUP(L34,'(HIDE) MASTER-Chart'!$B:$G,3,FALSE), VLOOKUP(L34,'(HIDE) MASTER-Chart'!$M:$R,3,FALSE)),"") -> 50925 | Z34: (11)
B36: 12 | D36: 12 | F36: 13 | H36: 13 | J36: 14 | L36: 14 | N36: TARGET | O36: =IFERROR( IF($W$1='(HIDE) MASTER-Chart'!$J$2, VLOOKUP(B36,'(HIDE) MASTER-Chart'!$B:$G,3,FALSE), VLOOKUP(B36,'(HIDE) MASTER-Chart'!$M:$R,3,FALSE)),"") -> 52409 | P36: =IF(ISBLANK(B36),"",CONCATENATE("(",B36,")")) -> (12) | Q36: =IFERROR( IF($W$1='(HIDE) MASTER-Chart'!$J$2, VLOOKUP(D36,'(HIDE) MASTER-Chart'!$B:$G,3,FALSE), VLOOKUP(D36,'(HIDE) MASTER-Chart'!$M:$R,3,FALSE)),"") -> 52409 | R36: =IF(ISBLANK(D36),"",CONCATENATE("(",D36,")")) -> (12) | S36: =IFERROR( IF($W$1='(HIDE) MASTER-Chart'!$J$2, VLOOKUP(F36,'(HIDE) MASTER-Chart'!$B:$G,3,FALSE), VLOOKUP(F36,'(HIDE) MASTER-Chart'!$M:$R,3,FALSE)),"") -> 53934 | T36: =IF(ISBLANK(F36),"",CONCATENATE("(",F36,")")) -> (13) | U36: =IFERROR( IF($W$1='(HIDE) MASTER-Chart'!$J$2, VLOOKUP(H36,'(HIDE) MASTER-Chart'!$B:$G,3,FALSE), VLOOKUP(H36,'(HIDE) MASTER-Chart'!$M:$R,3,FALSE)),"") -> 53934 | V36: =IF(ISBLANK(H36),"",CONCATENATE("(",H36,")")) -> (13) | W36: =IFERROR( IF($W$1='(HIDE) MASTER-Chart'!$J$2, VLOOKUP(J36,'(HIDE) MASTER-Chart'!$B:$G,3,FALSE), VLOOKUP(J36,'(HIDE) MASTER-Chart'!$M:$R,3,FALSE)),"") -> 55504 | X36: =IF(ISBLANK(J36),"",CONCATENATE("(",J36,")")) -> (14) | Y36: =IFERROR( IF($W$1='(HIDE) MASTER-Chart'!$J$2, VLOOKUP(L36,'(HIDE) MASTER-Chart'!$B:$G,3,FALSE), VLOOKUP(L36,'(HIDE) MASTER-Chart'!$M:$R,3,FALSE)),"") -> 55504 | Z36: =IF(ISBLANK(L36),"",CONCATENATE("(",L36,")")) -> (14)
A37: 20 - 21 | B37: 10 | D37: 10 | F37: 11 | H37: 11 | J37: 12 | L37: 12 | N37: 2 STEP | O37: =IFERROR( IF($W$1='(HIDE) MASTER-Chart'!$J$2, VLOOKUP(B37,'(HIDE) MASTER-Chart'!$B:$G,3,FALSE), VLOOKUP(B37,'(HIDE) MASTER-Chart'!$M:$R,3,FALSE)),"") -> 49487 | P37: (10) | Q37: =IFERROR( IF($W$1='(HIDE) MASTER-Chart'!$J$2, VLOOKUP(D37,'(HIDE) MASTER-Chart'!$B:$G,3,FALSE), VLOOKUP(D37,'(HIDE) MASTER-Chart'!$M:$R,3,FALSE)),"") -> 49487 | R37: (10) | S37: =IFERROR( IF($W$1='(HIDE) MASTER-Chart'!$J$2, VLOOKUP(F37,'(HIDE) MASTER-Chart'!$B:$G,3,FALSE), VLOOKUP(F37,'(HIDE) MASTER-Chart'!$M:$R,3,FALSE)),"") -> 50925 | T37: (11) | U37: =IFERROR( IF($W$1='(HIDE) MASTER-Chart'!$J$2, VLOOKUP(H37,'(HIDE) MASTER-Chart'!$B:$G,3,FALSE), VLOOKUP(H37,'(HIDE) MASTER-Chart'!$M:$R,3,FALSE)),"") -> 50925 | V37: (11) | W37: =IFERROR( IF($W$1='(HIDE) MASTER-Chart'!$J$2, VLOOKUP(J37,'(HIDE) MASTER-Chart'!$B:$G,3,FALSE), VLOOKUP(J37,'(HIDE) MASTER-Chart'!$M:$R,3,FALSE)),"") -> 52409 | X37: (12) | Y37: =IFERROR( IF($W$1='(HIDE) MASTER-Chart'!$J$2, VLOOKUP(L37,'(HIDE) MASTER-Chart'!$B:$G,3,FALSE), VLOOKUP(L37,'(HIDE) MASTER-Chart'!$M:$R,3,FALSE)),"") -> 52409 | Z37: (12)
B39: 13 | D39: 13 | F39: 14 | H39: 14 | J39: 14 | L39: 15 | N39: TARGET | O39: =IFERROR( IF($W$1='(HIDE) MASTER-Chart'!$J$2, VLOOKUP(B39,'(HIDE) MASTER-Chart'!$B:$G,3,FALSE), VLOOKUP(B39,'(HIDE) MASTER-Chart'!$M:$R,3,FALSE)),"") -> 53934 | P39: =IF(ISBLANK(B39),"",CONCATENATE("(",B39,")")) -> (13) | Q39: =IFERROR( IF($W$1='(HIDE) MASTER-Chart'!$J$2, VLOOKUP(D39,'(HIDE) MASTER-Chart'!$B:$G,3,FALSE), VLOOKUP(D39,'(HIDE) MASTER-Chart'!$M:$R,3,FALSE)),"") -> 53934 | R39: =IF(ISBLANK(D39),"",CONCATENATE("(",D39,")")) -> (13) | S39: =IFERROR( IF($W$1='(HIDE) MASTER-Chart'!$J$2, VLOOKUP(F39,'(HIDE) MASTER-Chart'!$B:$G,3,FALSE), VLOOKUP(F39,'(HIDE) MASTER-Chart'!$M:$R,3,FALSE)),"") -> 55504 | T39: =IF(ISBLANK(F39),"",CONCATENATE("(",F39,")")) -> (14) | U39: =IFERROR( IF($W$1='(HIDE) MASTER-Chart'!$J$2, VLOOKUP(H39,'(HIDE) MASTER-Chart'!$B:$G,3,FALSE), VLOOKUP(H39,'(HIDE) MASTER-Chart'!$M:$R,3,FALSE)),"") -> 55504 | V39: =IF(ISBLANK(H39),"",CONCATENATE("(",H39,")")) -> (14) | W39: =IFERROR( IF($W$1='(HIDE) MASTER-Chart'!$J$2, VLOOKUP(J39,'(HIDE) MASTER-Chart'!$B:$G,3,FALSE), VLOOKUP(J39,'(HIDE) MASTER-Chart'!$M:$R,3,FALSE)),"") -> 55504 | X39: =IF(ISBLANK(J39),"",CONCATENATE("(",J39,")")) -> (14) | Y39: =IFERROR( IF($W$1='(HIDE) MASTER-Chart'!$J$2, VLOOKUP(L39,'(HIDE) MASTER-Chart'!$B:$G,3,FALSE), VLOOKUP(L39,'(HIDE) MASTER-Chart'!$M:$R,3,FALSE)),"") -> 57128 | Z39: =IF(ISBLANK(L39),"",CONCATENATE("(",L39,")")) -> (15)
A40: 22 - 23 | B40: 11 | D40: 11 | F40: 12 | H40: 12 | J40: 12 | L40: 13 | N40: 2 STEP | O40: =IFERROR( IF($W$1='(HIDE) MASTER-Chart'!$J$2, VLOOKUP(B40,'(HIDE) MASTER-Chart'!$B:$G,3,FALSE), VLOOKUP(B40,'(HIDE) MASTER-Chart'!$M:$R,3,FALSE)),"") -> 50925 | P40: (11) | Q40: =IFERROR( IF($W$1='(HIDE) MASTER-Chart'!$J$2, VLOOKUP(D40,'(HIDE) MASTER-Chart'!$B:$G,3,FALSE), VLOOKUP(D40,'(HIDE) MASTER-Chart'!$M:$R,3,FALSE)),"") -> 50925 | R40: (11) | S40: =IFERROR( IF($W$1='(HIDE) MASTER-Chart'!$J$2, VLOOKUP(F40,'(HIDE) MASTER-Chart'!$B:$G,3,FALSE), VLOOKUP(F40,'(HIDE) MASTER-Chart'!$M:$R,3,FALSE)),"") -> 52409 | T40: (12) | U40: =IFERROR( IF($W$1='(HIDE) MASTER-Chart'!$J$2, VLOOKUP(H40,'(HIDE) MASTER-Chart'!$B:$G,3,FALSE), VLOOKUP(H40,'(HIDE) MASTER-Chart'!$M:$R,3,FALSE)),"") -> 52409 | V40: (12) | W40: =IFERROR( IF($W$1='(HIDE) MASTER-Chart'!$J$2, VLOOKUP(J40,'(HIDE) MASTER-Chart'!$B:$G,3,FALSE), VLOOKUP(J40,'(HIDE) MASTER-Chart'!$M:$R,3,FALSE)),"") -> 52409 | X40: (12) | Y40: =IFERROR( IF($W$1='(HIDE) MASTER-Chart'!$J$2, VLOOKUP(L40,'(HIDE) MASTER-Chart'!$B:$G,3,FALSE), VLOOKUP(L40,'(HIDE) MASTER-Chart'!$M:$R,3,FALSE)),"") -> 53934 | Z40: (13)
B42: 13 | D42: 14 | F42: 14 | H42: 15 | J42: 15 | L42: 15 | N42: TARGET | O42: =IFERROR( IF($W$1='(HIDE) MASTER-Chart'!$J$2, VLOOKUP(B42,'(HIDE) MASTER-Chart'!$B:$G,3,FALSE), VLOOKUP(B42,'(HIDE) MASTER-Chart'!$M:$R,3,FALSE)),"") -> 53934 | P42: =IF(ISBLANK(B42),"",CONCATENATE("(",B42,")")) -> (13) | Q42: =IFERROR( IF($W$1='(HIDE) MASTER-Chart'!$J$2, VLOOKUP(D42,'(HIDE) MASTER-Chart'!$B:$G,3,FALSE), VLOOKUP(D42,'(HIDE) MASTER-Chart'!$M:$R,3,FALSE)),"") -> 55504 | R42: =IF(ISBLANK(D42),"",CONCATENATE("(",D42,")")) -> (14) | S42: =IFERROR( IF($W$1='(HIDE) MASTER-Chart'!$J$2, VLOOKUP(F42,'(HIDE) MASTER-Chart'!$B:$G,3,FALSE), VLOOKUP(F42,'(HIDE) MASTER-Chart'!$M:$R,3,FALSE)),"") -> 55504 | T42: =IF(ISBLANK(F42),"",CONCATENATE("(",F42,")")) -> (14) | U42: =IFERROR( IF($W$1='(HIDE) MASTER-Chart'!$J$2, VLOOKUP(H42,'(HIDE) MASTER-Chart'!$B:$G,3,FALSE), VLOOKUP(H42,'(HIDE) MASTER-Chart'!$M:$R,3,FALSE)),"") -> 57128 | V42: =IF(ISBLANK(H42),"",CONCATENATE("(",H42,")")) -> (15) | W42: =IFERROR( IF($W$1='(HIDE) MASTER-Chart'!$J$2, VLOOKUP(J42,'(HIDE) MASTER-Chart'!$B:$G,3,FALSE), VLOOKUP(J42,'(HIDE) MASTER-Chart'!$M:$R,3,FALSE)),"") -> 57128 | X42: =IF(ISBLANK(J42),"",CONCATENATE("(",J42,")")) -> (15) | Y42: =IFERROR( IF($W$1='(HIDE) MASTER-Chart'!$J$2, VLOOKUP(L42,'(HIDE) MASTER-Chart'!$B:$G,3,FALSE), VLOOKUP(L42,'(HIDE) MASTER-Chart'!$M:$R,3,FALSE)),"") -> 57128 | Z42: =IF(ISBLANK(L42),"",CONCATENATE("(",L42,")")) -> (15)
A43: 24 - 25 | B43: 11 | D43: 12 | F43: 12 | H43: 13 | J43: 13 | L43: 13 | N43: 2 STEP | O43: =IFERROR( IF($W$1='(HIDE) MASTER-Chart'!$J$2, VLOOKUP(B43,'(HIDE) MASTER-Chart'!$B:$G,3,FALSE), VLOOKUP(B43,'(HIDE) MASTER-Chart'!$M:$R,3,FALSE)),"") -> 50925 | P43: (11) | Q43: =IFERROR( IF($W$1='(HIDE) MASTER-Chart'!$J$2, VLOOKUP(D43,'(HIDE) MASTER-Chart'!$B:$G,3,FALSE), VLOOKUP(D43,'(HIDE) MASTER-Chart'!$M:$R,3,FALSE)),"") -> 52409 | R43: (12) | S43: =IFERROR( IF($W$1='(HIDE) MASTER-Chart'!$J$2, VLOOKUP(F43,'(HIDE) MASTER-Chart'!$B:$G,3,FALSE), VLOOKUP(F43,'(HIDE) MASTER-Chart'!$M:$R,3,FALSE)),"") -> 52409 | T43: (12) | U43: =IFERROR( IF($W$1='(HIDE) MASTER-Chart'!$J$2, VLOOKUP(H43,'(HIDE) MASTER-Chart'!$B:$G,3,FALSE), VLOOKUP(H43,'(HIDE) MASTER-Chart'!$M:$R,3,FALSE)),"") -> 53934 | V43: (13) | W43: =IFERROR( IF($W$1='(HIDE) MASTER-Chart'!$J$2, VLOOKUP(J43,'(HIDE) MASTER-Chart'!$B:$G,3,FALSE), VLOOKUP(J43,'(HIDE) MASTER-Chart'!$M:$R,3,FALSE)),"") -> 53934 | X43: (13) | Y43: =IFERROR( IF($W$1='(HIDE) MASTER-Chart'!$J$2, VLOOKUP(L43,'(HIDE) MASTER-Chart'!$B:$G,3,FALSE), VLOOKUP(L43,'(HIDE) MASTER-Chart'!$M:$R,3,FALSE)),"") -> 53934 | Z43: (13)
B45: 14 | D45: 15 | F45: 15 | H45: 15 | J45: 16 | L45: 16 | N45: TARGET | O45: =IFERROR( IF($W$1='(HIDE) MASTER-Chart'!$J$2, VLOOKUP(B45,'(HIDE) MASTER-Chart'!$B:$G,3,FALSE), VLOOKUP(B45,'(HIDE) MASTER-Chart'!$M:$R,3,FALSE)),"") -> 55504 | P45: =IF(ISBLANK(B45),"",CONCATENATE("(",B45,")")) -> (14) | Q45: =IFERROR( IF($W$1='(HIDE) MASTER-Chart'!$J$2, VLOOKUP(D45,'(HIDE) MASTER-Chart'!$B:$G,3,FALSE), VLOOKUP(D45,'(HIDE) MASTER-Chart'!$M:$R,3,FALSE)),"") -> 57128 | R45: =IF(ISBLANK(D45),"",CONCATENATE("(",D45,")")) -> (15) | S45: =IFERROR( IF($W$1='(HIDE) MASTER-Chart'!$J$2, VLOOKUP(F45,'(HIDE) MASTER-Chart'!$B:$G,3,FALSE), VLOOKUP(F45,'(HIDE) MASTER-Chart'!$M:$R,3,FALSE)),"") -> 57128 | T45: =IF(ISBLANK(F45),"",CONCATENATE("(",F45,")")) -> (15) | U45: =IFERROR( IF($W$1='(HIDE) MASTER-Chart'!$J$2, VLOOKUP(H45,'(HIDE) MASTER-Chart'!$B:$G,3,FALSE), VLOOKUP(H45,'(HIDE) MASTER-Chart'!$M:$R,3,FALSE)),"") -> 57128 | V45: =IF(ISBLANK(H45),"",CONCATENATE("(",H45,")")) -> (15) | W45: =IFERROR( IF($W$1='(HIDE) MASTER-Chart'!$J$2, VLOOKUP(J45,'(HIDE) MASTER-Chart'!$B:$G,3,FALSE), VLOOKUP(J45,'(HIDE) MASTER-Chart'!$M:$R,3,FALSE)),"") -> 58797 | X45: =IF(ISBLANK(J45),"",CONCATENATE("(",J45,")")) -> (16) | Y45: =IFERROR( IF($W$1='(HIDE) MASTER-Chart'!$J$2, VLOOKUP(L45,'(HIDE) MASTER-Chart'!$B:$G,3,FALSE), VLOOKUP(L45,'(HIDE) MASTER-Chart'!$M:$R,3,FALSE)),"") -> 58797 | Z45: =IF(ISBLANK(L45),"",CONCATENATE("(",L45,")")) -> (16)
A46: 26 - 27 | B46: 12 | D46: 13 | F46: 13 | H46: 13 | J46: 14 | L46: 14 | N46: 2 STEP | O46: =IFERROR( IF($W$1='(HIDE) MASTER-Chart'!$J$2, VLOOKUP(B46,'(HIDE) MASTER-Chart'!$B:$G,3,FALSE), VLOOKUP(B46,'(HIDE) MASTER-Chart'!$M:$R,3,FALSE)),"") -> 52409 | P46: (12) | Q46: =IFERROR( IF($W$1='(HIDE) MASTER-Chart'!$J$2, VLOOKUP(D46,'(HIDE) MASTER-Chart'!$B:$G,3,FALSE), VLOOKUP(D46,'(HIDE) MASTER-Chart'!$M:$R,3,FALSE)),"") -> 53934 | R46: (13) | S46: =IFERROR( IF($W$1='(HIDE) MASTER-Chart'!$J$2, VLOOKUP(F46,'(HIDE) MASTER-Chart'!$B:$G,3,FALSE), VLOOKUP(F46,'(HIDE) MASTER-Chart'!$M:$R,3,FALSE)),"") -> 53934 | T46: (13) | U46: =IFERROR( IF($W$1='(HIDE) MASTER-Chart'!$J$2, VLOOKUP(H46,'(HIDE) MASTER-Chart'!$B:$G,3,FALSE), VLOOKUP(H46,'(HIDE) MASTER-Chart'!$M:$R,3,FALSE)),"") -> 53934 | V46: (13) | W46: =IFERROR( IF($W$1='(HIDE) MASTER-Chart'!$J$2, VLOOKUP(J46,'(HIDE) MASTER-Chart'!$B:$G,3,FALSE), VLOOKUP(J46,'(HIDE) MASTER-Chart'!$M:$R,3,FALSE)),"") -> 55504 | X46: (14) | Y46: =IFERROR( IF($W$1='(HIDE) MASTER-Chart'!$J$2, VLOOKUP(L46,'(HIDE) MASTER-Chart'!$B:$G,3,FALSE), VLOOKUP(L46,'(HIDE) MASTER-Chart'!$M:$R,3,FALSE)),"") -> 55504 | Z46: (14)
B48: 15 | D48: 15 | F48: 16 | H48: 16 | J48: 16 | L48: 16 | N48: TARGET | O48: =IFERROR( IF($W$1='(HIDE) MASTER-Chart'!$J$2, VLOOKUP(B48,'(HIDE) MASTER-Chart'!$B:$G,3,FALSE), VLOOKUP(B48,'(HIDE) MASTER-Chart'!$M:$R,3,FALSE)),"") -> 57128 | P48: =IF(ISBLANK(B48),"",CONCATENATE("(",B48,")")) -> (15) | Q48: =IFERROR( IF($W$1='(HIDE) MASTER-Chart'!$J$2, VLOOKUP(D48,'(HIDE) MASTER-Chart'!$B:$G,3,FALSE), VLOOKUP(D48,'(HIDE) MASTER-Chart'!$M:$R,3,FALSE)),"") -> 57128 | R48: =IF(ISBLANK(D48),"",CONCATENATE("(",D48,")")) -> (15) | S48: =IFERROR( IF($W$1='(HIDE) MASTER-Chart'!$J$2, VLOOKUP(F48,'(HIDE) MASTER-Chart'!$B:$G,3,FALSE), VLOOKUP(F48,'(HIDE) MASTER-Chart'!$M:$R,3,FALSE)),"") -> 58797 | T48: =IF(ISBLANK(F48),"",CONCATENATE("(",F48,")")) -> (16) | U48: =IFERROR( IF($W$1='(HIDE) MASTER-Chart'!$J$2, VLOOKUP(H48,'(HIDE) MASTER-Chart'!$B:$G,3,FALSE), VLOOKUP(H48,'(HIDE) MASTER-Chart'!$M:$R,3,FALSE)),"") -> 58797 | V48: =IF(ISBLANK(H48),"",CONCATENATE("(",H48,")")) -> (16) | W48: =IFERROR( IF($W$1='(HIDE) MASTER-Chart'!$J$2, VLOOKUP(J48,'(HIDE) MASTER-Chart'!$B:$G,3,FALSE), VLOOKUP(J48,'(HIDE) MASTER-Chart'!$M:$R,3,FALSE)),"") -> 58797 | X48: =IF(ISBLANK(J48),"",CONCATENATE("(",J48,")")) -> (16) | Y48: =IFERROR( IF($W$1='(HIDE) MASTER-Chart'!$J$2, VLOOKUP(L48,'(HIDE) MASTER-Chart'!$B:$G,3,FALSE), VLOOKUP(L48,'(HIDE) MASTER-Chart'!$M:$R,3,FALSE)),"") -> 58797 | Z48: =IF(ISBLANK(L48),"",CONCATENATE("(",L48,")")) -> (16)
A49: 28 - 29 | B49: 13 | D49: 13 | F49: 14 | H49: 14 | J49: 14 | L49: 14 | N49: 2 STEP | O49: =IFERROR( IF($W$1='(HIDE) MASTER-Chart'!$J$2, VLOOKUP(B49,'(HIDE) MASTER-Chart'!$B:$G,3,FALSE), VLOOKUP(B49,'(HIDE) MASTER-Chart'!$M:$R,3,FALSE)),"") -> 53934 | P49: (13) | Q49: =IFERROR( IF($W$1='(HIDE) MASTER-Chart'!$J$2, VLOOKUP(D49,'(HIDE) MASTER-Chart'!$B:$G,3,FALSE), VLOOKUP(D49,'(HIDE) MASTER-Chart'!$M:$R,3,FALSE)),"") -> 53934 | R49: (13) | S49: =IFERROR( IF($W$1='(HIDE) MASTER-Chart'!$J$2, VLOOKUP(F49,'(HIDE) MASTER-Chart'!$B:$G,3,FALSE), VLOOKUP(F49,'(HIDE) MASTER-Chart'!$M:$R,3,FALSE)),"") -> 55504 | T49: (14) | U49: =IFERROR( IF($W$1='(HIDE) MASTER-Chart'!$J$2, VLOOKUP(H49,'(HIDE) MASTER-Chart'!$B:$G,3,FALSE), VLOOKUP(H49,'(HIDE) MASTER-Chart'!$M:$R,3,FALSE)),"") -> 55504 | V49: (14) | W49: =IFERROR( IF($W$1='(HIDE) MASTER-Chart'!$J$2, VLOOKUP(J49,'(HIDE) MASTER-Chart'!$B:$G,3,FALSE), VLOOKUP(J49,'(HIDE) MASTER-Chart'!$M:$R,3,FALSE)),"") -> 55504 | X49: (14) | Y49: =IFERROR( IF($W$1='(HIDE) MASTER-Chart'!$J$2, VLOOKUP(L49,'(HIDE) MASTER-Chart'!$B:$G,3,FALSE), VLOOKUP(L49,'(HIDE) MASTER-Chart'!$M:$R,3,FALSE)),"") -> 55504 | Z49: (14)
B51: 15 | D51: 16 | F51: 16 | H51: 16 | J51: 16 | L51: 16 | N51: TARGET | O51: =IFERROR( IF($W$1='(HIDE) MASTER-Chart'!$J$2, VLOOKUP(B51,'(HIDE) MASTER-Chart'!$B:$G,3,FALSE), VLOOKUP(B51,'(HIDE) MASTER-Chart'!$M:$R,3,FALSE)),"") -> 57128 | P51: =IF(ISBLANK(B51),"",CONCATENATE("(",B51,")")) -> (15) | Q51: =IFERROR( IF($W$1='(HIDE) MASTER-Chart'!$J$2, VLOOKUP(D51,'(HIDE) MASTER-Chart'!$B:$G,3,FALSE), VLOOKUP(D51,'(HIDE) MASTER-Chart'!$M:$R,3,FALSE)),"") -> 58797 | R51: =IF(ISBLANK(D51),"",CONCATENATE("(",D51,")")) -> (16) | S51: =IFERROR( IF($W$1='(HIDE) MASTER-Chart'!$J$2, VLOOKUP(F51,'(HIDE) MASTER-Chart'!$B:$G,3,FALSE), VLOOKUP(F51,'(HIDE) MASTER-Chart'!$M:$R,3,FALSE)),"") -> 58797 | T51: =IF(ISBLANK(F51),"",CONCATENATE("(",F51,")")) -> (16) | U51: =IFERROR( IF($W$1='(HIDE) MASTER-Chart'!$J$2, VLOOKUP(H51,'(HIDE) MASTER-Chart'!$B:$G,3,FALSE), VLOOKUP(H51,'(HIDE) MASTER-Chart'!$M:$R,3,FALSE)),"") -> 58797 | V51: =IF(ISBLANK(H51),"",CONCATENATE("(",H51,")")) -> (16) | W51: =IFERROR( IF($W$1='(HIDE) MASTER-Chart'!$J$2, VLOOKUP(J51,'(HIDE) MASTER-Chart'!$B:$G,3,FALSE), VLOOKUP(J51,'(HIDE) MASTER-Chart'!$M:$R,3,FALSE)),"") -> 58797 | X51: =IF(ISBLANK(J51),"",CONCATENATE("(",J51,")")) -> (16) | Y51: =IFERROR( IF($W$1='(HIDE) MASTER-Chart'!$J$2, VLOOKUP(L51,'(HIDE) MASTER-Chart'!$B:$G,3,FALSE), VLOOKUP(L51,'(HIDE) MASTER-Chart'!$M:$R,3,FALSE)),"") -> 58797 | Z51: =IF(ISBLANK(L51),"",CONCATENATE("(",L51,")")) -> (16)
A52: 30 - 31 | B52: 13 | D52: 14 | F52: 14 | H52: 14 | J52: 14 | L52: 14 | N52: 2 STEP | O52: =IFERROR( IF($W$1='(HIDE) MASTER-Chart'!$J$2, VLOOKUP(B52,'(HIDE) MASTER-Chart'!$B:$G,3,FALSE), VLOOKUP(B52,'(HIDE) MASTER-Chart'!$M:$R,3,FALSE)),"") -> 53934 | P52: (13) | Q52: =IFERROR( IF($W$1='(HIDE) MASTER-Chart'!$J$2, VLOOKUP(D52,'(HIDE) MASTER-Chart'!$B:$G,3,FALSE), VLOOKUP(D52,'(HIDE) MASTER-Chart'!$M:$R,3,FALSE)),"") -> 55504 | R52: (14) | S52: =IFERROR( IF($W$1='(HIDE) MASTER-Chart'!$J$2, VLOOKUP(F52,'(HIDE) MASTER-Chart'!$B:$G,3,FALSE), VLOOKUP(F52,'(HIDE) MASTER-Chart'!$M:$R,3,FALSE)),"") -> 55504 | T52: (14) | U52: =IFERROR( IF($W$1='(HIDE) MASTER-Chart'!$J$2, VLOOKUP(H52,'(HIDE) MASTER-Chart'!$B:$G,3,FALSE), VLOOKUP(H52,'(HIDE) MASTER-Chart'!$M:$R,3,FALSE)),"") -> 55504 | V52: (14) | W52: =IFERROR( IF($W$1='(HIDE) MASTER-Chart'!$J$2, VLOOKUP(J52,'(HIDE) MASTER-Chart'!$B:$G,3,FALSE), VLOOKUP(J52,'(HIDE) MASTER-Chart'!$M:$R,3,FALSE)),"") -> 55504 | X52: (14) | Y52: =IFERROR( IF($W$1='(HIDE) MASTER-Chart'!$J$2, VLOOKUP(L52,'(HIDE) MASTER-Chart'!$B:$G,3,FALSE), VLOOKUP(L52,'(HIDE) MASTER-Chart'!$M:$R,3,FALSE)),"") -> 55504 | Z52: (14)
B54: 16 | D54: 16 | F54: 16 | H54: 16 | J54: 16 | L54: 16 | N54: TARGET | O54: =IFERROR( IF($W$1='(HIDE) MASTER-Chart'!$J$2, VLOOKUP(B54,'(HIDE) MASTER-Chart'!$B:$G,3,FALSE), VLOOKUP(B54,'(HIDE) MASTER-Chart'!$M:$R,3,FALSE)),"") -> 58797 | P54: =IF(ISBLANK(B54),"",CONCATENATE("(",B54,")")) -> (16) | Q54: =IFERROR( IF($W$1='(HIDE) MASTER-Chart'!$J$2, VLOOKUP(D54,'(HIDE) MASTER-Chart'!$B:$G,3,FALSE), VLOOKUP(D54,'(HIDE) MASTER-Chart'!$M:$R,3,FALSE)),"") -> 58797 | R54: =IF(ISBLANK(D54),"",CONCATENATE("(",D54,")")) -> (16) | S54: =IFERROR( IF($W$1='(HIDE) MASTER-Chart'!$J$2, VLOOKUP(F54,'(HIDE) MASTER-Chart'!$B:$G,3,FALSE), VLOOKUP(F54,'(HIDE) MASTER-Chart'!$M:$R,3,FALSE)),"") -> 58797 | T54: =IF(ISBLANK(F54),"",CONCATENATE("(",F54,")")) -> (16) | U54: =IFERROR( IF($W$1='(HIDE) MASTER-Chart'!$J$2, VLOOKUP(H54,'(HIDE) MASTER-Chart'!$B:$G,3,FALSE), VLOOKUP(H54,'(HIDE) MASTER-Chart'!$M:$R,3,FALSE)),"") -> 58797 | V54: =IF(ISBLANK(H54),"",CONCATENATE("(",H54,")")) -> (16) | W54: =IFERROR( IF($W$1='(HIDE) MASTER-Chart'!$J$2, VLOOKUP(J54,'(HIDE) MASTER-Chart'!$B:$G,3,FALSE), VLOOKUP(J54,'(HIDE) MASTER-Chart'!$M:$R,3,FALSE)),"") -> 58797 | X54: =IF(ISBLANK(J54),"",CONCATENATE("(",J54,")")) -> (16) | Y54: =IFERROR( IF($W$1='(HIDE) MASTER-Chart'!$J$2, VLOOKUP(L54,'(HIDE) MASTER-Chart'!$B:$G,3,FALSE), VLOOKUP(L54,'(HIDE) MASTER-Chart'!$M:$R,3,FALSE)),"") -> 58797 | Z54: =IF(ISBLANK(L54),"",CONCATENATE("(",L54,")")) -> (16)
A55: 32+ | B55: 14 | D55: 14 | F55: 14 | H55: 14 | J55: 14 | L55: 14 | N55: 2 STEP | O55: =IFERROR( IF($W$1='(HIDE) MASTER-Chart'!$J$2, VLOOKUP(B55,'(HIDE) MASTER-Chart'!$B:$G,3,FALSE), VLOOKUP(B55,'(HIDE) MASTER-Chart'!$M:$R,3,FALSE)),"") -> 55504 | P55: (14) | Q55: =IFERROR( IF($W$1='(HIDE) MASTER-Chart'!$J$2, VLOOKUP(D55,'(HIDE) MASTER-Chart'!$B:$G,3,FALSE), VLOOKUP(D55,'(HIDE) MASTER-Chart'!$M:$R,3,FALSE)),"") -> 55504 | R55: (14) | S55: =IFERROR( IF($W$1='(HIDE) MASTER-Chart'!$J$2, VLOOKUP(F55,'(HIDE) MASTER-Chart'!$B:$G,3,FALSE), VLOOKUP(F55,'(HIDE) MASTER-Chart'!$M:$R,3,FALSE)),"") -> 55504 | T55: (14) | U55: =IFERROR( IF($W$1='(HIDE) MASTER-Chart'!$J$2, VLOOKUP(H55,'(HIDE) MASTER-Chart'!$B:$G,3,FALSE), VLOOKUP(H55,'(HIDE) MASTER-Chart'!$M:$R,3,FALSE)),"") -> 55504 | V55: (14) | W55: =IFERROR( IF($W$1='(HIDE) MASTER-Chart'!$J$2, VLOOKUP(J55,'(HIDE) MASTER-Chart'!$B:$G,3,FALSE), VLOOKUP(J55,'(HIDE) MASTER-Chart'!$M:$R,3,FALSE)),"") -> 55504 | X55: (14) | Y55: =IFERROR( IF($W$1='(HIDE) MASTER-Chart'!$J$2, VLOOKUP(L55,'(HIDE) MASTER-Chart'!$B:$G,3,FALSE), VLOOKUP(L55,'(HIDE) MASTER-Chart'!$M:$R,3,FALSE)),"") -> 55504 | Z55: (14)

Sheet Printable Grid-RangeC
O1: MSUAASF | S1: RANGE C | W1: 7/1/2023 (FY24)
Q2: ='(HIDE) MASTER-Chart'!$E$3 -> 45352 | S2: to | U2: ='(HIDE) MASTER-Chart'!$E$22 -> 78555
A4: TOTAL | O4: Years in Equal or Higher MSUAASF, MnSCU Academic Professional, MnSCU Academic Supervisor and/or MnSCU Administrator Ranges
A5: YRS EXP | B5: 0 - 1 | D5: 2 - 3 | F5: 4 - 5 | H5: 6 - 7 | J5: 8 - 9 | L5: 10 + | O5: 0 - 1 | Q5: 2 - 3 | S5: 4 - 5 | U5: 6 - 7 | W5: 8 - 9 | Y5: 10 +
B6: 3 | N6: TARGET | O6: =IFERROR( IF($W$1='(HIDE) MASTER-Chart'!$J$2, VLOOKUP(B6,'(HIDE) MASTER-Chart'!$B:$G,4,FALSE), VLOOKUP(B6,'(HIDE) MASTER-Chart'!$M:$R,4,FALSE)),"") -> 47972 | P6: =IF(ISBLANK(B6),"",CONCATENATE("(",B6,")")) -> (3) | Q6: =IFERROR( IF($W$1='(HIDE) MASTER-Chart'!$J$2, VLOOKUP(D6,'(HIDE) MASTER-Chart'!$B:$G,4,FALSE), VLOOKUP(D6,'(HIDE) MASTER-Chart'!$M:$R,4,FALSE)),"") ->  | R6: =IF(ISBLANK(D6),"",CONCATENATE("(",D6,")")) ->  | S6: =IFERROR( IF($W$1='(HIDE) MASTER-Chart'!$J$2, VLOOKUP(F6,'(HIDE) MASTER-Chart'!$B:$G,4,FALSE), VLOOKUP(F6,'(HIDE) MASTER-Chart'!$M:$R,4,FALSE)),"") ->  | T6: =IF(ISBLANK(F6),"",CONCATENATE("(",F6,")")) ->  | U6: =IFERROR( IF($W$1='(HIDE) MASTER-Chart'!$J$2, VLOOKUP(H6,'(HIDE) MASTER-Chart'!$B:$G,4,FALSE), VLOOKUP(H6,'(HIDE) MASTER-Chart'!$M:$R,4,FALSE)),"") ->  | V6: =IF(ISBLANK(H6),"",CONCATENATE("(",H6,")")) ->  | W6: =IFERROR( IF($W$1='(HIDE) MASTER-Chart'!$J$2, VLOOKUP(J6,'(HIDE) MASTER-Chart'!$B:$G,4,FALSE), VLOOKUP(J6,'(HIDE) MASTER-Chart'!$M:$R,4,FALSE)),"") ->  | X6: =IF(ISBLANK(J6),"",CONCATENATE("(",J6,")")) ->  | Y6: =IFERROR( IF($W$1='(HIDE) MASTER-Chart'!$J$2, VLOOKUP(L6,'(HIDE) MASTER-Chart'!$B:$G,4,FALSE), VLOOKUP(L6,'(HIDE) MASTER-Chart'!$M:$R,4,FALSE)),"") ->  | Z6: =IF(ISBLANK(L6),"",CONCATENATE("(",L6,")")) -> 
A7: 0 - 1 | B7: 1 | N7: 2 STEP | O7: =IFERROR( IF($W$1='(HIDE) MASTER-Chart'!$J$2, VLOOKUP(B7,'(HIDE) MASTER-Chart'!$B:$G,4,FALSE), VLOOKUP(B7,'(HIDE) MASTER-Chart'!$M:$R,4,FALSE)),"") -> 45352 | P7: =IF(ISBLANK(B7),"",CONCATENATE("(",B7,")")) -> (1) | Q7: =IFERROR( IF($W$1='(HIDE) MASTER-Chart'!$J$2, VLOOKUP(D7,'(HIDE) MASTER-Chart'!$B:$G,4,FALSE), VLOOKUP(D7,'(HIDE) MASTER-Chart'!$M:$R,4,FALSE)),"") ->  | S7: =IFERROR( IF($W$1='(HIDE) MASTER-Chart'!$J$2, VLOOKUP(F7,'(HIDE) MASTER-Chart'!$B:$G,4,FALSE), VLOOKUP(F7,'(HIDE) MASTER-Chart'!$M:$R,4,FALSE)),"") ->  | U7: =IFERROR( IF($W$1='(HIDE) MASTER-Chart'!$J$2, VLOOKUP(H7,'(HIDE) MASTER-Chart'!$B:$G,4,FALSE), VLOOKUP(H7,'(HIDE) MASTER-Chart'!$M:$R,4,FALSE)),"") ->  | W7: =IFERROR( IF($W$1='(HIDE) MASTER-Chart'!$J$2, VLOOKUP(J7,'(HIDE) MASTER-Chart'!$B:$G,4,FALSE), VLOOKUP(J7,'(HIDE) MASTER-Chart'!$M:$R,4,FALSE)),"") ->  | Y7: =IFERROR( IF($W$1='(HIDE) MASTER-Chart'!$J$2, VLOOKUP(L7,'(HIDE) MASTER-Chart'!$B:$G,4,FALSE), VLOOKUP(L7,'(HIDE) MASTER-Chart'!$M:$R,4,FALSE)),"") -> 
O8: =IF(ISERROR(VLOOKUP(B8,'(HIDE) MASTER-Chart'!$B:$G,5,FALSE)),"",VLOOKUP(B8,'(HIDE) MASTER-Chart'!$B:$G,5,FALSE)) ->  | P8: =IF(ISBLANK(B8),"",CONCATENATE("(",B8,")")) ->  | Q8: =IF(ISERROR(VLOOKUP(D8,'(HIDE) MASTER-Chart'!$B:$G,5,FALSE)),"",VLOOKUP(D8,'(HIDE) MASTER-Chart'!$B:$G,5,FALSE)) ->  | S8: =IF(ISERROR(VLOOKUP(F8,'(HIDE) MASTER-Chart'!$B:$G,5,FALSE)),"",VLOOKUP(F8,'(HIDE) MASTER-Chart'!$B:$G,5,FALSE)) ->  | U8: =IF(ISERROR(VLOOKUP(H8,'(HIDE) MASTER-Chart'!$B:$G,5,FALSE)),"",VLOOKUP(H8,'(HIDE) MASTER-Chart'!$B:$G,5,FALSE)) ->  | W8: =IF(ISERROR(VLOOKUP(J8,'(HIDE) MASTER-Chart'!$B:$G,5,FALSE)),"",VLOOKUP(J8,'(HIDE) MASTER-Chart'!$B:$G,5,FALSE)) ->  | Y8: =IF(ISERROR(VLOOKUP(L8,'(HIDE) MASTER-Chart'!$B:$G,5,FALSE)),"",VLOOKUP(L8,'(HIDE) MASTER-Chart'!$B:$G,5,FALSE)) -> 
B9: 4 | D9: 4 | N9: TARGET | O9: =IFERROR( IF($W$1='(HIDE) MASTER-Chart'!$J$2, VLOOKUP(B9,'(HIDE) MASTER-Chart'!$B:$G,4,FALSE), VLOOKUP(B9,'(HIDE) MASTER-Chart'!$M:$R,4,FALSE)),"") -> 49382 | P9: =IF(ISBLANK(B9),"",CONCATENATE("(",B9,")")) -> (4) | Q9: =IFERROR( IF($W$1='(HIDE) MASTER-Chart'!$J$2, VLOOKUP(D9,'(HIDE) MASTER-Chart'!$B:$G,4,FALSE), VLOOKUP(D9,'(HIDE) MASTER-Chart'!$M:$R,4,FALSE)),"") -> 49382 | R9: =IF(ISBLANK(D9),"",CONCATENATE("(",D9,")")) -> (4) | S9: =IFERROR( IF($W$1='(HIDE) MASTER-Chart'!$J$2, VLOOKUP(F9,'(HIDE) MASTER-Chart'!$B:$G,4,FALSE), VLOOKUP(F9,'(HIDE) MASTER-Chart'!$M:$R,4,FALSE)),"") ->  | T9: =IF(ISBLANK(F9),"",CONCATENATE("(",F9,")")) ->  | U9: =IFERROR( IF($W$1='(HIDE) MASTER-Chart'!$J$2, VLOOKUP(H9,'(HIDE) MASTER-Chart'!$B:$G,4,FALSE), VLOOKUP(H9,'(HIDE) MASTER-Chart'!$M:$R,4,FALSE)),"") ->  | V9: =IF(ISBLANK(H9),"",CONCATENATE("(",H9,")")) ->  | W9: =IFERROR( IF($W$1='(HIDE) MASTER-Chart'!$J$2, VLOOKUP(J9,'(HIDE) MASTER-Chart'!$B:$G,4,FALSE), VLOOKUP(J9,'(HIDE) MASTER-Chart'!$M:$R,4,FALSE)),"") ->  | X9: =IF(ISBLANK(J9),"",CONCATENATE("(",J9,")")) ->  | Y9: =IFERROR( IF($W$1='(HIDE) MASTER-Chart'!$J$2, VLOOKUP(L9,'(HIDE) MASTER-Chart'!$B:$G,4,FALSE), VLOOKUP(L9,'(HIDE) MASTER-Chart'!$M:$R,4,FALSE)),"") ->  | Z9: =IF(ISBLANK(L9),"",CONCATENATE("(",L9,")")) -> 
A10: 2 - 3 | B10: 2 | D10: 2 | N10: 2 STEP | O10: =IFERROR( IF($W$1='(HIDE) MASTER-Chart'!$J$2, VLOOKUP(B10,'(HIDE) MASTER-Chart'!$B:$G,4,FALSE), VLOOKUP(B10,'(HIDE) MASTER-Chart'!$M:$R,4,FALSE)),"") -> 46559 | P10: (2) | Q10: =IFERROR( IF($W$1='(HIDE) MASTER-Chart'!$J$2, VLOOKUP(D10,'(HIDE) MASTER-Chart'!$B:$G,4,FALSE), VLOOKUP(D10,'(HIDE) MASTER-Chart'!$M:$R,4,FALSE)),"") -> 46559 | R10: (2) | S10: =IFERROR( IF($W$1='(HIDE) MASTER-Chart'!$J$2, VLOOKUP(F10,'(HIDE) MASTER-Chart'!$B:$G,4,FALSE), VLOOKUP(F10,'(HIDE) MASTER-Chart'!$M:$R,4,FALSE)),"") ->  | U10: =IFERROR( IF($W$1='(HIDE) MASTER-Chart'!$J$2, VLOOKUP(H10,'(HIDE) MASTER-Chart'!$B:$G,4,FALSE), VLOOKUP(H10,'(HIDE) MASTER-Chart'!$M:$R,4,FALSE)),"") ->  | W10: =IFERROR( IF($W$1='(HIDE) MASTER-Chart'!$J$2, VLOOKUP(J10,'(HIDE) MASTER-Chart'!$B:$G,4,FALSE), VLOOKUP(J10,'(HIDE) MASTER-Chart'!$M:$R,4,FALSE)),"") ->  | Y10: =IFERROR( IF($W$1='(HIDE) MASTER-Chart'!$J$2, VLOOKUP(L10,'(HIDE) MASTER-Chart'!$B:$G,4,FALSE), VLOOKUP(L10,'(HIDE) MASTER-Chart'!$M:$R,4,FALSE)),"") -> 
O11: =IF(ISERROR(VLOOKUP(B11,'(HIDE) MASTER-Chart'!$B:$G,5,FALSE)),"",VLOOKUP(B11,'(HIDE) MASTER-Chart'!$B:$G,5,FALSE)) ->  | Q11: =IF(ISERROR(VLOOKUP(D11,'(HIDE) MASTER-Chart'!$B:$G,5,FALSE)),"",VLOOKUP(D11,'(HIDE) MASTER-Chart'!$B:$G,5,FALSE)) ->  | S11: =IF(ISERROR(VLOOKUP(F11,'(HIDE) MASTER-Chart'!$B:$G,5,FALSE)),"",VLOOKUP(F11,'(HIDE) MASTER-Chart'!$B:$G,5,FALSE)) ->  | U11: =IF(ISERROR(VLOOKUP(H11,'(HIDE) MASTER-Chart'!$B:$G,5,FALSE)),"",VLOOKUP(H11,'(HIDE) MASTER-Chart'!$B:$G,5,FALSE)) ->  | W11: =IF(ISERROR(VLOOKUP(J11,'(HIDE) MASTER-Chart'!$B:$G,5,FALSE)),"",VLOOKUP(J11,'(HIDE) MASTER-Chart'!$B:$G,5,FALSE)) ->  | Y11: =IF(ISERROR(VLOOKUP(L11,'(HIDE) MASTER-Chart'!$B:$G,5,FALSE)),"",VLOOKUP(L11,'(HIDE) MASTER-Chart'!$B:$G,5,FALSE)) -> 
B12: 5 | D12: 5 | F12: 6 | N12: TARGET | O12: =IFERROR( IF($W$1='(HIDE) MASTER-Chart'!$J$2, VLOOKUP(B12,'(HIDE) MASTER-Chart'!$B:$G,4,FALSE), VLOOKUP(B12,'(HIDE) MASTER-Chart'!$M:$R,4,FALSE)),"") -> 50884 | P12: (5) | Q12: =IFERROR( IF($W$1='(HIDE) MASTER-Chart'!$J$2, VLOOKUP(D12,'(HIDE) MASTER-Chart'!$B:$G,4,FALSE), VLOOKUP(D12,'(HIDE) MASTER-Chart'!$M:$R,4,FALSE)),"") -> 50884 | R12: (5) | S12: =IFERROR( IF($W$1='(HIDE) MASTER-Chart'!$J$2, VLOOKUP(F12,'(HIDE) MASTER-Chart'!$B:$G,4,FALSE), VLOOKUP(F12,'(HIDE) MASTER-Chart'!$M:$R,4,FALSE)),"") -> 52542 | T12: (6) | U12: =IFERROR( IF($W$1='(HIDE) MASTER-Chart'!$J$2, VLOOKUP(H12,'(HIDE) MASTER-Chart'!$B:$G,4,FALSE), VLOOKUP(H12,'(HIDE) MASTER-Chart'!$M:$R,4,FALSE)),"") ->  | W12: =IFERROR( IF($W$1='(HIDE) MASTER-Chart'!$J$2, VLOOKUP(J12,'(HIDE) MASTER-Chart'!$B:$G,4,FALSE), VLOOKUP(J12,'(HIDE) MASTER-Chart'!$M:$R,4,FALSE)),"") ->  | Y12: =IFERROR( IF($W$1='(HIDE) MASTER-Chart'!$J$2, VLOOKUP(L12,'(HIDE) MASTER-Chart'!$B:$G,4,FALSE), VLOOKUP(L12,'(HIDE) MASTER-Chart'!$M:$R,4,FALSE)),"") -> 
A13: 4 - 5 | B13: 3 | D13: 3 | F13: 4 | N13: 2 STEP | O13: =IFERROR( IF($W$1='(HIDE) MASTER-Chart'!$J$2, VLOOKUP(B13,'(HIDE) MASTER-Chart'!$B:$G,4,FALSE), VLOOKUP(B13,'(HIDE) MASTER-Chart'!$M:$R,4,FALSE)),"") -> 47972 | P13: (3) | Q13: =IFERROR( IF($W$1='(HIDE) MASTER-Chart'!$J$2, VLOOKUP(D13,'(HIDE) MASTER-Chart'!$B:$G,4,FALSE), VLOOKUP(D13,'(HIDE) MASTER-Chart'!$M:$R,4,FALSE)),"") -> 47972 | R13: (3) | S13: =IFERROR( IF($W$1='(HIDE) MASTER-Chart'!$J$2, VLOOKUP(F13,'(HIDE) MASTER-Chart'!$B:$G,4,FALSE), VLOOKUP(F13,'(HIDE) MASTER-Chart'!$M:$R,4,FALSE)),"") -> 49382 | T13: (4) | U13: =IFERROR( IF($W$1='(HIDE) MASTER-Chart'!$J$2, VLOOKUP(H13,'(HIDE) MASTER-Chart'!$B:$G,4,FALSE), VLOOKUP(H13,'(HIDE) MASTER-Chart'!$M:$R,4,FALSE)),"") ->  | W13: =IFERROR( IF($W$1='(HIDE) MASTER-Chart'!$J$2, VLOOKUP(J13,'(HIDE) MASTER-Chart'!$B:$G,4,FALSE), VLOOKUP(J13,'(HIDE) MASTER-Chart'!$M:$R,4,FALSE)),"") ->  | Y13: =IFERROR( IF($W$1='(HIDE) MASTER-Chart'!$J$2, VLOOKUP(L13,'(HIDE) MASTER-Chart'!$B:$G,4,FALSE), VLOOKUP(L13,'(HIDE) MASTER-Chart'!$M:$R,4,FALSE)),"") -> 
O14: =IF(ISERROR(VLOOKUP(B14,'(HIDE) MASTER-Chart'!$B:$G,5,FALSE)),"",VLOOKUP(B14,'(HIDE) MASTER-Chart'!$B:$G,5,FALSE)) ->  | Q14: =IF(ISERROR(VLOOKUP(D14,'(HIDE) MASTER-Chart'!$B:$G,5,FALSE)),"",VLOOKUP(D14,'(HIDE) MASTER-Chart'!$B:$G,5,FALSE)) ->  | S14: =IF(ISERROR(VLOOKUP(F14,'(HIDE) MASTER-Chart'!$B:$G,5,FALSE)),"",VLOOKUP(F14,'(HIDE) MASTER-Chart'!$B:$G,5,FALSE)) ->  | U14: =IF(ISERROR(VLOOKUP(H14,'(HIDE) MASTER-Chart'!$B:$G,5,FALSE)),"",VLOOKUP(H14,'(HIDE) MASTER-Chart'!$B:$G,5,FALSE)) ->  | W14: =IF(ISERROR(VLOOKUP(J14,'(HIDE) MASTER-Chart'!$B:$G,5,FALSE)),"",VLOOKUP(J14,'(HIDE) MASTER-Chart'!$B:$G,5,FALSE)) ->  | Y14: =IF(ISERROR(VLOOKUP(L14,'(HIDE) MASTER-Chart'!$B:$G,5,FALSE)),"",VLOOKUP(L14,'(HIDE) MASTER-Chart'!$B:$G,5,FALSE)) -> 
B15: 5 | D15: 6 | F15: 6 | H15: 7 | N15: TARGET | O15: =IFERROR( IF($W$1='(HIDE) MASTER-Chart'!$J$2, VLOOKUP(B15,'(HIDE) MASTER-Chart'!$B:$G,4,FALSE), VLOOKUP(B15,'(HIDE) MASTER-Chart'!$M:$R,4,FALSE)),"") -> 50884 | P15: (5) | Q15: =IFERROR( IF($W$1='(HIDE) MASTER-Chart'!$J$2, VLOOKUP(D15,'(HIDE) MASTER-Chart'!$B:$G,4,FALSE), VLOOKUP(D15,'(HIDE) MASTER-Chart'!$M:$R,4,FALSE)),"") -> 52542 | R15: (6) | S15: =IFERROR( IF($W$1='(HIDE) MASTER-Chart'!$J$2, VLOOKUP(F15,'(HIDE) MASTER-Chart'!$B:$G,4,FALSE), VLOOKUP(F15,'(HIDE) MASTER-Chart'!$M:$R,4,FALSE)),"") -> 52542 | T15: (6) | U15: =IFERROR( IF($W$1='(HIDE) MASTER-Chart'!$J$2, VLOOKUP(H15,'(HIDE) MASTER-Chart'!$B:$G,4,FALSE), VLOOKUP(H15,'(HIDE) MASTER-Chart'!$M:$R,4,FALSE)),"") -> 53953 | V15: (7) | W15: =IFERROR( IF($W$1='(HIDE) MASTER-Chart'!$J$2, VLOOKUP(J15,'(HIDE) MASTER-Chart'!$B:$G,4,FALSE), VLOOKUP(J15,'(HIDE) MASTER-Chart'!$M:$R,4,FALSE)),"") ->  | Y15: =IFERROR( IF($W$1='(HIDE) MASTER-Chart'!$J$2, VLOOKUP(L15,'(HIDE) MASTER-Chart'!$B:$G,4,FALSE), VLOOKUP(L15,'(HIDE) MASTER-Chart'!$M:$R,4,FALSE)),"") -> 
A16: 6 - 7 | B16: 3 | D16: 4 | F16: 4 | H16: 5 | N16: 2 STEP | O16: =IFERROR( IF($W$1='(HIDE) MASTER-Chart'!$J$2, VLOOKUP(B16,'(HIDE) MASTER-Chart'!$B:$G,4,FALSE), VLOOKUP(B16,'(HIDE) MASTER-Chart'!$M:$R,4,FALSE)),"") -> 47972 | P16: (3) | Q16: =IFERROR( IF($W$1='(HIDE) MASTER-Chart'!$J$2, VLOOKUP(D16,'(HIDE) MASTER-Chart'!$B:$G,4,FALSE), VLOOKUP(D16,'(HIDE) MASTER-Chart'!$M:$R,4,FALSE)),"") -> 49382 | R16: (4) | S16: =IFERROR( IF($W$1='(HIDE) MASTER-Chart'!$J$2, VLOOKUP(F16,'(HIDE) MASTER-Chart'!$B:$G,4,FALSE), VLOOKUP(F16,'(HIDE) MASTER-Chart'!$M:$R,4,FALSE)),"") -> 49382 | T16: (4) | U16: =IFERROR( IF($W$1='(HIDE) MASTER-Chart'!$J$2, VLOOKUP(H16,'(HIDE) MASTER-Chart'!$B:$G,4,FALSE), VLOOKUP(H16,'(HIDE) MASTER-Chart'!$M:$R,4,FALSE)),"") -> 50884 | V16: (5) | W16: =IFERROR( IF($W$1='(HIDE) MASTER-Chart'!$J$2, VLOOKUP(J16,'(HIDE) MASTER-Chart'!$B:$G,4,FALSE), VLOOKUP(J16,'(HIDE) MASTER-Chart'!$M:$R,4,FALSE)),"") ->  | Y16: =IFERROR( IF($W$1='(HIDE) MASTER-Chart'!$J$2, VLOOKUP(L16,'(HIDE) MASTER-Chart'!$B:$G,4,FALSE), VLOOKUP(L16,'(HIDE) MASTER-Chart'!$M:$R,4,FALSE)),"") -> 
O17: =IF(ISERROR(VLOOKUP(B17,'(HIDE) MASTER-Chart'!$B:$G,5,FALSE)),"",VLOOKUP(B17,'(HIDE) MASTER-Chart'!$B:$G,5,FALSE)) ->  | Q17: =IF(ISERROR(VLOOKUP(D17,'(HIDE) MASTER-Chart'!$B:$G,5,FALSE)),"",VLOOKUP(D17,'(HIDE) MASTER-Chart'!$B:$G,5,FALSE)) ->  | S17: =IF(ISERROR(VLOOKUP(F17,'(HIDE) MASTER-Chart'!$B:$G,5,FALSE)),"",VLOOKUP(F17,'(HIDE) MASTER-Chart'!$B:$G,5,FALSE)) ->  | U17: =IF(ISERROR(VLOOKUP(H17,'(HIDE) MASTER-Chart'!$B:$G,5,FALSE)),"",VLOOKUP(H17,'(HIDE) MASTER-Chart'!$B:$G,5,FALSE)) ->  | W17: =IF(ISERROR(VLOOKUP(J17,'(HIDE) MASTER-Chart'!$B:$G,5,FALSE)),"",VLOOKUP(J17,'(HIDE) MASTER-Chart'!$B:$G,5,FALSE)) ->  | Y17: =IF(ISERROR(VLOOKUP(L17,'(HIDE) MASTER-Chart'!$B:$G,5,FALSE)),"",VLOOKUP(L17,'(HIDE) MASTER-Chart'!$B:$G,5,FALSE)) -> 
B18: 6 | D18: 7 | F18: 7 | H18: 7 | J18: 8 | N18: TARGET | O18: =IFERROR( IF($W$1='(HIDE) MASTER-Chart'!$J$2, VLOOKUP(B18,'(HIDE) MASTER-Chart'!$B:$G,4,FALSE), VLOOKUP(B18,'(HIDE) MASTER-Chart'!$M:$R,4,FALSE)),"") -> 52542 | P18: (6) | Q18: =IFERROR( IF($W$1='(HIDE) MASTER-Chart'!$J$2, VLOOKUP(D18,'(HIDE) MASTER-Chart'!$B:$G,4,FALSE), VLOOKUP(D18,'(HIDE) MASTER-Chart'!$M:$R,4,FALSE)),"") -> 53953 | R18: (7) | S18: =IFERROR( IF($W$1='(HIDE) MASTER-Chart'!$J$2, VLOOKUP(F18,'(HIDE) MASTER-Chart'!$B:$G,4,FALSE), VLOOKUP(F18,'(HIDE) MASTER-Chart'!$M:$R,4,FALSE)),"") -> 53953 | T18: (7) | U18: =IFERROR( IF($W$1='(HIDE) MASTER-Chart'!$J$2, VLOOKUP(H18,'(HIDE) MASTER-Chart'!$B:$G,4,FALSE), VLOOKUP(H18,'(HIDE) MASTER-Chart'!$M:$R,4,FALSE)),"") -> 53953 | V18: (7) | W18: =IFERROR( IF($W$1='(HIDE) MASTER-Chart'!$J$2, VLOOKUP(J18,'(HIDE) MASTER-Chart'!$B:$G,4,FALSE), VLOOKUP(J18,'(HIDE) MASTER-Chart'!$M:$R,4,FALSE)),"") -> 55526 | X18: (8) | Y18: =IFERROR( IF($W$1='(HIDE) MASTER-Chart'!$J$2, VLOOKUP(L18,'(HIDE) MASTER-Chart'!$B:$G,4,FALSE), VLOOKUP(L18,'(HIDE) MASTER-Chart'!$M:$R,4,FALSE)),"") -> 
A19: 8 - 9 | B19: 4 | D19: 5 | F19: 5 | H19: 5 | J19: 6 | N19: 2 STEP | O19: =IFERROR( IF($W$1='(HIDE) MASTER-Chart'!$J$2, VLOOKUP(B19,'(HIDE) MASTER-Chart'!$B:$G,4,FALSE), VLOOKUP(B19,'(HIDE) MASTER-Chart'!$M:$R,4,FALSE)),"") -> 49382 | P19: (4) | Q19: =IFERROR( IF($W$1='(HIDE) MASTER-Chart'!$J$2, VLOOKUP(D19,'(HIDE) MASTER-Chart'!$B:$G,4,FALSE), VLOOKUP(D19,'(HIDE) MASTER-Chart'!$M:$R,4,FALSE)),"") -> 50884 | R19: (5) | S19: =IFERROR( IF($W$1='(HIDE) MASTER-Chart'!$J$2, VLOOKUP(F19,'(HIDE) MASTER-Chart'!$B:$G,4,FALSE), VLOOKUP(F19,'(HIDE) MASTER-Chart'!$M:$R,4,FALSE)),"") -> 50884 | T19: (5) | U19: =IFERROR( IF($W$1='(HIDE) MASTER-Chart'!$J$2, VLOOKUP(H19,'(HIDE) MASTER-Chart'!$B:$G,4,FALSE), VLOOKUP(H19,'(HIDE) MASTER-Chart'!$M:$R,4,FALSE)),"") -> 50884 | V19: (5) | W19: =IFERROR( IF($W$1='(HIDE) MASTER-Chart'!$J$2, VLOOKUP(J19,'(HIDE) MASTER-Chart'!$B:$G,4,FALSE), VLOOKUP(J19,'(HIDE) MASTER-Chart'!$M:$R,4,FALSE)),"") -> 52542 | X19: (6) | Y19: =IFERROR( IF($W$1='(HIDE) MASTER-Chart'!$J$2, VLOOKUP(L19,'(HIDE) MASTER-Chart'!$B:$G,4,FALSE), VLOOKUP(L19,'(HIDE) MASTER-Chart'!$M:$R,4,FALSE)),"") -> 
O20: =IF(ISERROR(VLOOKUP(B20,'(HIDE) MASTER-Chart'!$B:$G,5,FALSE)),"",VLOOKUP(B20,'(HIDE) MASTER-Chart'!$B:$G,5,FALSE)) ->  | Q20: =IF(ISERROR(VLOOKUP(D20,'(HIDE) MASTER-Chart'!$B:$G,5,FALSE)),"",VLOOKUP(D20,'(HIDE) MASTER-Chart'!$B:$G,5,FALSE)) ->  | S20: =IF(ISERROR(VLOOKUP(F20,'(HIDE) MASTER-Chart'!$B:$G,5,FALSE)),"",VLOOKUP(F20,'(HIDE) MASTER-Chart'!$B:$G,5,FALSE)) ->  | U20: =IF(ISERROR(VLOOKUP(H20,'(HIDE) MASTER-Chart'!$B:$G,5,FALSE)),"",VLOOKUP(H20,'(HIDE) MASTER-Chart'!$B:$G,5,FALSE)) ->  | W20: =IF(ISERROR(VLOOKUP(J20,'(HIDE) MASTER-Chart'!$B:$G,5,FALSE)),"",VLOOKUP(J20,'(HIDE) MASTER-Chart'!$B:$G,5,FALSE)) ->  | Y20: =IF(ISERROR(VLOOKUP(L20,'(HIDE) MASTER-Chart'!$B:$G,5,FALSE)),"",VLOOKUP(L20,'(HIDE) MASTER-Chart'!$B:$G,5,FALSE)) -> 
B21: 7 | D21: 7 | F21: 8 | H21: 8 | J21: 9 | L21: 9 | N21: TARGET | O21: =IFERROR( IF($W$1='(HIDE) MASTER-Chart'!$J$2, VLOOKUP(B21,'(HIDE) MASTER-Chart'!$B:$G,4,FALSE), VLOOKUP(B21,'(HIDE) MASTER-Chart'!$M:$R,4,FALSE)),"") -> 53953 | P21: (7) | Q21: =IFERROR( IF($W$1='(HIDE) MASTER-Chart'!$J$2, VLOOKUP(D21,'(HIDE) MASTER-Chart'!$B:$G,4,FALSE), VLOOKUP(D21,'(HIDE) MASTER-Chart'!$M:$R,4,FALSE)),"") -> 53953 | R21: (7) | S21: =IFERROR( IF($W$1='(HIDE) MASTER-Chart'!$J$2, VLOOKUP(F21,'(HIDE) MASTER-Chart'!$B:$G,4,FALSE), VLOOKUP(F21,'(HIDE) MASTER-Chart'!$M:$R,4,FALSE)),"") -> 55526 | T21: (8) | U21: =IFERROR( IF($W$1='(HIDE) MASTER-Chart'!$J$2, VLOOKUP(H21,'(HIDE) MASTER-Chart'!$B:$G,4,FALSE), VLOOKUP(H21,'(HIDE) MASTER-Chart'!$M:$R,4,FALSE)),"") -> 55526 | V21: (8) | W21: =IFERROR( IF($W$1='(HIDE) MASTER-Chart'!$J$2, VLOOKUP(J21,'(HIDE) MASTER-Chart'!$B:$G,4,FALSE), VLOOKUP(J21,'(HIDE) MASTER-Chart'!$M:$R,4,FALSE)),"") -> 57145 | X21: (9) | Y21: =IFERROR( IF($W$1='(HIDE) MASTER-Chart'!$J$2, VLOOKUP(L21,'(HIDE) MASTER-Chart'!$B:$G,4,FALSE), VLOOKUP(L21,'(HIDE) MASTER-Chart'!$M:$R,4,FALSE)),"") -> 57145 | Z21: (9)
A22: 10 - 11 | B22: 5 | D22: 5 | F22: 6 | H22: 6 | J22: 7 | L22: 7 | N22: 2 STEP | O22: =IFERROR( IF($W$1='(HIDE) MASTER-Chart'!$J$2, VLOOKUP(B22,'(HIDE) MASTER-Chart'!$B:$G,4,FALSE), VLOOKUP(B22,'(HIDE) MASTER-Chart'!$M:$R,4,FALSE)),"") -> 50884 | P22: (5) | Q22: =IFERROR( IF($W$1='(HIDE) MASTER-Chart'!$J$2, VLOOKUP(D22,'(HIDE) MASTER-Chart'!$B:$G,4,FALSE), VLOOKUP(D22,'(HIDE) MASTER-Chart'!$M:$R,4,FALSE)),"") -> 50884 | R22: (5) | S22: =IFERROR( IF($W$1='(HIDE) MASTER-Chart'!$J$2, VLOOKUP(F22,'(HIDE) MASTER-Chart'!$B:$G,4,FALSE), VLOOKUP(F22,'(HIDE) MASTER-Chart'!$M:$R,4,FALSE)),"") -> 52542 | T22: (6) | U22: =IFERROR( IF($W$1='(HIDE) MASTER-Chart'!$J$2, VLOOKUP(H22,'(HIDE) MASTER-Chart'!$B:$G,4,FALSE), VLOOKUP(H22,'(HIDE) MASTER-Chart'!$M:$R,4,FALSE)),"") -> 52542 | V22: (6) | W22: =IFERROR( IF($W$1='(HIDE) MASTER-Chart'!$J$2, VLOOKUP(J22,'(HIDE) MASTER-Chart'!$B:$G,4,FALSE), VLOOKUP(J22,'(HIDE) MASTER-Chart'!$M:$R,4,FALSE)),"") -> 53953 | X22: (7) | Y22: =IFERROR( IF($W$1='(HIDE) MASTER-Chart'!$J$2, VLOOKUP(L22,'(HIDE) MASTER-Chart'!$B:$G,4,FALSE), VLOOKUP(L22,'(HIDE) MASTER-Chart'!$M:$R,4,FALSE)),"") -> 53953 | Z22: (7)
O23: =IF(ISERROR(VLOOKUP(B23,'(HIDE) MASTER-Chart'!$B:$G,5,FALSE)),"",VLOOKUP(B23,'(HIDE) MASTER-Chart'!$B:$G,5,FALSE)) ->  | Q23: =IF(ISERROR(VLOOKUP(D23,'(HIDE) MASTER-Chart'!$B:$G,5,FALSE)),"",VLOOKUP(D23,'(HIDE) MASTER-Chart'!$B:$G,5,FALSE)) ->  | S23: =IF(ISERROR(VLOOKUP(F23,'(HIDE) MASTER-Chart'!$B:$G,5,FALSE)),"",VLOOKUP(F23,'(HIDE) MASTER-Chart'!$B:$G,5,FALSE)) ->  | U23: =IF(ISERROR(VLOOKUP(H23,'(HIDE) MASTER-Chart'!$B:$G,5,FALSE)),"",VLOOKUP(H23,'(HIDE) MASTER-Chart'!$B:$G,5,FALSE)) ->  | W23: =IF(ISERROR(VLOOKUP(J23,'(HIDE) MASTER-Chart'!$B:$G,5,FALSE)),"",VLOOKUP(J23,'(HIDE) MASTER-Chart'!$B:$G,5,FALSE)) ->  | Y23: =IF(ISERROR(VLOOKUP(L23,'(HIDE) MASTER-Chart'!$B:$G,5,FALSE)),"",VLOOKUP(L23,'(HIDE) MASTER-Chart'!$B:$G,5,FALSE)) -> 
B24: 8 | D24: 8 | F24: 8 | H24: 9 | J24: 9 | L24: 10 | N24: TARGET | O24: =IFERROR( IF($W$1='(HIDE) MASTER-Chart'!$J$2, VLOOKUP(B24,'(HIDE) MASTER-Chart'!$B:$G,4,FALSE), VLOOKUP(B24,'(HIDE) MASTER-Chart'!$M:$R,4,FALSE)),"") -> 55526 | P24: (8) | Q24: =IFERROR( IF($W$1='(HIDE) MASTER-Chart'!$J$2, VLOOKUP(D24,'(HIDE) MASTER-Chart'!$B:$G,4,FALSE), VLOOKUP(D24,'(HIDE) MASTER-Chart'!$M:$R,4,FALSE)),"") -> 55526 | R24: (8) | S24: =IFERROR( IF($W$1='(HIDE) MASTER-Chart'!$J$2, VLOOKUP(F24,'(HIDE) MASTER-Chart'!$B:$G,4,FALSE), VLOOKUP(F24,'(HIDE) MASTER-Chart'!$M:$R,4,FALSE)),"") -> 55526 | T24: (8) | U24: =IFERROR( IF($W$1='(HIDE) MASTER-Chart'!$J$2, VLOOKUP(H24,'(HIDE) MASTER-Chart'!$B:$G,4,FALSE), VLOOKUP(H24,'(HIDE) MASTER-Chart'!$M:$R,4,FALSE)),"") -> 57145 | V24: (9) | W24: =IFERROR( IF($W$1='(HIDE) MASTER-Chart'!$J$2, VLOOKUP(J24,'(HIDE) MASTER-Chart'!$B:$G,4,FALSE), VLOOKUP(J24,'(HIDE) MASTER-Chart'!$M:$R,4,FALSE)),"") -> 57145 | X24: (9) | Y24: =IFERROR( IF($W$1='(HIDE) MASTER-Chart'!$J$2, VLOOKUP(L24,'(HIDE) MASTER-Chart'!$B:$G,4,FALSE), VLOOKUP(L24,'(HIDE) MASTER-Chart'!$M:$R,4,FALSE)),"") -> 58813 | Z24: (10)
A25: 12 - 13 | B25: 6 | D25: 6 | F25: 6 | H25: 7 | J25: 7 | L25: 8 | N25: 2 STEP | O25: =IFERROR( IF($W$1='(HIDE) MASTER-Chart'!$J$2, VLOOKUP(B25,'(HIDE) MASTER-Chart'!$B:$G,4,FALSE), VLOOKUP(B25,'(HIDE) MASTER-Chart'!$M:$R,4,FALSE)),"") -> 52542 | P25: (6) | Q25: =IFERROR( IF($W$1='(HIDE) MASTER-Chart'!$J$2, VLOOKUP(D25,'(HIDE) MASTER-Chart'!$B:$G,4,FALSE), VLOOKUP(D25,'(HIDE) MASTER-Chart'!$M:$R,4,FALSE)),"") -> 52542 | R25: (6) | S25: =IFERROR( IF($W$1='(HIDE) MASTER-Chart'!$J$2, VLOOKUP(F25,'(HIDE) MASTER-Chart'!$B:$G,4,FALSE), VLOOKUP(F25,'(HIDE) MASTER-Chart'!$M:$R,4,FALSE)),"") -> 52542 | T25: (6) | U25: =IFERROR( IF($W$1='(HIDE) MASTER-Chart'!$J$2, VLOOKUP(H25,'(HIDE) MASTER-Chart'!$B:$G,4,FALSE), VLOOKUP(H25,'(HIDE) MASTER-Chart'!$M:$R,4,FALSE)),"") -> 53953 | V25: (7) | W25: =IFERROR( IF($W$1='(HIDE) MASTER-Chart'!$J$2, VLOOKUP(J25,'(HIDE) MASTER-Chart'!$B:$G,4,FALSE), VLOOKUP(J25,'(HIDE) MASTER-Chart'!$M:$R,4,FALSE)),"") -> 53953 | X25: (7) | Y25: =IFERROR( IF($W$1='(HIDE) MASTER-Chart'!$J$2, VLOOKUP(L25,'(HIDE) MASTER-Chart'!$B:$G,4,FALSE), VLOOKUP(L25,'(HIDE) MASTER-Chart'!$M:$R,4,FALSE)),"") -> 55526 | Z25: (8)
O26: =IF(ISERROR(VLOOKUP(B26,'(HIDE) MASTER-Chart'!$B:$G,5,FALSE)),"",VLOOKUP(B26,'(HIDE) MASTER-Chart'!$B:$G,5,FALSE)) ->  | Q26: =IF(ISERROR(VLOOKUP(D26,'(HIDE) MASTER-Chart'!$B:$G,5,FALSE)),"",VLOOKUP(D26,'(HIDE) MASTER-Chart'!$B:$G,5,FALSE)) ->  | S26: =IF(ISERROR(VLOOKUP(F26,'(HIDE) MASTER-Chart'!$B:$G,5,FALSE)),"",VLOOKUP(F26,'(HIDE) MASTER-Chart'!$B:$G,5,FALSE)) ->  | U26: =IF(ISERROR(VLOOKUP(H26,'(HIDE) MASTER-Chart'!$B:$G,5,FALSE)),"",VLOOKUP(H26,'(HIDE) MASTER-Chart'!$B:$G,5,FALSE)) ->  | W26: =IF(ISERROR(VLOOKUP(J26,'(HIDE) MASTER-Chart'!$B:$G,5,FALSE)),"",VLOOKUP(J26,'(HIDE) MASTER-Chart'!$B:$G,5,FALSE)) ->  | Y26: =IF(ISERROR(VLOOKUP(L26,'(HIDE) MASTER-Chart'!$B:$G,5,FALSE)),"",VLOOKUP(L26,'(HIDE) MASTER-Chart'!$B:$G,5,FALSE)) -> 
B27: 8 | D27: 9 | F27: 9 | H27: 9 | J27: 10 | L27: 10 | N27: TARGET | O27: =IFERROR( IF($W$1='(HIDE) MASTER-Chart'!$J$2, VLOOKUP(B27,'(HIDE) MASTER-Chart'!$B:$G,4,FALSE), VLOOKUP(B27,'(HIDE) MASTER-Chart'!$M:$R,4,FALSE)),"") -> 55526 | P27: (8) | Q27: =IFERROR( IF($W$1='(HIDE) MASTER-Chart'!$J$2, VLOOKUP(D27,'(HIDE) MASTER-Chart'!$B:$G,4,FALSE), VLOOKUP(D27,'(HIDE) MASTER-Chart'!$M:$R,4,FALSE)),"") -> 57145 | R27: (9) | S27: =IFERROR( IF($W$1='(HIDE) MASTER-Chart'!$J$2, VLOOKUP(F27,'(HIDE) MASTER-Chart'!$B:$G,4,FALSE), VLOOKUP(F27,'(HIDE) MASTER-Chart'!$M:$R,4,FALSE)),"") -> 57145 | T27: (9) | U27: =IFERROR( IF($W$1='(HIDE) MASTER-Chart'!$J$2, VLOOKUP(H27,'(HIDE) MASTER-Chart'!$B:$G,4,FALSE), VLOOKUP(H27,'(HIDE) MASTER-Chart'!$M:$R,4,FALSE)),"") -> 57145 | V27: (9) | W27: =IFERROR( IF($W$1='(HIDE) MASTER-Chart'!$J$2, VLOOKUP(J27,'(HIDE) MASTER-Chart'!$B:$G,4,FALSE), VLOOKUP(J27,'(HIDE) MASTER-Chart'!$M:$R,4,FALSE)),"") -> 58813 | X27: (10) | Y27: =IFERROR( IF($W$1='(HIDE) MASTER-Chart'!$J$2, VLOOKUP(L27,'(HIDE) MASTER-Chart'!$B:$G,4,FALSE), VLOOKUP(L27,'(HIDE) MASTER-Chart'!$M:$R,4,FALSE)),"") -> 58813 | Z27: (10)
A28: 14 - 15 | B28: 6 | D28: 7 | F28: 7 | H28: 7 | J28: 8 | L28: 8 | N28: 2 STEP | O28: =IFERROR( IF($W$1='(HIDE) MASTER-Chart'!$J$2, VLOOKUP(B28,'(HIDE) MASTER-Chart'!$B:$G,4,FALSE), VLOOKUP(B28,'(HIDE) MASTER-Chart'!$M:$R,4,FALSE)),"") -> 52542 | P28: (6) | Q28: =IFERROR( IF($W$1='(HIDE) MASTER-Chart'!$J$2, VLOOKUP(D28,'(HIDE) MASTER-Chart'!$B:$G,4,FALSE), VLOOKUP(D28,'(HIDE) MASTER-Chart'!$M:$R,4,FALSE)),"") -> 53953 | R28: (7) | S28: =IFERROR( IF($W$1='(HIDE) MASTER-Chart'!$J$2, VLOOKUP(F28,'(HIDE) MASTER-Chart'!$B:$G,4,FALSE), VLOOKUP(F28,'(HIDE) MASTER-Chart'!$M:$R,4,FALSE)),"") -> 53953 | T28: (7) | U28: =IFERROR( IF($W$1='(HIDE) MASTER-Chart'!$J$2, VLOOKUP(H28,'(HIDE) MASTER-Chart'!$B:$G,4,FALSE), VLOOKUP(H28,'(HIDE) MASTER-Chart'!$M:$R,4,FALSE)),"") -> 53953 | V28: (7) | W28: =IFERROR( IF($W$1='(HIDE) MASTER-Chart'!$J$2, VLOOKUP(J28,'(HIDE) MASTER-Chart'!$B:$G,4,FALSE), VLOOKUP(J28,'(HIDE) MASTER-Chart'!$M:$R,4,FALSE)),"") -> 55526 | X28: (8) | Y28: =IFERROR( IF($W$1='(HIDE) MASTER-Chart'!$J$2, VLOOKUP(L28,'(HIDE) MASTER-Chart'!$B:$G,4,FALSE), VLOOKUP(L28,'(HIDE) MASTER-Chart'!$M:$R,4,FALSE)),"") -> 55526 | Z28: (8)
O29: =IF(ISERROR(VLOOKUP(B29,'(HIDE) MASTER-Chart'!$B:$G,5,FALSE)),"",VLOOKUP(B29,'(HIDE) MASTER-Chart'!$B:$G,5,FALSE)) ->  | Q29: =IF(ISERROR(VLOOKUP(D29,'(HIDE) MASTER-Chart'!$B:$G,5,FALSE)),"",VLOOKUP(D29,'(HIDE) MASTER-Chart'!$B:$G,5,FALSE)) ->  | S29: =IF(ISERROR(VLOOKUP(F29,'(HIDE) MASTER-Chart'!$B:$G,5,FALSE)),"",VLOOKUP(F29,'(HIDE) MASTER-Chart'!$B:$G,5,FALSE)) ->  | U29: =IF(ISERROR(VLOOKUP(H29,'(HIDE) MASTER-Chart'!$B:$G,5,FALSE)),"",VLOOKUP(H29,'(HIDE) MASTER-Chart'!$B:$G,5,FALSE)) ->  | W29: =IF(ISERROR(VLOOKUP(J29,'(HIDE) MASTER-Chart'!$B:$G,5,FALSE)),"",VLOOKUP(J29,'(HIDE) MASTER-Chart'!$B:$G,5,FALSE)) ->  | Y29: =IF(ISERROR(VLOOKUP(L29,'(HIDE) MASTER-Chart'!$B:$G,5,FALSE)),"",VLOOKUP(L29,'(HIDE) MASTER-Chart'!$B:$G,5,FALSE)) -> 
B30: 9 | D30: 9 | F30: 10 | H30: 10 | J30: 10 | L30: 11 | N30: TARGET | O30: =IFERROR( IF($W$1='(HIDE) MASTER-Chart'!$J$2, VLOOKUP(B30,'(HIDE) MASTER-Chart'!$B:$G,4,FALSE), VLOOKUP(B30,'(HIDE) MASTER-Chart'!$M:$R,4,FALSE)),"") -> 57145 | P30: (9) | Q30: =IFERROR( IF($W$1='(HIDE) MASTER-Chart'!$J$2, VLOOKUP(D30,'(HIDE) MASTER-Chart'!$B:$G,4,FALSE), VLOOKUP(D30,'(HIDE) MASTER-Chart'!$M:$R,4,FALSE)),"") -> 57145 | R30: (9) | S30: =IFERROR( IF($W$1='(HIDE) MASTER-Chart'!$J$2, VLOOKUP(F30,'(HIDE) MASTER-Chart'!$B:$G,4,FALSE), VLOOKUP(F30,'(HIDE) MASTER-Chart'!$M:$R,4,FALSE)),"") -> 58813 | T30: (10) | U30: =IFERROR( IF($W$1='(HIDE) MASTER-Chart'!$J$2, VLOOKUP(H30,'(HIDE) MASTER-Chart'!$B:$G,4,FALSE), VLOOKUP(H30,'(HIDE) MASTER-Chart'!$M:$R,4,FALSE)),"") -> 58813 | V30: (10) | W30: =IFERROR( IF($W$1='(HIDE) MASTER-Chart'!$J$2, VLOOKUP(J30,'(HIDE) MASTER-Chart'!$B:$G,4,FALSE), VLOOKUP(J30,'(HIDE) MASTER-Chart'!$M:$R,4,FALSE)),"") -> 58813 | X30: (10) | Y30: =IFERROR( IF($W$1='(HIDE) MASTER-Chart'!$J$2, VLOOKUP(L30,'(HIDE) MASTER-Chart'!$B:$G,4,FALSE), VLOOKUP(L30,'(HIDE) MASTER-Chart'!$M:$R,4,FALSE)),"") -> 60532 | Z30: (11)
A31: 16 - 17 | B31: 7 | D31: 7 | F31: 8 | H31: 8 | J31: 8 | L31: 9 | N31: 2 STEP | O31: =IFERROR( IF($W$1='(HIDE) MASTER-Chart'!$J$2, VLOOKUP(B31,'(HIDE) MASTER-Chart'!$B:$G,4,FALSE), VLOOKUP(B31,'(HIDE) MASTER-Chart'!$M:$R,4,FALSE)),"") -> 53953 | P31: (7) | Q31: =IFERROR( IF($W$1='(HIDE) MASTER-Chart'!$J$2, VLOOKUP(D31,'(HIDE) MASTER-Chart'!$B:$G,4,FALSE), VLOOKUP(D31,'(HIDE) MASTER-Chart'!$M:$R,4,FALSE)),"") -> 53953 | R31: (7) | S31: =IFERROR( IF($W$1='(HIDE) MASTER-Chart'!$J$2, VLOOKUP(F31,'(HIDE) MASTER-Chart'!$B:$G,4,FALSE), VLOOKUP(F31,'(HIDE) MASTER-Chart'!$M:$R,4,FALSE)),"") -> 55526 | T31: (8) | U31: =IFERROR( IF($W$1='(HIDE) MASTER-Chart'!$J$2, VLOOKUP(H31,'(HIDE) MASTER-Chart'!$B:$G,4,FALSE), VLOOKUP(H31,'(HIDE) MASTER-Chart'!$M:$R,4,FALSE)),"") -> 55526 | V31: (8) | W31: =IFERROR( IF($W$1='(HIDE) MASTER-Chart'!$J$2, VLOOKUP(J31,'(HIDE) MASTER-Chart'!$B:$G,4,FALSE), VLOOKUP(J31,'(HIDE) MASTER-Chart'!$M:$R,4,FALSE)),"") -> 55526 | X31: (8) | Y31: =IFERROR( IF($W$1='(HIDE) MASTER-Chart'!$J$2, VLOOKUP(L31,'(HIDE) MASTER-Chart'!$B:$G,4,FALSE), VLOOKUP(L31,'(HIDE) MASTER-Chart'!$M:$R,4,FALSE)),"") -> 57145 | Z31: (9)
O32: =IF(ISERROR(VLOOKUP(B32,'(HIDE) MASTER-Chart'!$B:$G,5,FALSE)),"",VLOOKUP(B32,'(HIDE) MASTER-Chart'!$B:$G,5,FALSE)) ->  | Q32: =IF(ISERROR(VLOOKUP(D32,'(HIDE) MASTER-Chart'!$B:$G,5,FALSE)),"",VLOOKUP(D32,'(HIDE) MASTER-Chart'!$B:$G,5,FALSE)) ->  | S32: =IF(ISERROR(VLOOKUP(F32,'(HIDE) MASTER-Chart'!$B:$G,5,FALSE)),"",VLOOKUP(F32,'(HIDE) MASTER-Chart'!$B:$G,5,FALSE)) ->  | U32: =IF(ISERROR(VLOOKUP(H32,'(HIDE) MASTER-Chart'!$B:$G,5,FALSE)),"",VLOOKUP(H32,'(HIDE) MASTER-Chart'!$B:$G,5,FALSE)) ->  | W32: =IF(ISERROR(VLOOKUP(J32,'(HIDE) MASTER-Chart'!$B:$G,5,FALSE)),"",VLOOKUP(J32,'(HIDE) MASTER-Chart'!$B:$G,5,FALSE)) ->  | Y32: =IF(ISERROR(VLOOKUP(L32,'(HIDE) MASTER-Chart'!$B:$G,5,FALSE)),"",VLOOKUP(L32,'(HIDE) MASTER-Chart'!$B:$G,5,FALSE)) -> 
B33: 10 | D33: 10 | F33: 10 | H33: 11 | J33: 11 | L33: 11 | N33: TARGET | O33: =IFERROR( IF($W$1='(HIDE) MASTER-Chart'!$J$2, VLOOKUP(B33,'(HIDE) MASTER-Chart'!$B:$G,4,FALSE), VLOOKUP(B33,'(HIDE) MASTER-Chart'!$M:$R,4,FALSE)),"") -> 58813 | P33: (10) | Q33: =IFERROR( IF($W$1='(HIDE) MASTER-Chart'!$J$2, VLOOKUP(D33,'(HIDE) MASTER-Chart'!$B:$G,4,FALSE), VLOOKUP(D33,'(HIDE) MASTER-Chart'!$M:$R,4,FALSE)),"") -> 58813 | R33: (10) | S33: =IFERROR( IF($W$1='(HIDE) MASTER-Chart'!$J$2, VLOOKUP(F33,'(HIDE) MASTER-Chart'!$B:$G,4,FALSE), VLOOKUP(F33,'(HIDE) MASTER-Chart'!$M:$R,4,FALSE)),"") -> 58813 | T33: (10) | U33: =IFERROR( IF($W$1='(HIDE) MASTER-Chart'!$J$2, VLOOKUP(H33,'(HIDE) MASTER-Chart'!$B:$G,4,FALSE), VLOOKUP(H33,'(HIDE) MASTER-Chart'!$M:$R,4,FALSE)),"") -> 60532 | V33: (11) | W33: =IFERROR( IF($W$1='(HIDE) MASTER-Chart'!$J$2, VLOOKUP(J33,'(HIDE) MASTER-Chart'!$B:$G,4,FALSE), VLOOKUP(J33,'(HIDE) MASTER-Chart'!$M:$R,4,FALSE)),"") -> 60532 | X33: (11) | Y33: =IFERROR( IF($W$1='(HIDE) MASTER-Chart'!$J$2, VLOOKUP(L33,'(HIDE) MASTER-Chart'!$B:$G,4,FALSE), VLOOKUP(L33,'(HIDE) MASTER-Chart'!$M:$R,4,FALSE)),"") -> 60532 | Z33: (11)
A34: 18 - 19 | B34: 8 | D34: 8 | F34: 8 | H34: 9 | J34: 9 | L34: 9 | N34: 2 STEP | O34: =IFERROR( IF($W$1='(HIDE) MASTER-Chart'!$J$2, VLOOKUP(B34,'(HIDE) MASTER-Chart'!$B:$G,4,FALSE), VLOOKUP(B34,'(HIDE) MASTER-Chart'!$M:$R,4,FALSE)),"") -> 55526 | P34: (8) | Q34: =IFERROR( IF($W$1='(HIDE) MASTER-Chart'!$J$2, VLOOKUP(D34,'(HIDE) MASTER-Chart'!$B:$G,4,FALSE), VLOOKUP(D34,'(HIDE) MASTER-Chart'!$M:$R,4,FALSE)),"") -> 55526 | R34: (8) | S34: =IFERROR( IF($W$1='(HIDE) MASTER-Chart'!$J$2, VLOOKUP(F34,'(HIDE) MASTER-Chart'!$B:$G,4,FALSE), VLOOKUP(F34,'(HIDE) MASTER-Chart'!$M:$R,4,FALSE)),"") -> 55526 | T34: (8) | U34: =IFERROR( IF($W$1='(HIDE) MASTER-Chart'!$J$2, VLOOKUP(H34,'(HIDE) MASTER-Chart'!$B:$G,4,FALSE), VLOOKUP(H34,'(HIDE) MASTER-Chart'!$M:$R,4,FALSE)),"") -> 57145 | V34: (9) | W34: =IFERROR( IF($W$1='(HIDE) MASTER-Chart'!$J$2, VLOOKUP(J34,'(HIDE) MASTER-Chart'!$B:$G,4,FALSE), VLOOKUP(J34,'(HIDE) MASTER-Chart'!$M:$R,4,FALSE)),"") -> 57145 | X34: (9) | Y34: =IFERROR( IF($W$1='(HIDE) MASTER-Chart'!$J$2, VLOOKUP(L34,'(HIDE) MASTER-Chart'!$B:$G,4,FALSE), VLOOKUP(L34,'(HIDE) MASTER-Chart'!$M:$R,4,FALSE)),"") -> 57145 | Z34: (9)
O35: =IF(ISERROR(VLOOKUP(B35,'(HIDE) MASTER-Chart'!$B:$G,5,FALSE)),"",VLOOKUP(B35,'(HIDE) MASTER-Chart'!$B:$G,5,FALSE)) ->  | Q35: =IF(ISERROR(VLOOKUP(D35,'(HIDE) MASTER-Chart'!$B:$G,5,FALSE)),"",VLOOKUP(D35,'(HIDE) MASTER-Chart'!$B:$G,5,FALSE)) ->  | S35: =IF(ISERROR(VLOOKUP(F35,'(HIDE) MASTER-Chart'!$B:$G,5,FALSE)),"",VLOOKUP(F35,'(HIDE) MASTER-Chart'!$B:$G,5,FALSE)) ->  | U35: =IF(ISERROR(VLOOKUP(H35,'(HIDE) MASTER-Chart'!$B:$G,5,FALSE)),"",VLOOKUP(H35,'(HIDE) MASTER-Chart'!$B:$G,5,FALSE)) ->  | W35: =IF(ISERROR(VLOOKUP(J35,'(HIDE) MASTER-Chart'!$B:$G,5,FALSE)),"",VLOOKUP(J35,'(HIDE) MASTER-Chart'!$B:$G,5,FALSE)) ->  | Y35: =IF(ISERROR(VLOOKUP(L35,'(HIDE) MASTER-Chart'!$B:$G,5,FALSE)),"",VLOOKUP(L35,'(HIDE) MASTER-Chart'!$B:$G,5,FALSE)) -> 
B36: 10 | D36: 11 | F36: 11 | H36: 11 | J36: 12 | L36: 12 | N36: TARGET | O36: =IFERROR( IF($W$1='(HIDE) MASTER-Chart'!$J$2, VLOOKUP(B36,'(HIDE) MASTER-Chart'!$B:$G,4,FALSE), VLOOKUP(B36,'(HIDE) MASTER-Chart'!$M:$R,4,FALSE)),"") -> 58813 | P36: (10) | Q36: =IFERROR( IF($W$1='(HIDE) MASTER-Chart'!$J$2, VLOOKUP(D36,'(HIDE) MASTER-Chart'!$B:$G,4,FALSE), VLOOKUP(D36,'(HIDE) MASTER-Chart'!$M:$R,4,FALSE)),"") -> 60532 | R36: (11) | S36: =IFERROR( IF($W$1='(HIDE) MASTER-Chart'!$J$2, VLOOKUP(F36,'(HIDE) MASTER-Chart'!$B:$G,4,FALSE), VLOOKUP(F36,'(HIDE) MASTER-Chart'!$M:$R,4,FALSE)),"") -> 60532 | T36: (11) | U36: =IFERROR( IF($W$1='(HIDE) MASTER-Chart'!$J$2, VLOOKUP(H36,'(HIDE) MASTER-Chart'!$B:$G,4,FALSE), VLOOKUP(H36,'(HIDE) MASTER-Chart'!$M:$R,4,FALSE)),"") -> 60532 | V36: (11) | W36: =IFERROR( IF($W$1='(HIDE) MASTER-Chart'!$J$2, VLOOKUP(J36,'(HIDE) MASTER-Chart'!$B:$G,4,FALSE), VLOOKUP(J36,'(HIDE) MASTER-Chart'!$M:$R,4,FALSE)),"") -> 62303 | X36: (12) | Y36: =IFERROR( IF($W$1='(HIDE) MASTER-Chart'!$J$2, VLOOKUP(L36,'(HIDE) MASTER-Chart'!$B:$G,4,FALSE), VLOOKUP(L36,'(HIDE) MASTER-Chart'!$M:$R,4,FALSE)),"") -> 62303 | Z36: (12)
A37: 20 - 21 | B37: 8 | D37: 9 | F37: 9 | H37: 9 | J37: 10 | L37: 10 | N37: 2 STEP | O37: =IFERROR( IF($W$1='(HIDE) MASTER-Chart'!$J$2, VLOOKUP(B37,'(HIDE) MASTER-Chart'!$B:$G,4,FALSE), VLOOKUP(B37,'(HIDE) MASTER-Chart'!$M:$R,4,FALSE)),"") -> 55526 | P37: (8) | Q37: =IFERROR( IF($W$1='(HIDE) MASTER-Chart'!$J$2, VLOOKUP(D37,'(HIDE) MASTER-Chart'!$B:$G,4,FALSE), VLOOKUP(D37,'(HIDE) MASTER-Chart'!$M:$R,4,FALSE)),"") -> 57145 | R37: (9) | S37: =IFERROR( IF($W$1='(HIDE) MASTER-Chart'!$J$2, VLOOKUP(F37,'(HIDE) MASTER-Chart'!$B:$G,4,FALSE), VLOOKUP(F37,'(HIDE) MASTER-Chart'!$M:$R,4,FALSE)),"") -> 57145 | T37: (9) | U37: =IFERROR( IF($W$1='(HIDE) MASTER-Chart'!$J$2, VLOOKUP(H37,'(HIDE) MASTER-Chart'!$B:$G,4,FALSE), VLOOKUP(H37,'(HIDE) MASTER-Chart'!$M:$R,4,FALSE)),"") -> 57145 | V37: (9) | W37: =IFERROR( IF($W$1='(HIDE) MASTER-Chart'!$J$2, VLOOKUP(J37,'(HIDE) MASTER-Chart'!$B:$G,4,FALSE), VLOOKUP(J37,'(HIDE) MASTER-Chart'!$M:$R,4,FALSE)),"") -> 58813 | X37: (10) | Y37: =IFERROR( IF($W$1='(HIDE) MASTER-Chart'!$J$2, VLOOKUP(L37,'(HIDE) MASTER-Chart'!$B:$G,4,FALSE), VLOOKUP(L37,'(HIDE) MASTER-Chart'!$M:$R,4,FALSE)),"") -> 58813 | Z37: (10)
O38: =IF(ISERROR(VLOOKUP(B38,'(HIDE) MASTER-Chart'!$B:$G,5,FALSE)),"",VLOOKUP(B38,'(HIDE) MASTER-Chart'!$B:$G,5,FALSE)) ->  | Q38: =IF(ISERROR(VLOOKUP(D38,'(HIDE) MASTER-Chart'!$B:$G,5,FALSE)),"",VLOOKUP(D38,'(HIDE) MASTER-Chart'!$B:$G,5,FALSE)) ->  | S38: =IF(ISERROR(VLOOKUP(F38,'(HIDE) MASTER-Chart'!$B:$G,5,FALSE)),"",VLOOKUP(F38,'(HIDE) MASTER-Chart'!$B:$G,5,FALSE)) ->  | U38: =IF(ISERROR(VLOOKUP(H38,'(HIDE) MASTER-Chart'!$B:$G,5,FALSE)),"",VLOOKUP(H38,'(HIDE) MASTER-Chart'!$B:$G,5,FALSE)) ->  | W38: =IF(ISERROR(VLOOKUP(J38,'(HIDE) MASTER-Chart'!$B:$G,5,FALSE)),"",VLOOKUP(J38,'(HIDE) MASTER-Chart'!$B:$G,5,FALSE)) ->  | Y38: =IF(ISERROR(VLOOKUP(L38,'(HIDE) MASTER-Chart'!$B:$G,5,FALSE)),"",VLOOKUP(L38,'(HIDE) MASTER-Chart'!$B:$G,5,FALSE)) -> 
B39: 11 | D39: 11 | F39: 12 | H39: 12 | J39: 12 | L39: 13 | N39: TARGET | O39: =IFERROR( IF($W$1='(HIDE) MASTER-Chart'!$J$2, VLOOKUP(B39,'(HIDE) MASTER-Chart'!$B:$G,4,FALSE), VLOOKUP(B39,'(HIDE) MASTER-Chart'!$M:$R,4,FALSE)),"") -> 60532 | P39: (11) | Q39: =IFERROR( IF($W$1='(HIDE) MASTER-Chart'!$J$2, VLOOKUP(D39,'(HIDE) MASTER-Chart'!$B:$G,4,FALSE), VLOOKUP(D39,'(HIDE) MASTER-Chart'!$M:$R,4,FALSE)),"") -> 60532 | R39: (11) | S39: =IFERROR( IF($W$1='(HIDE) MASTER-Chart'!$J$2, VLOOKUP(F39,'(HIDE) MASTER-Chart'!$B:$G,4,FALSE), VLOOKUP(F39,'(HIDE) MASTER-Chart'!$M:$R,4,FALSE)),"") -> 62303 | T39: (12) | U39: =IFERROR( IF($W$1='(HIDE) MASTER-Chart'!$J$2, VLOOKUP(H39,'(HIDE) MASTER-Chart'!$B:$G,4,FALSE), VLOOKUP(H39,'(HIDE) MASTER-Chart'!$M:$R,4,FALSE)),"") -> 62303 | V39: (12) | W39: =IFERROR( IF($W$1='(HIDE) MASTER-Chart'!$J$2, VLOOKUP(J39,'(HIDE) MASTER-Chart'!$B:$G,4,FALSE), VLOOKUP(J39,'(HIDE) MASTER-Chart'!$M:$R,4,FALSE)),"") -> 62303 | X39: (12) | Y39: =IFERROR( IF($W$1='(HIDE) MASTER-Chart'!$J$2, VLOOKUP(L39,'(HIDE) MASTER-Chart'!$B:$G,4,FALSE), VLOOKUP(L39,'(HIDE) MASTER-Chart'!$M:$R,4,FALSE)),"") -> 64126 | Z39: (13)
A40: 22 - 23 | B40: 9 | D40: 9 | F40: 10 | H40: 10 | J40: 10 | L40: 11 | N40: 2 STEP | O40: =IFERROR( IF($W$1='(HIDE) MASTER-Chart'!$J$2, VLOOKUP(B40,'(HIDE) MASTER-Chart'!$B:$G,4,FALSE), VLOOKUP(B40,'(HIDE) MASTER-Chart'!$M:$R,4,FALSE)),"") -> 57145 | P40: (9) | Q40: =IFERROR( IF($W$1='(HIDE) MASTER-Chart'!$J$2, VLOOKUP(D40,'(HIDE) MASTER-Chart'!$B:$G,4,FALSE), VLOOKUP(D40,'(HIDE) MASTER-Chart'!$M:$R,4,FALSE)),"") -> 57145 | R40: (9) | S40: =IFERROR( IF($W$1='(HIDE) MASTER-Chart'!$J$2, VLOOKUP(F40,'(HIDE) MASTER-Chart'!$B:$G,4,FALSE), VLOOKUP(F40,'(HIDE) MASTER-Chart'!$M:$R,4,FALSE)),"") -> 58813 | T40: (10) | U40: =IFERROR( IF($W$1='(HIDE) MASTER-Chart'!$J$2, VLOOKUP(H40,'(HIDE) MASTER-Chart'!$B:$G,4,FALSE), VLOOKUP(H40,'(HIDE) MASTER-Chart'!$M:$R,4,FALSE)),"") -> 58813 | V40: (10) | W40: =IFERROR( IF($W$1='(HIDE) MASTER-Chart'!$J$2, VLOOKUP(J40,'(HIDE) MASTER-Chart'!$B:$G,4,FALSE), VLOOKUP(J40,'(HIDE) MASTER-Chart'!$M:$R,4,FALSE)),"") -> 58813 | X40: (10) | Y40: =IFERROR( IF($W$1='(HIDE) MASTER-Chart'!$J$2, VLOOKUP(L40,'(HIDE) MASTER-Chart'!$B:$G,4,FALSE), VLOOKUP(L40,'(HIDE) MASTER-Chart'!$M:$R,4,FALSE)),"") -> 60532 | Z40: (11)
O41: =IF(ISERROR(VLOOKUP(B41,'(HIDE) MASTER-Chart'!$B:$G,5,FALSE)),"",VLOOKUP(B41,'(HIDE) MASTER-Chart'!$B:$G,5,FALSE)) ->  | Q41: =IF(ISERROR(VLOOKUP(D41,'(HIDE) MASTER-Chart'!$B:$G,5,FALSE)),"",VLOOKUP(D41,'(HIDE) MASTER-Chart'!$B:$G,5,FALSE)) ->  | S41: =IF(ISERROR(VLOOKUP(F41,'(HIDE) MASTER-Chart'!$B:$G,5,FALSE)),"",VLOOKUP(F41,'(HIDE) MASTER-Chart'!$B:$G,5,FALSE)) ->  | U41: =IF(ISERROR(VLOOKUP(H41,'(HIDE) MASTER-Chart'!$B:$G,5,FALSE)),"",VLOOKUP(H41,'(HIDE) MASTER-Chart'!$B:$G,5,FALSE)) ->  | W41: =IF(ISERROR(VLOOKUP(J41,'(HIDE) MASTER-Chart'!$B:$G,5,FALSE)),"",VLOOKUP(J41,'(HIDE) MASTER-Chart'!$B:$G,5,FALSE)) ->  | Y41: =IF(ISERROR(VLOOKUP(L41,'(HIDE) MASTER-Chart'!$B:$G,5,FALSE)),"",VLOOKUP(L41,'(HIDE) MASTER-Chart'!$B:$G,5,FALSE)) -> 
B42: 11 | D42: 12 | F42: 12 | H42: 13 | J42: 13 | L42: 13 | N42: TARGET | O42: =IFERROR( IF($W$1='(HIDE) MASTER-Chart'!$J$2, VLOOKUP(B42,'(HIDE) MASTER-Chart'!$B:$G,4,FALSE), VLOOKUP(B42,'(HIDE) MASTER-Chart'!$M:$R,4,FALSE)),"") -> 60532 | P42: (11) | Q42: =IFERROR( IF($W$1='(HIDE) MASTER-Chart'!$J$2, VLOOKUP(D42,'(HIDE) MASTER-Chart'!$B:$G,4,FALSE), VLOOKUP(D42,'(HIDE) MASTER-Chart'!$M:$R,4,FALSE)),"") -> 62303 | R42: (12) | S42: =IFERROR( IF($W$1='(HIDE) MASTER-Chart'!$J$2, VLOOKUP(F42,'(HIDE) MASTER-Chart'!$B:$G,4,FALSE), VLOOKUP(F42,'(HIDE) MASTER-Chart'!$M:$R,4,FALSE)),"") -> 62303 | T42: (12) | U42: =IFERROR( IF($W$1='(HIDE) MASTER-Chart'!$J$2, VLOOKUP(H42,'(HIDE) MASTER-Chart'!$B:$G,4,FALSE), VLOOKUP(H42,'(HIDE) MASTER-Chart'!$M:$R,4,FALSE)),"") -> 64126 | V42: (13) | W42: =IFERROR( IF($W$1='(HIDE) MASTER-Chart'!$J$2, VLOOKUP(J42,'(HIDE) MASTER-Chart'!$B:$G,4,FALSE), VLOOKUP(J42,'(HIDE) MASTER-Chart'!$M:$R,4,FALSE)),"") -> 64126 | X42: (13) | Y42: =IFERROR( IF($W$1='(HIDE) MASTER-Chart'!$J$2, VLOOKUP(L42,'(HIDE) MASTER-Chart'!$B:$G,4,FALSE), VLOOKUP(L42,'(HIDE) MASTER-Chart'!$M:$R,4,FALSE)),"") -> 64126 | Z42: (13)
A43: 24 - 25 | B43: 9 | D43: 10 | F43: 10 | H43: 11 | J43: 11 | L43: 11 | N43: 2 STEP | O43: =IFERROR( IF($W$1='(HIDE) MASTER-Chart'!$J$2, VLOOKUP(B43,'(HIDE) MASTER-Chart'!$B:$G,4,FALSE), VLOOKUP(B43,'(HIDE) MASTER-Chart'!$M:$R,4,FALSE)),"") -> 57145 | P43: (9) | Q43: =IFERROR( IF($W$1='(HIDE) MASTER-Chart'!$J$2, VLOOKUP(D43,'(HIDE) MASTER-Chart'!$B:$G,4,FALSE), VLOOKUP(D43,'(HIDE) MASTER-Chart'!$M:$R,4,FALSE)),"") -> 58813 | R43: (10) | S43: =IFERROR( IF($W$1='(HIDE) MASTER-Chart'!$J$2, VLOOKUP(F43,'(HIDE) MASTER-Chart'!$B:$G,4,FALSE), VLOOKUP(F43,'(HIDE) MASTER-Chart'!$M:$R,4,FALSE)),"") -> 58813 | T43: (10) | U43: =IFERROR( IF($W$1='(HIDE) MASTER-Chart'!$J$2, VLOOKUP(H43,'(HIDE) MASTER-Chart'!$B:$G,4,FALSE), VLOOKUP(H43,'(HIDE) MASTER-Chart'!$M:$R,4,FALSE)),"") -> 60532 | V43: (11) | W43: =IFERROR( IF($W$1='(HIDE) MASTER-Chart'!$J$2, VLOOKUP(J43,'(HIDE) MASTER-Chart'!$B:$G,4,FALSE), VLOOKUP(J43,'(HIDE) MASTER-Chart'!$M:$R,4,FALSE)),"") -> 60532 | X43: (11) | Y43: =IFERROR( IF($W$1='(HIDE) MASTER-Chart'!$J$2, VLOOKUP(L43,'(HIDE) MASTER-Chart'!$B:$G,4,FALSE), VLOOKUP(L43,'(HIDE) MASTER-Chart'!$M:$R,4,FALSE)),"") -> 60532 | Z43: (11)
O44: =IF(ISERROR(VLOOKUP(B44,'(HIDE) MASTER-Chart'!$B:$G,5,FALSE)),"",VLOOKUP(B44,'(HIDE) MASTER-Chart'!$B:$G,5,FALSE)) ->  | Q44: =IF(ISERROR(VLOOKUP(D44,'(HIDE) MASTER-Chart'!$B:$G,5,FALSE)),"",VLOOKUP(D44,'(HIDE) MASTER-Chart'!$B:$G,5,FALSE)) ->  | S44: =IF(ISERROR(VLOOKUP(F44,'(HIDE) MASTER-Chart'!$B:$G,5,FALSE)),"",VLOOKUP(F44,'(HIDE) MASTER-Chart'!$B:$G,5,FALSE)) ->  | U44: =IF(ISERROR(VLOOKUP(H44,'(HIDE) MASTER-Chart'!$B:$G,5,FALSE)),"",VLOOKUP(H44,'(HIDE) MASTER-Chart'!$B:$G,5,FALSE)) ->  | W44: =IF(ISERROR(VLOOKUP(J44,'(HIDE) MASTER-Chart'!$B:$G,5,FALSE)),"",VLOOKUP(J44,'(HIDE) MASTER-Chart'!$B:$G,5,FALSE)) ->  | Y44: =IF(ISERROR(VLOOKUP(L44,'(HIDE) MASTER-Chart'!$B:$G,5,FALSE)),"",VLOOKUP(L44,'(HIDE) MASTER-Chart'!$B:$G,5,FALSE)) -> 
B45: 12 | D45: 12 | F45: 13 | H45: 13 | J45: 13 | L45: 14 | N45: TARGET | O45: =IFERROR( IF($W$1='(HIDE) MASTER-Chart'!$J$2, VLOOKUP(B45,'(HIDE) MASTER-Chart'!$B:$G,4,FALSE), VLOOKUP(B45,'(HIDE) MASTER-Chart'!$M:$R,4,FALSE)),"") -> 62303 | P45: (12) | Q45: =IFERROR( IF($W$1='(HIDE) MASTER-Chart'!$J$2, VLOOKUP(D45,'(HIDE) MASTER-Chart'!$B:$G,4,FALSE), VLOOKUP(D45,'(HIDE) MASTER-Chart'!$M:$R,4,FALSE)),"") -> 62303 | R45: (12) | S45: =IFERROR( IF($W$1='(HIDE) MASTER-Chart'!$J$2, VLOOKUP(F45,'(HIDE) MASTER-Chart'!$B:$G,4,FALSE), VLOOKUP(F45,'(HIDE) MASTER-Chart'!$M:$R,4,FALSE)),"") -> 64126 | T45: (13) | U45: =IFERROR( IF($W$1='(HIDE) MASTER-Chart'!$J$2, VLOOKUP(H45,'(HIDE) MASTER-Chart'!$B:$G,4,FALSE), VLOOKUP(H45,'(HIDE) MASTER-Chart'!$M:$R,4,FALSE)),"") -> 64126 | V45: (13) | W45: =IFERROR( IF($W$1='(HIDE) MASTER-Chart'!$J$2, VLOOKUP(J45,'(HIDE) MASTER-Chart'!$B:$G,4,FALSE), VLOOKUP(J45,'(HIDE) MASTER-Chart'!$M:$R,4,FALSE)),"") -> 64126 | X45: (13) | Y45: =IFERROR( IF($W$1='(HIDE) MASTER-Chart'!$J$2, VLOOKUP(L45,'(HIDE) MASTER-Chart'!$B:$G,4,FALSE), VLOOKUP(L45,'(HIDE) MASTER-Chart'!$M:$R,4,FALSE)),"") -> 66006 | Z45: (14)
A46: 26 - 27 | B46: 10 | D46: 10 | F46: 11 | H46: 11 | J46: 11 | L46: 12 | N46: 2 STEP | O46: =IFERROR( IF($W$1='(HIDE) MASTER-Chart'!$J$2, VLOOKUP(B46,'(HIDE) MASTER-Chart'!$B:$G,4,FALSE), VLOOKUP(B46,'(HIDE) MASTER-Chart'!$M:$R,4,FALSE)),"") -> 58813 | P46: (10) | Q46: =IFERROR( IF($W$1='(HIDE) MASTER-Chart'!$J$2, VLOOKUP(D46,'(HIDE) MASTER-Chart'!$B:$G,4,FALSE), VLOOKUP(D46,'(HIDE) MASTER-Chart'!$M:$R,4,FALSE)),"") -> 58813 | R46: (10) | S46: =IFERROR( IF($W$1='(HIDE) MASTER-Chart'!$J$2, VLOOKUP(F46,'(HIDE) MASTER-Chart'!$B:$G,4,FALSE), VLOOKUP(F46,'(HIDE) MASTER-Chart'!$M:$R,4,FALSE)),"") -> 60532 | T46: (11) | U46: =IFERROR( IF($W$1='(HIDE) MASTER-Chart'!$J$2, VLOOKUP(H46,'(HIDE) MASTER-Chart'!$B:$G,4,FALSE), VLOOKUP(H46,'(HIDE) MASTER-Chart'!$M:$R,4,FALSE)),"") -> 60532 | V46: (11) | W46: =IFERROR( IF($W$1='(HIDE) MASTER-Chart'!$J$2, VLOOKUP(J46,'(HIDE) MASTER-Chart'!$B:$G,4,FALSE), VLOOKUP(J46,'(HIDE) MASTER-Chart'!$M:$R,4,FALSE)),"") -> 60532 | X46: (11) | Y46: =IFERROR( IF($W$1='(HIDE) MASTER-Chart'!$J$2, VLOOKUP(L46,'(HIDE) MASTER-Chart'!$B:$G,4,FALSE), VLOOKUP(L46,'(HIDE) MASTER-Chart'!$M:$R,4,FALSE)),"") -> 62303 | Z46: (12)
O47: =IF(ISERROR(VLOOKUP(B47,'(HIDE) MASTER-Chart'!$B:$G,5,FALSE)),"",VLOOKUP(B47,'(HIDE) MASTER-Chart'!$B:$G,5,FALSE)) ->  | Q47: =IF(ISERROR(VLOOKUP(D47,'(HIDE) MASTER-Chart'!$B:$G,5,FALSE)),"",VLOOKUP(D47,'(HIDE) MASTER-Chart'!$B:$G,5,FALSE)) ->  | S47: =IF(ISERROR(VLOOKUP(F47,'(HIDE) MASTER-Chart'!$B:$G,5,FALSE)),"",VLOOKUP(F47,'(HIDE) MASTER-Chart'!$B:$G,5,FALSE)) ->  | U47: =IF(ISERROR(VLOOKUP(H47,'(HIDE) MASTER-Chart'!$B:$G,5,FALSE)),"",VLOOKUP(H47,'(HIDE) MASTER-Chart'!$B:$G,5,FALSE)) ->  | W47: =IF(ISERROR(VLOOKUP(J47,'(HIDE) MASTER-Chart'!$B:$G,5,FALSE)),"",VLOOKUP(J47,'(HIDE) MASTER-Chart'!$B:$G,5,FALSE)) ->  | Y47: =IF(ISERROR(VLOOKUP(L47,'(HIDE) MASTER-Chart'!$B:$G,5,FALSE)),"",VLOOKUP(L47,'(HIDE) MASTER-Chart'!$B:$G,5,FALSE)) -> 
B48: 13 | D48: 13 | F48: 13 | H48: 14 | J48: 14 | L48: 14 | N48: TARGET | O48: =IFERROR( IF($W$1='(HIDE) MASTER-Chart'!$J$2, VLOOKUP(B48,'(HIDE) MASTER-Chart'!$B:$G,4,FALSE), VLOOKUP(B48,'(HIDE) MASTER-Chart'!$M:$R,4,FALSE)),"") -> 64126 | P48: (13) | Q48: =IFERROR( IF($W$1='(HIDE) MASTER-Chart'!$J$2, VLOOKUP(D48,'(HIDE) MASTER-Chart'!$B:$G,4,FALSE), VLOOKUP(D48,'(HIDE) MASTER-Chart'!$M:$R,4,FALSE)),"") -> 64126 | R48: (13) | S48: =IFERROR( IF($W$1='(HIDE) MASTER-Chart'!$J$2, VLOOKUP(F48,'(HIDE) MASTER-Chart'!$B:$G,4,FALSE), VLOOKUP(F48,'(HIDE) MASTER-Chart'!$M:$R,4,FALSE)),"") -> 64126 | T48: (13) | U48: =IFERROR( IF($W$1='(HIDE) MASTER-Chart'!$J$2, VLOOKUP(H48,'(HIDE) MASTER-Chart'!$B:$G,4,FALSE), VLOOKUP(H48,'(HIDE) MASTER-Chart'!$M:$R,4,FALSE)),"") -> 66006 | V48: (14) | W48: =IFERROR( IF($W$1='(HIDE) MASTER-Chart'!$J$2, VLOOKUP(J48,'(HIDE) MASTER-Chart'!$B:$G,4,FALSE), VLOOKUP(J48,'(HIDE) MASTER-Chart'!$M:$R,4,FALSE)),"") -> 66006 | X48: (14) | Y48: =IFERROR( IF($W$1='(HIDE) MASTER-Chart'!$J$2, VLOOKUP(L48,'(HIDE) MASTER-Chart'!$B:$G,4,FALSE), VLOOKUP(L48,'(HIDE) MASTER-Chart'!$M:$R,4,FALSE)),"") -> 66006 | Z48: (14)
A49: 28 - 29 | B49: 11 | D49: 11 | F49: 11 | H49: 12 | J49: 12 | L49: 12 | N49: 2 STEP | O49: =IFERROR( IF($W$1='(HIDE) MASTER-Chart'!$J$2, VLOOKUP(B49,'(HIDE) MASTER-Chart'!$B:$G,4,FALSE), VLOOKUP(B49,'(HIDE) MASTER-Chart'!$M:$R,4,FALSE)),"") -> 60532 | P49: (11) | Q49: =IFERROR( IF($W$1='(HIDE) MASTER-Chart'!$J$2, VLOOKUP(D49,'(HIDE) MASTER-Chart'!$B:$G,4,FALSE), VLOOKUP(D49,'(HIDE) MASTER-Chart'!$M:$R,4,FALSE)),"") -> 60532 | R49: (11) | S49: =IFERROR( IF($W$1='(HIDE) MASTER-Chart'!$J$2, VLOOKUP(F49,'(HIDE) MASTER-Chart'!$B:$G,4,FALSE), VLOOKUP(F49,'(HIDE) MASTER-Chart'!$M:$R,4,FALSE)),"") -> 60532 | T49: (11) | U49: =IFERROR( IF($W$1='(HIDE) MASTER-Chart'!$J$2, VLOOKUP(H49,'(HIDE) MASTER-Chart'!$B:$G,4,FALSE), VLOOKUP(H49,'(HIDE) MASTER-Chart'!$M:$R,4,FALSE)),"") -> 62303 | V49: (12) | W49: =IFERROR( IF($W$1='(HIDE) MASTER-Chart'!$J$2, VLOOKUP(J49,'(HIDE) MASTER-Chart'!$B:$G,4,FALSE), VLOOKUP(J49,'(HIDE) MASTER-Chart'!$M:$R,4,FALSE)),"") -> 62303 | X49: (12) | Y49: =IFERROR( IF($W$1='(HIDE) MASTER-Chart'!$J$2, VLOOKUP(L49,'(HIDE) MASTER-Chart'!$B:$G,4,FALSE), VLOOKUP(L49,'(HIDE) MASTER-Chart'!$M:$R,4,FALSE)),"") -> 62303 | Z49: (12)
O50: =IF(ISERROR(VLOOKUP(B50,'(HIDE) MASTER-Chart'!$B:$G,5,FALSE)),"",VLOOKUP(B50,'(HIDE) MASTER-Chart'!$B:$G,5,FALSE)) ->  | Q50: =IF(ISERROR(VLOOKUP(D50,'(HIDE) MASTER-Chart'!$B:$G,5,FALSE)),"",VLOOKUP(D50,'(HIDE) MASTER-Chart'!$B:$G,5,FALSE)) ->  | S50: =IF(ISERROR(VLOOKUP(F50,'(HIDE) MASTER-Chart'!$B:$G,5,FALSE)),"",VLOOKUP(F50,'(HIDE) MASTER-Chart'!$B:$G,5,FALSE)) ->  | U50: =IF(ISERROR(VLOOKUP(H50,'(HIDE) MASTER-Chart'!$B:$G,5,FALSE)),"",VLOOKUP(H50,'(HIDE) MASTER-Chart'!$B:$G,5,FALSE)) ->  | W50: =IF(ISERROR(VLOOKUP(J50,'(HIDE) MASTER-Chart'!$B:$G,5,FALSE)),"",VLOOKUP(J50,'(HIDE) MASTER-Chart'!$B:$G,5,FALSE)) ->  | Y50: =IF(ISERROR(VLOOKUP(L50,'(HIDE) MASTER-Chart'!$B:$G,5,FALSE)),"",VLOOKUP(L50,'(HIDE) MASTER-Chart'!$B:$G,5,FALSE)) -> 
B51: 13 | D51: 14 | F51: 14 | H51: 14 | J51: 15 | L51: 15 | N51: TARGET | O51: =IFERROR( IF($W$1='(HIDE) MASTER-Chart'!$J$2, VLOOKUP(B51,'(HIDE) MASTER-Chart'!$B:$G,4,FALSE), VLOOKUP(B51,'(HIDE) MASTER-Chart'!$M:$R,4,FALSE)),"") -> 64126 | P51: (13) | Q51: =IFERROR( IF($W$1='(HIDE) MASTER-Chart'!$J$2, VLOOKUP(D51,'(HIDE) MASTER-Chart'!$B:$G,4,FALSE), VLOOKUP(D51,'(HIDE) MASTER-Chart'!$M:$R,4,FALSE)),"") -> 66006 | R51: (14) | S51: =IFERROR( IF($W$1='(HIDE) MASTER-Chart'!$J$2, VLOOKUP(F51,'(HIDE) MASTER-Chart'!$B:$G,4,FALSE), VLOOKUP(F51,'(HIDE) MASTER-Chart'!$M:$R,4,FALSE)),"") -> 66006 | T51: (14) | U51: =IFERROR( IF($W$1='(HIDE) MASTER-Chart'!$J$2, VLOOKUP(H51,'(HIDE) MASTER-Chart'!$B:$G,4,FALSE), VLOOKUP(H51,'(HIDE) MASTER-Chart'!$M:$R,4,FALSE)),"") -> 66006 | V51: (14) | W51: =IFERROR( IF($W$1='(HIDE) MASTER-Chart'!$J$2, VLOOKUP(J51,'(HIDE) MASTER-Chart'!$B:$G,4,FALSE), VLOOKUP(J51,'(HIDE) MASTER-Chart'!$M:$R,4,FALSE)),"") -> 67939 | X51: (15) | Y51: =IFERROR( IF($W$1='(HIDE) MASTER-Chart'!$J$2, VLOOKUP(L51,'(HIDE) MASTER-Chart'!$B:$G,4,FALSE), VLOOKUP(L51,'(HIDE) MASTER-Chart'!$M:$R,4,FALSE)),"") -> 67939 | Z51: (15)
A52: 30 - 31 | B52: 11 | D52: 12 | F52: 12 | H52: 12 | J52: 13 | L52: 13 | N52: 2 STEP | O52: =IFERROR( IF($W$1='(HIDE) MASTER-Chart'!$J$2, VLOOKUP(B52,'(HIDE) MASTER-Chart'!$B:$G,4,FALSE), VLOOKUP(B52,'(HIDE) MASTER-Chart'!$M:$R,4,FALSE)),"") -> 60532 | P52: (11) | Q52: =IFERROR( IF($W$1='(HIDE) MASTER-Chart'!$J$2, VLOOKUP(D52,'(HIDE) MASTER-Chart'!$B:$G,4,FALSE), VLOOKUP(D52,'(HIDE) MASTER-Chart'!$M:$R,4,FALSE)),"") -> 62303 | R52: (12) | S52: =IFERROR( IF($W$1='(HIDE) MASTER-Chart'!$J$2, VLOOKUP(F52,'(HIDE) MASTER-Chart'!$B:$G,4,FALSE), VLOOKUP(F52,'(HIDE) MASTER-Chart'!$M:$R,4,FALSE)),"") -> 62303 | T52: (12) | U52: =IFERROR( IF($W$1='(HIDE) MASTER-Chart'!$J$2, VLOOKUP(H52,'(HIDE) MASTER-Chart'!$B:$G,4,FALSE), VLOOKUP(H52,'(HIDE) MASTER-Chart'!$M:$R,4,FALSE)),"") -> 62303 | V52: (12) | W52: =IFERROR( IF($W$1='(HIDE) MASTER-Chart'!$J$2, VLOOKUP(J52,'(HIDE) MASTER-Chart'!$B:$G,4,FALSE), VLOOKUP(J52,'(HIDE) MASTER-Chart'!$M:$R,4,FALSE)),"") -> 64126 | X52: (13) | Y52: =IFERROR( IF($W$1='(HIDE) MASTER-Chart'!$J$2, VLOOKUP(L52,'(HIDE) MASTER-Chart'!$B:$G,4,FALSE), VLOOKUP(L52,'(HIDE) MASTER-Chart'!$M:$R,4,FALSE)),"") -> 64126 | Z52: (13)
O53: =IF(ISERROR(VLOOKUP(B53,'(HIDE) MASTER-Chart'!$B:$G,5,FALSE)),"",VLOOKUP(B53,'(HIDE) MASTER-Chart'!$B:$G,5,FALSE)) ->  | Q53: =IF(ISERROR(VLOOKUP(D53,'(HIDE) MASTER-Chart'!$B:$G,5,FALSE)),"",VLOOKUP(D53,'(HIDE) MASTER-Chart'!$B:$G,5,FALSE)) ->  | S53: =IF(ISERROR(VLOOKUP(F53,'(HIDE) MASTER-Chart'!$B:$G,5,FALSE)),"",VLOOKUP(F53,'(HIDE) MASTER-Chart'!$B:$G,5,FALSE)) ->  | U53: =IF(ISERROR(VLOOKUP(H53,'(HIDE) MASTER-Chart'!$B:$G,5,FALSE)),"",VLOOKUP(H53,'(HIDE) MASTER-Chart'!$B:$G,5,FALSE)) ->  | W53: =IF(ISERROR(VLOOKUP(J53,'(HIDE) MASTER-Chart'!$B:$G,5,FALSE)),"",VLOOKUP(J53,'(HIDE) MASTER-Chart'!$B:$G,5,FALSE)) ->  | Y53: =IF(ISERROR(VLOOKUP(L53,'(HIDE) MASTER-Chart'!$B:$G,5,FALSE)),"",VLOOKUP(L53,'(HIDE) MASTER-Chart'!$B:$G,5,FALSE)) -> 
B54: 14 | D54: 14 | F54: 14 | H54: 15 | J54: 15 | L54: 15 | N54: TARGET | O54: =IFERROR( IF($W$1='(HIDE) MASTER-Chart'!$J$2, VLOOKUP(B54,'(HIDE) MASTER-Chart'!$B:$G,4,FALSE), VLOOKUP(B54,'(HIDE) MASTER-Chart'!$M:$R,4,FALSE)),"") -> 66006 | P54: (14) | Q54: =IFERROR( IF($W$1='(HIDE) MASTER-Chart'!$J$2, VLOOKUP(D54,'(HIDE) MASTER-Chart'!$B:$G,4,FALSE), VLOOKUP(D54,'(HIDE) MASTER-Chart'!$M:$R,4,FALSE)),"") -> 66006 | R54: (14) | S54: =IFERROR( IF($W$1='(HIDE) MASTER-Chart'!$J$2, VLOOKUP(F54,'(HIDE) MASTER-Chart'!$B:$G,4,FALSE), VLOOKUP(F54,'(HIDE) MASTER-Chart'!$M:$R,4,FALSE)),"") -> 66006 | T54: (14) | U54: =IFERROR( IF($W$1='(HIDE) MASTER-Chart'!$J$2, VLOOKUP(H54,'(HIDE) MASTER-Chart'!$B:$G,4,FALSE), VLOOKUP(H54,'(HIDE) MASTER-Chart'!$M:$R,4,FALSE)),"") -> 67939 | V54: (15) | W54: =IFERROR( IF($W$1='(HIDE) MASTER-Chart'!$J$2, VLOOKUP(J54,'(HIDE) MASTER-Chart'!$B:$G,4,FALSE), VLOOKUP(J54,'(HIDE) MASTER-Chart'!$M:$R,4,FALSE)),"") -> 67939 | X54: (15) | Y54: =IFERROR( IF($W$1='(HIDE) MASTER-Chart'!$J$2, VLOOKUP(L54,'(HIDE) MASTER-Chart'!$B:$G,4,FALSE), VLOOKUP(L54,'(HIDE) MASTER-Chart'!$M:$R,4,FALSE)),"") -> 67939 | Z54: (15)
A55: 32 - 33 | B55: 12 | D55: 12 | F55: 12 | H55: 13 | J55: 13 | L55: 13 | N55: 2 STEP | O55: =IFERROR( IF($W$1='(HIDE) MASTER-Chart'!$J$2, VLOOKUP(B55,'(HIDE) MASTER-Chart'!$B:$G,4,FALSE), VLOOKUP(B55,'(HIDE) MASTER-Chart'!$M:$R,4,FALSE)),"") -> 62303 | P55: (12) | Q55: =IFERROR( IF($W$1='(HIDE) MASTER-Chart'!$J$2, VLOOKUP(D55,'(HIDE) MASTER-Chart'!$B:$G,4,FALSE), VLOOKUP(D55,'(HIDE) MASTER-Chart'!$M:$R,4,FALSE)),"") -> 62303 | R55: (12) | S55: =IFERROR( IF($W$1='(HIDE) MASTER-Chart'!$J$2, VLOOKUP(F55,'(HIDE) MASTER-Chart'!$B:$G,4,FALSE), VLOOKUP(F55,'(HIDE) MASTER-Chart'!$M:$R,4,FALSE)),"") -> 62303 | T55: (12) | U55: =IFERROR( IF($W$1='(HIDE) MASTER-Chart'!$J$2, VLOOKUP(H55,'(HIDE) MASTER-Chart'!$B:$G,4,FALSE), VLOOKUP(H55,'(HIDE) MASTER-Chart'!$M:$R,4,FALSE)),"") -> 64126 | V55: (13) | W55: =IFERROR( IF($W$1='(HIDE) MASTER-Chart'!$J$2, VLOOKUP(J55,'(HIDE) MASTER-Chart'!$B:$G,4,FALSE), VLOOKUP(J55,'(HIDE) MASTER-Chart'!$M:$R,4,FALSE)),"") -> 64126 | X55: (13) | Y55: =IFERROR( IF($W$1='(HIDE) MASTER-Chart'!$J$2, VLOOKUP(L55,'(HIDE) MASTER-Chart'!$B:$G,4,FALSE), VLOOKUP(L55,'(HIDE) MASTER-Chart'!$M:$R,4,FALSE)),"") -> 64126 | Z55: (13)
O56: =IF(ISERROR(VLOOKUP(B56,'(HIDE) MASTER-Chart'!$B:$G,5,FALSE)),"",VLOOKUP(B56,'(HIDE) MASTER-Chart'!$B:$G,5,FALSE)) ->  | Q56: =IF(ISERROR(VLOOKUP(D56,'(HIDE) MASTER-Chart'!$B:$G,5,FALSE)),"",VLOOKUP(D56,'(HIDE) MASTER-Chart'!$B:$G,5,FALSE)) ->  | S56: =IF(ISERROR(VLOOKUP(F56,'(HIDE) MASTER-Chart'!$B:$G,5,FALSE)),"",VLOOKUP(F56,'(HIDE) MASTER-Chart'!$B:$G,5,FALSE)) ->  | U56: =IF(ISERROR(VLOOKUP(H56,'(HIDE) MASTER-Chart'!$B:$G,5,FALSE)),"",VLOOKUP(H56,'(HIDE) MASTER-Chart'!$B:$G,5,FALSE)) ->  | W56: =IF(ISERROR(VLOOKUP(J56,'(HIDE) MASTER-Chart'!$B:$G,5,FALSE)),"",VLOOKUP(J56,'(HIDE) MASTER-Chart'!$B:$G,5,FALSE)) ->  | Y56: =IF(ISERROR(VLOOKUP(L56,'(HIDE) MASTER-Chart'!$B:$G,5,FALSE)),"",VLOOKUP(L56,'(HIDE) MASTER-Chart'!$B:$G,5,FALSE)) -> 
B57: 14 | D57: 15 | F57: 15 | H57: 15 | J57: 16 | L57: 16 | N57: TARGET | O57: =IFERROR( IF($W$1='(HIDE) MASTER-Chart'!$J$2, VLOOKUP(B57,'(HIDE) MASTER-Chart'!$B:$G,4,FALSE), VLOOKUP(B57,'(HIDE) MASTER-Chart'!$M:$R,4,FALSE)),"") -> 66006 | P57: (14) | Q57: =IFERROR( IF($W$1='(HIDE) MASTER-Chart'!$J$2, VLOOKUP(D57,'(HIDE) MASTER-Chart'!$B:$G,4,FALSE), VLOOKUP(D57,'(HIDE) MASTER-Chart'!$M:$R,4,FALSE)),"") -> 67939 | R57: (15) | S57: =IFERROR( IF($W$1='(HIDE) MASTER-Chart'!$J$2, VLOOKUP(F57,'(HIDE) MASTER-Chart'!$B:$G,4,FALSE), VLOOKUP(F57,'(HIDE) MASTER-Chart'!$M:$R,4,FALSE)),"") -> 67939 | T57: (15) | U57: =IFERROR( IF($W$1='(HIDE) MASTER-Chart'!$J$2, VLOOKUP(H57,'(HIDE) MASTER-Chart'!$B:$G,4,FALSE), VLOOKUP(H57,'(HIDE) MASTER-Chart'!$M:$R,4,FALSE)),"") -> 67939 | V57: (15) | W57: =IFERROR( IF($W$1='(HIDE) MASTER-Chart'!$J$2, VLOOKUP(J57,'(HIDE) MASTER-Chart'!$B:$G,4,FALSE), VLOOKUP(J57,'(HIDE) MASTER-Chart'!$M:$R,4,FALSE)),"") -> 69930 | X57: (16) | Y57: =IFERROR( IF($W$1='(HIDE) MASTER-Chart'!$J$2, VLOOKUP(L57,'(HIDE) MASTER-Chart'!$B:$G,4,FALSE), VLOOKUP(L57,'(HIDE) MASTER-Chart'!$M:$R,4,FALSE)),"") -> 69930 | Z57: (16)
A58: 34 - 35 | B58: 12 | D58: 13 | F58: 13 | H58: 13 | J58: 14 | L58: 14 | N58: 2 STEP | O58: =IFERROR( IF($W$1='(HIDE) MASTER-Chart'!$J$2, VLOOKUP(B58,'(HIDE) MASTER-Chart'!$B:$G,4,FALSE), VLOOKUP(B58,'(HIDE) MASTER-Chart'!$M:$R,4,FALSE)),"") -> 62303 | P58: (12) | Q58: =IFERROR( IF($W$1='(HIDE) MASTER-Chart'!$J$2, VLOOKUP(D58,'(HIDE) MASTER-Chart'!$B:$G,4,FALSE), VLOOKUP(D58,'(HIDE) MASTER-Chart'!$M:$R,4,FALSE)),"") -> 64126 | R58: (13) | S58: =IFERROR( IF($W$1='(HIDE) MASTER-Chart'!$J$2, VLOOKUP(F58,'(HIDE) MASTER-Chart'!$B:$G,4,FALSE), VLOOKUP(F58,'(HIDE) MASTER-Chart'!$M:$R,4,FALSE)),"") -> 64126 | T58: (13) | U58: =IFERROR( IF($W$1='(HIDE) MASTER-Chart'!$J$2, VLOOKUP(H58,'(HIDE) MASTER-Chart'!$B:$G,4,FALSE), VLOOKUP(H58,'(HIDE) MASTER-Chart'!$M:$R,4,FALSE)),"") -> 64126 | V58: (13) | W58: =IFERROR( IF($W$1='(HIDE) MASTER-Chart'!$J$2, VLOOKUP(J58,'(HIDE) MASTER-Chart'!$B:$G,4,FALSE), VLOOKUP(J58,'(HIDE) MASTER-Chart'!$M:$R,4,FALSE)),"") -> 66006 | X58: (14) | Y58: =IFERROR( IF($W$1='(HIDE) MASTER-Chart'!$J$2, VLOOKUP(L58,'(HIDE) MASTER-Chart'!$B:$G,4,FALSE), VLOOKUP(L58,'(HIDE) MASTER-Chart'!$M:$R,4,FALSE)),"") -> 66006 | Z58: (14)
O59: =IF(ISERROR(VLOOKUP(B59,'(HIDE) MASTER-Chart'!$B:$G,5,FALSE)),"",VLOOKUP(B59,'(HIDE) MASTER-Chart'!$B:$G,5,FALSE)) ->  | Q59: =IF(ISERROR(VLOOKUP(D59,'(HIDE) MASTER-Chart'!$B:$G,5,FALSE)),"",VLOOKUP(D59,'(HIDE) MASTER-Chart'!$B:$G,5,FALSE)) ->  | S59: =IF(ISERROR(VLOOKUP(F59,'(HIDE) MASTER-Chart'!$B:$G,5,FALSE)),"",VLOOKUP(F59,'(HIDE) MASTER-Chart'!$B:$G,5,FALSE)) ->  | U59: =IF(ISERROR(VLOOKUP(H59,'(HIDE) MASTER-Chart'!$B:$G,5,FALSE)),"",VLOOKUP(H59,'(HIDE) MASTER-Chart'!$B:$G,5,FALSE)) ->  | W59: =IF(ISERROR(VLOOKUP(J59,'(HIDE) MASTER-Chart'!$B:$G,5,FALSE)),"",VLOOKUP(J59,'(HIDE) MASTER-Chart'!$B:$G,5,FALSE)) ->  | Y59: =IF(ISERROR(VLOOKUP(L59,'(HIDE) MASTER-Chart'!$B:$G,5,FALSE)),"",VLOOKUP(L59,'(HIDE) MASTER-Chart'!$B:$G,5,FALSE)) -> 
B60: 15 | D60: 15 | F60: 16 | H60: 16 | J60: 16 | L60: 16 | N60: TARGET | O60: =IFERROR( IF($W$1='(HIDE) MASTER-Chart'!$J$2, VLOOKUP(B60,'(HIDE) MASTER-Chart'!$B:$G,4,FALSE), VLOOKUP(B60,'(HIDE) MASTER-Chart'!$M:$R,4,FALSE)),"") -> 67939 | P60: (15) | Q60: =IFERROR( IF($W$1='(HIDE) MASTER-Chart'!$J$2, VLOOKUP(D60,'(HIDE) MASTER-Chart'!$B:$G,4,FALSE), VLOOKUP(D60,'(HIDE) MASTER-Chart'!$M:$R,4,FALSE)),"") -> 67939 | R60: (15) | S60: =IFERROR( IF($W$1='(HIDE) MASTER-Chart'!$J$2, VLOOKUP(F60,'(HIDE) MASTER-Chart'!$B:$G,4,FALSE), VLOOKUP(F60,'(HIDE) MASTER-Chart'!$M:$R,4,FALSE)),"") -> 69930 | T60: (16) | U60: =IFERROR( IF($W$1='(HIDE) MASTER-Chart'!$J$2, VLOOKUP(H60,'(HIDE) MASTER-Chart'!$B:$G,4,FALSE), VLOOKUP(H60,'(HIDE) MASTER-Chart'!$M:$R,4,FALSE)),"") -> 69930 | V60: (16) | W60: =IFERROR( IF($W$1='(HIDE) MASTER-Chart'!$J$2, VLOOKUP(J60,'(HIDE) MASTER-Chart'!$B:$G,4,FALSE), VLOOKUP(J60,'(HIDE) MASTER-Chart'!$M:$R,4,FALSE)),"") -> 69930 | X60: (16) | Y60: =IFERROR( IF($W$1='(HIDE) MASTER-Chart'!$J$2, VLOOKUP(L60,'(HIDE) MASTER-Chart'!$B:$G,4,FALSE), VLOOKUP(L60,'(HIDE) MASTER-Chart'!$M:$R,4,FALSE)),"") -> 69930 | Z60: (16)
A61: 36+ | B61: 13 | D61: 13 | F61: 14 | H61: 14 | J61: 14 | L61: 14 | N61: 2 STEP | O61: =IFERROR( IF($W$1='(HIDE) MASTER-Chart'!$J$2, VLOOKUP(B61,'(HIDE) MASTER-Chart'!$B:$G,4,FALSE), VLOOKUP(B61,'(HIDE) MASTER-Chart'!$M:$R,4,FALSE)),"") -> 64126 | P61: (13) | Q61: =IFERROR( IF($W$1='(HIDE) MASTER-Chart'!$J$2, VLOOKUP(D61,'(HIDE) MASTER-Chart'!$B:$G,4,FALSE), VLOOKUP(D61,'(HIDE) MASTER-Chart'!$M:$R,4,FALSE)),"") -> 64126 | R61: (13) | S61: =IFERROR( IF($W$1='(HIDE) MASTER-Chart'!$J$2, VLOOKUP(F61,'(HIDE) MASTER-Chart'!$B:$G,4,FALSE), VLOOKUP(F61,'(HIDE) MASTER-Chart'!$M:$R,4,FALSE)),"") -> 66006 | T61: (14) | U61: =IFERROR( IF($W$1='(HIDE) MASTER-Chart'!$J$2, VLOOKUP(H61,'(HIDE) MASTER-Chart'!$B:$G,4,FALSE), VLOOKUP(H61,'(HIDE) MASTER-Chart'!$M:$R,4,FALSE)),"") -> 66006 | V61: (14) | W61: =IFERROR( IF($W$1='(HIDE) MASTER-Chart'!$J$2, VLOOKUP(J61,'(HIDE) MASTER-Chart'!$B:$G,4,FALSE), VLOOKUP(J61,'(HIDE) MASTER-Chart'!$M:$R,4,FALSE)),"") -> 66006 | X61: (14) | Y61: =IFERROR( IF($W$1='(HIDE) MASTER-Chart'!$J$2, VLOOKUP(L61,'(HIDE) MASTER-Chart'!$B:$G,4,FALSE), VLOOKUP(L61,'(HIDE) MASTER-Chart'!$M:$R,4,FALSE)),"") -> 66006 | Z61: (14)
O62: =IF(ISERROR(VLOOKUP(B62,'(HIDE) MASTER-Chart'!$B:$G,5,FALSE)),"",VLOOKUP(B62,'(HIDE) MASTER-Chart'!$B:$G,5,FALSE)) ->  | Q62: =IF(ISERROR(VLOOKUP(D62,'(HIDE) MASTER-Chart'!$B:$G,5,FALSE)),"",VLOOKUP(D62,'(HIDE) MASTER-Chart'!$B:$G,5,FALSE)) ->  | S62: =IF(ISERROR(VLOOKUP(F62,'(HIDE) MASTER-Chart'!$B:$G,5,FALSE)),"",VLOOKUP(F62,'(HIDE) MASTER-Chart'!$B:$G,5,FALSE)) ->  | U62: =IF(ISERROR(VLOOKUP(H62,'(HIDE) MASTER-Chart'!$B:$G,5,FALSE)),"",VLOOKUP(H62,'(HIDE) MASTER-Chart'!$B:$G,5,FALSE)) ->  | W62: =IF(ISERROR(VLOOKUP(J62,'(HIDE) MASTER-Chart'!$B:$G,5,FALSE)),"",VLOOKUP(J62,'(HIDE) MASTER-Chart'!$B:$G,5,FALSE)) ->  | Y62: =IF(ISERROR(VLOOKUP(L62,'(HIDE) MASTER-Chart'!$B:$G,5,FALSE)),"",VLOOKUP(L62,'(HIDE) MASTER-Chart'!$B:$G,5,FALSE)) -> 

Sheet Printable Grid-RangeD
O1: MSUAASF | S1: RANGE D | W1: 7/1/2024 (FY25)
Q2: ='(HIDE) MASTER-Chart'!$F$3 -> 53148 | S2: to | U2: ='(HIDE) MASTER-Chart'!$F$22 -> 98135
A4: TOTAL | O4: Years in Equal or Higher MSUAASF, MnSCU Academic Professional, MnSCU Academic Supervisor and/or MnSCU Administrator Ranges
A5: YRS EXP | B5: 0-1 | D5: 2 - 3 | F5: 4 - 5 | H5: 6 - 7 | J5: 8 - 9 | L5: 10 + | O5: 0 - 1 | Q5: 2 - 3 | S5: 4 - 5 | U5: 6 - 7 | W5: 8 - 9 | Y5: 10 - 11
B6: 5 | N6: TARGET | O6: =IFERROR( IF($W$1='(HIDE) MASTER-Chart'!$J$2, VLOOKUP(B6,'(HIDE) MASTER-Chart'!$B:$G,5,FALSE), VLOOKUP(B6,'(HIDE) MASTER-Chart'!$M:$R,5,FALSE)),"") -> 61512 | P6: =IF(ISBLANK(B6),"",CONCATENATE("(",B6,")")) -> (5) | Q6: =IFERROR( IF($W$1='(HIDE) MASTER-Chart'!$J$2, VLOOKUP(D6,'(HIDE) MASTER-Chart'!$B:$G,5,FALSE), VLOOKUP(D6,'(HIDE) MASTER-Chart'!$M:$R,5,FALSE)),"") ->  | R6: =IF(ISBLANK(D6),"",CONCATENATE("(",D6,")")) ->  | S6: =IFERROR( IF($W$1='(HIDE) MASTER-Chart'!$J$2, VLOOKUP(F6,'(HIDE) MASTER-Chart'!$B:$G,5,FALSE), VLOOKUP(F6,'(HIDE) MASTER-Chart'!$M:$R,5,FALSE)),"") ->  | T6: =IF(ISBLANK(F6),"",CONCATENATE("(",F6,")")) ->  | U6: =IFERROR( IF($W$1='(HIDE) MASTER-Chart'!$J$2, VLOOKUP(H6,'(HIDE) MASTER-Chart'!$B:$G,5,FALSE), VLOOKUP(H6,'(HIDE) MASTER-Chart'!$M:$R,5,FALSE)),"") ->  | V6: =IF(ISBLANK(H6),"",CONCATENATE("(",H6,")")) ->  | W6: =IFERROR( IF($W$1='(HIDE) MASTER-Chart'!$J$2, VLOOKUP(J6,'(HIDE) MASTER-Chart'!$B:$G,5,FALSE), VLOOKUP(J6,'(HIDE) MASTER-Chart'!$M:$R,5,FALSE)),"") ->  | X6: =IF(ISBLANK(J6),"",CONCATENATE("(",J6,")")) ->  | Y6: =IFERROR( IF($W$1='(HIDE) MASTER-Chart'!$J$2, VLOOKUP(L6,'(HIDE) MASTER-Chart'!$B:$G,5,FALSE), VLOOKUP(L6,'(HIDE) MASTER-Chart'!$M:$R,5,FALSE)),"") ->  | Z6: =IF(ISBLANK(L6),"",CONCATENATE("(",L6,")")) -> 
A7: 0 - 1 | B7: 3 | N7: 2 STEP | O7: =IFERROR( IF($W$1='(HIDE) MASTER-Chart'!$J$2, VLOOKUP(B7,'(HIDE) MASTER-Chart'!$B:$G,5,FALSE), VLOOKUP(B7,'(HIDE) MASTER-Chart'!$M:$R,5,FALSE)),"") -> 57446 | P7: =IF(ISBLANK(B7),"",CONCATENATE("(",B7,")")) -> (3) | Q7: =IFERROR( IF($W$1='(HIDE) MASTER-Chart'!$J$2, VLOOKUP(D7,'(HIDE) MASTER-Chart'!$B:$G,5,FALSE), VLOOKUP(D7,'(HIDE) MASTER-Chart'!$M:$R,5,FALSE)),"") ->  | S7: =IFERROR( IF($W$1='(HIDE) MASTER-Chart'!$J$2, VLOOKUP(F7,'(HIDE) MASTER-Chart'!$B:$G,5,FALSE), VLOOKUP(F7,'(HIDE) MASTER-Chart'!$M:$R,5,FALSE)),"") ->  | U7: =IFERROR( IF($W$1='(HIDE) MASTER-Chart'!$J$2, VLOOKUP(H7,'(HIDE) MASTER-Chart'!$B:$G,5,FALSE), VLOOKUP(H7,'(HIDE) MASTER-Chart'!$M:$R,5,FALSE)),"") ->  | W7: =IFERROR( IF($W$1='(HIDE) MASTER-Chart'!$J$2, VLOOKUP(J7,'(HIDE) MASTER-Chart'!$B:$G,5,FALSE), VLOOKUP(J7,'(HIDE) MASTER-Chart'!$M:$R,5,FALSE)),"") ->  | Y7: =IFERROR( IF($W$1='(HIDE) MASTER-Chart'!$J$2, VLOOKUP(L7,'(HIDE) MASTER-Chart'!$B:$G,5,FALSE), VLOOKUP(L7,'(HIDE) MASTER-Chart'!$M:$R,5,FALSE)),"") -> 
O8: =IF(ISERROR(VLOOKUP(B8,'(HIDE) MASTER-Chart'!$B:$G,5,FALSE)),"",VLOOKUP(B8,'(HIDE) MASTER-Chart'!$B:$G,5,FALSE)) ->  | P8: =IF(ISBLANK(B8),"",CONCATENATE("(",B8,")")) ->  | Q8: =IF(ISERROR(VLOOKUP(D8,'(HIDE) MASTER-Chart'!$B:$G,5,FALSE)),"",VLOOKUP(D8,'(HIDE) MASTER-Chart'!$B:$G,5,FALSE)) ->  | S8: =IF(ISERROR(VLOOKUP(F8,'(HIDE) MASTER-Chart'!$B:$G,5,FALSE)),"",VLOOKUP(F8,'(HIDE) MASTER-Chart'!$B:$G,5,FALSE)) ->  | U8: =IF(ISERROR(VLOOKUP(H8,'(HIDE) MASTER-Chart'!$B:$G,5,FALSE)),"",VLOOKUP(H8,'(HIDE) MASTER-Chart'!$B:$G,5,FALSE)) ->  | W8: =IF(ISERROR(VLOOKUP(J8,'(HIDE) MASTER-Chart'!$B:$G,5,FALSE)),"",VLOOKUP(J8,'(HIDE) MASTER-Chart'!$B:$G,5,FALSE)) ->  | Y8: =IF(ISERROR(VLOOKUP(L8,'(HIDE) MASTER-Chart'!$B:$G,5,FALSE)),"",VLOOKUP(L8,'(HIDE) MASTER-Chart'!$B:$G,5,FALSE)) -> 
B9: 6 | D9: 6 | N9: TARGET | O9: =IFERROR( IF($W$1='(HIDE) MASTER-Chart'!$J$2, VLOOKUP(B9,'(HIDE) MASTER-Chart'!$B:$G,5,FALSE), VLOOKUP(B9,'(HIDE) MASTER-Chart'!$M:$R,5,FALSE)),"") -> 63845 | P9: =IF(ISBLANK(B9),"",CONCATENATE("(",B9,")")) -> (6) | Q9: =IFERROR( IF($W$1='(HIDE) MASTER-Chart'!$J$2, VLOOKUP(D9,'(HIDE) MASTER-Chart'!$B:$G,5,FALSE), VLOOKUP(D9,'(HIDE) MASTER-Chart'!$M:$R,5,FALSE)),"") -> 63845 | R9: =IF(ISBLANK(D9),"",CONCATENATE("(",D9,")")) -> (6) | S9: =IFERROR( IF($W$1='(HIDE) MASTER-Chart'!$J$2, VLOOKUP(F9,'(HIDE) MASTER-Chart'!$B:$G,5,FALSE), VLOOKUP(F9,'(HIDE) MASTER-Chart'!$M:$R,5,FALSE)),"") ->  | T9: =IF(ISBLANK(F9),"",CONCATENATE("(",F9,")")) ->  | U9: =IFERROR( IF($W$1='(HIDE) MASTER-Chart'!$J$2, VLOOKUP(H9,'(HIDE) MASTER-Chart'!$B:$G,5,FALSE), VLOOKUP(H9,'(HIDE) MASTER-Chart'!$M:$R,5,FALSE)),"") ->  | V9: =IF(ISBLANK(H9),"",CONCATENATE("(",H9,")")) ->  | W9: =IFERROR( IF($W$1='(HIDE) MASTER-Chart'!$J$2, VLOOKUP(J9,'(HIDE) MASTER-Chart'!$B:$G,5,FALSE), VLOOKUP(J9,'(HIDE) MASTER-Chart'!$M:$R,5,FALSE)),"") ->  | X9: =IF(ISBLANK(J9),"",CONCATENATE("(",J9,")")) ->  | Y9: =IFERROR( IF($W$1='(HIDE) MASTER-Chart'!$J$2, VLOOKUP(L9,'(HIDE) MASTER-Chart'!$B:$G,5,FALSE), VLOOKUP(L9,'(HIDE) MASTER-Chart'!$M:$R,5,FALSE)),"") ->  | Z9: =IF(ISBLANK(L9),"",CONCATENATE("(",L9,")")) -> 
A10: 2 - 3 | B10: 4 | D10: 4 | N10: 2 STEP | O10: =IFERROR( IF($W$1='(HIDE) MASTER-Chart'!$J$2, VLOOKUP(B10,'(HIDE) MASTER-Chart'!$B:$G,5,FALSE), VLOOKUP(B10,'(HIDE) MASTER-Chart'!$M:$R,5,FALSE)),"") -> 59171 | P10: (4) | Q10: =IFERROR( IF($W$1='(HIDE) MASTER-Chart'!$J$2, VLOOKUP(D10,'(HIDE) MASTER-Chart'!$B:$G,5,FALSE), VLOOKUP(D10,'(HIDE) MASTER-Chart'!$M:$R,5,FALSE)),"") -> 59171 | R10: (4) | S10: =IFERROR( IF($W$1='(HIDE) MASTER-Chart'!$J$2, VLOOKUP(F10,'(HIDE) MASTER-Chart'!$B:$G,5,FALSE), VLOOKUP(F10,'(HIDE) MASTER-Chart'!$M:$R,5,FALSE)),"") ->  | U10: =IFERROR( IF($W$1='(HIDE) MASTER-Chart'!$J$2, VLOOKUP(H10,'(HIDE) MASTER-Chart'!$B:$G,5,FALSE), VLOOKUP(H10,'(HIDE) MASTER-Chart'!$M:$R,5,FALSE)),"") ->  | W10: =IFERROR( IF($W$1='(HIDE) MASTER-Chart'!$J$2, VLOOKUP(J10,'(HIDE) MASTER-Chart'!$B:$G,5,FALSE), VLOOKUP(J10,'(HIDE) MASTER-Chart'!$M:$R,5,FALSE)),"") ->  | Y10: =IFERROR( IF($W$1='(HIDE) MASTER-Chart'!$J$2, VLOOKUP(L10,'(HIDE) MASTER-Chart'!$B:$G,5,FALSE), VLOOKUP(L10,'(HIDE) MASTER-Chart'!$M:$R,5,FALSE)),"") -> 
O11: =IF(ISERROR(VLOOKUP(B11,'(HIDE) MASTER-Chart'!$B:$G,5,FALSE)),"",VLOOKUP(B11,'(HIDE) MASTER-Chart'!$B:$G,5,FALSE)) ->  | Q11: =IF(ISERROR(VLOOKUP(D11,'(HIDE) MASTER-Chart'!$B:$G,5,FALSE)),"",VLOOKUP(D11,'(HIDE) MASTER-Chart'!$B:$G,5,FALSE)) ->  | S11: =IF(ISERROR(VLOOKUP(F11,'(HIDE) MASTER-Chart'!$B:$G,5,FALSE)),"",VLOOKUP(F11,'(HIDE) MASTER-Chart'!$B:$G,5,FALSE)) ->  | U11: =IF(ISERROR(VLOOKUP(H11,'(HIDE) MASTER-Chart'!$B:$G,5,FALSE)),"",VLOOKUP(H11,'(HIDE) MASTER-Chart'!$B:$G,5,FALSE)) ->  | W11: =IF(ISERROR(VLOOKUP(J11,'(HIDE) MASTER-Chart'!$B:$G,5,FALSE)),"",VLOOKUP(J11,'(HIDE) MASTER-Chart'!$B:$G,5,FALSE)) ->  | Y11: =IF(ISERROR(VLOOKUP(L11,'(HIDE) MASTER-Chart'!$B:$G,5,FALSE)),"",VLOOKUP(L11,'(HIDE) MASTER-Chart'!$B:$G,5,FALSE)) -> 
B12: 6 | D12: 7 | F12: 7 | N12: TARGET | O12: =IFERROR( IF($W$1='(HIDE) MASTER-Chart'!$J$2, VLOOKUP(B12,'(HIDE) MASTER-Chart'!$B:$G,5,FALSE), VLOOKUP(B12,'(HIDE) MASTER-Chart'!$M:$R,5,FALSE)),"") -> 63845 | P12: (6) | Q12: =IFERROR( IF($W$1='(HIDE) MASTER-Chart'!$J$2, VLOOKUP(D12,'(HIDE) MASTER-Chart'!$B:$G,5,FALSE), VLOOKUP(D12,'(HIDE) MASTER-Chart'!$M:$R,5,FALSE)),"") -> 66178 | R12: (7) | S12: =IFERROR( IF($W$1='(HIDE) MASTER-Chart'!$J$2, VLOOKUP(F12,'(HIDE) MASTER-Chart'!$B:$G,5,FALSE), VLOOKUP(F12,'(HIDE) MASTER-Chart'!$M:$R,5,FALSE)),"") -> 66178 | T12: (7) | U12: =IFERROR( IF($W$1='(HIDE) MASTER-Chart'!$J$2, VLOOKUP(H12,'(HIDE) MASTER-Chart'!$B:$G,5,FALSE), VLOOKUP(H12,'(HIDE) MASTER-Chart'!$M:$R,5,FALSE)),"") ->  | W12: =IFERROR( IF($W$1='(HIDE) MASTER-Chart'!$J$2, VLOOKUP(J12,'(HIDE) MASTER-Chart'!$B:$G,5,FALSE), VLOOKUP(J12,'(HIDE) MASTER-Chart'!$M:$R,5,FALSE)),"") ->  | Y12: =IFERROR( IF($W$1='(HIDE) MASTER-Chart'!$J$2, VLOOKUP(L12,'(HIDE) MASTER-Chart'!$B:$G,5,FALSE), VLOOKUP(L12,'(HIDE) MASTER-Chart'!$M:$R,5,FALSE)),"") -> 
A13: 4 - 5 | B13: 4 | D13: 5 | F13: 5 | N13: 2 STEP | O13: =IFERROR( IF($W$1='(HIDE) MASTER-Chart'!$J$2, VLOOKUP(B13,'(HIDE) MASTER-Chart'!$B:$G,5,FALSE), VLOOKUP(B13,'(HIDE) MASTER-Chart'!$M:$R,5,FALSE)),"") -> 59171 | P13: (4) | Q13: =IFERROR( IF($W$1='(HIDE) MASTER-Chart'!$J$2, VLOOKUP(D13,'(HIDE) MASTER-Chart'!$B:$G,5,FALSE), VLOOKUP(D13,'(HIDE) MASTER-Chart'!$M:$R,5,FALSE)),"") -> 61512 | R13: (5) | S13: =IFERROR( IF($W$1='(HIDE) MASTER-Chart'!$J$2, VLOOKUP(F13,'(HIDE) MASTER-Chart'!$B:$G,5,FALSE), VLOOKUP(F13,'(HIDE) MASTER-Chart'!$M:$R,5,FALSE)),"") -> 61512 | T13: (5) | U13: =IFERROR( IF($W$1='(HIDE) MASTER-Chart'!$J$2, VLOOKUP(H13,'(HIDE) MASTER-Chart'!$B:$G,5,FALSE), VLOOKUP(H13,'(HIDE) MASTER-Chart'!$M:$R,5,FALSE)),"") ->  | W13: =IFERROR( IF($W$1='(HIDE) MASTER-Chart'!$J$2, VLOOKUP(J13,'(HIDE) MASTER-Chart'!$B:$G,5,FALSE), VLOOKUP(J13,'(HIDE) MASTER-Chart'!$M:$R,5,FALSE)),"") ->  | Y13: =IFERROR( IF($W$1='(HIDE) MASTER-Chart'!$J$2, VLOOKUP(L13,'(HIDE) MASTER-Chart'!$B:$G,5,FALSE), VLOOKUP(L13,'(HIDE) MASTER-Chart'!$M:$R,5,FALSE)),"") -> 
O14: =IF(ISERROR(VLOOKUP(B14,'(HIDE) MASTER-Chart'!$B:$G,5,FALSE)),"",VLOOKUP(B14,'(HIDE) MASTER-Chart'!$B:$G,5,FALSE)) ->  | Q14: =IF(ISERROR(VLOOKUP(D14,'(HIDE) MASTER-Chart'!$B:$G,5,FALSE)),"",VLOOKUP(D14,'(HIDE) MASTER-Chart'!$B:$G,5,FALSE)) ->  | S14: =IF(ISERROR(VLOOKUP(F14,'(HIDE) MASTER-Chart'!$B:$G,5,FALSE)),"",VLOOKUP(F14,'(HIDE) MASTER-Chart'!$B:$G,5,FALSE)) ->  | U14: =IF(ISERROR(VLOOKUP(H14,'(HIDE) MASTER-Chart'!$B:$G,5,FALSE)),"",VLOOKUP(H14,'(HIDE) MASTER-Chart'!$B:$G,5,FALSE)) ->  | W14: =IF(ISERROR(VLOOKUP(J14,'(HIDE) MASTER-Chart'!$B:$G,5,FALSE)),"",VLOOKUP(J14,'(HIDE) MASTER-Chart'!$B:$G,5,FALSE)) ->  | Y14: =IF(ISERROR(VLOOKUP(L14,'(HIDE) MASTER-Chart'!$B:$G,5,FALSE)),"",VLOOKUP(L14,'(HIDE) MASTER-Chart'!$B:$G,5,FALSE)) -> 
B15: 7 | D15: 7 | F15: 7 | H15: 8 | N15: TARGET | O15: =IFERROR( IF($W$1='(HIDE) MASTER-Chart'!$J$2, VLOOKUP(B15,'(HIDE) MASTER-Chart'!$B:$G,5,FALSE), VLOOKUP(B15,'(HIDE) MASTER-Chart'!$M:$R,5,FALSE)),"") -> 66178 | P15: (7) | Q15: =IFERROR( IF($W$1='(HIDE) MASTER-Chart'!$J$2, VLOOKUP(D15,'(HIDE) MASTER-Chart'!$B:$G,5,FALSE), VLOOKUP(D15,'(HIDE) MASTER-Chart'!$M:$R,5,FALSE)),"") -> 66178 | R15: (7) | S15: =IFERROR( IF($W$1='(HIDE) MASTER-Chart'!$J$2, VLOOKUP(F15,'(HIDE) MASTER-Chart'!$B:$G,5,FALSE), VLOOKUP(F15,'(HIDE) MASTER-Chart'!$M:$R,5,FALSE)),"") -> 66178 | T15: (7) | U15: =IFERROR( IF($W$1='(HIDE) MASTER-Chart'!$J$2, VLOOKUP(H15,'(HIDE) MASTER-Chart'!$B:$G,5,FALSE), VLOOKUP(H15,'(HIDE) MASTER-Chart'!$M:$R,5,FALSE)),"") -> 68518 | V15: (8) | W15: =IFERROR( IF($W$1='(HIDE) MASTER-Chart'!$J$2, VLOOKUP(J15,'(HIDE) MASTER-Chart'!$B:$G,5,FALSE), VLOOKUP(J15,'(HIDE) MASTER-Chart'!$M:$R,5,FALSE)),"") ->  | Y15: =IFERROR( IF($W$1='(HIDE) MASTER-Chart'!$J$2, VLOOKUP(L15,'(HIDE) MASTER-Chart'!$B:$G,5,FALSE), VLOOKUP(L15,'(HIDE) MASTER-Chart'!$M:$R,5,FALSE)),"") -> 
A16: 6 - 7 | B16: 5 | D16: 5 | F16: 5 | H16: 6 | N16: 2 STEP | O16: =IFERROR( IF($W$1='(HIDE) MASTER-Chart'!$J$2, VLOOKUP(B16,'(HIDE) MASTER-Chart'!$B:$G,5,FALSE), VLOOKUP(B16,'(HIDE) MASTER-Chart'!$M:$R,5,FALSE)),"") -> 61512 | P16: (5) | Q16: =IFERROR( IF($W$1='(HIDE) MASTER-Chart'!$J$2, VLOOKUP(D16,'(HIDE) MASTER-Chart'!$B:$G,5,FALSE), VLOOKUP(D16,'(HIDE) MASTER-Chart'!$M:$R,5,FALSE)),"") -> 61512 | R16: (5) | S16: =IFERROR( IF($W$1='(HIDE) MASTER-Chart'!$J$2, VLOOKUP(F16,'(HIDE) MASTER-Chart'!$B:$G,5,FALSE), VLOOKUP(F16,'(HIDE) MASTER-Chart'!$M:$R,5,FALSE)),"") -> 61512 | T16: (5) | U16: =IFERROR( IF($W$1='(HIDE) MASTER-Chart'!$J$2, VLOOKUP(H16,'(HIDE) MASTER-Chart'!$B:$G,5,FALSE), VLOOKUP(H16,'(HIDE) MASTER-Chart'!$M:$R,5,FALSE)),"") -> 63845 | V16: (6) | W16: =IFERROR( IF($W$1='(HIDE) MASTER-Chart'!$J$2, VLOOKUP(J16,'(HIDE) MASTER-Chart'!$B:$G,5,FALSE), VLOOKUP(J16,'(HIDE) MASTER-Chart'!$M:$R,5,FALSE)),"") ->  | Y16: =IFERROR( IF($W$1='(HIDE) MASTER-Chart'!$J$2, VLOOKUP(L16,'(HIDE) MASTER-Chart'!$B:$G,5,FALSE), VLOOKUP(L16,'(HIDE) MASTER-Chart'!$M:$R,5,FALSE)),"") -> 
O17: =IF(ISERROR(VLOOKUP(B17,'(HIDE) MASTER-Chart'!$B:$G,5,FALSE)),"",VLOOKUP(B17,'(HIDE) MASTER-Chart'!$B:$G,5,FALSE)) ->  | Q17: =IF(ISERROR(VLOOKUP(D17,'(HIDE) MASTER-Chart'!$B:$G,5,FALSE)),"",VLOOKUP(D17,'(HIDE) MASTER-Chart'!$B:$G,5,FALSE)) ->  | S17: =IF(ISERROR(VLOOKUP(F17,'(HIDE) MASTER-Chart'!$B:$G,5,FALSE)),"",VLOOKUP(F17,'(HIDE) MASTER-Chart'!$B:$G,5,FALSE)) ->  | U17: =IF(ISERROR(VLOOKUP(H17,'(HIDE) MASTER-Chart'!$B:$G,5,FALSE)),"",VLOOKUP(H17,'(HIDE) MASTER-Chart'!$B:$G,5,FALSE)) ->  | W17: =IF(ISERROR(VLOOKUP(J17,'(HIDE) MASTER-Chart'!$B:$G,5,FALSE)),"",VLOOKUP(J17,'(HIDE) MASTER-Chart'!$B:$G,5,FALSE)) ->  | Y17: =IF(ISERROR(VLOOKUP(L17,'(HIDE) MASTER-Chart'!$B:$G,5,FALSE)),"",VLOOKUP(L17,'(HIDE) MASTER-Chart'!$B:$G,5,FALSE)) -> 
B18: 7 | D18: 8 | F18: 8 | H18: 8 | J18: 9 | N18: TARGET | O18: =IFERROR( IF($W$1='(HIDE) MASTER-Chart'!$J$2, VLOOKUP(B18,'(HIDE) MASTER-Chart'!$B:$G,5,FALSE), VLOOKUP(B18,'(HIDE) MASTER-Chart'!$M:$R,5,FALSE)),"") -> 66178 | P18: (7) | Q18: =IFERROR( IF($W$1='(HIDE) MASTER-Chart'!$J$2, VLOOKUP(D18,'(HIDE) MASTER-Chart'!$B:$G,5,FALSE), VLOOKUP(D18,'(HIDE) MASTER-Chart'!$M:$R,5,FALSE)),"") -> 68518 | R18: (8) | S18: =IFERROR( IF($W$1='(HIDE) MASTER-Chart'!$J$2, VLOOKUP(F18,'(HIDE) MASTER-Chart'!$B:$G,5,FALSE), VLOOKUP(F18,'(HIDE) MASTER-Chart'!$M:$R,5,FALSE)),"") -> 68518 | T18: (8) | U18: =IFERROR( IF($W$1='(HIDE) MASTER-Chart'!$J$2, VLOOKUP(H18,'(HIDE) MASTER-Chart'!$B:$G,5,FALSE), VLOOKUP(H18,'(HIDE) MASTER-Chart'!$M:$R,5,FALSE)),"") -> 68518 | V18: (8) | W18: =IFERROR( IF($W$1='(HIDE) MASTER-Chart'!$J$2, VLOOKUP(J18,'(HIDE) MASTER-Chart'!$B:$G,5,FALSE), VLOOKUP(J18,'(HIDE) MASTER-Chart'!$M:$R,5,FALSE)),"") -> 70814 | X18: (9) | Y18: =IFERROR( IF($W$1='(HIDE) MASTER-Chart'!$J$2, VLOOKUP(L18,'(HIDE) MASTER-Chart'!$B:$G,5,FALSE), VLOOKUP(L18,'(HIDE) MASTER-Chart'!$M:$R,5,FALSE)),"") -> 
A19: 8 - 9 | B19: 5 | D19: 6 | F19: 6 | H19: 6 | J19: 7 | N19: 2 STEP | O19: =IFERROR( IF($W$1='(HIDE) MASTER-Chart'!$J$2, VLOOKUP(B19,'(HIDE) MASTER-Chart'!$B:$G,5,FALSE), VLOOKUP(B19,'(HIDE) MASTER-Chart'!$M:$R,5,FALSE)),"") -> 61512 | P19: (5) | Q19: =IFERROR( IF($W$1='(HIDE) MASTER-Chart'!$J$2, VLOOKUP(D19,'(HIDE) MASTER-Chart'!$B:$G,5,FALSE), VLOOKUP(D19,'(HIDE) MASTER-Chart'!$M:$R,5,FALSE)),"") -> 63845 | R19: (6) | S19: =IFERROR( IF($W$1='(HIDE) MASTER-Chart'!$J$2, VLOOKUP(F19,'(HIDE) MASTER-Chart'!$B:$G,5,FALSE), VLOOKUP(F19,'(HIDE) MASTER-Chart'!$M:$R,5,FALSE)),"") -> 63845 | T19: (6) | U19: =IFERROR( IF($W$1='(HIDE) MASTER-Chart'!$J$2, VLOOKUP(H19,'(HIDE) MASTER-Chart'!$B:$G,5,FALSE), VLOOKUP(H19,'(HIDE) MASTER-Chart'!$M:$R,5,FALSE)),"") -> 63845 | V19: (6) | W19: =IFERROR( IF($W$1='(HIDE) MASTER-Chart'!$J$2, VLOOKUP(J19,'(HIDE) MASTER-Chart'!$B:$G,5,FALSE), VLOOKUP(J19,'(HIDE) MASTER-Chart'!$M:$R,5,FALSE)),"") -> 66178 | X19: (7) | Y19: =IFERROR( IF($W$1='(HIDE) MASTER-Chart'!$J$2, VLOOKUP(L19,'(HIDE) MASTER-Chart'!$B:$G,5,FALSE), VLOOKUP(L19,'(HIDE) MASTER-Chart'!$M:$R,5,FALSE)),"") -> 
O20: =IF(ISERROR(VLOOKUP(B20,'(HIDE) MASTER-Chart'!$B:$G,5,FALSE)),"",VLOOKUP(B20,'(HIDE) MASTER-Chart'!$B:$G,5,FALSE)) ->  | Q20: =IF(ISERROR(VLOOKUP(D20,'(HIDE) MASTER-Chart'!$B:$G,5,FALSE)),"",VLOOKUP(D20,'(HIDE) MASTER-Chart'!$B:$G,5,FALSE)) ->  | S20: =IF(ISERROR(VLOOKUP(F20,'(HIDE) MASTER-Chart'!$B:$G,5,FALSE)),"",VLOOKUP(F20,'(HIDE) MASTER-Chart'!$B:$G,5,FALSE)) ->  | U20: =IF(ISERROR(VLOOKUP(H20,'(HIDE) MASTER-Chart'!$B:$G,5,FALSE)),"",VLOOKUP(H20,'(HIDE) MASTER-Chart'!$B:$G,5,FALSE)) ->  | W20: =IF(ISERROR(VLOOKUP(J20,'(HIDE) MASTER-Chart'!$B:$G,5,FALSE)),"",VLOOKUP(J20,'(HIDE) MASTER-Chart'!$B:$G,5,FALSE)) ->  | Y20: =IF(ISERROR(VLOOKUP(L20,'(HIDE) MASTER-Chart'!$B:$G,5,FALSE)),"",VLOOKUP(L20,'(HIDE) MASTER-Chart'!$B:$G,5,FALSE)) -> 
B21: 8 | D21: 8 | F21: 8 | H21: 9 | J21: 9 | L21: 9 | N21: 59702 (8) | O21: =IFERROR( IF($W$1='(HIDE) MASTER-Chart'!$J$2, VLOOKUP(B21,'(HIDE) MASTER-Chart'!$B:$G,5,FALSE), VLOOKUP(B21,'(HIDE) MASTER-Chart'!$M:$R,5,FALSE)),"") -> 68518 | P21: (8) | Q21: =IFERROR( IF($W$1='(HIDE) MASTER-Chart'!$J$2, VLOOKUP(D21,'(HIDE) MASTER-Chart'!$B:$G,5,FALSE), VLOOKUP(D21,'(HIDE) MASTER-Chart'!$M:$R,5,FALSE)),"") -> 68518 | R21: (8) | S21: =IFERROR( IF($W$1='(HIDE) MASTER-Chart'!$J$2, VLOOKUP(F21,'(HIDE) MASTER-Chart'!$B:$G,5,FALSE), VLOOKUP(F21,'(HIDE) MASTER-Chart'!$M:$R,5,FALSE)),"") -> 68518 | T21: (8) | U21: =IFERROR( IF($W$1='(HIDE) MASTER-Chart'!$J$2, VLOOKUP(H21,'(HIDE) MASTER-Chart'!$B:$G,5,FALSE), VLOOKUP(H21,'(HIDE) MASTER-Chart'!$M:$R,5,FALSE)),"") -> 70814 | V21: (9) | W21: =IFERROR( IF($W$1='(HIDE) MASTER-Chart'!$J$2, VLOOKUP(J21,'(HIDE) MASTER-Chart'!$B:$G,5,FALSE), VLOOKUP(J21,'(HIDE) MASTER-Chart'!$M:$R,5,FALSE)),"") -> 70814 | X21: (9) | Y21: =IFERROR( IF($W$1='(HIDE) MASTER-Chart'!$J$2, VLOOKUP(L21,'(HIDE) MASTER-Chart'!$B:$G,5,FALSE), VLOOKUP(L21,'(HIDE) MASTER-Chart'!$M:$R,5,FALSE)),"") -> 70814 | Z21: (9)
A22: 10 - 11 | B22: 6 | D22: 6 | F22: 6 | H22: 7 | J22: 7 | L22: 7 | N22: 2 STEP | O22: =IFERROR( IF($W$1='(HIDE) MASTER-Chart'!$J$2, VLOOKUP(B22,'(HIDE) MASTER-Chart'!$B:$G,5,FALSE), VLOOKUP(B22,'(HIDE) MASTER-Chart'!$M:$R,5,FALSE)),"") -> 63845 | P22: (6) | Q22: =IFERROR( IF($W$1='(HIDE) MASTER-Chart'!$J$2, VLOOKUP(D22,'(HIDE) MASTER-Chart'!$B:$G,5,FALSE), VLOOKUP(D22,'(HIDE) MASTER-Chart'!$M:$R,5,FALSE)),"") -> 63845 | R22: (6) | S22: =IFERROR( IF($W$1='(HIDE) MASTER-Chart'!$J$2, VLOOKUP(F22,'(HIDE) MASTER-Chart'!$B:$G,5,FALSE), VLOOKUP(F22,'(HIDE) MASTER-Chart'!$M:$R,5,FALSE)),"") -> 63845 | T22: (6) | U22: =IFERROR( IF($W$1='(HIDE) MASTER-Chart'!$J$2, VLOOKUP(H22,'(HIDE) MASTER-Chart'!$B:$G,5,FALSE), VLOOKUP(H22,'(HIDE) MASTER-Chart'!$M:$R,5,FALSE)),"") -> 66178 | V22: (7) | W22: =IFERROR( IF($W$1='(HIDE) MASTER-Chart'!$J$2, VLOOKUP(J22,'(HIDE) MASTER-Chart'!$B:$G,5,FALSE), VLOOKUP(J22,'(HIDE) MASTER-Chart'!$M:$R,5,FALSE)),"") -> 66178 | X22: (7) | Y22: =IFERROR( IF($W$1='(HIDE) MASTER-Chart'!$J$2, VLOOKUP(L22,'(HIDE) MASTER-Chart'!$B:$G,5,FALSE), VLOOKUP(L22,'(HIDE) MASTER-Chart'!$M:$R,5,FALSE)),"") -> 66178 | Z22: (7)
O23: =IF(ISERROR(VLOOKUP(B23,'(HIDE) MASTER-Chart'!$B:$G,5,FALSE)),"",VLOOKUP(B23,'(HIDE) MASTER-Chart'!$B:$G,5,FALSE)) ->  | Q23: =IF(ISERROR(VLOOKUP(D23,'(HIDE) MASTER-Chart'!$B:$G,5,FALSE)),"",VLOOKUP(D23,'(HIDE) MASTER-Chart'!$B:$G,5,FALSE)) ->  | S23: =IF(ISERROR(VLOOKUP(F23,'(HIDE) MASTER-Chart'!$B:$G,5,FALSE)),"",VLOOKUP(F23,'(HIDE) MASTER-Chart'!$B:$G,5,FALSE)) ->  | U23: =IF(ISERROR(VLOOKUP(H23,'(HIDE) MASTER-Chart'!$B:$G,5,FALSE)),"",VLOOKUP(H23,'(HIDE) MASTER-Chart'!$B:$G,5,FALSE)) ->  | W23: =IF(ISERROR(VLOOKUP(J23,'(HIDE) MASTER-Chart'!$B:$G,5,FALSE)),"",VLOOKUP(J23,'(HIDE) MASTER-Chart'!$B:$G,5,FALSE)) ->  | Y23: =IF(ISERROR(VLOOKUP(L23,'(HIDE) MASTER-Chart'!$B:$G,5,FALSE)),"",VLOOKUP(L23,'(HIDE) MASTER-Chart'!$B:$G,5,FALSE)) -> 
B24: 8 | D24: 9 | F24: 9 | H24: 9 | J24: 9 | L24: 10 | N24: TARGET | O24: =IFERROR( IF($W$1='(HIDE) MASTER-Chart'!$J$2, VLOOKUP(B24,'(HIDE) MASTER-Chart'!$B:$G,5,FALSE), VLOOKUP(B24,'(HIDE) MASTER-Chart'!$M:$R,5,FALSE)),"") -> 68518 | P24: (8) | Q24: =IFERROR( IF($W$1='(HIDE) MASTER-Chart'!$J$2, VLOOKUP(D24,'(HIDE) MASTER-Chart'!$B:$G,5,FALSE), VLOOKUP(D24,'(HIDE) MASTER-Chart'!$M:$R,5,FALSE)),"") -> 70814 | R24: (9) | S24: =IFERROR( IF($W$1='(HIDE) MASTER-Chart'!$J$2, VLOOKUP(F24,'(HIDE) MASTER-Chart'!$B:$G,5,FALSE), VLOOKUP(F24,'(HIDE) MASTER-Chart'!$M:$R,5,FALSE)),"") -> 70814 | T24: (9) | U24: =IFERROR( IF($W$1='(HIDE) MASTER-Chart'!$J$2, VLOOKUP(H24,'(HIDE) MASTER-Chart'!$B:$G,5,FALSE), VLOOKUP(H24,'(HIDE) MASTER-Chart'!$M:$R,5,FALSE)),"") -> 70814 | V24: (9) | W24: =IFERROR( IF($W$1='(HIDE) MASTER-Chart'!$J$2, VLOOKUP(J24,'(HIDE) MASTER-Chart'!$B:$G,5,FALSE), VLOOKUP(J24,'(HIDE) MASTER-Chart'!$M:$R,5,FALSE)),"") -> 70814 | X24: (9) | Y24: =IFERROR( IF($W$1='(HIDE) MASTER-Chart'!$J$2, VLOOKUP(L24,'(HIDE) MASTER-Chart'!$B:$G,5,FALSE), VLOOKUP(L24,'(HIDE) MASTER-Chart'!$M:$R,5,FALSE)),"") -> 73196 | Z24: (10)
A25: 12 - 13 | B25: 6 | D25: 7 | F25: 7 | H25: 7 | J25: 7 | L25: 8 | N25: 2 STEP | O25: =IFERROR( IF($W$1='(HIDE) MASTER-Chart'!$J$2, VLOOKUP(B25,'(HIDE) MASTER-Chart'!$B:$G,5,FALSE), VLOOKUP(B25,'(HIDE) MASTER-Chart'!$M:$R,5,FALSE)),"") -> 63845 | P25: (6) | Q25: =IFERROR( IF($W$1='(HIDE) MASTER-Chart'!$J$2, VLOOKUP(D25,'(HIDE) MASTER-Chart'!$B:$G,5,FALSE), VLOOKUP(D25,'(HIDE) MASTER-Chart'!$M:$R,5,FALSE)),"") -> 66178 | R25: (7) | S25: =IFERROR( IF($W$1='(HIDE) MASTER-Chart'!$J$2, VLOOKUP(F25,'(HIDE) MASTER-Chart'!$B:$G,5,FALSE), VLOOKUP(F25,'(HIDE) MASTER-Chart'!$M:$R,5,FALSE)),"") -> 66178 | T25: (7) | U25: =IFERROR( IF($W$1='(HIDE) MASTER-Chart'!$J$2, VLOOKUP(H25,'(HIDE) MASTER-Chart'!$B:$G,5,FALSE), VLOOKUP(H25,'(HIDE) MASTER-Chart'!$M:$R,5,FALSE)),"") -> 66178 | V25: (7) | W25: =IFERROR( IF($W$1='(HIDE) MASTER-Chart'!$J$2, VLOOKUP(J25,'(HIDE) MASTER-Chart'!$B:$G,5,FALSE), VLOOKUP(J25,'(HIDE) MASTER-Chart'!$M:$R,5,FALSE)),"") -> 66178 | X25: (7) | Y25: =IFERROR( IF($W$1='(HIDE) MASTER-Chart'!$J$2, VLOOKUP(L25,'(HIDE) MASTER-Chart'!$B:$G,5,FALSE), VLOOKUP(L25,'(HIDE) MASTER-Chart'!$M:$R,5,FALSE)),"") -> 68518 | Z25: (8)
O26: =IF(ISERROR(VLOOKUP(B26,'(HIDE) MASTER-Chart'!$B:$G,5,FALSE)),"",VLOOKUP(B26,'(HIDE) MASTER-Chart'!$B:$G,5,FALSE)) ->  | Q26: =IF(ISERROR(VLOOKUP(D26,'(HIDE) MASTER-Chart'!$B:$G,5,FALSE)),"",VLOOKUP(D26,'(HIDE) MASTER-Chart'!$B:$G,5,FALSE)) ->  | S26: =IF(ISERROR(VLOOKUP(F26,'(HIDE) MASTER-Chart'!$B:$G,5,FALSE)),"",VLOOKUP(F26,'(HIDE) MASTER-Chart'!$B:$G,5,FALSE)) ->  | U26: =IF(ISERROR(VLOOKUP(H26,'(HIDE) MASTER-Chart'!$B:$G,5,FALSE)),"",VLOOKUP(H26,'(HIDE) MASTER-Chart'!$B:$G,5,FALSE)) ->  | W26: =IF(ISERROR(VLOOKUP(J26,'(HIDE) MASTER-Chart'!$B:$G,5,FALSE)),"",VLOOKUP(J26,'(HIDE) MASTER-Chart'!$B:$G,5,FALSE)) ->  | Y26: =IF(ISERROR(VLOOKUP(L26,'(HIDE) MASTER-Chart'!$B:$G,5,FALSE)),"",VLOOKUP(L26,'(HIDE) MASTER-Chart'!$B:$G,5,FALSE)) -> 
B27: 9 | D27: 9 | F27: 9 | H27: 10 | J27: 10 | L27: 10 | N27: TARGET | O27: =IFERROR( IF($W$1='(HIDE) MASTER-Chart'!$J$2, VLOOKUP(B27,'(HIDE) MASTER-Chart'!$B:$G,5,FALSE), VLOOKUP(B27,'(HIDE) MASTER-Chart'!$M:$R,5,FALSE)),"") -> 70814 | P27: (9) | Q27: =IFERROR( IF($W$1='(HIDE) MASTER-Chart'!$J$2, VLOOKUP(D27,'(HIDE) MASTER-Chart'!$B:$G,5,FALSE), VLOOKUP(D27,'(HIDE) MASTER-Chart'!$M:$R,5,FALSE)),"") -> 70814 | R27: (9) | S27: =IFERROR( IF($W$1='(HIDE) MASTER-Chart'!$J$2, VLOOKUP(F27,'(HIDE) MASTER-Chart'!$B:$G,5,FALSE), VLOOKUP(F27,'(HIDE) MASTER-Chart'!$M:$R,5,FALSE)),"") -> 70814 | T27: (9) | U27: =IFERROR( IF($W$1='(HIDE) MASTER-Chart'!$J$2, VLOOKUP(H27,'(HIDE) MASTER-Chart'!$B:$G,5,FALSE), VLOOKUP(H27,'(HIDE) MASTER-Chart'!$M:$R,5,FALSE)),"") -> 73196 | V27: (10) | W27: =IFERROR( IF($W$1='(HIDE) MASTER-Chart'!$J$2, VLOOKUP(J27,'(HIDE) MASTER-Chart'!$B:$G,5,FALSE), VLOOKUP(J27,'(HIDE) MASTER-Chart'!$M:$R,5,FALSE)),"") -> 73196 | X27: (10) | Y27: =IFERROR( IF($W$1='(HIDE) MASTER-Chart'!$J$2, VLOOKUP(L27,'(HIDE) MASTER-Chart'!$B:$G,5,FALSE), VLOOKUP(L27,'(HIDE) MASTER-Chart'!$M:$R,5,FALSE)),"") -> 73196 | Z27: (10)
A28: 14 - 15 | B28: 7 | D28: 7 | F28: 7 | H28: 8 | J28: 8 | L28: 8 | N28: 2 STEP | O28: =IFERROR( IF($W$1='(HIDE) MASTER-Chart'!$J$2, VLOOKUP(B28,'(HIDE) MASTER-Chart'!$B:$G,5,FALSE), VLOOKUP(B28,'(HIDE) MASTER-Chart'!$M:$R,5,FALSE)),"") -> 66178 | P28: (7) | Q28: =IFERROR( IF($W$1='(HIDE) MASTER-Chart'!$J$2, VLOOKUP(D28,'(HIDE) MASTER-Chart'!$B:$G,5,FALSE), VLOOKUP(D28,'(HIDE) MASTER-Chart'!$M:$R,5,FALSE)),"") -> 66178 | R28: (7) | S28: =IFERROR( IF($W$1='(HIDE) MASTER-Chart'!$J$2, VLOOKUP(F28,'(HIDE) MASTER-Chart'!$B:$G,5,FALSE), VLOOKUP(F28,'(HIDE) MASTER-Chart'!$M:$R,5,FALSE)),"") -> 66178 | T28: (7) | U28: =IFERROR( IF($W$1='(HIDE) MASTER-Chart'!$J$2, VLOOKUP(H28,'(HIDE) MASTER-Chart'!$B:$G,5,FALSE), VLOOKUP(H28,'(HIDE) MASTER-Chart'!$M:$R,5,FALSE)),"") -> 68518 | V28: (8) | W28: =IFERROR( IF($W$1='(HIDE) MASTER-Chart'!$J$2, VLOOKUP(J28,'(HIDE) MASTER-Chart'!$B:$G,5,FALSE), VLOOKUP(J28,'(HIDE) MASTER-Chart'!$M:$R,5,FALSE)),"") -> 68518 | X28: (8) | Y28: =IFERROR( IF($W$1='(HIDE) MASTER-Chart'!$J$2, VLOOKUP(L28,'(HIDE) MASTER-Chart'!$B:$G,5,FALSE), VLOOKUP(L28,'(HIDE) MASTER-Chart'!$M:$R,5,FALSE)),"") -> 68518 | Z28: (8)
O29: =IF(ISERROR(VLOOKUP(B29,'(HIDE) MASTER-Chart'!$B:$G,5,FALSE)),"",VLOOKUP(B29,'(HIDE) MASTER-Chart'!$B:$G,5,FALSE)) ->  | Q29: =IF(ISERROR(VLOOKUP(D29,'(HIDE) MASTER-Chart'!$B:$G,5,FALSE)),"",VLOOKUP(D29,'(HIDE) MASTER-Chart'!$B:$G,5,FALSE)) ->  | S29: =IF(ISERROR(VLOOKUP(F29,'(HIDE) MASTER-Chart'!$B:$G,5,FALSE)),"",VLOOKUP(F29,'(HIDE) MASTER-Chart'!$B:$G,5,FALSE)) ->  | U29: =IF(ISERROR(VLOOKUP(H29,'(HIDE) MASTER-Chart'!$B:$G,5,FALSE)),"",VLOOKUP(H29,'(HIDE) MASTER-Chart'!$B:$G,5,FALSE)) ->  | W29: =IF(ISERROR(VLOOKUP(J29,'(HIDE) MASTER-Chart'!$B:$G,5,FALSE)),"",VLOOKUP(J29,'(HIDE) MASTER-Chart'!$B:$G,5,FALSE)) ->  | Y29: =IF(ISERROR(VLOOKUP(L29,'(HIDE) MASTER-Chart'!$B:$G,5,FALSE)),"",VLOOKUP(L29,'(HIDE) MASTER-Chart'!$B:$G,5,FALSE)) -> 
B30: 9 | D30: 10 | F30: 10 | H30: 10 | J30: 10 | L30: 11 | N30: TARGET | O30: =IFERROR( IF($W$1='(HIDE) MASTER-Chart'!$J$2, VLOOKUP(B30,'(HIDE) MASTER-Chart'!$B:$G,5,FALSE), VLOOKUP(B30,'(HIDE) MASTER-Chart'!$M:$R,5,FALSE)),"") -> 70814 | P30: (9) | Q30: =IFERROR( IF($W$1='(HIDE) MASTER-Chart'!$J$2, VLOOKUP(D30,'(HIDE) MASTER-Chart'!$B:$G,5,FALSE), VLOOKUP(D30,'(HIDE) MASTER-Chart'!$M:$R,5,FALSE)),"") -> 73196 | R30: (10) | S30: =IFERROR( IF($W$1='(HIDE) MASTER-Chart'!$J$2, VLOOKUP(F30,'(HIDE) MASTER-Chart'!$B:$G,5,FALSE), VLOOKUP(F30,'(HIDE) MASTER-Chart'!$M:$R,5,FALSE)),"") -> 73196 | T30: (10) | U30: =IFERROR( IF($W$1='(HIDE) MASTER-Chart'!$J$2, VLOOKUP(H30,'(HIDE) MASTER-Chart'!$B:$G,5,FALSE), VLOOKUP(H30,'(HIDE) MASTER-Chart'!$M:$R,5,FALSE)),"") -> 73196 | V30: (10) | W30: =IFERROR( IF($W$1='(HIDE) MASTER-Chart'!$J$2, VLOOKUP(J30,'(HIDE) MASTER-Chart'!$B:$G,5,FALSE), VLOOKUP(J30,'(HIDE) MASTER-Chart'!$M:$R,5,FALSE)),"") -> 73196 | X30: (10) | Y30: =IFERROR( IF($W$1='(HIDE) MASTER-Chart'!$J$2, VLOOKUP(L30,'(HIDE) MASTER-Chart'!$B:$G,5,FALSE), VLOOKUP(L30,'(HIDE) MASTER-Chart'!$M:$R,5,FALSE)),"") -> 75658 | Z30: (11)
A31: 16 - 17 | B31: 7 | D31: 8 | F31: 8 | H31: 8 | J31: 8 | L31: 9 | N31: 2 STEP | O31: =IFERROR( IF($W$1='(HIDE) MASTER-Chart'!$J$2, VLOOKUP(B31,'(HIDE) MASTER-Chart'!$B:$G,5,FALSE), VLOOKUP(B31,'(HIDE) MASTER-Chart'!$M:$R,5,FALSE)),"") -> 66178 | P31: (7) | Q31: =IFERROR( IF($W$1='(HIDE) MASTER-Chart'!$J$2, VLOOKUP(D31,'(HIDE) MASTER-Chart'!$B:$G,5,FALSE), VLOOKUP(D31,'(HIDE) MASTER-Chart'!$M:$R,5,FALSE)),"") -> 68518 | R31: (8) | S31: =IFERROR( IF($W$1='(HIDE) MASTER-Chart'!$J$2, VLOOKUP(F31,'(HIDE) MASTER-Chart'!$B:$G,5,FALSE), VLOOKUP(F31,'(HIDE) MASTER-Chart'!$M:$R,5,FALSE)),"") -> 68518 | T31: (8) | U31: =IFERROR( IF($W$1='(HIDE) MASTER-Chart'!$J$2, VLOOKUP(H31,'(HIDE) MASTER-Chart'!$B:$G,5,FALSE), VLOOKUP(H31,'(HIDE) MASTER-Chart'!$M:$R,5,FALSE)),"") -> 68518 | V31: (8) | W31: =IFERROR( IF($W$1='(HIDE) MASTER-Chart'!$J$2, VLOOKUP(J31,'(HIDE) MASTER-Chart'!$B:$G,5,FALSE), VLOOKUP(J31,'(HIDE) MASTER-Chart'!$M:$R,5,FALSE)),"") -> 68518 | X31: (8) | Y31: =IFERROR( IF($W$1='(HIDE) MASTER-Chart'!$J$2, VLOOKUP(L31,'(HIDE) MASTER-Chart'!$B:$G,5,FALSE), VLOOKUP(L31,'(HIDE) MASTER-Chart'!$M:$R,5,FALSE)),"") -> 70814 | Z31: (9)
O32: =IF(ISERROR(VLOOKUP(B32,'(HIDE) MASTER-Chart'!$B:$G,5,FALSE)),"",VLOOKUP(B32,'(HIDE) MASTER-Chart'!$B:$G,5,FALSE)) ->  | Q32: =IF(ISERROR(VLOOKUP(D32,'(HIDE) MASTER-Chart'!$B:$G,5,FALSE)),"",VLOOKUP(D32,'(HIDE) MASTER-Chart'!$B:$G,5,FALSE)) ->  | S32: =IF(ISERROR(VLOOKUP(F32,'(HIDE) MASTER-Chart'!$B:$G,5,FALSE)),"",VLOOKUP(F32,'(HIDE) MASTER-Chart'!$B:$G,5,FALSE)) ->  | U32: =IF(ISERROR(VLOOKUP(H32,'(HIDE) MASTER-Chart'!$B:$G,5,FALSE)),"",VLOOKUP(H32,'(HIDE) MASTER-Chart'!$B:$G,5,FALSE)) ->  | W32: =IF(ISERROR(VLOOKUP(J32,'(HIDE) MASTER-Chart'!$B:$G,5,FALSE)),"",VLOOKUP(J32,'(HIDE) MASTER-Chart'!$B:$G,5,FALSE)) ->  | Y32: =IF(ISERROR(VLOOKUP(L32,'(HIDE) MASTER-Chart'!$B:$G,5,FALSE)),"",VLOOKUP(L32,'(HIDE) MASTER-Chart'!$B:$G,5,FALSE)) -> 
B33: 10 | D33: 10 | F33: 10 | H33: 11 | J33: 11 | L33: 11 | N33: TARGET | O33: =IFERROR( IF($W$1='(HIDE) MASTER-Chart'!$J$2, VLOOKUP(B33,'(HIDE) MASTER-Chart'!$B:$G,5,FALSE), VLOOKUP(B33,'(HIDE) MASTER-Chart'!$M:$R,5,FALSE)),"") -> 73196 | P33: (10) | Q33: =IFERROR( IF($W$1='(HIDE) MASTER-Chart'!$J$2, VLOOKUP(D33,'(HIDE) MASTER-Chart'!$B:$G,5,FALSE), VLOOKUP(D33,'(HIDE) MASTER-Chart'!$M:$R,5,FALSE)),"") -> 73196 | R33: (10) | S33: =IFERROR( IF($W$1='(HIDE) MASTER-Chart'!$J$2, VLOOKUP(F33,'(HIDE) MASTER-Chart'!$B:$G,5,FALSE), VLOOKUP(F33,'(HIDE) MASTER-Chart'!$M:$R,5,FALSE)),"") -> 73196 | T33: (10) | U33: =IFERROR( IF($W$1='(HIDE) MASTER-Chart'!$J$2, VLOOKUP(H33,'(HIDE) MASTER-Chart'!$B:$G,5,FALSE), VLOOKUP(H33,'(HIDE) MASTER-Chart'!$M:$R,5,FALSE)),"") -> 75658 | V33: (11) | W33: =IFERROR( IF($W$1='(HIDE) MASTER-Chart'!$J$2, VLOOKUP(J33,'(HIDE) MASTER-Chart'!$B:$G,5,FALSE), VLOOKUP(J33,'(HIDE) MASTER-Chart'!$M:$R,5,FALSE)),"") -> 75658 | X33: (11) | Y33: =IFERROR( IF($W$1='(HIDE) MASTER-Chart'!$J$2, VLOOKUP(L33,'(HIDE) MASTER-Chart'!$B:$G,5,FALSE), VLOOKUP(L33,'(HIDE) MASTER-Chart'!$M:$R,5,FALSE)),"") -> 75658 | Z33: (11)
A34: 18 - 19 | B34: 8 | D34: 8 | F34: 8 | H34: 9 | J34: 9 | L34: 9 | N34: 2 STEP | O34: =IFERROR( IF($W$1='(HIDE) MASTER-Chart'!$J$2, VLOOKUP(B34,'(HIDE) MASTER-Chart'!$B:$G,5,FALSE), VLOOKUP(B34,'(HIDE) MASTER-Chart'!$M:$R,5,FALSE)),"") -> 68518 | P34: (8) | Q34: =IFERROR( IF($W$1='(HIDE) MASTER-Chart'!$J$2, VLOOKUP(D34,'(HIDE) MASTER-Chart'!$B:$G,5,FALSE), VLOOKUP(D34,'(HIDE) MASTER-Chart'!$M:$R,5,FALSE)),"") -> 68518 | R34: (8) | S34: =IFERROR( IF($W$1='(HIDE) MASTER-Chart'!$J$2, VLOOKUP(F34,'(HIDE) MASTER-Chart'!$B:$G,5,FALSE), VLOOKUP(F34,'(HIDE) MASTER-Chart'!$M:$R,5,FALSE)),"") -> 68518 | T34: (8) | U34: =IFERROR( IF($W$1='(HIDE) MASTER-Chart'!$J$2, VLOOKUP(H34,'(HIDE) MASTER-Chart'!$B:$G,5,FALSE), VLOOKUP(H34,'(HIDE) MASTER-Chart'!$M:$R,5,FALSE)),"") -> 70814 | V34: (9) | W34: =IFERROR( IF($W$1='(HIDE) MASTER-Chart'!$J$2, VLOOKUP(J34,'(HIDE) MASTER-Chart'!$B:$G,5,FALSE), VLOOKUP(J34,'(HIDE) MASTER-Chart'!$M:$R,5,FALSE)),"") -> 70814 | X34: (9) | Y34: =IFERROR( IF($W$1='(HIDE) MASTER-Chart'!$J$2, VLOOKUP(L34,'(HIDE) MASTER-Chart'!$B:$G,5,FALSE), VLOOKUP(L34,'(HIDE) MASTER-Chart'!$M:$R,5,FALSE)),"") -> 70814 | Z34: (9)
O35: =IF(ISERROR(VLOOKUP(B35,'(HIDE) MASTER-Chart'!$B:$G,5,FALSE)),"",VLOOKUP(B35,'(HIDE) MASTER-Chart'!$B:$G,5,FALSE)) ->  | Q35: =IF(ISERROR(VLOOKUP(D35,'(HIDE) MASTER-Chart'!$B:$G,5,FALSE)),"",VLOOKUP(D35,'(HIDE) MASTER-Chart'!$B:$G,5,FALSE)) ->  | S35: =IF(ISERROR(VLOOKUP(F35,'(HIDE) MASTER-Chart'!$B:$G,5,FALSE)),"",VLOOKUP(F35,'(HIDE) MASTER-Chart'!$B:$G,5,FALSE)) ->  | U35: =IF(ISERROR(VLOOKUP(H35,'(HIDE) MASTER-Chart'!$B:$G,5,FALSE)),"",VLOOKUP(H35,'(HIDE) MASTER-Chart'!$B:$G,5,FALSE)) ->  | W35: =IF(ISERROR(VLOOKUP(J35,'(HIDE) MASTER-Chart'!$B:$G,5,FALSE)),"",VLOOKUP(J35,'(HIDE) MASTER-Chart'!$B:$G,5,FALSE)) ->  | Y35: =IF(ISERROR(VLOOKUP(L35,'(HIDE) MASTER-Chart'!$B:$G,5,FALSE)),"",VLOOKUP(L35,'(HIDE) MASTER-Chart'!$B:$G,5,FALSE)) -> 
B36: 10 | D36: 10 | F36: 11 | H36: 11 | J36: 11 | L36: 12 | N36: TARGET | O36: =IFERROR( IF($W$1='(HIDE) MASTER-Chart'!$J$2, VLOOKUP(B36,'(HIDE) MASTER-Chart'!$B:$G,5,FALSE), VLOOKUP(B36,'(HIDE) MASTER-Chart'!$M:$R,5,FALSE)),"") -> 73196 | P36: (10) | Q36: =IFERROR( IF($W$1='(HIDE) MASTER-Chart'!$J$2, VLOOKUP(D36,'(HIDE) MASTER-Chart'!$B:$G,5,FALSE), VLOOKUP(D36,'(HIDE) MASTER-Chart'!$M:$R,5,FALSE)),"") -> 73196 | R36: (10) | S36: =IFERROR( IF($W$1='(HIDE) MASTER-Chart'!$J$2, VLOOKUP(F36,'(HIDE) MASTER-Chart'!$B:$G,5,FALSE), VLOOKUP(F36,'(HIDE) MASTER-Chart'!$M:$R,5,FALSE)),"") -> 75658 | T36: (11) | U36: =IFERROR( IF($W$1='(HIDE) MASTER-Chart'!$J$2, VLOOKUP(H36,'(HIDE) MASTER-Chart'!$B:$G,5,FALSE), VLOOKUP(H36,'(HIDE) MASTER-Chart'!$M:$R,5,FALSE)),"") -> 75658 | V36: (11) | W36: =IFERROR( IF($W$1='(HIDE) MASTER-Chart'!$J$2, VLOOKUP(J36,'(HIDE) MASTER-Chart'!$B:$G,5,FALSE), VLOOKUP(J36,'(HIDE) MASTER-Chart'!$M:$R,5,FALSE)),"") -> 75658 | X36: (11) | Y36: =IFERROR( IF($W$1='(HIDE) MASTER-Chart'!$J$2, VLOOKUP(L36,'(HIDE) MASTER-Chart'!$B:$G,5,FALSE), VLOOKUP(L36,'(HIDE) MASTER-Chart'!$M:$R,5,FALSE)),"") -> 78202 | Z36: (12)
A37: 20 - 21 | B37: 8 | D37: 8 | F37: 9 | H37: 9 | J37: 9 | L37: 10 | N37: 2 STEP | O37: =IFERROR( IF($W$1='(HIDE) MASTER-Chart'!$J$2, VLOOKUP(B37,'(HIDE) MASTER-Chart'!$B:$G,5,FALSE), VLOOKUP(B37,'(HIDE) MASTER-Chart'!$M:$R,5,FALSE)),"") -> 68518 | P37: (8) | Q37: =IFERROR( IF($W$1='(HIDE) MASTER-Chart'!$J$2, VLOOKUP(D37,'(HIDE) MASTER-Chart'!$B:$G,5,FALSE), VLOOKUP(D37,'(HIDE) MASTER-Chart'!$M:$R,5,FALSE)),"") -> 68518 | R37: (8) | S37: =IFERROR( IF($W$1='(HIDE) MASTER-Chart'!$J$2, VLOOKUP(F37,'(HIDE) MASTER-Chart'!$B:$G,5,FALSE), VLOOKUP(F37,'(HIDE) MASTER-Chart'!$M:$R,5,FALSE)),"") -> 70814 | T37: (9) | U37: =IFERROR( IF($W$1='(HIDE) MASTER-Chart'!$J$2, VLOOKUP(H37,'(HIDE) MASTER-Chart'!$B:$G,5,FALSE), VLOOKUP(H37,'(HIDE) MASTER-Chart'!$M:$R,5,FALSE)),"") -> 70814 | V37: (9) | W37: =IFERROR( IF($W$1='(HIDE) MASTER-Chart'!$J$2, VLOOKUP(J37,'(HIDE) MASTER-Chart'!$B:$G,5,FALSE), VLOOKUP(J37,'(HIDE) MASTER-Chart'!$M:$R,5,FALSE)),"") -> 70814 | X37: (9) | Y37: =IFERROR( IF($W$1='(HIDE) MASTER-Chart'!$J$2, VLOOKUP(L37,'(HIDE) MASTER-Chart'!$B:$G,5,FALSE), VLOOKUP(L37,'(HIDE) MASTER-Chart'!$M:$R,5,FALSE)),"") -> 73196 | Z37: (10)
O38: =IF(ISERROR(VLOOKUP(B38,'(HIDE) MASTER-Chart'!$B:$G,5,FALSE)),"",VLOOKUP(B38,'(HIDE) MASTER-Chart'!$B:$G,5,FALSE)) ->  | Q38: =IF(ISERROR(VLOOKUP(D38,'(HIDE) MASTER-Chart'!$B:$G,5,FALSE)),"",VLOOKUP(D38,'(HIDE) MASTER-Chart'!$B:$G,5,FALSE)) ->  | S38: =IF(ISERROR(VLOOKUP(F38,'(HIDE) MASTER-Chart'!$B:$G,5,FALSE)),"",VLOOKUP(F38,'(HIDE) MASTER-Chart'!$B:$G,5,FALSE)) ->  | U38: =IF(ISERROR(VLOOKUP(H38,'(HIDE) MASTER-Chart'!$B:$G,5,FALSE)),"",VLOOKUP(H38,'(HIDE) MASTER-Chart'!$B:$G,5,FALSE)) ->  | W38: =IF(ISERROR(VLOOKUP(J38,'(HIDE) MASTER-Chart'!$B:$G,5,FALSE)),"",VLOOKUP(J38,'(HIDE) MASTER-Chart'!$B:$G,5,FALSE)) ->  | Y38: =IF(ISERROR(VLOOKUP(L38,'(HIDE) MASTER-Chart'!$B:$G,5,FALSE)),"",VLOOKUP(L38,'(HIDE) MASTER-Chart'!$B:$G,5,FALSE)) -> 
B39: 11 | D39: 11 | F39: 11 | H39: 11 | J39: 12 | L39: 12 | N39: TARGET | O39: =IFERROR( IF($W$1='(HIDE) MASTER-Chart'!$J$2, VLOOKUP(B39,'(HIDE) MASTER-Chart'!$B:$G,5,FALSE), VLOOKUP(B39,'(HIDE) MASTER-Chart'!$M:$R,5,FALSE)),"") -> 75658 | P39: (11) | Q39: =IFERROR( IF($W$1='(HIDE) MASTER-Chart'!$J$2, VLOOKUP(D39,'(HIDE) MASTER-Chart'!$B:$G,5,FALSE), VLOOKUP(D39,'(HIDE) MASTER-Chart'!$M:$R,5,FALSE)),"") -> 75658 | R39: (11) | S39: =IFERROR( IF($W$1='(HIDE) MASTER-Chart'!$J$2, VLOOKUP(F39,'(HIDE) MASTER-Chart'!$B:$G,5,FALSE), VLOOKUP(F39,'(HIDE) MASTER-Chart'!$M:$R,5,FALSE)),"") -> 75658 | T39: (11) | U39: =IFERROR( IF($W$1='(HIDE) MASTER-Chart'!$J$2, VLOOKUP(H39,'(HIDE) MASTER-Chart'!$B:$G,5,FALSE), VLOOKUP(H39,'(HIDE) MASTER-Chart'!$M:$R,5,FALSE)),"") -> 75658 | V39: (11) | W39: =IFERROR( IF($W$1='(HIDE) MASTER-Chart'!$J$2, VLOOKUP(J39,'(HIDE) MASTER-Chart'!$B:$G,5,FALSE), VLOOKUP(J39,'(HIDE) MASTER-Chart'!$M:$R,5,FALSE)),"") -> 78202 | X39: (12) | Y39: =IFERROR( IF($W$1='(HIDE) MASTER-Chart'!$J$2, VLOOKUP(L39,'(HIDE) MASTER-Chart'!$B:$G,5,FALSE), VLOOKUP(L39,'(HIDE) MASTER-Chart'!$M:$R,5,FALSE)),"") -> 78202 | Z39: (12)
A40: 22 - 23 | B40: 9 | D40: 9 | F40: 9 | H40: 9 | J40: 10 | L40: 10 | N40: 2 STEP | O40: =IFERROR( IF($W$1='(HIDE) MASTER-Chart'!$J$2, VLOOKUP(B40,'(HIDE) MASTER-Chart'!$B:$G,5,FALSE), VLOOKUP(B40,'(HIDE) MASTER-Chart'!$M:$R,5,FALSE)),"") -> 70814 | P40: (9) | Q40: =IFERROR( IF($W$1='(HIDE) MASTER-Chart'!$J$2, VLOOKUP(D40,'(HIDE) MASTER-Chart'!$B:$G,5,FALSE), VLOOKUP(D40,'(HIDE) MASTER-Chart'!$M:$R,5,FALSE)),"") -> 70814 | R40: (9) | S40: =IFERROR( IF($W$1='(HIDE) MASTER-Chart'!$J$2, VLOOKUP(F40,'(HIDE) MASTER-Chart'!$B:$G,5,FALSE), VLOOKUP(F40,'(HIDE) MASTER-Chart'!$M:$R,5,FALSE)),"") -> 70814 | T40: (9) | U40: =IFERROR( IF($W$1='(HIDE) MASTER-Chart'!$J$2, VLOOKUP(H40,'(HIDE) MASTER-Chart'!$B:$G,5,FALSE), VLOOKUP(H40,'(HIDE) MASTER-Chart'!$M:$R,5,FALSE)),"") -> 70814 | V40: (9) | W40: =IFERROR( IF($W$1='(HIDE) MASTER-Chart'!$J$2, VLOOKUP(J40,'(HIDE) MASTER-Chart'!$B:$G,5,FALSE), VLOOKUP(J40,'(HIDE) MASTER-Chart'!$M:$R,5,FALSE)),"") -> 73196 | X40: (10) | Y40: =IFERROR( IF($W$1='(HIDE) MASTER-Chart'!$J$2, VLOOKUP(L40,'(HIDE) MASTER-Chart'!$B:$G,5,FALSE), VLOOKUP(L40,'(HIDE) MASTER-Chart'!$M:$R,5,FALSE)),"") -> 73196 | Z40: (10)
O41: =IF(ISERROR(VLOOKUP(B41,'(HIDE) MASTER-Chart'!$B:$G,5,FALSE)),"",VLOOKUP(B41,'(HIDE) MASTER-Chart'!$B:$G,5,FALSE)) ->  | Q41: =IF(ISERROR(VLOOKUP(D41,'(HIDE) MASTER-Chart'!$B:$G,5,FALSE)),"",VLOOKUP(D41,'(HIDE) MASTER-Chart'!$B:$G,5,FALSE)) ->  | S41: =IF(ISERROR(VLOOKUP(F41,'(HIDE) MASTER-Chart'!$B:$G,5,FALSE)),"",VLOOKUP(F41,'(HIDE) MASTER-Chart'!$B:$G,5,FALSE)) ->  | U41: =IF(ISERROR(VLOOKUP(H41,'(HIDE) MASTER-Chart'!$B:$G,5,FALSE)),"",VLOOKUP(H41,'(HIDE) MASTER-Chart'!$B:$G,5,FALSE)) ->  | W41: =IF(ISERROR(VLOOKUP(J41,'(HIDE) MASTER-Chart'!$B:$G,5,FALSE)),"",VLOOKUP(J41,'(HIDE) MASTER-Chart'!$B:$G,5,FALSE)) ->  | Y41: =IF(ISERROR(VLOOKUP(L41,'(HIDE) MASTER-Chart'!$B:$G,5,FALSE)),"",VLOOKUP(L41,'(HIDE) MASTER-Chart'!$B:$G,5,FALSE)) -> 
B42: 11 | D42: 11 | F42: 12 | H42: 12 | J42: 12 | L42: 12 | N42: TARGET | O42: =IFERROR( IF($W$1='(HIDE) MASTER-Chart'!$J$2, VLOOKUP(B42,'(HIDE) MASTER-Chart'!$B:$G,5,FALSE), VLOOKUP(B42,'(HIDE) MASTER-Chart'!$M:$R,5,FALSE)),"") -> 75658 | P42: (11) | Q42: =IFERROR( IF($W$1='(HIDE) MASTER-Chart'!$J$2, VLOOKUP(D42,'(HIDE) MASTER-Chart'!$B:$G,5,FALSE), VLOOKUP(D42,'(HIDE) MASTER-Chart'!$M:$R,5,FALSE)),"") -> 75658 | R42: (11) | S42: =IFERROR( IF($W$1='(HIDE) MASTER-Chart'!$J$2, VLOOKUP(F42,'(HIDE) MASTER-Chart'!$B:$G,5,FALSE), VLOOKUP(F42,'(HIDE) MASTER-Chart'!$M:$R,5,FALSE)),"") -> 78202 | T42: (12) | U42: =IFERROR( IF($W$1='(HIDE) MASTER-Chart'!$J$2, VLOOKUP(H42,'(HIDE) MASTER-Chart'!$B:$G,5,FALSE), VLOOKUP(H42,'(HIDE) MASTER-Chart'!$M:$R,5,FALSE)),"") -> 78202 | V42: (12) | W42: =IFERROR( IF($W$1='(HIDE) MASTER-Chart'!$J$2, VLOOKUP(J42,'(HIDE) MASTER-Chart'!$B:$G,5,FALSE), VLOOKUP(J42,'(HIDE) MASTER-Chart'!$M:$R,5,FALSE)),"") -> 78202 | X42: (12) | Y42: =IFERROR( IF($W$1='(HIDE) MASTER-Chart'!$J$2, VLOOKUP(L42,'(HIDE) MASTER-Chart'!$B:$G,5,FALSE), VLOOKUP(L42,'(HIDE) MASTER-Chart'!$M:$R,5,FALSE)),"") -> 78202 | Z42: (12)
A43: 24 - 25 | B43: 9 | D43: 9 | F43: 10 | H43: 10 | J43: 10 | L43: 10 | N43: 2 STEP | O43: =IFERROR( IF($W$1='(HIDE) MASTER-Chart'!$J$2, VLOOKUP(B43,'(HIDE) MASTER-Chart'!$B:$G,5,FALSE), VLOOKUP(B43,'(HIDE) MASTER-Chart'!$M:$R,5,FALSE)),"") -> 70814 | P43: (9) | Q43: =IFERROR( IF($W$1='(HIDE) MASTER-Chart'!$J$2, VLOOKUP(D43,'(HIDE) MASTER-Chart'!$B:$G,5,FALSE), VLOOKUP(D43,'(HIDE) MASTER-Chart'!$M:$R,5,FALSE)),"") -> 70814 | R43: (9) | S43: =IFERROR( IF($W$1='(HIDE) MASTER-Chart'!$J$2, VLOOKUP(F43,'(HIDE) MASTER-Chart'!$B:$G,5,FALSE), VLOOKUP(F43,'(HIDE) MASTER-Chart'!$M:$R,5,FALSE)),"") -> 73196 | T43: (10) | U43: =IFERROR( IF($W$1='(HIDE) MASTER-Chart'!$J$2, VLOOKUP(H43,'(HIDE) MASTER-Chart'!$B:$G,5,FALSE), VLOOKUP(H43,'(HIDE) MASTER-Chart'!$M:$R,5,FALSE)),"") -> 73196 | V43: (10) | W43: =IFERROR( IF($W$1='(HIDE) MASTER-Chart'!$J$2, VLOOKUP(J43,'(HIDE) MASTER-Chart'!$B:$G,5,FALSE), VLOOKUP(J43,'(HIDE) MASTER-Chart'!$M:$R,5,FALSE)),"") -> 73196 | X43: (10) | Y43: =IFERROR( IF($W$1='(HIDE) MASTER-Chart'!$J$2, VLOOKUP(L43,'(HIDE) MASTER-Chart'!$B:$G,5,FALSE), VLOOKUP(L43,'(HIDE) MASTER-Chart'!$M:$R,5,FALSE)),"") -> 73196 | Z43: (10)
O44: =IF(ISERROR(VLOOKUP(B44,'(HIDE) MASTER-Chart'!$B:$G,5,FALSE)),"",VLOOKUP(B44,'(HIDE) MASTER-Chart'!$B:$G,5,FALSE)) ->  | Q44: =IF(ISERROR(VLOOKUP(D44,'(HIDE) MASTER-Chart'!$B:$G,5,FALSE)),"",VLOOKUP(D44,'(HIDE) MASTER-Chart'!$B:$G,5,FALSE)) ->  | S44: =IF(ISERROR(VLOOKUP(F44,'(HIDE) MASTER-Chart'!$B:$G,5,FALSE)),"",VLOOKUP(F44,'(HIDE) MASTER-Chart'!$B:$G,5,FALSE)) ->  | U44: =IF(ISERROR(VLOOKUP(H44,'(HIDE) MASTER-Chart'!$B:$G,5,FALSE)),"",VLOOKUP(H44,'(HIDE) MASTER-Chart'!$B:$G,5,FALSE)) ->  | W44: =IF(ISERROR(VLOOKUP(J44,'(HIDE) MASTER-Chart'!$B:$G,5,FALSE)),"",VLOOKUP(J44,'(HIDE) MASTER-Chart'!$B:$G,5,FALSE)) ->  | Y44: =IF(ISERROR(VLOOKUP(L44,'(HIDE) MASTER-Chart'!$B:$G,5,FALSE)),"",VLOOKUP(L44,'(HIDE) MASTER-Chart'!$B:$G,5,FALSE)) -> 
B45: 11 | D45: 12 | F45: 12 | H45: 12 | J45: 12 | L45: 13 | N45: TARGET | O45: =IFERROR( IF($W$1='(HIDE) MASTER-Chart'!$J$2, VLOOKUP(B45,'(HIDE) MASTER-Chart'!$B:$G,5,FALSE), VLOOKUP(B45,'(HIDE) MASTER-Chart'!$M:$R,5,FALSE)),"") -> 75658 | P45: (11) | Q45: =IFERROR( IF($W$1='(HIDE) MASTER-Chart'!$J$2, VLOOKUP(D45,'(HIDE) MASTER-Chart'!$B:$G,5,FALSE), VLOOKUP(D45,'(HIDE) MASTER-Chart'!$M:$R,5,FALSE)),"") -> 78202 | R45: (12) | S45: =IFERROR( IF($W$1='(HIDE) MASTER-Chart'!$J$2, VLOOKUP(F45,'(HIDE) MASTER-Chart'!$B:$G,5,FALSE), VLOOKUP(F45,'(HIDE) MASTER-Chart'!$M:$R,5,FALSE)),"") -> 78202 | T45: (12) | U45: =IFERROR( IF($W$1='(HIDE) MASTER-Chart'!$J$2, VLOOKUP(H45,'(HIDE) MASTER-Chart'!$B:$G,5,FALSE), VLOOKUP(H45,'(HIDE) MASTER-Chart'!$M:$R,5,FALSE)),"") -> 78202 | V45: (12) | W45: =IFERROR( IF($W$1='(HIDE) MASTER-Chart'!$J$2, VLOOKUP(J45,'(HIDE) MASTER-Chart'!$B:$G,5,FALSE), VLOOKUP(J45,'(HIDE) MASTER-Chart'!$M:$R,5,FALSE)),"") -> 78202 | X45: (12) | Y45: =IFERROR( IF($W$1='(HIDE) MASTER-Chart'!$J$2, VLOOKUP(L45,'(HIDE) MASTER-Chart'!$B:$G,5,FALSE), VLOOKUP(L45,'(HIDE) MASTER-Chart'!$M:$R,5,FALSE)),"") -> 80836 | Z45: (13)
A46: 26 - 27 | B46: 9 | D46: 10 | F46: 10 | H46: 10 | J46: 10 | L46: 11 | N46: 2 STEP | O46: =IFERROR( IF($W$1='(HIDE) MASTER-Chart'!$J$2, VLOOKUP(B46,'(HIDE) MASTER-Chart'!$B:$G,5,FALSE), VLOOKUP(B46,'(HIDE) MASTER-Chart'!$M:$R,5,FALSE)),"") -> 70814 | P46: (9) | Q46: =IFERROR( IF($W$1='(HIDE) MASTER-Chart'!$J$2, VLOOKUP(D46,'(HIDE) MASTER-Chart'!$B:$G,5,FALSE), VLOOKUP(D46,'(HIDE) MASTER-Chart'!$M:$R,5,FALSE)),"") -> 73196 | R46: (10) | S46: =IFERROR( IF($W$1='(HIDE) MASTER-Chart'!$J$2, VLOOKUP(F46,'(HIDE) MASTER-Chart'!$B:$G,5,FALSE), VLOOKUP(F46,'(HIDE) MASTER-Chart'!$M:$R,5,FALSE)),"") -> 73196 | T46: (10) | U46: =IFERROR( IF($W$1='(HIDE) MASTER-Chart'!$J$2, VLOOKUP(H46,'(HIDE) MASTER-Chart'!$B:$G,5,FALSE), VLOOKUP(H46,'(HIDE) MASTER-Chart'!$M:$R,5,FALSE)),"") -> 73196 | V46: (10) | W46: =IFERROR( IF($W$1='(HIDE) MASTER-Chart'!$J$2, VLOOKUP(J46,'(HIDE) MASTER-Chart'!$B:$G,5,FALSE), VLOOKUP(J46,'(HIDE) MASTER-Chart'!$M:$R,5,FALSE)),"") -> 73196 | X46: (10) | Y46: =IFERROR( IF($W$1='(HIDE) MASTER-Chart'!$J$2, VLOOKUP(L46,'(HIDE) MASTER-Chart'!$B:$G,5,FALSE), VLOOKUP(L46,'(HIDE) MASTER-Chart'!$M:$R,5,FALSE)),"") -> 75658 | Z46: (11)
O47: =IF(ISERROR(VLOOKUP(B47,'(HIDE) MASTER-Chart'!$B:$G,5,FALSE)),"",VLOOKUP(B47,'(HIDE) MASTER-Chart'!$B:$G,5,FALSE)) ->  | Q47: =IF(ISERROR(VLOOKUP(D47,'(HIDE) MASTER-Chart'!$B:$G,5,FALSE)),"",VLOOKUP(D47,'(HIDE) MASTER-Chart'!$B:$G,5,FALSE)) ->  | S47: =IF(ISERROR(VLOOKUP(F47,'(HIDE) MASTER-Chart'!$B:$G,5,FALSE)),"",VLOOKUP(F47,'(HIDE) MASTER-Chart'!$B:$G,5,FALSE)) ->  | U47: =IF(ISERROR(VLOOKUP(H47,'(HIDE) MASTER-Chart'!$B:$G,5,FALSE)),"",VLOOKUP(H47,'(HIDE) MASTER-Chart'!$B:$G,5,FALSE)) ->  | W47: =IF(ISERROR(VLOOKUP(J47,'(HIDE) MASTER-Chart'!$B:$G,5,FALSE)),"",VLOOKUP(J47,'(HIDE) MASTER-Chart'!$B:$G,5,FALSE)) ->  | Y47: =IF(ISERROR(VLOOKUP(L47,'(HIDE) MASTER-Chart'!$B:$G,5,FALSE)),"",VLOOKUP(L47,'(HIDE) MASTER-Chart'!$B:$G,5,FALSE)) -> 
B48: 12 | D48: 12 | F48: 12 | H48: 13 | J48: 13 | L48: 13 | N48: TARGET | O48: =IFERROR( IF($W$1='(HIDE) MASTER-Chart'!$J$2, VLOOKUP(B48,'(HIDE) MASTER-Chart'!$B:$G,5,FALSE), VLOOKUP(B48,'(HIDE) MASTER-Chart'!$M:$R,5,FALSE)),"") -> 78202 | P48: (12) | Q48: =IFERROR( IF($W$1='(HIDE) MASTER-Chart'!$J$2, VLOOKUP(D48,'(HIDE) MASTER-Chart'!$B:$G,5,FALSE), VLOOKUP(D48,'(HIDE) MASTER-Chart'!$M:$R,5,FALSE)),"") -> 78202 | R48: (12) | S48: =IFERROR( IF($W$1='(HIDE) MASTER-Chart'!$J$2, VLOOKUP(F48,'(HIDE) MASTER-Chart'!$B:$G,5,FALSE), VLOOKUP(F48,'(HIDE) MASTER-Chart'!$M:$R,5,FALSE)),"") -> 78202 | T48: (12) | U48: =IFERROR( IF($W$1='(HIDE) MASTER-Chart'!$J$2, VLOOKUP(H48,'(HIDE) MASTER-Chart'!$B:$G,5,FALSE), VLOOKUP(H48,'(HIDE) MASTER-Chart'!$M:$R,5,FALSE)),"") -> 80836 | V48: (13) | W48: =IFERROR( IF($W$1='(HIDE) MASTER-Chart'!$J$2, VLOOKUP(J48,'(HIDE) MASTER-Chart'!$B:$G,5,FALSE), VLOOKUP(J48,'(HIDE) MASTER-Chart'!$M:$R,5,FALSE)),"") -> 80836 | X48: (13) | Y48: =IFERROR( IF($W$1='(HIDE) MASTER-Chart'!$J$2, VLOOKUP(L48,'(HIDE) MASTER-Chart'!$B:$G,5,FALSE), VLOOKUP(L48,'(HIDE) MASTER-Chart'!$M:$R,5,FALSE)),"") -> 80836 | Z48: (13)
A49: 28 - 29 | B49: 10 | D49: 10 | F49: 10 | H49: 11 | J49: 11 | L49: 11 | N49: 2 STEP | O49: =IFERROR( IF($W$1='(HIDE) MASTER-Chart'!$J$2, VLOOKUP(B49,'(HIDE) MASTER-Chart'!$B:$G,5,FALSE), VLOOKUP(B49,'(HIDE) MASTER-Chart'!$M:$R,5,FALSE)),"") -> 73196 | P49: (10) | Q49: =IFERROR( IF($W$1='(HIDE) MASTER-Chart'!$J$2, VLOOKUP(D49,'(HIDE) MASTER-Chart'!$B:$G,5,FALSE), VLOOKUP(D49,'(HIDE) MASTER-Chart'!$M:$R,5,FALSE)),"") -> 73196 | R49: (10) | S49: =IFERROR( IF($W$1='(HIDE) MASTER-Chart'!$J$2, VLOOKUP(F49,'(HIDE) MASTER-Chart'!$B:$G,5,FALSE), VLOOKUP(F49,'(HIDE) MASTER-Chart'!$M:$R,5,FALSE)),"") -> 73196 | T49: (10) | U49: =IFERROR( IF($W$1='(HIDE) MASTER-Chart'!$J$2, VLOOKUP(H49,'(HIDE) MASTER-Chart'!$B:$G,5,FALSE), VLOOKUP(H49,'(HIDE) MASTER-Chart'!$M:$R,5,FALSE)),"") -> 75658 | V49: (11) | W49: =IFERROR( IF($W$1='(HIDE) MASTER-Chart'!$J$2, VLOOKUP(J49,'(HIDE) MASTER-Chart'!$B:$G,5,FALSE), VLOOKUP(J49,'(HIDE) MASTER-Chart'!$M:$R,5,FALSE)),"") -> 75658 | X49: (11) | Y49: =IFERROR( IF($W$1='(HIDE) MASTER-Chart'!$J$2, VLOOKUP(L49,'(HIDE) MASTER-Chart'!$B:$G,5,FALSE), VLOOKUP(L49,'(HIDE) MASTER-Chart'!$M:$R,5,FALSE)),"") -> 75658 | Z49: (11)
O50: =IF(ISERROR(VLOOKUP(B50,'(HIDE) MASTER-Chart'!$B:$G,5,FALSE)),"",VLOOKUP(B50,'(HIDE) MASTER-Chart'!$B:$G,5,FALSE)) ->  | Q50: =IF(ISERROR(VLOOKUP(D50,'(HIDE) MASTER-Chart'!$B:$G,5,FALSE)),"",VLOOKUP(D50,'(HIDE) MASTER-Chart'!$B:$G,5,FALSE)) ->  | S50: =IF(ISERROR(VLOOKUP(F50,'(HIDE) MASTER-Chart'!$B:$G,5,FALSE)),"",VLOOKUP(F50,'(HIDE) MASTER-Chart'!$B:$G,5,FALSE)) ->  | U50: =IF(ISERROR(VLOOKUP(H50,'(HIDE) MASTER-Chart'!$B:$G,5,FALSE)),"",VLOOKUP(H50,'(HIDE) MASTER-Chart'!$B:$G,5,FALSE)) ->  | W50: =IF(ISERROR(VLOOKUP(J50,'(HIDE) MASTER-Chart'!$B:$G,5,FALSE)),"",VLOOKUP(J50,'(HIDE) MASTER-Chart'!$B:$G,5,FALSE)) ->  | Y50: =IF(ISERROR(VLOOKUP(L50,'(HIDE) MASTER-Chart'!$B:$G,5,FALSE)),"",VLOOKUP(L50,'(HIDE) MASTER-Chart'!$B:$G,5,FALSE)) -> 
B51: 12 | D51: 13 | F51: 13 | H51: 13 | J51: 13 | L51: 14 | N51: TARGET | O51: =IFERROR( IF($W$1='(HIDE) MASTER-Chart'!$J$2, VLOOKUP(B51,'(HIDE) MASTER-Chart'!$B:$G,5,FALSE), VLOOKUP(B51,'(HIDE) MASTER-Chart'!$M:$R,5,FALSE)),"") -> 78202 | P51: (12) | Q51: =IFERROR( IF($W$1='(HIDE) MASTER-Chart'!$J$2, VLOOKUP(D51,'(HIDE) MASTER-Chart'!$B:$G,5,FALSE), VLOOKUP(D51,'(HIDE) MASTER-Chart'!$M:$R,5,FALSE)),"") -> 80836 | R51: (13) | S51: =IFERROR( IF($W$1='(HIDE) MASTER-Chart'!$J$2, VLOOKUP(F51,'(HIDE) MASTER-Chart'!$B:$G,5,FALSE), VLOOKUP(F51,'(HIDE) MASTER-Chart'!$M:$R,5,FALSE)),"") -> 80836 | T51: (13) | U51: =IFERROR( IF($W$1='(HIDE) MASTER-Chart'!$J$2, VLOOKUP(H51,'(HIDE) MASTER-Chart'!$B:$G,5,FALSE), VLOOKUP(H51,'(HIDE) MASTER-Chart'!$M:$R,5,FALSE)),"") -> 80836 | V51: (13) | W51: =IFERROR( IF($W$1='(HIDE) MASTER-Chart'!$J$2, VLOOKUP(J51,'(HIDE) MASTER-Chart'!$B:$G,5,FALSE), VLOOKUP(J51,'(HIDE) MASTER-Chart'!$M:$R,5,FALSE)),"") -> 80836 | X51: (13) | Y51: =IFERROR( IF($W$1='(HIDE) MASTER-Chart'!$J$2, VLOOKUP(L51,'(HIDE) MASTER-Chart'!$B:$G,5,FALSE), VLOOKUP(L51,'(HIDE) MASTER-Chart'!$M:$R,5,FALSE)),"") -> 83560 | Z51: (14)
A52: 30 - 31 | B52: 10 | D52: 11 | F52: 11 | H52: 11 | J52: 11 | L52: 12 | N52: 2 STEP | O52: =IFERROR( IF($W$1='(HIDE) MASTER-Chart'!$J$2, VLOOKUP(B52,'(HIDE) MASTER-Chart'!$B:$G,5,FALSE), VLOOKUP(B52,'(HIDE) MASTER-Chart'!$M:$R,5,FALSE)),"") -> 73196 | P52: (10) | Q52: =IFERROR( IF($W$1='(HIDE) MASTER-Chart'!$J$2, VLOOKUP(D52,'(HIDE) MASTER-Chart'!$B:$G,5,FALSE), VLOOKUP(D52,'(HIDE) MASTER-Chart'!$M:$R,5,FALSE)),"") -> 75658 | R52: (11) | S52: =IFERROR( IF($W$1='(HIDE) MASTER-Chart'!$J$2, VLOOKUP(F52,'(HIDE) MASTER-Chart'!$B:$G,5,FALSE), VLOOKUP(F52,'(HIDE) MASTER-Chart'!$M:$R,5,FALSE)),"") -> 75658 | T52: (11) | U52: =IFERROR( IF($W$1='(HIDE) MASTER-Chart'!$J$2, VLOOKUP(H52,'(HIDE) MASTER-Chart'!$B:$G,5,FALSE), VLOOKUP(H52,'(HIDE) MASTER-Chart'!$M:$R,5,FALSE)),"") -> 75658 | V52: (11) | W52: =IFERROR( IF($W$1='(HIDE) MASTER-Chart'!$J$2, VLOOKUP(J52,'(HIDE) MASTER-Chart'!$B:$G,5,FALSE), VLOOKUP(J52,'(HIDE) MASTER-Chart'!$M:$R,5,FALSE)),"") -> 75658 | X52: (11) | Y52: =IFERROR( IF($W$1='(HIDE) MASTER-Chart'!$J$2, VLOOKUP(L52,'(HIDE) MASTER-Chart'!$B:$G,5,FALSE), VLOOKUP(L52,'(HIDE) MASTER-Chart'!$M:$R,5,FALSE)),"") -> 78202 | Z52: (12)
O53: =IF(ISERROR(VLOOKUP(B53,'(HIDE) MASTER-Chart'!$B:$G,5,FALSE)),"",VLOOKUP(B53,'(HIDE) MASTER-Chart'!$B:$G,5,FALSE)) ->  | Q53: =IF(ISERROR(VLOOKUP(D53,'(HIDE) MASTER-Chart'!$B:$G,5,FALSE)),"",VLOOKUP(D53,'(HIDE) MASTER-Chart'!$B:$G,5,FALSE)) ->  | S53: =IF(ISERROR(VLOOKUP(F53,'(HIDE) MASTER-Chart'!$B:$G,5,FALSE)),"",VLOOKUP(F53,'(HIDE) MASTER-Chart'!$B:$G,5,FALSE)) ->  | U53: =IF(ISERROR(VLOOKUP(H53,'(HIDE) MASTER-Chart'!$B:$G,5,FALSE)),"",VLOOKUP(H53,'(HIDE) MASTER-Chart'!$B:$G,5,FALSE)) ->  | W53: =IF(ISERROR(VLOOKUP(J53,'(HIDE) MASTER-Chart'!$B:$G,5,FALSE)),"",VLOOKUP(J53,'(HIDE) MASTER-Chart'!$B:$G,5,FALSE)) ->  | Y53: =IF(ISERROR(VLOOKUP(L53,'(HIDE) MASTER-Chart'!$B:$G,5,FALSE)),"",VLOOKUP(L53,'(HIDE) MASTER-Chart'!$B:$G,5,FALSE)) -> 
B54: 13 | D54: 13 | F54: 13 | H54: 13 | J54: 14 | L54: 14 | N54: TARGET | O54: =IFERROR( IF($W$1='(HIDE) MASTER-Chart'!$J$2, VLOOKUP(B54,'(HIDE) MASTER-Chart'!$B:$G,5,FALSE), VLOOKUP(B54,'(HIDE) MASTER-Chart'!$M:$R,5,FALSE)),"") -> 80836 | P54: (13) | Q54: =IFERROR( IF($W$1='(HIDE) MASTER-Chart'!$J$2, VLOOKUP(D54,'(HIDE) MASTER-Chart'!$B:$G,5,FALSE), VLOOKUP(D54,'(HIDE) MASTER-Chart'!$M:$R,5,FALSE)),"") -> 80836 | R54: (13) | S54: =IFERROR( IF($W$1='(HIDE) MASTER-Chart'!$J$2, VLOOKUP(F54,'(HIDE) MASTER-Chart'!$B:$G,5,FALSE), VLOOKUP(F54,'(HIDE) MASTER-Chart'!$M:$R,5,FALSE)),"") -> 80836 | T54: (13) | U54: =IFERROR( IF($W$1='(HIDE) MASTER-Chart'!$J$2, VLOOKUP(H54,'(HIDE) MASTER-Chart'!$B:$G,5,FALSE), VLOOKUP(H54,'(HIDE) MASTER-Chart'!$M:$R,5,FALSE)),"") -> 80836 | V54: (13) | W54: =IFERROR( IF($W$1='(HIDE) MASTER-Chart'!$J$2, VLOOKUP(J54,'(HIDE) MASTER-Chart'!$B:$G,5,FALSE), VLOOKUP(J54,'(HIDE) MASTER-Chart'!$M:$R,5,FALSE)),"") -> 83560 | X54: (14) | Y54: =IFERROR( IF($W$1='(HIDE) MASTER-Chart'!$J$2, VLOOKUP(L54,'(HIDE) MASTER-Chart'!$B:$G,5,FALSE), VLOOKUP(L54,'(HIDE) MASTER-Chart'!$M:$R,5,FALSE)),"") -> 83560 | Z54: (14)
A55: 32 - 33 | B55: 11 | D55: 11 | F55: 11 | H55: 11 | J55: 12 | L55: 12 | N55: 2 STEP | O55: =IFERROR( IF($W$1='(HIDE) MASTER-Chart'!$J$2, VLOOKUP(B55,'(HIDE) MASTER-Chart'!$B:$G,5,FALSE), VLOOKUP(B55,'(HIDE) MASTER-Chart'!$M:$R,5,FALSE)),"") -> 75658 | P55: (11) | Q55: =IFERROR( IF($W$1='(HIDE) MASTER-Chart'!$J$2, VLOOKUP(D55,'(HIDE) MASTER-Chart'!$B:$G,5,FALSE), VLOOKUP(D55,'(HIDE) MASTER-Chart'!$M:$R,5,FALSE)),"") -> 75658 | R55: (11) | S55: =IFERROR( IF($W$1='(HIDE) MASTER-Chart'!$J$2, VLOOKUP(F55,'(HIDE) MASTER-Chart'!$B:$G,5,FALSE), VLOOKUP(F55,'(HIDE) MASTER-Chart'!$M:$R,5,FALSE)),"") -> 75658 | T55: (11) | U55: =IFERROR( IF($W$1='(HIDE) MASTER-Chart'!$J$2, VLOOKUP(H55,'(HIDE) MASTER-Chart'!$B:$G,5,FALSE), VLOOKUP(H55,'(HIDE) MASTER-Chart'!$M:$R,5,FALSE)),"") -> 75658 | V55: (11) | W55: =IFERROR( IF($W$1='(HIDE) MASTER-Chart'!$J$2, VLOOKUP(J55,'(HIDE) MASTER-Chart'!$B:$G,5,FALSE), VLOOKUP(J55,'(HIDE) MASTER-Chart'!$M:$R,5,FALSE)),"") -> 78202 | X55: (12) | Y55: =IFERROR( IF($W$1='(HIDE) MASTER-Chart'!$J$2, VLOOKUP(L55,'(HIDE) MASTER-Chart'!$B:$G,5,FALSE), VLOOKUP(L55,'(HIDE) MASTER-Chart'!$M:$R,5,FALSE)),"") -> 78202 | Z55: (12)
O56: =IF(ISERROR(VLOOKUP(B56,'(HIDE) MASTER-Chart'!$B:$G,5,FALSE)),"",VLOOKUP(B56,'(HIDE) MASTER-Chart'!$B:$G,5,FALSE)) ->  | Q56: =IF(ISERROR(VLOOKUP(D56,'(HIDE) MASTER-Chart'!$B:$G,5,FALSE)),"",VLOOKUP(D56,'(HIDE) MASTER-Chart'!$B:$G,5,FALSE)) ->  | S56: =IF(ISERROR(VLOOKUP(F56,'(HIDE) MASTER-Chart'!$B:$G,5,FALSE)),"",VLOOKUP(F56,'(HIDE) MASTER-Chart'!$B:$G,5,FALSE)) ->  | U56: =IF(ISERROR(VLOOKUP(H56,'(HIDE) MASTER-Chart'!$B:$G,5,FALSE)),"",VLOOKUP(H56,'(HIDE) MASTER-Chart'!$B:$G,5,FALSE)) ->  | W56: =IF(ISERROR(VLOOKUP(J56,'(HIDE) MASTER-Chart'!$B:$G,5,FALSE)),"",VLOOKUP(J56,'(HIDE) MASTER-Chart'!$B:$G,5,FALSE)) ->  | Y56: =IF(ISERROR(VLOOKUP(L56,'(HIDE) MASTER-Chart'!$B:$G,5,FALSE)),"",VLOOKUP(L56,'(HIDE) MASTER-Chart'!$B:$G,5,FALSE)) -> 
B57: 13 | D57: 13 | F57: 14 | H57: 14 | J57: 14 | L57: 14 | N57: TARGET | O57: =IFERROR( IF($W$1='(HIDE) MASTER-Chart'!$J$2, VLOOKUP(B57,'(HIDE) MASTER-Chart'!$B:$G,5,FALSE), VLOOKUP(B57,'(HIDE) MASTER-Chart'!$M:$R,5,FALSE)),"") -> 80836 | P57: (13) | Q57: =IFERROR( IF($W$1='(HIDE) MASTER-Chart'!$J$2, VLOOKUP(D57,'(HIDE) MASTER-Chart'!$B:$G,5,FALSE), VLOOKUP(D57,'(HIDE) MASTER-Chart'!$M:$R,5,FALSE)),"") -> 80836 | R57: (13) | S57: =IFERROR( IF($W$1='(HIDE) MASTER-Chart'!$J$2, VLOOKUP(F57,'(HIDE) MASTER-Chart'!$B:$G,5,FALSE), VLOOKUP(F57,'(HIDE) MASTER-Chart'!$M:$R,5,FALSE)),"") -> 83560 | T57: (14) | U57: =IFERROR( IF($W$1='(HIDE) MASTER-Chart'!$J$2, VLOOKUP(H57,'(HIDE) MASTER-Chart'!$B:$G,5,FALSE), VLOOKUP(H57,'(HIDE) MASTER-Chart'!$M:$R,5,FALSE)),"") -> 83560 | V57: (14) | W57: =IFERROR( IF($W$1='(HIDE) MASTER-Chart'!$J$2, VLOOKUP(J57,'(HIDE) MASTER-Chart'!$B:$G,5,FALSE), VLOOKUP(J57,'(HIDE) MASTER-Chart'!$M:$R,5,FALSE)),"") -> 83560 | X57: (14) | Y57: =IFERROR( IF($W$1='(HIDE) MASTER-Chart'!$J$2, VLOOKUP(L57,'(HIDE) MASTER-Chart'!$B:$G,5,FALSE), VLOOKUP(L57,'(HIDE) MASTER-Chart'!$M:$R,5,FALSE)),"") -> 83560 | Z57: (14)
A58: 34 - 35 | B58: 11 | D58: 11 | F58: 12 | H58: 12 | J58: 12 | L58: 12 | N58: 2 STEP | O58: =IFERROR( IF($W$1='(HIDE) MASTER-Chart'!$J$2, VLOOKUP(B58,'(HIDE) MASTER-Chart'!$B:$G,5,FALSE), VLOOKUP(B58,'(HIDE) MASTER-Chart'!$M:$R,5,FALSE)),"") -> 75658 | P58: (11) | Q58: =IFERROR( IF($W$1='(HIDE) MASTER-Chart'!$J$2, VLOOKUP(D58,'(HIDE) MASTER-Chart'!$B:$G,5,FALSE), VLOOKUP(D58,'(HIDE) MASTER-Chart'!$M:$R,5,FALSE)),"") -> 75658 | R58: (11) | S58: =IFERROR( IF($W$1='(HIDE) MASTER-Chart'!$J$2, VLOOKUP(F58,'(HIDE) MASTER-Chart'!$B:$G,5,FALSE), VLOOKUP(F58,'(HIDE) MASTER-Chart'!$M:$R,5,FALSE)),"") -> 78202 | T58: (12) | U58: =IFERROR( IF($W$1='(HIDE) MASTER-Chart'!$J$2, VLOOKUP(H58,'(HIDE) MASTER-Chart'!$B:$G,5,FALSE), VLOOKUP(H58,'(HIDE) MASTER-Chart'!$M:$R,5,FALSE)),"") -> 78202 | V58: (12) | W58: =IFERROR( IF($W$1='(HIDE) MASTER-Chart'!$J$2, VLOOKUP(J58,'(HIDE) MASTER-Chart'!$B:$G,5,FALSE), VLOOKUP(J58,'(HIDE) MASTER-Chart'!$M:$R,5,FALSE)),"") -> 78202 | X58: (12) | Y58: =IFERROR( IF($W$1='(HIDE) MASTER-Chart'!$J$2, VLOOKUP(L58,'(HIDE) MASTER-Chart'!$B:$G,5,FALSE), VLOOKUP(L58,'(HIDE) MASTER-Chart'!$M:$R,5,FALSE)),"") -> 78202 | Z58: (12)
O59: =IF(ISERROR(VLOOKUP(B59,'(HIDE) MASTER-Chart'!$B:$G,5,FALSE)),"",VLOOKUP(B59,'(HIDE) MASTER-Chart'!$B:$G,5,FALSE)) ->  | Q59: =IF(ISERROR(VLOOKUP(D59,'(HIDE) MASTER-Chart'!$B:$G,5,FALSE)),"",VLOOKUP(D59,'(HIDE) MASTER-Chart'!$B:$G,5,FALSE)) ->  | S59: =IF(ISERROR(VLOOKUP(F59,'(HIDE) MASTER-Chart'!$B:$G,5,FALSE)),"",VLOOKUP(F59,'(HIDE) MASTER-Chart'!$B:$G,5,FALSE)) ->  | U59: =IF(ISERROR(VLOOKUP(H59,'(HIDE) MASTER-Chart'!$B:$G,5,FALSE)),"",VLOOKUP(H59,'(HIDE) MASTER-Chart'!$B:$G,5,FALSE)) ->  | W59: =IF(ISERROR(VLOOKUP(J59,'(HIDE) MASTER-Chart'!$B:$G,5,FALSE)),"",VLOOKUP(J59,'(HIDE) MASTER-Chart'!$B:$G,5,FALSE)) ->  | Y59: =IF(ISERROR(VLOOKUP(L59,'(HIDE) MASTER-Chart'!$B:$G,5,FALSE)),"",VLOOKUP(L59,'(HIDE) MASTER-Chart'!$B:$G,5,FALSE)) -> 
B60: 14 | D60: 14 | F60: 14 | H60: 14 | J60: 15 | L60: 15 | N60: TARGET | O60: =IFERROR( IF($W$1='(HIDE) MASTER-Chart'!$J$2, VLOOKUP(B60,'(HIDE) MASTER-Chart'!$B:$G,5,FALSE), VLOOKUP(B60,'(HIDE) MASTER-Chart'!$M:$R,5,FALSE)),"") -> 83560 | P60: (14) | Q60: =IFERROR( IF($W$1='(HIDE) MASTER-Chart'!$J$2, VLOOKUP(D60,'(HIDE) MASTER-Chart'!$B:$G,5,FALSE), VLOOKUP(D60,'(HIDE) MASTER-Chart'!$M:$R,5,FALSE)),"") -> 83560 | R60: (14) | S60: =IFERROR( IF($W$1='(HIDE) MASTER-Chart'!$J$2, VLOOKUP(F60,'(HIDE) MASTER-Chart'!$B:$G,5,FALSE), VLOOKUP(F60,'(HIDE) MASTER-Chart'!$M:$R,5,FALSE)),"") -> 83560 | T60: (14) | U60: =IFERROR( IF($W$1='(HIDE) MASTER-Chart'!$J$2, VLOOKUP(H60,'(HIDE) MASTER-Chart'!$B:$G,5,FALSE), VLOOKUP(H60,'(HIDE) MASTER-Chart'!$M:$R,5,FALSE)),"") -> 83560 | V60: (14) | W60: =IFERROR( IF($W$1='(HIDE) MASTER-Chart'!$J$2, VLOOKUP(J60,'(HIDE) MASTER-Chart'!$B:$G,5,FALSE), VLOOKUP(J60,'(HIDE) MASTER-Chart'!$M:$R,5,FALSE)),"") -> 86373 | X60: (15) | Y60: =IFERROR( IF($W$1='(HIDE) MASTER-Chart'!$J$2, VLOOKUP(L60,'(HIDE) MASTER-Chart'!$B:$G,5,FALSE), VLOOKUP(L60,'(HIDE) MASTER-Chart'!$M:$R,5,FALSE)),"") -> 86373 | Z60: (15)
A61: 36 - 37 | B61: 12 | D61: 12 | F61: 12 | H61: 12 | J61: 13 | L61: 13 | N61: 2 STEP | O61: =IFERROR( IF($W$1='(HIDE) MASTER-Chart'!$J$2, VLOOKUP(B61,'(HIDE) MASTER-Chart'!$B:$G,5,FALSE), VLOOKUP(B61,'(HIDE) MASTER-Chart'!$M:$R,5,FALSE)),"") -> 78202 | P61: (12) | Q61: =IFERROR( IF($W$1='(HIDE) MASTER-Chart'!$J$2, VLOOKUP(D61,'(HIDE) MASTER-Chart'!$B:$G,5,FALSE), VLOOKUP(D61,'(HIDE) MASTER-Chart'!$M:$R,5,FALSE)),"") -> 78202 | R61: (12) | S61: =IFERROR( IF($W$1='(HIDE) MASTER-Chart'!$J$2, VLOOKUP(F61,'(HIDE) MASTER-Chart'!$B:$G,5,FALSE), VLOOKUP(F61,'(HIDE) MASTER-Chart'!$M:$R,5,FALSE)),"") -> 78202 | T61: (12) | U61: =IFERROR( IF($W$1='(HIDE) MASTER-Chart'!$J$2, VLOOKUP(H61,'(HIDE) MASTER-Chart'!$B:$G,5,FALSE), VLOOKUP(H61,'(HIDE) MASTER-Chart'!$M:$R,5,FALSE)),"") -> 78202 | V61: (12) | W61: =IFERROR( IF($W$1='(HIDE) MASTER-Chart'!$J$2, VLOOKUP(J61,'(HIDE) MASTER-Chart'!$B:$G,5,FALSE), VLOOKUP(J61,'(HIDE) MASTER-Chart'!$M:$R,5,FALSE)),"") -> 80836 | X61: (13) | Y61: =IFERROR( IF($W$1='(HIDE) MASTER-Chart'!$J$2, VLOOKUP(L61,'(HIDE) MASTER-Chart'!$B:$G,5,FALSE), VLOOKUP(L61,'(HIDE) MASTER-Chart'!$M:$R,5,FALSE)),"") -> 80836 | Z61: (13)
O62: =IF(ISERROR(VLOOKUP(B62,'(HIDE) MASTER-Chart'!$B:$G,5,FALSE)),"",VLOOKUP(B62,'(HIDE) MASTER-Chart'!$B:$G,5,FALSE)) ->  | Q62: =IF(ISERROR(VLOOKUP(D62,'(HIDE) MASTER-Chart'!$B:$G,5,FALSE)),"",VLOOKUP(D62,'(HIDE) MASTER-Chart'!$B:$G,5,FALSE)) ->  | S62: =IF(ISERROR(VLOOKUP(F62,'(HIDE) MASTER-Chart'!$B:$G,5,FALSE)),"",VLOOKUP(F62,'(HIDE) MASTER-Chart'!$B:$G,5,FALSE)) ->  | U62: =IF(ISERROR(VLOOKUP(H62,'(HIDE) MASTER-Chart'!$B:$G,5,FALSE)),"",VLOOKUP(H62,'(HIDE) MASTER-Chart'!$B:$G,5,FALSE)) ->  | W62: =IF(ISERROR(VLOOKUP(J62,'(HIDE) MASTER-Chart'!$B:$G,5,FALSE)),"",VLOOKUP(J62,'(HIDE) MASTER-Chart'!$B:$G,5,FALSE)) ->  | Y62: =IF(ISERROR(VLOOKUP(L62,'(HIDE) MASTER-Chart'!$B:$G,5,FALSE)),"",VLOOKUP(L62,'(HIDE) MASTER-Chart'!$B:$G,5,FALSE)) -> 
B63: 14 | D63: 14 | F63: 15 | H63: 15 | J63: 15 | L63: 15 | N63: TARGET | O63: =IFERROR( IF($W$1='(HIDE) MASTER-Chart'!$J$2, VLOOKUP(B63,'(HIDE) MASTER-Chart'!$B:$G,5,FALSE), VLOOKUP(B63,'(HIDE) MASTER-Chart'!$M:$R,5,FALSE)),"") -> 83560 | P63: (14) | Q63: =IFERROR( IF($W$1='(HIDE) MASTER-Chart'!$J$2, VLOOKUP(D63,'(HIDE) MASTER-Chart'!$B:$G,5,FALSE), VLOOKUP(D63,'(HIDE) MASTER-Chart'!$M:$R,5,FALSE)),"") -> 83560 | R63: (14) | S63: =IFERROR( IF($W$1='(HIDE) MASTER-Chart'!$J$2, VLOOKUP(F63,'(HIDE) MASTER-Chart'!$B:$G,5,FALSE), VLOOKUP(F63,'(HIDE) MASTER-Chart'!$M:$R,5,FALSE)),"") -> 86373 | T63: (15) | U63: =IFERROR( IF($W$1='(HIDE) MASTER-Chart'!$J$2, VLOOKUP(H63,'(HIDE) MASTER-Chart'!$B:$G,5,FALSE), VLOOKUP(H63,'(HIDE) MASTER-Chart'!$M:$R,5,FALSE)),"") -> 86373 | V63: (15) | W63: =IFERROR( IF($W$1='(HIDE) MASTER-Chart'!$J$2, VLOOKUP(J63,'(HIDE) MASTER-Chart'!$B:$G,5,FALSE), VLOOKUP(J63,'(HIDE) MASTER-Chart'!$M:$R,5,FALSE)),"") -> 86373 | X63: (15) | Y63: =IFERROR( IF($W$1='(HIDE) MASTER-Chart'!$J$2, VLOOKUP(L63,'(HIDE) MASTER-Chart'!$B:$G,5,FALSE), VLOOKUP(L63,'(HIDE) MASTER-Chart'!$M:$R,5,FALSE)),"") -> 86373 | Z63: (15)
A64: 38 - 39 | B64: 12 | D64: 12 | F64: 13 | H64: 13 | J64: 13 | L64: 13 | N64: 2 STEP | O64: =IFERROR( IF($W$1='(HIDE) MASTER-Chart'!$J$2, VLOOKUP(B64,'(HIDE) MASTER-Chart'!$B:$G,5,FALSE), VLOOKUP(B64,'(HIDE) MASTER-Chart'!$M:$R,5,FALSE)),"") -> 78202 | P64: (12) | Q64: =IFERROR( IF($W$1='(HIDE) MASTER-Chart'!$J$2, VLOOKUP(D64,'(HIDE) MASTER-Chart'!$B:$G,5,FALSE), VLOOKUP(D64,'(HIDE) MASTER-Chart'!$M:$R,5,FALSE)),"") -> 78202 | R64: (12) | S64: =IFERROR( IF($W$1='(HIDE) MASTER-Chart'!$J$2, VLOOKUP(F64,'(HIDE) MASTER-Chart'!$B:$G,5,FALSE), VLOOKUP(F64,'(HIDE) MASTER-Chart'!$M:$R,5,FALSE)),"") -> 80836 | T64: (13) | U64: =IFERROR( IF($W$1='(HIDE) MASTER-Chart'!$J$2, VLOOKUP(H64,'(HIDE) MASTER-Chart'!$B:$G,5,FALSE), VLOOKUP(H64,'(HIDE) MASTER-Chart'!$M:$R,5,FALSE)),"") -> 80836 | V64: (13) | W64: =IFERROR( IF($W$1='(HIDE) MASTER-Chart'!$J$2, VLOOKUP(J64,'(HIDE) MASTER-Chart'!$B:$G,5,FALSE), VLOOKUP(J64,'(HIDE) MASTER-Chart'!$M:$R,5,FALSE)),"") -> 80836 | X64: (13) | Y64: =IFERROR( IF($W$1='(HIDE) MASTER-Chart'!$J$2, VLOOKUP(L64,'(HIDE) MASTER-Chart'!$B:$G,5,FALSE), VLOOKUP(L64,'(HIDE) MASTER-Chart'!$M:$R,5,FALSE)),"") -> 80836 | Z64: (13)
O65: =IF(ISERROR(VLOOKUP(B65,'(HIDE) MASTER-Chart'!$B:$G,5,FALSE)),"",VLOOKUP(B65,'(HIDE) MASTER-Chart'!$B:$G,5,FALSE)) ->  | Q65: =IF(ISERROR(VLOOKUP(D65,'(HIDE) MASTER-Chart'!$B:$G,5,FALSE)),"",VLOOKUP(D65,'(HIDE) MASTER-Chart'!$B:$G,5,FALSE)) ->  | S65: =IF(ISERROR(VLOOKUP(F65,'(HIDE) MASTER-Chart'!$B:$G,5,FALSE)),"",VLOOKUP(F65,'(HIDE) MASTER-Chart'!$B:$G,5,FALSE)) ->  | U65: =IF(ISERROR(VLOOKUP(H65,'(HIDE) MASTER-Chart'!$B:$G,5,FALSE)),"",VLOOKUP(H65,'(HIDE) MASTER-Chart'!$B:$G,5,FALSE)) ->  | W65: =IF(ISERROR(VLOOKUP(J65,'(HIDE) MASTER-Chart'!$B:$G,5,FALSE)),"",VLOOKUP(J65,'(HIDE) MASTER-Chart'!$B:$G,5,FALSE)) ->  | Y65: =IF(ISERROR(VLOOKUP(L65,'(HIDE) MASTER-Chart'!$B:$G,5,FALSE)),"",VLOOKUP(L65,'(HIDE) MASTER-Chart'!$B:$G,5,FALSE)) -> 
B66: 14 | D66: 15 | F66: 15 | H66: 15 | J66: 15 | L66: 16 | N66: TARGET | O66: =IFERROR( IF($W$1='(HIDE) MASTER-Chart'!$J$2, VLOOKUP(B66,'(HIDE) MASTER-Chart'!$B:$G,5,FALSE), VLOOKUP(B66,'(HIDE) MASTER-Chart'!$M:$R,5,FALSE)),"") -> 83560 | P66: (14) | Q66: =IFERROR( IF($W$1='(HIDE) MASTER-Chart'!$J$2, VLOOKUP(D66,'(HIDE) MASTER-Chart'!$B:$G,5,FALSE), VLOOKUP(D66,'(HIDE) MASTER-Chart'!$M:$R,5,FALSE)),"") -> 86373 | R66: (15) | S66: =IFERROR( IF($W$1='(HIDE) MASTER-Chart'!$J$2, VLOOKUP(F66,'(HIDE) MASTER-Chart'!$B:$G,5,FALSE), VLOOKUP(F66,'(HIDE) MASTER-Chart'!$M:$R,5,FALSE)),"") -> 86373 | T66: (15) | U66: =IFERROR( IF($W$1='(HIDE) MASTER-Chart'!$J$2, VLOOKUP(H66,'(HIDE) MASTER-Chart'!$B:$G,5,FALSE), VLOOKUP(H66,'(HIDE) MASTER-Chart'!$M:$R,5,FALSE)),"") -> 86373 | V66: (15) | W66: =IFERROR( IF($W$1='(HIDE) MASTER-Chart'!$J$2, VLOOKUP(J66,'(HIDE) MASTER-Chart'!$B:$G,5,FALSE), VLOOKUP(J66,'(HIDE) MASTER-Chart'!$M:$R,5,FALSE)),"") -> 86373 | X66: (15) | Y66: =IFERROR( IF($W$1='(HIDE) MASTER-Chart'!$J$2, VLOOKUP(L66,'(HIDE) MASTER-Chart'!$B:$G,5,FALSE), VLOOKUP(L66,'(HIDE) MASTER-Chart'!$M:$R,5,FALSE)),"") -> 89292 | Z66: (16)
A67: 40 - 41 | B67: 12 | D67: 13 | F67: 13 | H67: 13 | J67: 13 | L67: 14 | N67: 2 STEP | O67: =IFERROR( IF($W$1='(HIDE) MASTER-Chart'!$J$2, VLOOKUP(B67,'(HIDE) MASTER-Chart'!$B:$G,5,FALSE), VLOOKUP(B67,'(HIDE) MASTER-Chart'!$M:$R,5,FALSE)),"") -> 78202 | P67: (12) | Q67: =IFERROR( IF($W$1='(HIDE) MASTER-Chart'!$J$2, VLOOKUP(D67,'(HIDE) MASTER-Chart'!$B:$G,5,FALSE), VLOOKUP(D67,'(HIDE) MASTER-Chart'!$M:$R,5,FALSE)),"") -> 80836 | R67: (13) | S67: =IFERROR( IF($W$1='(HIDE) MASTER-Chart'!$J$2, VLOOKUP(F67,'(HIDE) MASTER-Chart'!$B:$G,5,FALSE), VLOOKUP(F67,'(HIDE) MASTER-Chart'!$M:$R,5,FALSE)),"") -> 80836 | T67: (13) | U67: =IFERROR( IF($W$1='(HIDE) MASTER-Chart'!$J$2, VLOOKUP(H67,'(HIDE) MASTER-Chart'!$B:$G,5,FALSE), VLOOKUP(H67,'(HIDE) MASTER-Chart'!$M:$R,5,FALSE)),"") -> 80836 | V67: (13) | W67: =IFERROR( IF($W$1='(HIDE) MASTER-Chart'!$J$2, VLOOKUP(J67,'(HIDE) MASTER-Chart'!$B:$G,5,FALSE), VLOOKUP(J67,'(HIDE) MASTER-Chart'!$M:$R,5,FALSE)),"") -> 80836 | X67: (13) | Y67: =IFERROR( IF($W$1='(HIDE) MASTER-Chart'!$J$2, VLOOKUP(L67,'(HIDE) MASTER-Chart'!$B:$G,5,FALSE), VLOOKUP(L67,'(HIDE) MASTER-Chart'!$M:$R,5,FALSE)),"") -> 83560 | Z67: (14)
O68: =IF(ISERROR(VLOOKUP(B68,'(HIDE) MASTER-Chart'!$B:$G,5,FALSE)),"",VLOOKUP(B68,'(HIDE) MASTER-Chart'!$B:$G,5,FALSE)) ->  | Q68: =IF(ISERROR(VLOOKUP(D68,'(HIDE) MASTER-Chart'!$B:$G,5,FALSE)),"",VLOOKUP(D68,'(HIDE) MASTER-Chart'!$B:$G,5,FALSE)) ->  | S68: =IF(ISERROR(VLOOKUP(F68,'(HIDE) MASTER-Chart'!$B:$G,5,FALSE)),"",VLOOKUP(F68,'(HIDE) MASTER-Chart'!$B:$G,5,FALSE)) ->  | U68: =IF(ISERROR(VLOOKUP(H68,'(HIDE) MASTER-Chart'!$B:$G,5,FALSE)),"",VLOOKUP(H68,'(HIDE) MASTER-Chart'!$B:$G,5,FALSE)) ->  | W68: =IF(ISERROR(VLOOKUP(J68,'(HIDE) MASTER-Chart'!$B:$G,5,FALSE)),"",VLOOKUP(J68,'(HIDE) MASTER-Chart'!$B:$G,5,FALSE)) ->  | Y68: =IF(ISERROR(VLOOKUP(L68,'(HIDE) MASTER-Chart'!$B:$G,5,FALSE)),"",VLOOKUP(L68,'(HIDE) MASTER-Chart'!$B:$G,5,FALSE)) -> 
B69: 15 | D69: 15 | F69: 15 | H69: 16 | J69: 16 | L69: 16 | N69: TARGET | O69: =IFERROR( IF($W$1='(HIDE) MASTER-Chart'!$J$2, VLOOKUP(B69,'(HIDE) MASTER-Chart'!$B:$G,5,FALSE), VLOOKUP(B69,'(HIDE) MASTER-Chart'!$M:$R,5,FALSE)),"") -> 86373 | P69: (15) | Q69: =IFERROR( IF($W$1='(HIDE) MASTER-Chart'!$J$2, VLOOKUP(D69,'(HIDE) MASTER-Chart'!$B:$G,5,FALSE), VLOOKUP(D69,'(HIDE) MASTER-Chart'!$M:$R,5,FALSE)),"") -> 86373 | R69: (15) | S69: =IFERROR( IF($W$1='(HIDE) MASTER-Chart'!$J$2, VLOOKUP(F69,'(HIDE) MASTER-Chart'!$B:$G,5,FALSE), VLOOKUP(F69,'(HIDE) MASTER-Chart'!$M:$R,5,FALSE)),"") -> 86373 | T69: (15) | U69: =IFERROR( IF($W$1='(HIDE) MASTER-Chart'!$J$2, VLOOKUP(H69,'(HIDE) MASTER-Chart'!$B:$G,5,FALSE), VLOOKUP(H69,'(HIDE) MASTER-Chart'!$M:$R,5,FALSE)),"") -> 89292 | V69: (16) | W69: =IFERROR( IF($W$1='(HIDE) MASTER-Chart'!$J$2, VLOOKUP(J69,'(HIDE) MASTER-Chart'!$B:$G,5,FALSE), VLOOKUP(J69,'(HIDE) MASTER-Chart'!$M:$R,5,FALSE)),"") -> 89292 | X69: (16) | Y69: =IFERROR( IF($W$1='(HIDE) MASTER-Chart'!$J$2, VLOOKUP(L69,'(HIDE) MASTER-Chart'!$B:$G,5,FALSE), VLOOKUP(L69,'(HIDE) MASTER-Chart'!$M:$R,5,FALSE)),"") -> 89292 | Z69: (16)
A70: 42+ | B70: 13 | D70: 13 | F70: 13 | H70: 14 | J70: 14 | L70: 14 | N70: 2 STEP | O70: =IFERROR( IF($W$1='(HIDE) MASTER-Chart'!$J$2, VLOOKUP(B70,'(HIDE) MASTER-Chart'!$B:$G,5,FALSE), VLOOKUP(B70,'(HIDE) MASTER-Chart'!$M:$R,5,FALSE)),"") -> 80836 | P70: (13) | Q70: =IFERROR( IF($W$1='(HIDE) MASTER-Chart'!$J$2, VLOOKUP(D70,'(HIDE) MASTER-Chart'!$B:$G,5,FALSE), VLOOKUP(D70,'(HIDE) MASTER-Chart'!$M:$R,5,FALSE)),"") -> 80836 | R70: (13) | S70: =IFERROR( IF($W$1='(HIDE) MASTER-Chart'!$J$2, VLOOKUP(F70,'(HIDE) MASTER-Chart'!$B:$G,5,FALSE), VLOOKUP(F70,'(HIDE) MASTER-Chart'!$M:$R,5,FALSE)),"") -> 80836 | T70: (13) | U70: =IFERROR( IF($W$1='(HIDE) MASTER-Chart'!$J$2, VLOOKUP(H70,'(HIDE) MASTER-Chart'!$B:$G,5,FALSE), VLOOKUP(H70,'(HIDE) MASTER-Chart'!$M:$R,5,FALSE)),"") -> 83560 | V70: (14) | W70: =IFERROR( IF($W$1='(HIDE) MASTER-Chart'!$J$2, VLOOKUP(J70,'(HIDE) MASTER-Chart'!$B:$G,5,FALSE), VLOOKUP(J70,'(HIDE) MASTER-Chart'!$M:$R,5,FALSE)),"") -> 83560 | X70: (14) | Y70: =IFERROR( IF($W$1='(HIDE) MASTER-Chart'!$J$2, VLOOKUP(L70,'(HIDE) MASTER-Chart'!$B:$G,5,FALSE), VLOOKUP(L70,'(HIDE) MASTER-Chart'!$M:$R,5,FALSE)),"") -> 83560 | Z70: (14)
O71: =IF(ISERROR(VLOOKUP(B71,'(HIDE) MASTER-Chart'!$B:$G,5,FALSE)),"",VLOOKUP(B71,'(HIDE) MASTER-Chart'!$B:$G,5,FALSE)) ->  | Q71: =IF(ISERROR(VLOOKUP(D71,'(HIDE) MASTER-Chart'!$B:$G,5,FALSE)),"",VLOOKUP(D71,'(HIDE) MASTER-Chart'!$B:$G,5,FALSE)) ->  | S71: =IF(ISERROR(VLOOKUP(F71,'(HIDE) MASTER-Chart'!$B:$G,5,FALSE)),"",VLOOKUP(F71,'(HIDE) MASTER-Chart'!$B:$G,5,FALSE)) ->  | U71: =IF(ISERROR(VLOOKUP(H71,'(HIDE) MASTER-Chart'!$B:$G,5,FALSE)),"",VLOOKUP(H71,'(HIDE) MASTER-Chart'!$B:$G,5,FALSE)) ->  | W71: =IF(ISERROR(VLOOKUP(J71,'(HIDE) MASTER-Chart'!$B:$G,5,FALSE)),"",VLOOKUP(J71,'(HIDE) MASTER-Chart'!$B:$G,5,FALSE)) ->  | Y71: =IF(ISERROR(VLOOKUP(L71,'(HIDE) MASTER-Chart'!$B:$G,5,FALSE)),"",VLOOKUP(L71,'(HIDE) MASTER-Chart'!$B:$G,5,FALSE)) -> 

Sheet Printable Grid-RangeE
O1: MSUAASF | S1: RANGE E | W1: 7/1/2023 (FY24)
Q2: ='(HIDE) MASTER-Chart'!$G$3 -> 62010 | S2: to | U2: ='(HIDE) MASTER-Chart'!$G$22 -> 107975
A4: TOTAL | O4: Years in Equal or Higher MSUAASF, MnSCU Academic Professional, MnSCU Academic Supervisor and/or MnSCU Administrator Ranges
A5: YRS EXP | B5: 0 - 1 | D5: 2 - 3 | F5: 4 - 5 | H5: 6 - 7 | J5: 8 - 9 | L5: 10 - 11 | O5: 0 - 1 | Q5: 2 - 3 | S5: 4 - 5 | U5: 6 - 7 | W5: 8 - 9 | Y5: 10 - 11
B6: 8 | N6: TARGET | O6: =IFERROR( IF($W$1='(HIDE) MASTER-Chart'!$J$2, VLOOKUP(B6,'(HIDE) MASTER-Chart'!$B:$G,6,FALSE), VLOOKUP(B6,'(HIDE) MASTER-Chart'!$M:$R,6,FALSE)),"") -> 76148 | P6: =IF(ISBLANK(B6),"",CONCATENATE("(",B6,")")) -> (8) | Q6: =IFERROR( IF($W$1='(HIDE) MASTER-Chart'!$J$2, VLOOKUP(D6,'(HIDE) MASTER-Chart'!$B:$G,6,FALSE), VLOOKUP(D6,'(HIDE) MASTER-Chart'!$M:$R,6,FALSE)),"") ->  | R6: =IF(ISBLANK(D6),"",CONCATENATE("(",D6,")")) ->  | S6: =IFERROR( IF($W$1='(HIDE) MASTER-Chart'!$J$2, VLOOKUP(F6,'(HIDE) MASTER-Chart'!$B:$G,6,FALSE), VLOOKUP(F6,'(HIDE) MASTER-Chart'!$M:$R,6,FALSE)),"") ->  | T6: =IF(ISBLANK(F6),"",CONCATENATE("(",F6,")")) ->  | U6: =IFERROR( IF($W$1='(HIDE) MASTER-Chart'!$J$2, VLOOKUP(H6,'(HIDE) MASTER-Chart'!$B:$G,6,FALSE), VLOOKUP(H6,'(HIDE) MASTER-Chart'!$M:$R,6,FALSE)),"") ->  | V6: =IF(ISBLANK(H6),"",CONCATENATE("(",H6,")")) ->  | W6: =IFERROR( IF($W$1='(HIDE) MASTER-Chart'!$J$2, VLOOKUP(J6,'(HIDE) MASTER-Chart'!$B:$G,6,FALSE), VLOOKUP(J6,'(HIDE) MASTER-Chart'!$M:$R,6,FALSE)),"") ->  | X6: =IF(ISBLANK(J6),"",CONCATENATE("(",J6,")")) ->  | Y6: =IFERROR( IF($W$1='(HIDE) MASTER-Chart'!$J$2, VLOOKUP(L6,'(HIDE) MASTER-Chart'!$B:$G,6,FALSE), VLOOKUP(L6,'(HIDE) MASTER-Chart'!$M:$R,6,FALSE)),"") ->  | Z6: =IF(ISBLANK(L6),"",CONCATENATE("(",L6,")")) -> 
A7: 0 - 1 | B7: 6 | N7: 2 STEP | O7: =IFERROR( IF($W$1='(HIDE) MASTER-Chart'!$J$2, VLOOKUP(B7,'(HIDE) MASTER-Chart'!$B:$G,6,FALSE), VLOOKUP(B7,'(HIDE) MASTER-Chart'!$M:$R,6,FALSE)),"") -> 71821 | P7: =IF(ISBLANK(B7),"",CONCATENATE("(",B7,")")) -> (6) | Q7: =IFERROR( IF($W$1='(HIDE) MASTER-Chart'!$J$2, VLOOKUP(D7,'(HIDE) MASTER-Chart'!$B:$G,6,FALSE), VLOOKUP(D7,'(HIDE) MASTER-Chart'!$M:$R,6,FALSE)),"") ->  | S7: =IFERROR( IF($W$1='(HIDE) MASTER-Chart'!$J$2, VLOOKUP(F7,'(HIDE) MASTER-Chart'!$B:$G,6,FALSE), VLOOKUP(F7,'(HIDE) MASTER-Chart'!$M:$R,6,FALSE)),"") ->  | U7: =IFERROR( IF($W$1='(HIDE) MASTER-Chart'!$J$2, VLOOKUP(H7,'(HIDE) MASTER-Chart'!$B:$G,6,FALSE), VLOOKUP(H7,'(HIDE) MASTER-Chart'!$M:$R,6,FALSE)),"") ->  | W7: =IFERROR( IF($W$1='(HIDE) MASTER-Chart'!$J$2, VLOOKUP(J7,'(HIDE) MASTER-Chart'!$B:$G,6,FALSE), VLOOKUP(J7,'(HIDE) MASTER-Chart'!$M:$R,6,FALSE)),"") ->  | Y7: =IFERROR( IF($W$1='(HIDE) MASTER-Chart'!$J$2, VLOOKUP(L7,'(HIDE) MASTER-Chart'!$B:$G,6,FALSE), VLOOKUP(L7,'(HIDE) MASTER-Chart'!$M:$R,6,FALSE)),"") -> 
O8: =IF(ISERROR(VLOOKUP(B8,'(HIDE) MASTER-Chart'!$B:$G,5,FALSE)),"",VLOOKUP(B8,'(HIDE) MASTER-Chart'!$B:$G,5,FALSE)) ->  | P8: =IF(ISBLANK(B8),"",CONCATENATE("(",B8,")")) ->  | Q8: =IF(ISERROR(VLOOKUP(D8,'(HIDE) MASTER-Chart'!$B:$G,5,FALSE)),"",VLOOKUP(D8,'(HIDE) MASTER-Chart'!$B:$G,5,FALSE)) ->  | S8: =IF(ISERROR(VLOOKUP(F8,'(HIDE) MASTER-Chart'!$B:$G,5,FALSE)),"",VLOOKUP(F8,'(HIDE) MASTER-Chart'!$B:$G,5,FALSE)) ->  | U8: =IF(ISERROR(VLOOKUP(H8,'(HIDE) MASTER-Chart'!$B:$G,5,FALSE)),"",VLOOKUP(H8,'(HIDE) MASTER-Chart'!$B:$G,5,FALSE)) ->  | W8: =IF(ISERROR(VLOOKUP(J8,'(HIDE) MASTER-Chart'!$B:$G,5,FALSE)),"",VLOOKUP(J8,'(HIDE) MASTER-Chart'!$B:$G,5,FALSE)) ->  | Y8: =IF(ISERROR(VLOOKUP(L8,'(HIDE) MASTER-Chart'!$B:$G,5,FALSE)),"",VLOOKUP(L8,'(HIDE) MASTER-Chart'!$B:$G,5,FALSE)) -> 
B9: 8 | D9: 8 | N9: TARGET | O9: =IFERROR( IF($W$1='(HIDE) MASTER-Chart'!$J$2, VLOOKUP(B9,'(HIDE) MASTER-Chart'!$B:$G,6,FALSE), VLOOKUP(B9,'(HIDE) MASTER-Chart'!$M:$R,6,FALSE)),"") -> 76148 | P9: =IF(ISBLANK(B9),"",CONCATENATE("(",B9,")")) -> (8) | Q9: =IFERROR( IF($W$1='(HIDE) MASTER-Chart'!$J$2, VLOOKUP(D9,'(HIDE) MASTER-Chart'!$B:$G,6,FALSE), VLOOKUP(D9,'(HIDE) MASTER-Chart'!$M:$R,6,FALSE)),"") -> 76148 | R9: =IF(ISBLANK(D9),"",CONCATENATE("(",D9,")")) -> (8) | S9: =IFERROR( IF($W$1='(HIDE) MASTER-Chart'!$J$2, VLOOKUP(F9,'(HIDE) MASTER-Chart'!$B:$G,6,FALSE), VLOOKUP(F9,'(HIDE) MASTER-Chart'!$M:$R,6,FALSE)),"") ->  | T9: =IF(ISBLANK(F9),"",CONCATENATE("(",F9,")")) ->  | U9: =IFERROR( IF($W$1='(HIDE) MASTER-Chart'!$J$2, VLOOKUP(H9,'(HIDE) MASTER-Chart'!$B:$G,6,FALSE), VLOOKUP(H9,'(HIDE) MASTER-Chart'!$M:$R,6,FALSE)),"") ->  | V9: =IF(ISBLANK(H9),"",CONCATENATE("(",H9,")")) ->  | W9: =IFERROR( IF($W$1='(HIDE) MASTER-Chart'!$J$2, VLOOKUP(J9,'(HIDE) MASTER-Chart'!$B:$G,6,FALSE), VLOOKUP(J9,'(HIDE) MASTER-Chart'!$M:$R,6,FALSE)),"") ->  | X9: =IF(ISBLANK(J9),"",CONCATENATE("(",J9,")")) ->  | Y9: =IFERROR( IF($W$1='(HIDE) MASTER-Chart'!$J$2, VLOOKUP(L9,'(HIDE) MASTER-Chart'!$B:$G,6,FALSE), VLOOKUP(L9,'(HIDE) MASTER-Chart'!$M:$R,6,FALSE)),"") ->  | Z9: =IF(ISBLANK(L9),"",CONCATENATE("(",L9,")")) -> 
A10: 2 - 3 | B10: 6 | D10: 6 | N10: 2 STEP | O10: =IFERROR( IF($W$1='(HIDE) MASTER-Chart'!$J$2, VLOOKUP(B10,'(HIDE) MASTER-Chart'!$B:$G,6,FALSE), VLOOKUP(B10,'(HIDE) MASTER-Chart'!$M:$R,6,FALSE)),"") -> 71821 | P10: (6) | Q10: =IFERROR( IF($W$1='(HIDE) MASTER-Chart'!$J$2, VLOOKUP(D10,'(HIDE) MASTER-Chart'!$B:$G,6,FALSE), VLOOKUP(D10,'(HIDE) MASTER-Chart'!$M:$R,6,FALSE)),"") -> 71821 | R10: (6) | S10: =IFERROR( IF($W$1='(HIDE) MASTER-Chart'!$J$2, VLOOKUP(F10,'(HIDE) MASTER-Chart'!$B:$G,6,FALSE), VLOOKUP(F10,'(HIDE) MASTER-Chart'!$M:$R,6,FALSE)),"") ->  | U10: =IFERROR( IF($W$1='(HIDE) MASTER-Chart'!$J$2, VLOOKUP(H10,'(HIDE) MASTER-Chart'!$B:$G,6,FALSE), VLOOKUP(H10,'(HIDE) MASTER-Chart'!$M:$R,6,FALSE)),"") ->  | W10: =IFERROR( IF($W$1='(HIDE) MASTER-Chart'!$J$2, VLOOKUP(J10,'(HIDE) MASTER-Chart'!$B:$G,6,FALSE), VLOOKUP(J10,'(HIDE) MASTER-Chart'!$M:$R,6,FALSE)),"") ->  | Y10: =IFERROR( IF($W$1='(HIDE) MASTER-Chart'!$J$2, VLOOKUP(L10,'(HIDE) MASTER-Chart'!$B:$G,6,FALSE), VLOOKUP(L10,'(HIDE) MASTER-Chart'!$M:$R,6,FALSE)),"") -> 
O11: =IF(ISERROR(VLOOKUP(B11,'(HIDE) MASTER-Chart'!$B:$G,5,FALSE)),"",VLOOKUP(B11,'(HIDE) MASTER-Chart'!$B:$G,5,FALSE)) ->  | Q11: =IF(ISERROR(VLOOKUP(D11,'(HIDE) MASTER-Chart'!$B:$G,5,FALSE)),"",VLOOKUP(D11,'(HIDE) MASTER-Chart'!$B:$G,5,FALSE)) ->  | S11: =IF(ISERROR(VLOOKUP(F11,'(HIDE) MASTER-Chart'!$B:$G,5,FALSE)),"",VLOOKUP(F11,'(HIDE) MASTER-Chart'!$B:$G,5,FALSE)) ->  | U11: =IF(ISERROR(VLOOKUP(H11,'(HIDE) MASTER-Chart'!$B:$G,5,FALSE)),"",VLOOKUP(H11,'(HIDE) MASTER-Chart'!$B:$G,5,FALSE)) ->  | W11: =IF(ISERROR(VLOOKUP(J11,'(HIDE) MASTER-Chart'!$B:$G,5,FALSE)),"",VLOOKUP(J11,'(HIDE) MASTER-Chart'!$B:$G,5,FALSE)) ->  | Y11: =IF(ISERROR(VLOOKUP(L11,'(HIDE) MASTER-Chart'!$B:$G,5,FALSE)),"",VLOOKUP(L11,'(HIDE) MASTER-Chart'!$B:$G,5,FALSE)) -> 
B12: 9 | D12: 9 | F12: 9 | N12: TARGET | O12: =IFERROR( IF($W$1='(HIDE) MASTER-Chart'!$J$2, VLOOKUP(B12,'(HIDE) MASTER-Chart'!$B:$G,6,FALSE), VLOOKUP(B12,'(HIDE) MASTER-Chart'!$M:$R,6,FALSE)),"") -> 78388 | P12: (9) | Q12: =IFERROR( IF($W$1='(HIDE) MASTER-Chart'!$J$2, VLOOKUP(D12,'(HIDE) MASTER-Chart'!$B:$G,6,FALSE), VLOOKUP(D12,'(HIDE) MASTER-Chart'!$M:$R,6,FALSE)),"") -> 78388 | R12: (9) | S12: =IFERROR( IF($W$1='(HIDE) MASTER-Chart'!$J$2, VLOOKUP(F12,'(HIDE) MASTER-Chart'!$B:$G,6,FALSE), VLOOKUP(F12,'(HIDE) MASTER-Chart'!$M:$R,6,FALSE)),"") -> 78388 | T12: (9) | U12: =IFERROR( IF($W$1='(HIDE) MASTER-Chart'!$J$2, VLOOKUP(H12,'(HIDE) MASTER-Chart'!$B:$G,6,FALSE), VLOOKUP(H12,'(HIDE) MASTER-Chart'!$M:$R,6,FALSE)),"") ->  | W12: =IFERROR( IF($W$1='(HIDE) MASTER-Chart'!$J$2, VLOOKUP(J12,'(HIDE) MASTER-Chart'!$B:$G,6,FALSE), VLOOKUP(J12,'(HIDE) MASTER-Chart'!$M:$R,6,FALSE)),"") ->  | Y12: =IFERROR( IF($W$1='(HIDE) MASTER-Chart'!$J$2, VLOOKUP(L12,'(HIDE) MASTER-Chart'!$B:$G,6,FALSE), VLOOKUP(L12,'(HIDE) MASTER-Chart'!$M:$R,6,FALSE)),"") -> 
A13: 4 - 5 | B13: 7 | D13: 7 | F13: 7 | N13: 2 STEP | O13: =IFERROR( IF($W$1='(HIDE) MASTER-Chart'!$J$2, VLOOKUP(B13,'(HIDE) MASTER-Chart'!$B:$G,6,FALSE), VLOOKUP(B13,'(HIDE) MASTER-Chart'!$M:$R,6,FALSE)),"") -> 73974 | P13: (7) | Q13: =IFERROR( IF($W$1='(HIDE) MASTER-Chart'!$J$2, VLOOKUP(D13,'(HIDE) MASTER-Chart'!$B:$G,6,FALSE), VLOOKUP(D13,'(HIDE) MASTER-Chart'!$M:$R,6,FALSE)),"") -> 73974 | R13: (7) | S13: =IFERROR( IF($W$1='(HIDE) MASTER-Chart'!$J$2, VLOOKUP(F13,'(HIDE) MASTER-Chart'!$B:$G,6,FALSE), VLOOKUP(F13,'(HIDE) MASTER-Chart'!$M:$R,6,FALSE)),"") -> 73974 | T13: (7) | U13: =IFERROR( IF($W$1='(HIDE) MASTER-Chart'!$J$2, VLOOKUP(H13,'(HIDE) MASTER-Chart'!$B:$G,6,FALSE), VLOOKUP(H13,'(HIDE) MASTER-Chart'!$M:$R,6,FALSE)),"") ->  | W13: =IFERROR( IF($W$1='(HIDE) MASTER-Chart'!$J$2, VLOOKUP(J13,'(HIDE) MASTER-Chart'!$B:$G,6,FALSE), VLOOKUP(J13,'(HIDE) MASTER-Chart'!$M:$R,6,FALSE)),"") ->  | Y13: =IFERROR( IF($W$1='(HIDE) MASTER-Chart'!$J$2, VLOOKUP(L13,'(HIDE) MASTER-Chart'!$B:$G,6,FALSE), VLOOKUP(L13,'(HIDE) MASTER-Chart'!$M:$R,6,FALSE)),"") -> 
O14: =IF(ISERROR(VLOOKUP(B14,'(HIDE) MASTER-Chart'!$B:$G,5,FALSE)),"",VLOOKUP(B14,'(HIDE) MASTER-Chart'!$B:$G,5,FALSE)) ->  | Q14: =IF(ISERROR(VLOOKUP(D14,'(HIDE) MASTER-Chart'!$B:$G,5,FALSE)),"",VLOOKUP(D14,'(HIDE) MASTER-Chart'!$B:$G,5,FALSE)) ->  | S14: =IF(ISERROR(VLOOKUP(F14,'(HIDE) MASTER-Chart'!$B:$G,5,FALSE)),"",VLOOKUP(F14,'(HIDE) MASTER-Chart'!$B:$G,5,FALSE)) ->  | U14: =IF(ISERROR(VLOOKUP(H14,'(HIDE) MASTER-Chart'!$B:$G,5,FALSE)),"",VLOOKUP(H14,'(HIDE) MASTER-Chart'!$B:$G,5,FALSE)) ->  | W14: =IF(ISERROR(VLOOKUP(J14,'(HIDE) MASTER-Chart'!$B:$G,5,FALSE)),"",VLOOKUP(J14,'(HIDE) MASTER-Chart'!$B:$G,5,FALSE)) ->  | Y14: =IF(ISERROR(VLOOKUP(L14,'(HIDE) MASTER-Chart'!$B:$G,5,FALSE)),"",VLOOKUP(L14,'(HIDE) MASTER-Chart'!$B:$G,5,FALSE)) -> 
B15: 9 | D15: 9 | F15: 10 | H15: 10 | N15: TARGET | O15: =IFERROR( IF($W$1='(HIDE) MASTER-Chart'!$J$2, VLOOKUP(B15,'(HIDE) MASTER-Chart'!$B:$G,6,FALSE), VLOOKUP(B15,'(HIDE) MASTER-Chart'!$M:$R,6,FALSE)),"") -> 78388 | P15: (9) | Q15: =IFERROR( IF($W$1='(HIDE) MASTER-Chart'!$J$2, VLOOKUP(D15,'(HIDE) MASTER-Chart'!$B:$G,6,FALSE), VLOOKUP(D15,'(HIDE) MASTER-Chart'!$M:$R,6,FALSE)),"") -> 78388 | R15: (9) | S15: =IFERROR( IF($W$1='(HIDE) MASTER-Chart'!$J$2, VLOOKUP(F15,'(HIDE) MASTER-Chart'!$B:$G,6,FALSE), VLOOKUP(F15,'(HIDE) MASTER-Chart'!$M:$R,6,FALSE)),"") -> 80696 | T15: (10) | U15: =IFERROR( IF($W$1='(HIDE) MASTER-Chart'!$J$2, VLOOKUP(H15,'(HIDE) MASTER-Chart'!$B:$G,6,FALSE), VLOOKUP(H15,'(HIDE) MASTER-Chart'!$M:$R,6,FALSE)),"") -> 80696 | V15: (10) | W15: =IFERROR( IF($W$1='(HIDE) MASTER-Chart'!$J$2, VLOOKUP(J15,'(HIDE) MASTER-Chart'!$B:$G,6,FALSE), VLOOKUP(J15,'(HIDE) MASTER-Chart'!$M:$R,6,FALSE)),"") ->  | Y15: =IFERROR( IF($W$1='(HIDE) MASTER-Chart'!$J$2, VLOOKUP(L15,'(HIDE) MASTER-Chart'!$B:$G,6,FALSE), VLOOKUP(L15,'(HIDE) MASTER-Chart'!$M:$R,6,FALSE)),"") -> 
A16: 6 - 7 | B16: 7 | D16: 7 | F16: 8 | H16: 8 | N16: 2 STEP | O16: =IFERROR( IF($W$1='(HIDE) MASTER-Chart'!$J$2, VLOOKUP(B16,'(HIDE) MASTER-Chart'!$B:$G,6,FALSE), VLOOKUP(B16,'(HIDE) MASTER-Chart'!$M:$R,6,FALSE)),"") -> 73974 | P16: (7) | Q16: =IFERROR( IF($W$1='(HIDE) MASTER-Chart'!$J$2, VLOOKUP(D16,'(HIDE) MASTER-Chart'!$B:$G,6,FALSE), VLOOKUP(D16,'(HIDE) MASTER-Chart'!$M:$R,6,FALSE)),"") -> 73974 | R16: (7) | S16: =IFERROR( IF($W$1='(HIDE) MASTER-Chart'!$J$2, VLOOKUP(F16,'(HIDE) MASTER-Chart'!$B:$G,6,FALSE), VLOOKUP(F16,'(HIDE) MASTER-Chart'!$M:$R,6,FALSE)),"") -> 76148 | T16: (8) | U16: =IFERROR( IF($W$1='(HIDE) MASTER-Chart'!$J$2, VLOOKUP(H16,'(HIDE) MASTER-Chart'!$B:$G,6,FALSE), VLOOKUP(H16,'(HIDE) MASTER-Chart'!$M:$R,6,FALSE)),"") -> 76148 | V16: (8) | W16: =IFERROR( IF($W$1='(HIDE) MASTER-Chart'!$J$2, VLOOKUP(J16,'(HIDE) MASTER-Chart'!$B:$G,6,FALSE), VLOOKUP(J16,'(HIDE) MASTER-Chart'!$M:$R,6,FALSE)),"") ->  | Y16: =IFERROR( IF($W$1='(HIDE) MASTER-Chart'!$J$2, VLOOKUP(L16,'(HIDE) MASTER-Chart'!$B:$G,6,FALSE), VLOOKUP(L16,'(HIDE) MASTER-Chart'!$M:$R,6,FALSE)),"") -> 
O17: =IF(ISERROR(VLOOKUP(B17,'(HIDE) MASTER-Chart'!$B:$G,5,FALSE)),"",VLOOKUP(B17,'(HIDE) MASTER-Chart'!$B:$G,5,FALSE)) ->  | Q17: =IF(ISERROR(VLOOKUP(D17,'(HIDE) MASTER-Chart'!$B:$G,5,FALSE)),"",VLOOKUP(D17,'(HIDE) MASTER-Chart'!$B:$G,5,FALSE)) ->  | S17: =IF(ISERROR(VLOOKUP(F17,'(HIDE) MASTER-Chart'!$B:$G,5,FALSE)),"",VLOOKUP(F17,'(HIDE) MASTER-Chart'!$B:$G,5,FALSE)) ->  | U17: =IF(ISERROR(VLOOKUP(H17,'(HIDE) MASTER-Chart'!$B:$G,5,FALSE)),"",VLOOKUP(H17,'(HIDE) MASTER-Chart'!$B:$G,5,FALSE)) ->  | W17: =IF(ISERROR(VLOOKUP(J17,'(HIDE) MASTER-Chart'!$B:$G,5,FALSE)),"",VLOOKUP(J17,'(HIDE) MASTER-Chart'!$B:$G,5,FALSE)) ->  | Y17: =IF(ISERROR(VLOOKUP(L17,'(HIDE) MASTER-Chart'!$B:$G,5,FALSE)),"",VLOOKUP(L17,'(HIDE) MASTER-Chart'!$B:$G,5,FALSE)) -> 
B18: 10 | D18: 10 | F18: 10 | H18: 10 | J18: 11 | N18: TARGET | O18: =IFERROR( IF($W$1='(HIDE) MASTER-Chart'!$J$2, VLOOKUP(B18,'(HIDE) MASTER-Chart'!$B:$G,6,FALSE), VLOOKUP(B18,'(HIDE) MASTER-Chart'!$M:$R,6,FALSE)),"") -> 80696 | P18: (10) | Q18: =IFERROR( IF($W$1='(HIDE) MASTER-Chart'!$J$2, VLOOKUP(D18,'(HIDE) MASTER-Chart'!$B:$G,6,FALSE), VLOOKUP(D18,'(HIDE) MASTER-Chart'!$M:$R,6,FALSE)),"") -> 80696 | R18: (10) | S18: =IFERROR( IF($W$1='(HIDE) MASTER-Chart'!$J$2, VLOOKUP(F18,'(HIDE) MASTER-Chart'!$B:$G,6,FALSE), VLOOKUP(F18,'(HIDE) MASTER-Chart'!$M:$R,6,FALSE)),"") -> 80696 | T18: (10) | U18: =IFERROR( IF($W$1='(HIDE) MASTER-Chart'!$J$2, VLOOKUP(H18,'(HIDE) MASTER-Chart'!$B:$G,6,FALSE), VLOOKUP(H18,'(HIDE) MASTER-Chart'!$M:$R,6,FALSE)),"") -> 80696 | V18: (10) | W18: =IFERROR( IF($W$1='(HIDE) MASTER-Chart'!$J$2, VLOOKUP(J18,'(HIDE) MASTER-Chart'!$B:$G,6,FALSE), VLOOKUP(J18,'(HIDE) MASTER-Chart'!$M:$R,6,FALSE)),"") -> 83073 | X18: (11) | Y18: =IFERROR( IF($W$1='(HIDE) MASTER-Chart'!$J$2, VLOOKUP(L18,'(HIDE) MASTER-Chart'!$B:$G,6,FALSE), VLOOKUP(L18,'(HIDE) MASTER-Chart'!$M:$R,6,FALSE)),"") -> 
A19: 8 - 9 | B19: 8 | D19: 8 | F19: 8 | H19: 8 | J19: 9 | N19: 2 STEP | O19: =IFERROR( IF($W$1='(HIDE) MASTER-Chart'!$J$2, VLOOKUP(B19,'(HIDE) MASTER-Chart'!$B:$G,6,FALSE), VLOOKUP(B19,'(HIDE) MASTER-Chart'!$M:$R,6,FALSE)),"") -> 76148 | P19: (8) | Q19: =IFERROR( IF($W$1='(HIDE) MASTER-Chart'!$J$2, VLOOKUP(D19,'(HIDE) MASTER-Chart'!$B:$G,6,FALSE), VLOOKUP(D19,'(HIDE) MASTER-Chart'!$M:$R,6,FALSE)),"") -> 76148 | R19: (8) | S19: =IFERROR( IF($W$1='(HIDE) MASTER-Chart'!$J$2, VLOOKUP(F19,'(HIDE) MASTER-Chart'!$B:$G,6,FALSE), VLOOKUP(F19,'(HIDE) MASTER-Chart'!$M:$R,6,FALSE)),"") -> 76148 | T19: (8) | U19: =IFERROR( IF($W$1='(HIDE) MASTER-Chart'!$J$2, VLOOKUP(H19,'(HIDE) MASTER-Chart'!$B:$G,6,FALSE), VLOOKUP(H19,'(HIDE) MASTER-Chart'!$M:$R,6,FALSE)),"") -> 76148 | V19: (8) | W19: =IFERROR( IF($W$1='(HIDE) MASTER-Chart'!$J$2, VLOOKUP(J19,'(HIDE) MASTER-Chart'!$B:$G,6,FALSE), VLOOKUP(J19,'(HIDE) MASTER-Chart'!$M:$R,6,FALSE)),"") -> 78388 | X19: (9) | Y19: =IFERROR( IF($W$1='(HIDE) MASTER-Chart'!$J$2, VLOOKUP(L19,'(HIDE) MASTER-Chart'!$B:$G,6,FALSE), VLOOKUP(L19,'(HIDE) MASTER-Chart'!$M:$R,6,FALSE)),"") -> 
O20: =IF(ISERROR(VLOOKUP(B20,'(HIDE) MASTER-Chart'!$B:$G,5,FALSE)),"",VLOOKUP(B20,'(HIDE) MASTER-Chart'!$B:$G,5,FALSE)) ->  | Q20: =IF(ISERROR(VLOOKUP(D20,'(HIDE) MASTER-Chart'!$B:$G,5,FALSE)),"",VLOOKUP(D20,'(HIDE) MASTER-Chart'!$B:$G,5,FALSE)) ->  | S20: =IF(ISERROR(VLOOKUP(F20,'(HIDE) MASTER-Chart'!$B:$G,5,FALSE)),"",VLOOKUP(F20,'(HIDE) MASTER-Chart'!$B:$G,5,FALSE)) ->  | U20: =IF(ISERROR(VLOOKUP(H20,'(HIDE) MASTER-Chart'!$B:$G,5,FALSE)),"",VLOOKUP(H20,'(HIDE) MASTER-Chart'!$B:$G,5,FALSE)) ->  | W20: =IF(ISERROR(VLOOKUP(J20,'(HIDE) MASTER-Chart'!$B:$G,5,FALSE)),"",VLOOKUP(J20,'(HIDE) MASTER-Chart'!$B:$G,5,FALSE)) ->  | Y20: =IF(ISERROR(VLOOKUP(L20,'(HIDE) MASTER-Chart'!$B:$G,5,FALSE)),"",VLOOKUP(L20,'(HIDE) MASTER-Chart'!$B:$G,5,FALSE)) -> 
B21: 10 | D21: 10 | F21: 11 | H21: 11 | J21: 11 | L21: 11 | N21: TARGET | O21: =IFERROR( IF($W$1='(HIDE) MASTER-Chart'!$J$2, VLOOKUP(B21,'(HIDE) MASTER-Chart'!$B:$G,6,FALSE), VLOOKUP(B21,'(HIDE) MASTER-Chart'!$M:$R,6,FALSE)),"") -> 80696 | P21: (10) | Q21: =IFERROR( IF($W$1='(HIDE) MASTER-Chart'!$J$2, VLOOKUP(D21,'(HIDE) MASTER-Chart'!$B:$G,6,FALSE), VLOOKUP(D21,'(HIDE) MASTER-Chart'!$M:$R,6,FALSE)),"") -> 80696 | R21: (10) | S21: =IFERROR( IF($W$1='(HIDE) MASTER-Chart'!$J$2, VLOOKUP(F21,'(HIDE) MASTER-Chart'!$B:$G,6,FALSE), VLOOKUP(F21,'(HIDE) MASTER-Chart'!$M:$R,6,FALSE)),"") -> 83073 | T21: (11) | U21: =IFERROR( IF($W$1='(HIDE) MASTER-Chart'!$J$2, VLOOKUP(H21,'(HIDE) MASTER-Chart'!$B:$G,6,FALSE), VLOOKUP(H21,'(HIDE) MASTER-Chart'!$M:$R,6,FALSE)),"") -> 83073 | V21: (11) | W21: =IFERROR( IF($W$1='(HIDE) MASTER-Chart'!$J$2, VLOOKUP(J21,'(HIDE) MASTER-Chart'!$B:$G,6,FALSE), VLOOKUP(J21,'(HIDE) MASTER-Chart'!$M:$R,6,FALSE)),"") -> 83073 | X21: (11) | Y21: =IFERROR( IF($W$1='(HIDE) MASTER-Chart'!$J$2, VLOOKUP(L21,'(HIDE) MASTER-Chart'!$B:$G,6,FALSE), VLOOKUP(L21,'(HIDE) MASTER-Chart'!$M:$R,6,FALSE)),"") -> 83073 | Z21: (11)
A22: 10 - 11 | B22: 8 | D22: 8 | F22: 9 | H22: 9 | J22: 9 | L22: 9 | N22: 2 STEP | O22: =IFERROR( IF($W$1='(HIDE) MASTER-Chart'!$J$2, VLOOKUP(B22,'(HIDE) MASTER-Chart'!$B:$G,6,FALSE), VLOOKUP(B22,'(HIDE) MASTER-Chart'!$M:$R,6,FALSE)),"") -> 76148 | P22: (8) | Q22: =IFERROR( IF($W$1='(HIDE) MASTER-Chart'!$J$2, VLOOKUP(D22,'(HIDE) MASTER-Chart'!$B:$G,6,FALSE), VLOOKUP(D22,'(HIDE) MASTER-Chart'!$M:$R,6,FALSE)),"") -> 76148 | R22: (8) | S22: =IFERROR( IF($W$1='(HIDE) MASTER-Chart'!$J$2, VLOOKUP(F22,'(HIDE) MASTER-Chart'!$B:$G,6,FALSE), VLOOKUP(F22,'(HIDE) MASTER-Chart'!$M:$R,6,FALSE)),"") -> 78388 | T22: (9) | U22: =IFERROR( IF($W$1='(HIDE) MASTER-Chart'!$J$2, VLOOKUP(H22,'(HIDE) MASTER-Chart'!$B:$G,6,FALSE), VLOOKUP(H22,'(HIDE) MASTER-Chart'!$M:$R,6,FALSE)),"") -> 78388 | V22: (9) | W22: =IFERROR( IF($W$1='(HIDE) MASTER-Chart'!$J$2, VLOOKUP(J22,'(HIDE) MASTER-Chart'!$B:$G,6,FALSE), VLOOKUP(J22,'(HIDE) MASTER-Chart'!$M:$R,6,FALSE)),"") -> 78388 | X22: (9) | Y22: =IFERROR( IF($W$1='(HIDE) MASTER-Chart'!$J$2, VLOOKUP(L22,'(HIDE) MASTER-Chart'!$B:$G,6,FALSE), VLOOKUP(L22,'(HIDE) MASTER-Chart'!$M:$R,6,FALSE)),"") -> 78388 | Z22: (9)
O23: =IF(ISERROR(VLOOKUP(B23,'(HIDE) MASTER-Chart'!$B:$G,5,FALSE)),"",VLOOKUP(B23,'(HIDE) MASTER-Chart'!$B:$G,5,FALSE)) ->  | Q23: =IF(ISERROR(VLOOKUP(D23,'(HIDE) MASTER-Chart'!$B:$G,5,FALSE)),"",VLOOKUP(D23,'(HIDE) MASTER-Chart'!$B:$G,5,FALSE)) ->  | S23: =IF(ISERROR(VLOOKUP(F23,'(HIDE) MASTER-Chart'!$B:$G,5,FALSE)),"",VLOOKUP(F23,'(HIDE) MASTER-Chart'!$B:$G,5,FALSE)) ->  | U23: =IF(ISERROR(VLOOKUP(H23,'(HIDE) MASTER-Chart'!$B:$G,5,FALSE)),"",VLOOKUP(H23,'(HIDE) MASTER-Chart'!$B:$G,5,FALSE)) ->  | W23: =IF(ISERROR(VLOOKUP(J23,'(HIDE) MASTER-Chart'!$B:$G,5,FALSE)),"",VLOOKUP(J23,'(HIDE) MASTER-Chart'!$B:$G,5,FALSE)) ->  | Y23: =IF(ISERROR(VLOOKUP(L23,'(HIDE) MASTER-Chart'!$B:$G,5,FALSE)),"",VLOOKUP(L23,'(HIDE) MASTER-Chart'!$B:$G,5,FALSE)) -> 
